Workbook

Sheet Récapitulatif
A1: Mois de référence pour chgt saison | B1: 8 | I1: 5 QUILLES
A2: Saison 1 | B2: 2021-2022
A3: Saison 2 | B3: 2022-2023 | I3: Statistiques R1 Ligue des Hauts de France
A4: Nb Match mini sur 2 saisons | B4: 10
B5: Critères pour descente | C5: Critères pour montée
A6: %age plancher matchs gagnés | B6: 0 | C6: 0.6499 | D6: %age plafond matchs gagnés | I6: =SaisonDeb & " / " & SaisonFin -> 2021-2022 / 2022-2023
A7: %age plancher sets gagnés | B7: 0 | C7: 0.5999 | D7: %age plafond sets gagnés
A8: Moyenne générale plancher | B8: 0 | C8: 5 | D8: Moyenne générale plafond
B10: =SaisonDeb -> 2021-2022 | I10: =SaisonFin -> 2022-2023 | P10: Total 2 saisons
B11: Matchs | E11: Sets | H11: Moy. | I11: Matchs | L11: Sets | O11: Moy. | P11: Matchs | S11: Sets | V11: Moy.
A12: Joueur | B12: G | C12: P | D12: %age G | E12: G | F12: P | G12: %age G | H12: Gén. | I12: G | J12: P | K12: %age G | L12: G | M12: P | N12: %age G | O12: Gén. | P12: G | Q12: P | R12: %age G | S12: G | T12: P | U12: %age G | V12: Gén.
A13: AIT BRAHIM Abdellaziz | B13: 0 | C13: 4 | D13: 0 | E13: 0 | F13: 4 | G13: 0 | H13: 0.640625 | I13: 0 | J13: 0 | L13: 0 | M13: 0 | P13: 0 | Q13: 4 | R13: 0 | S13: 0 | T13: 4 | U13: 0 | V13: 0.640625
A14: BABOLEIN Clément | B14: 4 | C14: 8 | D14: 0.3333333333 | E14: 9 | F14: 17 | G14: 0.3461538462 | H14: 0.8517730496 | I14: 0 | J14: 0 | L14: 0 | M14: 0 | P14: 4 | Q14: 8 | R14: 0.3333333333 | S14: 9 | T14: 17 | U14: 0.3461538462 | V14: 0.8517730496
A15: BARBE Logan | B15: 0 | C15: 2 | D15: 0 | E15: 0 | F15: 2 | G15: 0 | H15: 0.5125 | I15: 0 | J15: 0 | L15: 0 | M15: 0 | P15: 0 | Q15: 2 | R15: 0 | S15: 0 | T15: 2 | U15: 0 | V15: 0.5125
A16: BARBE Philippe | B16: 8 | C16: 5 | D16: 0.6153846154 | E16: 13 | F16: 10 | G16: 0.5652173913 | H16: 1.091757387 | I16: 0 | J16: 0 | L16: 0 | M16: 0 | P16: 8 | Q16: 5 | R16: 0.6153846154 | S16: 13 | T16: 10 | U16: 0.5652173913 | V16: 1.091757387
A17: BARKUT Volkan | B17: 3 | C17: 5 | D17: 0.375 | E17: 3 | F17: 5 | G17: 0.375 | H17: 0.9643835616 | I17: 0 | J17: 0 | L17: 0 | M17: 0 | P17: 3 | Q17: 5 | R17: 0.375 | S17: 3 | T17: 5 | U17: 0.375 | V17: 0.9643835616
A18: BARTHON Aurélie | B18: 2 | C18: 4 | D18: 0.3333333333 | E18: 2 | F18: 4 | G18: 0.3333333333 | H18: 0.6715210356 | I18: 0 | J18: 2 | K18: 0 | L18: 0 | M18: 2 | N18: 0 | O18: 0.6166666667 | P18: 2 | Q18: 6 | R18: 0.25 | S18: 2 | T18: 6 | U18: 0.25 | V18: 0.6561771562
A19: BENLAMLIH Abdelilah | B19: 0 | C19: 0 | E19: 0 | F19: 0 | I19: 0 | J19: 2 | K19: 0 | L19: 0 | M19: 2 | N19: 0 | O19: 0.585 | P19: 0 | Q19: 2 | R19: 0 | S19: 0 | T19: 2 | U19: 0 | V19: 0.585
A20: BERRIER François | B20: 0 | C20: 4 | D20: 0 | E20: 0 | F20: 4 | G20: 0 | H20: 0.725 | I20: 1 | J20: 3 | K20: 0.25 | L20: 1 | M20: 3 | N20: 0.25 | O20: 0.7817258883 | P20: 1 | Q20: 7 | R20: 0.125 | S20: 1 | T20: 7 | U20: 0.125 | V20: 0.7531486146
A21: BETTEFORT Clémence | B21: 3 | C21: 3 | D21: 0.5 | E21: 7 | F21: 7 | G21: 0.5 | H21: 0.9167717528 | I21: 1 | J21: 3 | K21: 0.25 | L21: 2 | M21: 5 | N21: 0.2857142857 | O21: 0.8773784355 | P21: 4 | Q21: 6 | R21: 0.4 | S21: 9 | T21: 12 | U21: 0.4285714286 | V21: 0.9020537125
A22: BETTEFORT Mickael | B22: 0 | C22: 0 | E22: 0 | F22: 0 | I22: 7 | J22: 4 | K22: 0.6363636364 | L22: 13 | M22: 8 | N22: 0.619047619 | O22: 1.016863406 | P22: 7 | Q22: 4 | R22: 0.6363636364 | S22: 13 | T22: 8 | U22: 0.619047619 | V22: 1.016863406
A23: BETTEFORT Véronique | B23: 2 | C23: 4 | D23: 0.3333333333 | E23: 5 | F23: 9 | G23: 0.3571428571 | H23: 0.8611111111 | I23: 6 | J23: 2 | K23: 0.75 | L23: 8 | M23: 3 | N23: 0.7272727273 | O23: 1.028822055 | P23: 8 | Q23: 6 | R23: 0.5714285714 | S23: 13 | T23: 12 | U23: 0.52 | V23: 0.9452830189
A24: BLONDEL Jean | B24: 0 | C24: 13 | D24: 0 | E24: 0 | F24: 13 | G24: 0 | H24: 0.5692307692 | I24: 0 | J24: 0 | L24: 0 | M24: 0 | P24: 0 | Q24: 13 | R24: 0 | S24: 0 | T24: 13 | U24: 0 | V24: 0.5692307692
A25: BOUIGES Armelle | B25: 0 | C25: 7 | D25: 0 | E25: 0 | F25: 7 | G25: 0 | H25: 0.5273809524 | I25: 0 | J25: 0 | L25: 0 | M25: 0 | P25: 0 | Q25: 7 | R25: 0 | S25: 0 | T25: 7 | U25: 0 | V25: 0.5273809524
A26: BOUTON Gérard | B26: 3 | C26: 6 | D26: 0.3333333333 | E26: 3 | F26: 6 | G26: 0.3333333333 | H26: 0.8085106383 | I26: 4 | J26: 7 | K26: 0.3636363636 | L26: 4 | M26: 7 | N26: 0.3636363636 | O26: 1.019930676 | P26: 7 | Q26: 13 | R26: 0.35 | S26: 7 | T26: 13 | U26: 0.35 | V26: 0.9200182815
A27: BOZON Robert | B27: 12 | C27: 4 | D27: 0.75 | E27: 15 | F27: 5 | G27: 0.75 | H27: 1.260695187 | I27: 1 | J27: 2 | K27: 0.3333333333 | L27: 1 | M27: 2 | N27: 0.3333333333 | O27: 0.9643916914 | P27: 13 | Q27: 6 | R27: 0.6842105263 | S27: 16 | T27: 7 | U27: 0.6956521739 | V27: 1.206219313
A28: BUTTI EmIlie | B28: 6 | C28: 10 | D28: 0.375 | E28: 15 | F28: 23 | G28: 0.3947368421 | H28: 0.8705715635 | I28: 3 | J28: 8 | K28: 0.2727272727 | L28: 12 | M28: 23 | N28: 0.3428571429 | O28: 0.9496890899 | P28: 9 | Q28: 18 | R28: 0.3333333333 | S28: 27 | T28: 46 | U28: 0.3698630137 | V28: 0.9065877509
A29: CABUZEL Denis | B29: 0 | C29: 0 | E29: 0 | F29: 0 | I29: 3 | J29: 4 | K29: 0.4285714286 | L29: 5 | M29: 5 | N29: 0.5 | O29: 1.221088435 | P29: 3 | Q29: 4 | R29: 0.4285714286 | S29: 5 | T29: 5 | U29: 0.5 | V29: 1.221088435
A30: CARON Didier | B30: 0 | C30: 0 | E30: 0 | F30: 0 | I30: 3 | J30: 4 | K30: 0.4285714286 | L30: 4 | M30: 7 | N30: 0.3636363636 | O30: 0.803 | P30: 3 | Q30: 4 | R30: 0.4285714286 | S30: 4 | T30: 7 | U30: 0.3636363636 | V30: 0.803
A31: CARTIERE André | B31: 0 | C31: 0 | E31: 0 | F31: 0 | I31: 3 | J31: 11 | K31: 0.2142857143 | L31: 10 | M31: 23 | N31: 0.303030303 | O31: 0.7855936972 | P31: 3 | Q31: 11 | R31: 0.2142857143 | S31: 10 | T31: 23 | U31: 0.303030303 | V31: 0.7855936972
A32: CASIER Philippe | B32: 1 | C32: 11 | D32: 0.08333333333 | E32: 5 | F32: 22 | G32: 0.1851851852 | H32: 0.6869187849 | I32: 0 | J32: 0 | L32: 0 | M32: 0 | P32: 1 | Q32: 11 | R32: 0.08333333333 | S32: 5 | T32: 22 | U32: 0.1851851852 | V32: 0.6869187849
A33: CAVITTE Jean-Pierre | B33: 0 | C33: 0 | E33: 0 | F33: 0 | I33: 2 | J33: 9 | K33: 0.1818181818 | L33: 2 | M33: 9 | N33: 0.1818181818 | O33: 0.7117537313 | P33: 2 | Q33: 9 | R33: 0.1818181818 | S33: 2 | T33: 9 | U33: 0.1818181818 | V33: 0.7117537313
A34: CHARLES Dominique | B34: 2 | C34: 2 | D34: 0.5 | E34: 2 | F34: 2 | G34: 0.5 | H34: 1.082089552 | I34: 0 | J34: 0 | L34: 0 | M34: 0 | P34: 2 | Q34: 2 | R34: 0.5 | S34: 2 | T34: 2 | U34: 0.5 | V34: 1.082089552
A35: CHENAL Gérard | B35: 0 | C35: 2 | D35: 0 | E35: 0 | F35: 2 | G35: 0 | H35: 0.7041666667 | I35: 3 | J35: 8 | K35: 0.2727272727 | L35: 3 | M35: 8 | N35: 0.2727272727 | O35: 0.8971659919 | P35: 3 | Q35: 10 | R35: 0.2307692308 | S35: 3 | T35: 10 | U35: 0.2307692308 | V35: 0.8657627119
A36: COUSIN Francis | B36: 6 | C36: 4 | D36: 0.6 | E36: 14 | F36: 11 | G36: 0.56 | H36: 1.123393316 | I36: 1 | J36: 1 | K36: 0.5 | L36: 3 | M36: 4 | N36: 0.4285714286 | O36: 0.9259259259 | P36: 7 | Q36: 5 | R36: 0.5833333333 | S36: 17 | T36: 15 | U36: 0.53125 | V36: 1.075080906
A37: CREDOT Gérald | B37: 0 | C37: 0 | E37: 0 | F37: 0 | I37: 0 | J37: 2 | K37: 0 | L37: 0 | M37: 2 | N37: 0 | O37: 0.75 | P37: 0 | Q37: 2 | R37: 0 | S37: 0 | T37: 2 | U37: 0 | V37: 0.75
A38: CUNIN Mickael | B38: 0 | C38: 0 | E38: 0 | F38: 0 | I38: 7 | J38: 5 | K38: 0.5833333333 | L38: 8 | M38: 7 | N38: 0.5333333333 | O38: 1.02962963 | P38: 7 | Q38: 5 | R38: 0.5833333333 | S38: 8 | T38: 7 | U38: 0.5333333333 | V38: 1.02962963
A39: CYFFERS Jean Bernard | B39: 2 | C39: 6 | D39: 0.25 | E39: 5 | F39: 14 | G39: 0.2631578947 | H39: 0.8137254902 | I39: 0 | J39: 0 | L39: 0 | M39: 0 | P39: 2 | Q39: 6 | R39: 0.25 | S39: 5 | T39: 14 | U39: 0.2631578947 | V39: 0.8137254902
A40: DELAFOSSE Gilles | B40: 1 | C40: 1 | D40: 0.5 | E40: 1 | F40: 1 | G40: 0.5 | H40: 1.313131313 | I40: 3 | J40: 4 | K40: 0.4285714286 | L40: 5 | M40: 7 | N40: 0.4166666667 | O40: 1.002659574 | P40: 4 | Q40: 5 | R40: 0.4444444444 | S40: 6 | T40: 8 | U40: 0.4285714286 | V40: 1.038777908
A41: DESCLAIR Guy | B41: 5 | C41: 7 | D41: 0.4166666667 | E41: 5 | F41: 9 | G41: 0.3571428571 | H41: 1.050127443 | I41: 9 | J41: 5 | K41: 0.6428571429 | L41: 9 | M41: 5 | N41: 0.6428571429 | O41: 1.062849162 | P41: 14 | Q41: 12 | R41: 0.5384615385 | S41: 14 | T41: 14 | U41: 0.5 | V41: 1.057110004
A42: DIOT Alain | B42: 0 | C42: 0 | E42: 0 | F42: 0 | I42: 3 | J42: 2 | K42: 0.6 | L42: 3 | M42: 2 | N42: 0.6 | O42: 1.054446461 | P42: 3 | Q42: 2 | R42: 0.6 | S42: 3 | T42: 2 | U42: 0.6 | V42: 1.054446461
A43: DUC Stéphane | B43: 9 | C43: 8 | D43: 0.5294117647 | E43: 10 | F43: 10 | G43: 0.5 | H43: 1.005298013 | I43: 9 | J43: 9 | K43: 0.5 | L43: 11 | M43: 11 | N43: 0.5 | O43: 1.023934618 | P43: 18 | Q43: 17 | R43: 0.5142857143 | S43: 21 | T43: 21 | U43: 0.5 | V43: 1.015203227
A44: DUCHATEAU Jean-Pierre | B44: 0 | C44: 0 | E44: 0 | F44: 0 | I44: 0 | J44: 3 | K44: 0 | L44: 0 | M44: 3 | N44: 0 | O44: 0.7555555556 | P44: 0 | Q44: 3 | R44: 0 | S44: 0 | T44: 3 | U44: 0 | V44: 0.7555555556
A45: DUCROCQ Joël | B45: 4 | C45: 1 | D45: 0.8 | E45: 9 | F45: 4 | G45: 0.6923076923 | H45: 1.292307692 | I45: 3 | J45: 4 | K45: 0.4285714286 | L45: 9 | M45: 8 | N45: 0.5294117647 | O45: 0.9178532311 | P45: 7 | Q45: 5 | R45: 0.5833333333 | S45: 18 | T45: 12 | U45: 0.6 | V45: 1.064
A46: DUHAMEL Marcellin | B46: 3 | C46: 4 | D46: 0.4285714286 | E46: 8 | F46: 10 | G46: 0.4444444444 | H46: 0.8914505283 | I46: 1 | J46: 1 | K46: 0.5 | L46: 1 | M46: 1 | N46: 0.5 | O46: 1.016304348 | P46: 4 | Q46: 5 | R46: 0.4444444444 | S46: 9 | T46: 11 | U46: 0.45 | V46: 0.9102040816
A47: DUTAILLY Michel | B47: 4 | C47: 4 | D47: 0.5 | E47: 4 | F47: 4 | G47: 0.5 | H47: 1.001351351 | I47: 0 | J47: 0 | L47: 0 | M47: 0 | P47: 4 | Q47: 4 | R47: 0.5 | S47: 4 | T47: 4 | U47: 0.5 | V47: 1.001351351
A48: ESPALIEU Jean-François | B48: 0 | C48: 0 | E48: 0 | F48: 0 | I48: 0 | J48: 2 | K48: 0 | L48: 0 | M48: 2 | N48: 0 | O48: 0.8 | P48: 0 | Q48: 2 | R48: 0 | S48: 0 | T48: 2 | U48: 0 | V48: 0.8
A49: FLAHAUT Ghislain | B49: 2 | C49: 9 | D49: 0.1818181818 | E49: 9 | F49: 18 | G49: 0.3333333333 | H49: 0.8488520408 | I49: 0 | J49: 0 | L49: 0 | M49: 0 | P49: 2 | Q49: 9 | R49: 0.1818181818 | S49: 9 | T49: 18 | U49: 0.3333333333 | V49: 0.8488520408
A50: FRANCOIS Bernard | B50: 0 | C50: 0 | E50: 0 | F50: 0 | I50: 4 | J50: 7 | K50: 0.3636363636 | L50: 17 | M50: 21 | N50: 0.4473684211 | O50: 0.92 | P50: 4 | Q50: 7 | R50: 0.3636363636 | S50: 17 | T50: 21 | U50: 0.4473684211 | V50: 0.92
A51: GERARD Mickael | B51: 0 | C51: 0 | E51: 0 | F51: 0 | I51: 1 | J51: 1 | K51: 0.5 | L51: 1 | M51: 1 | N51: 0.5 | O51: 0.8644067797 | P51: 1 | Q51: 1 | R51: 0.5 | S51: 1 | T51: 1 | U51: 0.5 | V51: 0.8644067797
A52: GERONIMI Thierry | B52: 0 | C52: 0 | E52: 0 | F52: 0 | I52: 2 | J52: 1 | K52: 0.6666666667 | L52: 2 | M52: 1 | N52: 0.6666666667 | O52: 0.98 | P52: 2 | Q52: 1 | R52: 0.6666666667 | S52: 2 | T52: 1 | U52: 0.6666666667 | V52: 0.98
A53: GRANGER Pascal | B53: 0 | C53: 0 | E53: 0 | F53: 0 | I53: 13 | J53: 6 | K53: 0.6842105263 | L53: 15 | M53: 8 | N53: 0.652173913 | O53: 1.231414198 | P53: 13 | Q53: 6 | R53: 0.6842105263 | S53: 15 | T53: 8 | U53: 0.652173913 | V53: 1.231414198
A54: GUERIN Astrid | B54: 8 | C54: 5 | D54: 0.6153846154 | E54: 18 | F54: 12 | G54: 0.6 | H54: 1.26200565 | I54: 0 | J54: 0 | L54: 0 | M54: 0 | P54: 8 | Q54: 5 | R54: 0.6153846154 | S54: 18 | T54: 12 | U54: 0.6 | V54: 1.26200565
A55: GUERIN Isabelle | B55: 1 | C55: 5 | D55: 0.1666666667 | E55: 4 | F55: 11 | G55: 0.2666666667 | H55: 0.792513369 | I55: 0 | J55: 0 | L55: 0 | M55: 0 | P55: 1 | Q55: 5 | R55: 0.1666666667 | S55: 4 | T55: 11 | U55: 0.2666666667 | V55: 0.792513369
A56: HAZELAERE François | B56: 1 | C56: 3 | D56: 0.25 | E56: 1 | F56: 3 | G56: 0.25 | H56: 1.09 | I56: 0 | J56: 0 | L56: 0 | M56: 0 | P56: 1 | Q56: 3 | R56: 0.25 | S56: 1 | T56: 3 | U56: 0.25 | V56: 1.09
A57: HERTOUX Didier | B57: 10 | C57: 4 | D57: 0.7142857143 | E57: 12 | F57: 8 | G57: 0.6 | H57: 0.994375 | I57: 15 | J57: 7 | K57: 0.6818181818 | L57: 22 | M57: 13 | N57: 0.6285714286 | O57: 1.099095395 | P57: 25 | Q57: 11 | R57: 0.6944444444 | S57: 34 | T57: 21 | U57: 0.6181818182 | V57: 1.057539683
A58: HOCHART James | B58: 9 | C58: 8 | D58: 0.5294117647 | E58: 11 | F58: 10 | G58: 0.5238095238 | H58: 1.028325123 | I58: 14 | J58: 6 | K58: 0.7 | L58: 21 | M58: 11 | N58: 0.65625 | O58: 1.120844327 | P58: 23 | Q58: 14 | R58: 0.6216216216 | S58: 32 | T58: 21 | U58: 0.6037735849 | V58: 1.078147201
A59: KERKHOF Hervé | B59: 11 | C59: 5 | D59: 0.6875 | E59: 14 | F59: 8 | G59: 0.6363636364 | H59: 1.162902122 | I59: 2 | J59: 1 | K59: 0.6666666667 | L59: 2 | M59: 1 | N59: 0.6666666667 | O59: 1.443349754 | P59: 13 | Q59: 6 | R59: 0.6842105263 | S59: 16 | T59: 9 | U59: 0.64 | V59: 1.197115385
A60: KUZMA Régis | B60: 0 | C60: 0 | E60: 0 | F60: 0 | I60: 2 | J60: 4 | K60: 0.3333333333 | L60: 7 | M60: 8 | N60: 0.4666666667 | O60: 0.9601593625 | P60: 2 | Q60: 4 | R60: 0.3333333333 | S60: 7 | T60: 8 | U60: 0.4666666667 | V60: 0.9601593625
A61: LAMARQUE Yves | B61: 6 | C61: 6 | D61: 0.5 | E61: 7 | F61: 8 | G61: 0.4666666667 | H61: 1.065252855 | I61: 6 | J61: 11 | K61: 0.3529411765 | L61: 7 | M61: 13 | N61: 0.35 | O61: 0.9315211709 | P61: 12 | Q61: 17 | R61: 0.4137931034 | S61: 14 | T61: 21 | U61: 0.4 | V61: 0.9837527875
A62: LANCRY Bruno | B62: 0 | C62: 0 | E62: 0 | F62: 0 | I62: 14 | J62: 2 | K62: 0.875 | L62: 29 | M62: 9 | N62: 0.7631578947 | O62: 1.402572347 | P62: 14 | Q62: 2 | R62: 0.875 | S62: 29 | T62: 9 | U62: 0.7631578947 | V62: 1.402572347
A63: LANCRY Bruno | B63: 0 | C63: 0 | E63: 0 | F63: 0 | I63: 4 | J63: 0 | K63: 1 | L63: 8 | M63: 1 | N63: 0.8888888889 | O63: 1.624605678 | P63: 4 | Q63: 0 | R63: 1 | S63: 8 | T63: 1 | U63: 0.8888888889 | V63: 1.624605678
A64: LE GOHEBEL Jacques | B64: 1 | C64: 10 | D64: 0.09090909091 | E64: 1 | F64: 10 | G64: 0.09090909091 | H64: 0.7975746269 | I64: 8 | J64: 10 | K64: 0.4444444444 | L64: 10 | M64: 13 | N64: 0.4347826087 | O64: 0.9526525956 | P64: 9 | Q64: 20 | R64: 0.3103448276 | S64: 11 | T64: 23 | U64: 0.3235294118 | V64: 0.8938053097
A65: LEBORGNE Léa | B65: 0 | C65: 0 | E65: 0 | F65: 0 | I65: 1 | J65: 3 | K65: 0.25 | L65: 3 | M65: 5 | N65: 0.375 | O65: 1.008097166 | P65: 1 | Q65: 3 | R65: 0.25 | S65: 3 | T65: 5 | U65: 0.375 | V65: 1.008097166
A66: LECROART Serge | B66: 4 | C66: 5 | D66: 0.4444444444 | E66: 4 | F66: 5 | G66: 0.4444444444 | H66: 0.9544334975 | I66: 10 | J66: 2 | K66: 0.8333333333 | L66: 10 | M66: 2 | N66: 0.8333333333 | O66: 1.175257732 | P66: 14 | Q66: 7 | R66: 0.6666666667 | S66: 14 | T66: 7 | U66: 0.6666666667 | V66: 1.074635241
A67: LEFEVRE Alexandre | B67: 0 | C67: 0 | E67: 0 | F67: 0 | I67: 10 | J67: 1 | K67: 0.91 | L67: 25 | M67: 9 | N67: 0.74 | O67: 1.35 | P67: 10 | Q67: 1 | R67: 0.91 | S67: 25 | T67: 9 | U67: 0.74 | V67: 1.35
A68: LEVECQUE Jean-Bernard | B68: 0 | C68: 0 | E68: 0 | F68: 0 | I68: 1 | J68: 3 | K68: 0.25 | L68: 1 | M68: 3 | N68: 0.25 | O68: 0.7973333333 | P68: 1 | Q68: 3 | R68: 0.25 | S68: 1 | T68: 3 | U68: 0.25 | V68: 0.7973333333
A69: LIMOSINO Jacques | B69: 1 | C69: 1 | D69: 0.5 | E69: 2 | F69: 2 | G69: 0.5 | H69: 0.7410714286 | I69: 0 | J69: 2 | K69: 0 | L69: 0 | M69: 4 | N69: 0 | O69: 0.7125 | P69: 1 | Q69: 3 | R69: 0.25 | S69: 2 | T69: 6 | U69: 0.25 | V69: 0.7262931034
A70: LORTHIOIR Jean-Luc | B70: 12 | C70: 11 | D70: 0.5217391304 | E70: 18 | F70: 15 | G70: 0.5454545455 | H70: 1.023054755 | I70: 0 | J70: 0 | L70: 0 | M70: 0 | P70: 12 | Q70: 11 | R70: 0.5217391304 | S70: 18 | T70: 15 | U70: 0.5454545455 | V70: 1.023054755
A71: MACAREZ Guy | B71: 2 | C71: 3 | D71: 0.4 | E71: 2 | F71: 3 | G71: 0.4 | H71: 0.8577981651 | I71: 3 | J71: 7 | K71: 0.3 | L71: 3 | M71: 7 | N71: 0.3 | O71: 0.787278415 | P71: 5 | Q71: 10 | R71: 0.3333333333 | S71: 5 | T71: 10 | U71: 0.3333333333 | V71: 0.8093189964
A72: MANTEN Paul | B72: 2 | C72: 3 | D72: 0.4 | E72: 2 | F72: 3 | G72: 0.4 | H72: 1.023310023 | I72: 0 | J72: 2 | K72: 0 | L72: 0 | M72: 2 | N72: 0 | O72: 0.895 | P72: 2 | Q72: 5 | R72: 0.2857142857 | S72: 2 | T72: 5 | U72: 0.2857142857 | V72: 0.9825119237
A73: MARTIN Denis | B73: 0 | C73: 2 | D73: 0 | E73: 0 | F73: 2 | G73: 0 | H73: 0.7333333333 | I73: 0 | J73: 0 | L73: 0 | M73: 0 | P73: 0 | Q73: 2 | R73: 0 | S73: 0 | T73: 2 | U73: 0 | V73: 0.7333333333
A74: MASSARD Patrick | B74: 2 | C74: 4 | D74: 0.3333333333 | E74: 2 | F74: 4 | G74: 0.3333333333 | H74: 0.9348171701 | I74: 4 | J74: 5 | K74: 0.4444444444 | L74: 4 | M74: 5 | N74: 0.4444444444 | O74: 0.8957718781 | P74: 6 | Q74: 9 | R74: 0.4 | S74: 6 | T74: 9 | U74: 0.4 | V74: 0.9106925881
A75: MAUGER Jean-Paul | B75: 3 | C75: 1 | D75: 0.75 | E75: 3 | F75: 1 | G75: 0.75 | H75: 1.421364985 | I75: 1 | J75: 2 | K75: 0.3333333333 | L75: 1 | M75: 2 | N75: 0.3333333333 | O75: 0.9935897436 | P75: 4 | Q75: 3 | R75: 0.5714285714 | S75: 4 | T75: 3 | U75: 0.5714285714 | V75: 1.215716487
A76: MINET Lionel | B76: 0 | C76: 0 | E76: 0 | F76: 0 | I76: 10 | J76: 6 | K76: 0.625 | L76: 21 | M76: 20 | N76: 0.512195122 | O76: 1.027355623 | P76: 10 | Q76: 6 | R76: 0.625 | S76: 21 | T76: 20 | U76: 0.512195122 | V76: 1.027355623
A77: MONFLIER Francis | B77: 4 | C77: 3 | D77: 0.5714285714 | E77: 4 | F77: 3 | G77: 0.5714285714 | H77: 0.9739413681 | I77: 0 | J77: 0 | L77: 0 | M77: 0 | P77: 4 | Q77: 3 | R77: 0.5714285714 | S77: 4 | T77: 3 | U77: 0.5714285714 | V77: 0.9739413681
A78: MURIOT Jean-Pierre | B78: 0 | C78: 2 | D78: 0 | E78: 0 | F78: 2 | G78: 0 | H78: 0.5375 | I78: 5 | J78: 2 | K78: 0.7142857143 | L78: 5 | M78: 2 | N78: 0.7142857143 | O78: 1.088075881 | P78: 5 | Q78: 4 | R78: 0.5555555556 | S78: 5 | T78: 4 | U78: 0.5555555556 | V78: 0.9529652352
A79: NAHIRNYJ Alexi | B79: 10 | C79: 5 | D79: 0.6666666667 | E79: 14 | F79: 7 | G79: 0.6666666667 | H79: 1.220770289 | I79: 16 | J79: 6 | K79: 0.7272727273 | L79: 20 | M79: 9 | N79: 0.6896551724 | O79: 1.176470588 | P79: 26 | Q79: 11 | R79: 0.7027027027 | S79: 34 | T79: 16 | U79: 0.68 | V79: 1.193888588
A80: NOYER Pascal | B80: 6 | C80: 5 | D80: 0.5454545455 | E80: 6 | F80: 5 | G80: 0.5454545455 | H80: 1.068965517 | I80: 5 | J80: 5 | K80: 0.5 | L80: 5 | M80: 5 | N80: 0.5 | O80: 0.9711111111 | P80: 11 | Q80: 10 | R80: 0.5238095238 | S80: 11 | T80: 10 | U80: 0.5238095238 | V80: 1.021540118
A81: PAILLARD Bertrand | B81: 0 | C81: 0 | E81: 0 | F81: 0 | I81: 9 | J81: 4 | K81: 0.6923076923 | L81: 12 | M81: 7 | N81: 0.6315789474 | O81: 1.098199673 | P81: 9 | Q81: 4 | R81: 0.6923076923 | S81: 12 | T81: 7 | U81: 0.6315789474 | V81: 1.098199673
A82: PARENT Jean-René | B82: 3 | C82: 5 | D82: 0.375 | E82: 3 | F82: 5 | G82: 0.375 | H82: 0.8123324397 | I82: 5 | J82: 8 | K82: 0.3846153846 | L82: 8 | M82: 10 | N82: 0.4444444444 | O82: 1.054805401 | P82: 8 | Q82: 13 | R82: 0.380952381 | S82: 11 | T82: 15 | U82: 0.4230769231 | V82: 0.9645885287
A83: PELLETIER Steeve | B83: 0 | C83: 0 | E83: 0 | F83: 0 | I83: 1 | J83: 8 | K83: 0.1111111111 | L83: 1 | M83: 8 | N83: 0.1111111111 | O83: 0.6040892193 | P83: 1 | Q83: 8 | R83: 0.1111111111 | S83: 1 | T83: 8 | U83: 0.1111111111 | V83: 0.6040892193
A84: PORQUIER Gérard | B84: 0 | C84: 0 | E84: 0 | F84: 0 | I84: 0 | J84: 2 | K84: 0 | L84: 0 | M84: 2 | N84: 0 | O84: 0.6833333333 | P84: 0 | Q84: 2 | R84: 0 | S84: 0 | T84: 2 | U84: 0 | V84: 0.6833333333
A85: RAFFY Alain | B85: 0 | C85: 0 | E85: 0 | F85: 0 | I85: 0 | J85: 2 | K85: 0 | L85: 0 | M85: 2 | N85: 0 | O85: 0.7083333333 | P85: 0 | Q85: 2 | R85: 0 | S85: 0 | T85: 2 | U85: 0 | V85: 0.7083333333
A86: RAMET Jacques | B86: 2 | C86: 8 | D86: 0.2 | E86: 9 | F86: 15 | G86: 0.375 | H86: 0.8844682479 | I86: 0 | J86: 2 | K86: 0 | L86: 0 | M86: 4 | N86: 0 | O86: 0.575 | P86: 2 | Q86: 10 | R86: 0.1666666667 | S86: 9 | T86: 19 | U86: 0.3214285714 | V86: 0.83645766
A87: ROUTHIER David | B87: 3 | C87: 2 | D87: 0.6 | E87: 9 | F87: 7 | G87: 0.5625 | H87: 1.0094451 | I87: 0 | J87: 0 | L87: 0 | M87: 0 | P87: 3 | Q87: 2 | R87: 0.6 | S87: 9 | T87: 7 | U87: 0.5625 | V87: 1.0094451
A88: ROZE Dominique | B88: 3 | C88: 0 | D88: 1 | E88: 6 | F88: 0 | G88: 1 | H88: 1.124293785 | I88: 2 | J88: 2 | K88: 0.5 | L88: 6 | M88: 6 | N88: 0.5 | O88: 0.8640350877 | P88: 5 | Q88: 2 | R88: 0.7142857143 | S88: 12 | T88: 6 | U88: 0.6666666667 | V88: 0.9527938343
A89: ROZE Roger | B89: 0 | C89: 1 | D89: 0 | E89: 0 | F89: 2 | G89: 0 | H89: 0.5583333333 | I89: 0 | J89: 0 | L89: 0 | M89: 0 | P89: 0 | Q89: 1 | R89: 0 | S89: 0 | T89: 2 | U89: 0 | V89: 0.5583333333
A90: SCHERER Didier | B90: 0 | C90: 0 | E90: 0 | F90: 0 | I90: 5 | J90: 8 | K90: 0.3846153846 | L90: 14 | M90: 21 | N90: 0.4 | O90: 0.874470339 | P90: 5 | Q90: 8 | R90: 0.3846153846 | S90: 14 | T90: 21 | U90: 0.4 | V90: 0.874470339
A91: SZWARC Johann | B91: 3 | C91: 8 | D91: 0.2727272727 | E91: 3 | F91: 8 | G91: 0.2727272727 | H91: 0.8137730359 | I91: 9 | J91: 5 | K91: 0.6428571429 | L91: 10 | M91: 7 | N91: 0.5882352941 | O91: 1.172240803 | P91: 12 | Q91: 13 | R91: 0.48 | S91: 13 | T91: 15 | U91: 0.4642857143 | V91: 1.006286484
A92: SZWARC Patrick | B92: 2 | C92: 2 | D92: 0.5 | E92: 2 | F92: 2 | G92: 0.5 | H92: 1.338235294 | I92: 0 | J92: 0 | L92: 0 | M92: 0 | P92: 2 | Q92: 2 | R92: 0.5 | S92: 2 | T92: 2 | U92: 0.5 | V92: 1.338235294
A93: TILLIETTE Michel | B93: 0 | C93: 0 | E93: 0 | F93: 0 | I93: 5 | J93: 8 | K93: 0.3846153846 | L93: 17 | M93: 18 | N93: 0.4857142857 | O93: 0.9702748177 | P93: 5 | Q93: 8 | R93: 0.3846153846 | S93: 17 | T93: 18 | U93: 0.4857142857 | V93: 0.9702748177
A94: TIZON Alain | B94: 4 | C94: 0 | D94: 1 | E94: 8 | F94: 0 | G94: 1 | H94: 1.441441441 | I94: 0 | J94: 0 | L94: 0 | M94: 0 | P94: 4 | Q94: 0 | R94: 1 | S94: 8 | T94: 0 | U94: 1 | V94: 1.441441441
A95: TRIPLET Eddie | B95: 0 | C95: 6 | D95: 0 | E95: 1 | F95: 12 | G95: 0.07692307692 | H95: 0.6443298969 | I95: 0 | J95: 0 | L95: 0 | M95: 0 | P95: 0 | Q95: 6 | R95: 0 | S95: 1 | T95: 12 | U95: 0.07692307692 | V95: 0.6443298969
A96: WALGRAEF Pascal | B96: 3 | C96: 2 | D96: 0.6 | E96: 3 | F96: 2 | G96: 0.6 | H96: 0.9665924276 | I96: 0 | J96: 0 | L96: 0 | M96: 0 | P96: 3 | Q96: 2 | R96: 0.6 | S96: 3 | T96: 2 | U96: 0.6 | V96: 0.9665924276
A97: ZANOTTI Michel | B97: 0 | C97: 0 | E97: 0 | F97: 0 | I97: 10 | J97: 11 | K97: 0.4761904762 | L97: 12 | M97: 13 | N97: 0.48 | O97: 0.9891209748 | P97: 10 | Q97: 11 | R97: 0.4761904762 | S97: 12 | T97: 13 | U97: 0.48 | V97: 0.9891209748

Sheet AIT BRAHIM Abdellaziz
A1: AIT BRAHIM Abdellaziz | P1: =SaisonDeb -> 2021-2022 | R1: =SaisonFin -> 2022-2023 | T1: Toutes saisons
P2: Nombre | Q2: %age | R2: Nombre | S2: %age | T2: Nombre | U2: %age
N3: Matchs | O3: Gagnés | P3: =SUM(P$15:P$116) -> 0 | Q3: =IF(P$3+P$4>0,P3/(P$3+P$4),"") -> 0 | R3: =SUM(R$15:R$116) -> 0 | S3: =IF(R$3+R$4>0,R3/(R$3+R$4),"") ->  | T3: =COUNTIF($C$15:$C$116,"G") -> 0 | U3: =IF(T$3+T$4>0,T3/(T$3+T$4),"") -> 0
O4: Perdus | P4: =COUNTIF($K$15:$M$116,SaisonDeb)-P3 -> 4 | Q4: =IF(P$3+P$4>0,P4/(P$3+P$4),"") -> 1 | R4: =COUNTIF($K$15:$K$116,SaisonFin)-R3 -> 0 | S4: =IF(R$3+R$4>0,R4/(R$3+R$4),"") ->  | T4: =COUNTIF($C$15:$C$116,"P") -> 4 | U4: =IF(T$3+T$4>0,T4/(T$3+T$4),"") -> 1
O5: Total / Moy. | P5: =SUM(P3:P4) -> 4 | Q5: =IF(SUMIF($K$15:$K$116,SaisonDeb,$G$15:$G$116)>0,SUMIF($K$15:$K$116,SaisonDeb,$F$15:$F$116)/SUMIF($K$15:$K$116,SaisonDeb,$G$15:$G$116),"") -> 0.640625 | R5: =SUM(R3:R4) -> 0 | S5: =IF(SUMIF($K$15:$K$116,SaisonFin,$G$15:$G$116)>0,SUMIF($K$15:$K$116,SaisonFin,$F$15:$F$116)/SUMIF($K$15:$K$116,SaisonFin,$G$15:$G$116),"") ->  | T5: =SUM(T3:T4) -> 4 | U5: =IF(SUM($G$15:$G$116)>0,SUM($F$15:$F$116)/SUM($G$15:$G$116),"") -> 0.640625 | V5: =IF(SUMIF($K$15:$K$20,SaisonDeb,$G$15:$G$20)+SUMIF($K$15:$K$20,SaisonFin,$G$15:$G$20)>0,(SUMIF($K$15:$K$20,SaisonDeb,$F$15:$F$20)+SUMIF($K$15:$K$20,SaisonFin,$F$15:$F$20))/(SUMIF($K$15:$K$20,SaisonDeb,$G$15:$G$20)+SUMIF($K$15:$K$20,SaisonFin,$G$15:$G$20)),"") -> 0.640625
N6: Sets | O6: Gagnés | P6: =SUMIF($K$15:$K$116,SaisonDeb,$D$15:$D$116) -> 0 | Q6: =IF(P$6+P$7>0,P6/(P$6+P$7),"") -> 0 | R6: =SUMIF($K$15:$K$116,SaisonFin,$D$15:$D$116) -> 0 | S6: =IF(R$6+R$7>0,R6/(R$6+R$7),"") ->  | T6: =SUM($D$15:$D$116) -> 0 | U6: =IF(T$6+T$7>0,T6/(T$6+T$7),"") -> 0
O7: Perdus | P7: =SUMIF($K$15:$K$116,SaisonDeb,$E$15:$E$116) -> 4 | Q7: =IF(P$6+P$7>0,P7/(P$6+P$7),"") -> 1 | R7: =SUMIF($K$15:$K$116,SaisonFin,$E$15:$E$116) -> 0 | S7: =IF(R$6+R$7>0,R7/(R$6+R$7),"") ->  | T7: =SUM($E$15:$E$116) -> 4 | U7: =IF(T$6+T$7>0,T7/(T$6+T$7),"") -> 1
A8: Récapitulatif joueurs | O8: Total | P8: =SUM(P6:P7) -> 4 | R8: =SUM(R6:R7) -> 0 | T8: =SUM(T6:T7) -> 4
A15: Joueur | B15: Adversaire | C15: G/P | D15: Sets gagnés | E15: Sets perdus | F15: pts marqués | G15: pts subis | H15: Date | I15: Compétition | J15: Phase | K15: Saison
A16: AIT BRAHIM Abdellaziz | B16: JOLY Kenan | C16: P | D16: 0 | E16: 1 | F16: 79 | G16: 80 | H16: 2021-10-16 | I16: T1 5Q R1 CD80 - MOREUIL | J16: Qualifications | K16: =IF(H16<>"",IF(MONTH(H16)>MoisRef,YEAR(H16)&"-"&YEAR(H16)+1,YEAR(H16)-1&"-"&YEAR(H16)),"") -> 2021-2022 | P16: =IF($K16=P$1,COUNTIF($C16,"G"),0) -> 0 | R16: =IF($K16=R$1,COUNTIF($C16,"G"),0) -> 0
A17: AIT BRAHIM Abdellaziz | B17: DUHAMEL Marcellin | C17: P | D17: 0 | E17: 1 | F17: 54 | G17: 80 | H17: 2021-10-16 | I17: T1 5Q R1 CD80 - MOREUIL | J17: Qualifications | K17: =IF(H17<>"",IF(MONTH(H17)>MoisRef,YEAR(H17)&"-"&YEAR(H17)+1,YEAR(H17)-1&"-"&YEAR(H17)),"") -> 2021-2022 | P17: =IF($K17=P$1,COUNTIF($C17,"G"),0) -> 0 | R17: =IF($K17=R$1,COUNTIF($C17,"G"),0) -> 0
A18: AIT BRAHIM Abdellaziz | B18: ROUTHIER David | C18: P | D18: 0 | E18: 1 | F18: 36 | G18: 80 | H18: 2021-12-18 | I18: T2 5Q R1 CD80 - MOREUIL | J18: Qualifications | K18: =IF(H18<>"",IF(MONTH(H18)>MoisRef,YEAR(H18)&"-"&YEAR(H18)+1,YEAR(H18)-1&"-"&YEAR(H18)),"") -> 2021-2022 | P18: =IF($K18=P$1,COUNTIF($C18,"G"),0) -> 0 | R18: =IF($K18=R$1,COUNTIF($C18,"G"),0) -> 0
A19: AIT BRAHIM Abdellaziz | B19: JOLY Kenan | C19: P | D19: 0 | E19: 1 | F19: 36 | G19: 80 | H19: 2021-12-18 | I19: T2 5Q R1 CD80 - MOREUIL | J19: Qualifications | K19: =IF(H19<>"",IF(MONTH(H19)>MoisRef,YEAR(H19)&"-"&YEAR(H19)+1,YEAR(H19)-1&"-"&YEAR(H19)),"") -> 2021-2022 | P19: =IF($K19=P$1,COUNTIF($C19,"G"),0) -> 0 | R19: =IF($K19=R$1,COUNTIF($C19,"G"),0) -> 0
A20: Fin des données | K20: =IF(H20<>"",IF(MONTH(H20)>MoisRef,YEAR(H20)&"-"&YEAR(H20)+1,YEAR(H20)-1&"-"&YEAR(H20)),"") ->  | P20: =IF($K20=P$1,COUNTIF($C20,"G"),0) -> 0 | R20: =IF($K20=R$1,COUNTIF($C20,"G"),0) -> 0

Sheet ALAZARD Philippe
A1: ALAZARD Philippe | P1: =SaisonDeb -> 2021-2022 | R1: =SaisonFin -> 2022-2023 | T1: Toutes saisons
P2: Nombre | Q2: %age | R2: Nombre | S2: %age | T2: Nombre | U2: %age
N3: Matchs | O3: Gagnés | P3: =SUM(P$15:P$137) -> 0 | Q3: =IF(P$3+P$4>0,P3/(P$3+P$4),"") ->  | R3: =SUM(R$15:R$137) -> 0 | S3: =IF(R$3+R$4>0,R3/(R$3+R$4),"") ->  | T3: =COUNTIF($C$15:$C$137,"G") -> 18 | U3: =IF(T$3+T$4>0,T3/(T$3+T$4),"") -> 0.72
O4: Perdus | P4: =COUNTIF($K$15:$M$137,SaisonDeb)-P3 -> 0 | Q4: =IF(P$3+P$4>0,P4/(P$3+P$4),"") ->  | R4: =COUNTIF($K$15:$K$137,SaisonFin)-R3 -> 0 | S4: =IF(R$3+R$4>0,R4/(R$3+R$4),"") ->  | T4: =COUNTIF($C$15:$C$137,"P") -> 7 | U4: =IF(T$3+T$4>0,T4/(T$3+T$4),"") -> 0.28
O5: Total / Moy. | P5: =SUM(P3:P4) -> 0 | Q5: =IF(SUMIF($K$15:$K$137,SaisonDeb,$G$15:$G$137)>0,SUMIF($K$15:$K$137,SaisonDeb,$F$15:$F$137)/SUMIF($K$15:$K$137,SaisonDeb,$G$15:$G$137),"") ->  | R5: =SUM(R3:R4) -> 0 | S5: =IF(SUMIF($K$15:$K$137,SaisonFin,$G$15:$G$137)>0,SUMIF($K$15:$K$137,SaisonFin,$F$15:$F$137)/SUMIF($K$15:$K$137,SaisonFin,$G$15:$G$137),"") ->  | T5: =SUM(T3:T4) -> 25 | U5: =IF(SUM($G$15:$G$137)>0,SUM($F$15:$F$137)/SUM($G$15:$G$137),"") -> 1.397607656 | V5: =IF(SUMIF($K$15:$K$41,SaisonDeb,$G$15:$G$41)+SUMIF($K$15:$K$41,SaisonFin,$G$15:$G$41)>0,(SUMIF($K$15:$K$41,SaisonDeb,$F$15:$F$41)+SUMIF($K$15:$K$41,SaisonFin,$F$15:$F$41))/(SUMIF($K$15:$K$41,SaisonDeb,$G$15:$G$41)+SUMIF($K$15:$K$41,SaisonFin,$G$15:$G$41)),"") -> 
N6: Sets | O6: Gagnés | P6: =SUMIF($K$15:$K$137,SaisonDeb,$D$15:$D$137) -> 0 | Q6: =IF(P$6+P$7>0,P6/(P$6+P$7),"") ->  | R6: =SUMIF($K$15:$K$137,SaisonFin,$D$15:$D$137) -> 0 | S6: =IF(R$6+R$7>0,R6/(R$6+R$7),"") ->  | T6: =SUM($D$15:$D$137) -> 33 | U6: =IF(T$6+T$7>0,T6/(T$6+T$7),"") -> 0.6734693878
O7: Perdus | P7: =SUMIF($K$15:$K$137,SaisonDeb,$E$15:$E$137) -> 0 | Q7: =IF(P$6+P$7>0,P7/(P$6+P$7),"") ->  | R7: =SUMIF($K$15:$K$137,SaisonFin,$E$15:$E$137) -> 0 | S7: =IF(R$6+R$7>0,R7/(R$6+R$7),"") ->  | T7: =SUM($E$15:$E$137) -> 16 | U7: =IF(T$6+T$7>0,T7/(T$6+T$7),"") -> 0.3265306122
A8: Récapitulatif joueurs | O8: Total | P8: =SUM(P6:P7) -> 0 | R8: =SUM(R6:R7) -> 0 | T8: =SUM(T6:T7) -> 49
A15: Joueur | B15: Adversaire | C15: G/P | D15: Sets gagnés | E15: Sets perdus | F15: pts marqués | G15: pts subis | H15: Date | I15: Compétition | J15: Phase | K15: Saison
A16: ALAZARD Philippe | B16: BOUIGES Armelle | C16: G | D16: 2 | E16: 0 | F16: 120 | G16: 52 | H16: 2018-11-24 | I16: 5 Q - T 3 OISE 2018-19 - R 1 - TOURNOI PRINCIPAL - MERU | J16: Qualifications | K16: =IF(H16<>"",IF(MONTH(H16)>MoisRef,YEAR(H16)&"-"&YEAR(H16)+1,YEAR(H16)-1&"-"&YEAR(H16)),"") -> 2018-2019 | P16: =IF($K16=P$1,COUNTIF($C16,"G"),0) -> 0 | R16: =IF($K16=R$1,COUNTIF($C16,"G"),0) -> 0
A17: ALAZARD Philippe | B17: BOZON Robert | C17: G | D17: 2 | E17: 1 | F17: 167 | G17: 162 | H17: 2018-11-24 | I17: 5 Q - T 3 OISE 2018-19 - R 1 - TOURNOI PRINCIPAL - MERU | J17: 1/4 Finale | K17: 2018-2019 | P17: 0 | R17: 0
A18: ALAZARD Philippe | B18: LALOT Gérard | C18: P | D18: 0 | E18: 2 | F18: 74 | G18: 120 | H18: 2018-11-24 | I18: 5 Q - T 3 OISE 2018-19 - R 1 - TOURNOI PRINCIPAL - MERU | J18: 1/2 Finale | K18: 2018-2019 | P18: 0 | R18: 0
A19: ALAZARD Philippe | B19: VANDEPUTTE Laurent | C19: G | D19: 2 | E19: 0 | F19: 120 | G19: 82 | H19: 2018-11-24 | I19: 5 Q - T 3 OISE 2018-19 - R 1 - TOURNOI PRINCIPAL - MERU | J19: Qualifications | K19: 2018-2019 | P19: 0 | R19: 0
A20: ALAZARD Philippe | B20: LALOT Gérard | C20: G | D20: 2 | E20: 0 | F20: 120 | G20: 68 | H20: 2019-01-19 | I20: 5 Q - T 4 OISE 2018-19 - R 1 - TOURNOI PRINCIPAL - CHAMBLY | J20: 1/2 Finale | K20: 2018-2019 | P20: 0 | R20: 0
A21: ALAZARD Philippe | B21: LAMARQUE Yves | C21: G | D21: 2 | E21: 0 | F21: 120 | G21: 31 | H21: 2019-01-19 | I21: 5 Q - T 4 OISE 2018-19 - R 1 - TOURNOI PRINCIPAL - CHAMBLY | J21: Qualifications | K21: 2018-2019 | P21: 0 | R21: 0
A22: ALAZARD Philippe | B22: STEINMANN Sébastien | C22: P | D22: 1 | E22: 2 | F22: 121 | G22: 141 | H22: 2019-01-19 | I22: 5 Q - T 4 OISE 2018-19 - R 1 - TOURNOI PRINCIPAL - CHAMBLY | J22: Qualifications | K22: 2018-2019 | P22: 0 | R22: 0
A23: ALAZARD Philippe | B23: STEINMANN Sébastien | C23: P | D23: 0 | E23: 2 | F23: 82 | G23: 120 | H23: 2019-01-19 | I23: 5 Q - T 4 OISE 2018-19 - R 1 - TOURNOI PRINCIPAL - CHAMBLY | J23: Finale | K23: 2018-2019 | P23: 0 | R23: 0
A24: ALAZARD Philippe | B24: BOURGOGNE Claude | C24: P | D24: 0 | E24: 2 | F24: 85 | G24: 120 | H24: 2019-10-19 | I24: CD60 R1 - T1 - Tour Principal - BEAUVAIS | J24: Finale | K24: 2019-2020 | P24: 0 | R24: 0
A25: ALAZARD Philippe | B25: DESCLAIR Guy | C25: G | D25: 2 | E25: 1 | F25: 173 | G25: 102 | H25: 2019-10-19 | I25: CD60 R1 - T1 - Tour Principal - BEAUVAIS | J25: Qualifications | K25: 2019-2020 | P25: 0 | R25: 0
A26: ALAZARD Philippe | B26: HERTOUX Didier | C26: G | D26: 2 | E26: 1 | F26: 171 | G26: 147 | H26: 2019-10-19 | I26: CD60 R1 - T1 - Tour Principal - BEAUVAIS | J26: Qualifications | K26: 2019-2020 | P26: 0 | R26: 0
A27: ALAZARD Philippe | B27: HERTOUX Didier | C27: G | D27: 2 | E27: 0 | F27: 120 | G27: 79 | H27: 2019-10-19 | I27: CD60 R1 - T1 - Tour Principal - BEAUVAIS | J27: 1/4 Finale | K27: 2019-2020 | P27: 0 | R27: 0
A28: ALAZARD Philippe | B28: MAUGER Jean-Paul | C28: G | D28: 2 | E28: 0 | F28: 120 | G28: 79 | H28: 2019-10-19 | I28: CD60 R1 - T1 - Tour Principal - BEAUVAIS | J28: 1/2 Finale | K28: 2019-2020 | P28: 0 | R28: 0
A29: ALAZARD Philippe | B29: BARTHON Aurélie | C29: G | D29: 1 | E29: 0 | F29: 100 | G29: 12 | H29: 2020-01-11 | I29: CD60 R1 - T3 - Tour Principal - CREPY | J29: Qualifications | K29: 2019-2020 | P29: 0 | R29: 0
A30: ALAZARD Philippe | B30: BOUIGES Armelle | C30: G | D30: 1 | E30: 0 | F30: 100 | G30: 36 | H30: 2020-01-11 | I30: CD60 R1 - T3 - Tour Principal - CREPY | J30: Qualifications | K30: 2019-2020 | P30: 0 | R30: 0
A31: ALAZARD Philippe | B31: LE FRIEC Daniel | C31: P | D31: 0 | E31: 1 | F31: 81 | G31: 100 | H31: 2020-01-11 | I31: CD60 R1 - T3 - Tour Principal - CREPY | J31: 1/4 Finale | K31: 2019-2020 | P31: 0 | R31: 0
A32: ALAZARD Philippe | B32: BOUIGES Armelle | C32: G | D32: 1 | E32: 0 | F32: 100 | G32: 34 | H32: 2020-02-15 | I32: CD60 R1 - T 4 - Tour Principal - SENLIS | J32: Qualifications | K32: 2019-2020 | P32: 0 | R32: 0
A33: ALAZARD Philippe | B33: CHENAL Gérard | C33: P | D33: 0 | E33: 1 | F33: 86 | G33: 100 | H33: 2020-02-15 | I33: CD60 R1 - T 4 - Tour Principal - SENLIS | J33: Qualifications | K33: 2019-2020 | P33: 0 | R33: 0
A34: ALAZARD Philippe | B34: CHENAL Gérard | C34: G | D34: 1 | E34: 0 | F34: 100 | G34: 63 | H34: 2020-02-15 | I34: CD60 R1 - T 4 - Tour Principal - SENLIS | J34: 1/4 Finale | K34: 2019-2020 | P34: 0 | R34: 0
A35: ALAZARD Philippe | B35: LE FRIEC Daniel | C35: P | D35: 0 | E35: 1 | F35: 78 | G35: 100 | H35: 2020-02-15 | I35: CD60 R1 - T 4 - Tour Principal - SENLIS | J35: 1/2 Finale | K35: 2019-2020 | P35: 0 | R35: 0
A36: ALAZARD Philippe | B36: BARTHON Aurélie | C36: G | D36: 2 | E36: 0 | F36: 120 | G36: 28 | H36: 2019-11-23 | I36: CD60 R1 - T2 - Tour Principal - MERU | J36: Qualifications | K36: 2019-2020 | P36: 0 | R36: 0
A37: ALAZARD Philippe | B37: BOZON Robert | C37: G | D37: 2 | E37: 0 | F37: 120 | G37: 24 | H37: 2019-11-23 | I37: CD60 R1 - T2 - Tour Principal - MERU | J37: Qualifications | K37: 2019-2020 | P37: 0 | R37: 0
A38: ALAZARD Philippe | B38: DESCLAIR Guy | C38: G | D38: 2 | E38: 1 | F38: 151 | G38: 138 | H38: 2019-11-23 | I38: CD60 R1 - T2 - Tour Principal - MERU | J38: Finale | K38: 2019-2020 | P38: 0 | R38: 0
A39: ALAZARD Philippe | B39: LAMARQUE Yves | C39: G | D39: 2 | E39: 1 | F39: 172 | G39: 116 | H39: 2019-11-23 | I39: CD60 R1 - T2 - Tour Principal - MERU | J39: 1/2 Finale | K39: 2019-2020 | P39: 0 | R39: 0
A40: ALAZARD Philippe | B40: MURIOT Jean-Pierre | C40: G | D40: 2 | E40: 0 | F40: 120 | G40: 36 | H40: 2019-11-23 | I40: CD60 R1 - T2 - Tour Principal - MERU | J40: 1/4 Finale | K40: 2019-2020 | P40: 0 | R40: 0
A41: Fin des données | P41: =IF($K41=P$1,COUNTIF($C41,"G"),0) -> 0 | R41: =IF($K41=R$1,COUNTIF($C41,"G"),0) -> 0

Sheet AZRIA Aaron
A1: AZRIA Aaron | P1: =SaisonDeb -> 2021-2022 | R1: =SaisonFin -> 2022-2023 | T1: Toutes saisons
P2: Nombre | Q2: %age | R2: Nombre | S2: %age | T2: Nombre | U2: %age
N3: Matchs | O3: Gagnés | P3: =SUM(P$15:P$118) -> 0 | Q3: =IF(P$3+P$4>0,P3/(P$3+P$4),"") ->  | R3: =SUM(R$15:R$118) -> 0 | S3: =IF(R$3+R$4>0,R3/(R$3+R$4),"") ->  | T3: =COUNTIF($C$15:$C$118,"G") -> 0 | U3: =IF(T$3+T$4>0,T3/(T$3+T$4),"") -> 0
O4: Perdus | P4: =COUNTIF($K$15:$M$118,SaisonDeb)-P3 -> 0 | Q4: =IF(P$3+P$4>0,P4/(P$3+P$4),"") ->  | R4: =COUNTIF($K$15:$K$118,SaisonFin)-R3 -> 0 | S4: =IF(R$3+R$4>0,R4/(R$3+R$4),"") ->  | T4: =COUNTIF($C$15:$C$118,"P") -> 6 | U4: =IF(T$3+T$4>0,T4/(T$3+T$4),"") -> 1
O5: Total / Moy. | P5: =SUM(P3:P4) -> 0 | Q5: =IF(SUMIF($K$15:$K$118,SaisonDeb,$G$15:$G$118)>0,SUMIF($K$15:$K$118,SaisonDeb,$F$15:$F$118)/SUMIF($K$15:$K$118,SaisonDeb,$G$15:$G$118),"") ->  | R5: =SUM(R3:R4) -> 0 | S5: =IF(SUMIF($K$15:$K$118,SaisonFin,$G$15:$G$118)>0,SUMIF($K$15:$K$118,SaisonFin,$F$15:$F$118)/SUMIF($K$15:$K$118,SaisonFin,$G$15:$G$118),"") ->  | T5: =SUM(T3:T4) -> 6 | U5: =IF(SUM($G$15:$G$118)>0,SUM($F$15:$F$118)/SUM($G$15:$G$118),"") -> 0.6722365039 | V5: =IF(SUMIF($K$15:$K$22,SaisonDeb,$G$15:$G$22)+SUMIF($K$15:$K$22,SaisonFin,$G$15:$G$22)>0,(SUMIF($K$15:$K$22,SaisonDeb,$F$15:$F$22)+SUMIF($K$15:$K$22,SaisonFin,$F$15:$F$22))/(SUMIF($K$15:$K$22,SaisonDeb,$G$15:$G$22)+SUMIF($K$15:$K$22,SaisonFin,$G$15:$G$22)),"") -> 
N6: Sets | O6: Gagnés | P6: =SUMIF($K$15:$K$118,SaisonDeb,$D$15:$D$118) -> 0 | Q6: =IF(P$6+P$7>0,P6/(P$6+P$7),"") ->  | R6: =SUMIF($K$15:$K$118,SaisonFin,$D$15:$D$118) -> 0 | S6: =IF(R$6+R$7>0,R6/(R$6+R$7),"") ->  | T6: =SUM($D$15:$D$118) -> 1 | U6: =IF(T$6+T$7>0,T6/(T$6+T$7),"") -> 0.07692307692
O7: Perdus | P7: =SUMIF($K$15:$K$118,SaisonDeb,$E$15:$E$118) -> 0 | Q7: =IF(P$6+P$7>0,P7/(P$6+P$7),"") ->  | R7: =SUMIF($K$15:$K$118,SaisonFin,$E$15:$E$118) -> 0 | S7: =IF(R$6+R$7>0,R7/(R$6+R$7),"") ->  | T7: =SUM($E$15:$E$118) -> 12 | U7: =IF(T$6+T$7>0,T7/(T$6+T$7),"") -> 0.9230769231
A8: Récapitulatif joueurs | O8: Total | P8: =SUM(P6:P7) -> 0 | R8: =SUM(R6:R7) -> 0 | T8: =SUM(T6:T7) -> 13
A15: Joueur | B15: Adversaire | C15: G/P | D15: Sets gagnés | E15: Sets perdus | F15: pts marqués | G15: pts subis | H15: Date | I15: Compétition | J15: Phase | K15: Saison
A16: AZRIA Aaron | B16: NAHIRNYJ Alexi | C16: P | D16: 1 | E16: 2 | F16: 143 | G16: 178 | H16: 2019-03-30 | I16: FINALE OISE JUNIORS - CHAMBLY | J16: Poule unique | K16: =IF(H16<>"",IF(MONTH(H16)>MoisRef,YEAR(H16)&"-"&YEAR(H16)+1,YEAR(H16)-1&"-"&YEAR(H16)),"") -> 2018-2019 | P16: =IF($K16=P$1,COUNTIF($C16,"G"),0) -> 0 | R16: =IF($K16=R$1,COUNTIF($C16,"G"),0) -> 0
A17: AZRIA Aaron | B17: POLIN Thibault | C17: P | D17: 0 | E17: 2 | F17: 63 | G17: 120 | H17: 2019-03-30 | I17: FINALE OISE JUNIORS - CHAMBLY | J17: Poule unique | K17: 2018-2019 | P17: 0 | R17: 0
A18: AZRIA Aaron | B18: TALEC Pierre | C18: P | D18: 0 | E18: 2 | F18: 83 | G18: 120 | H18: 2018-10-27 | I18: 5 Q - T 2 OISE 2018-19 - R 1 - TOURNOI PRINCIPAL - VILLERS | J18: Qualifications | K18: 2018-2019 | P18: 0 | R18: 0
A19: AZRIA Aaron | B19: VANDEPUTTE Laurent | C19: P | D19: 0 | E19: 2 | F19: 88 | G19: 120 | H19: 2018-10-27 | I19: 5 Q - T 2 OISE 2018-19 - R 1 - TOURNOI PRINCIPAL - VILLERS | J19: Qualifications | K19: 2018-2019 | P19: 0 | R19: 0
A20: AZRIA Aaron | B20: CHENAL Gérard | C20: P | D20: 0 | E20: 2 | F20: 79 | G20: 120 | H20: 2018-11-24 | I20: 5 Q - T 3 OISE 2018-19 - R 1 - TOURNOI PRINCIPAL - MERU | J20: Qualifications | K20: 2018-2019 | P20: 0 | R20: 0
A21: AZRIA Aaron | B21: LALOT Gérard | C21: P | D21: 0 | E21: 2 | F21: 67 | G21: 120 | H21: 2018-11-24 | I21: 5 Q - T 3 OISE 2018-19 - R 1 - TOURNOI PRINCIPAL - MERU | J21: Qualifications | K21: 2018-2019 | P21: 0 | R21: 0
A22: Fin des données | P22: 0 | R22: 0

Sheet BABOLEIN Clément
A1: BABOLEIN Clément | P1: =SaisonDeb -> 2021-2022 | R1: =SaisonFin -> 2022-2023 | T1: Toutes saisons
P2: Nombre | Q2: %age | R2: Nombre | S2: %age | T2: Nombre | U2: %age
N3: Matchs | O3: Gagnés | P3: =SUM(P$15:P$128) -> 4 | Q3: =IF(P$3+P$4>0,P3/(P$3+P$4),"") -> 0.3333333333 | R3: =SUM(R$15:R$128) -> 0 | S3: =IF(R$3+R$4>0,R3/(R$3+R$4),"") ->  | T3: =COUNTIF($C$15:$C$128,"G") -> 5 | U3: =IF(T$3+T$4>0,T3/(T$3+T$4),"") -> 0.3125
O4: Perdus | P4: =COUNTIF($K$15:$M$128,SaisonDeb)-P3 -> 8 | Q4: =IF(P$3+P$4>0,P4/(P$3+P$4),"") -> 0.6666666667 | R4: =COUNTIF($K$15:$K$128,SaisonFin)-R3 -> 0 | S4: =IF(R$3+R$4>0,R4/(R$3+R$4),"") ->  | T4: =COUNTIF($C$15:$C$128,"P") -> 11 | U4: =IF(T$3+T$4>0,T4/(T$3+T$4),"") -> 0.6875
O5: Total / Moy. | P5: =SUM(P3:P4) -> 12 | Q5: =IF(SUMIF($K$15:$K$128,SaisonDeb,$G$15:$G$128)>0,SUMIF($K$15:$K$128,SaisonDeb,$F$15:$F$128)/SUMIF($K$15:$K$128,SaisonDeb,$G$15:$G$128),"") -> 0.8517730496 | R5: =SUM(R3:R4) -> 0 | S5: =IF(SUMIF($K$15:$K$128,SaisonFin,$G$15:$G$128)>0,SUMIF($K$15:$K$128,SaisonFin,$F$15:$F$128)/SUMIF($K$15:$K$128,SaisonFin,$G$15:$G$128),"") ->  | T5: =SUM(T3:T4) -> 16 | U5: =IF(SUM($G$15:$G$128)>0,SUM($F$15:$F$128)/SUM($G$15:$G$128),"") -> 0.8850026497 | V5: =IF(SUMIF($K$15:$K$32,SaisonDeb,$G$15:$G$32)+SUMIF($K$15:$K$32,SaisonFin,$G$15:$G$32)>0,(SUMIF($K$15:$K$32,SaisonDeb,$F$15:$F$32)+SUMIF($K$15:$K$32,SaisonFin,$F$15:$F$32))/(SUMIF($K$15:$K$32,SaisonDeb,$G$15:$G$32)+SUMIF($K$15:$K$32,SaisonFin,$G$15:$G$32)),"") -> 0.8517730496
N6: Sets | O6: Gagnés | P6: =SUMIF($K$15:$K$128,SaisonDeb,$D$15:$D$128) -> 9 | Q6: =IF(P$6+P$7>0,P6/(P$6+P$7),"") -> 0.3461538462 | R6: =SUMIF($K$15:$K$128,SaisonFin,$D$15:$D$128) -> 0 | S6: =IF(R$6+R$7>0,R6/(R$6+R$7),"") ->  | T6: =SUM($D$15:$D$128) -> 12 | U6: =IF(T$6+T$7>0,T6/(T$6+T$7),"") -> 0.3428571429
O7: Perdus | P7: =SUMIF($K$15:$K$128,SaisonDeb,$E$15:$E$128) -> 17 | Q7: =IF(P$6+P$7>0,P7/(P$6+P$7),"") -> 0.6538461538 | R7: =SUMIF($K$15:$K$128,SaisonFin,$E$15:$E$128) -> 0 | S7: =IF(R$6+R$7>0,R7/(R$6+R$7),"") ->  | T7: =SUM($E$15:$E$128) -> 23 | U7: =IF(T$6+T$7>0,T7/(T$6+T$7),"") -> 0.6571428571
A8: Récapitulatif joueurs | O8: Total | P8: =SUM(P6:P7) -> 26 | R8: =SUM(R6:R7) -> 0 | T8: =SUM(T6:T7) -> 35
A15: Joueur | B15: Adversaire | C15: G/P | D15: Sets gagnés | E15: Sets perdus | F15: pts marqués | G15: pts subis | H15: Date | I15: Compétition | J15: Phase | K15: Saison
A16: BABOLEIN Clément | B16: BUTTI Bertrand | C16: P | D16: 1 | E16: 2 | F16: 158 | G16: 161 | H16: 2019-10-19 | I16: T1 CD02 R1 - Billard Club de Soissons | J16: Qualifications | K16: =IF(H16<>"",IF(MONTH(H16)>MoisRef,YEAR(H16)&"-"&YEAR(H16)+1,YEAR(H16)-1&"-"&YEAR(H16)),"") -> 2019-2020 | P16: =IF($K16=P$1,COUNTIF($C16,"G"),0) -> 0 | R16: =IF($K16=R$1,COUNTIF($C16,"G"),0) -> 0
A17: BABOLEIN Clément | B17: CASIER Philippe | C17: G | D17: 2 | E17: 0 | F17: 120 | G17: 76 | H17: 2019-10-19 | I17: T1 CD02 R1 - Billard Club de Soissons | J17: Qualifications | K17: 2019-2020 | P17: =IF($K17=P$1,COUNTIF($C17,"G"),0) -> 0 | R17: =IF($K17=R$1,COUNTIF($C17,"G"),0) -> 0
A18: BABOLEIN Clément | B18: BUTTI Bertrand | C18: P | D18: 0 | E18: 2 | F18: 92 | G18: 120 | H18: 2019-12-07 | I18: T2 CD02 R1 - Saint-Quentin | J18: Qualifications | K18: 2019-2020 | P18: =IF($K18=P$1,COUNTIF($C18,"G"),0) -> 0 | R18: =IF($K18=R$1,COUNTIF($C18,"G"),0) -> 0
A19: BABOLEIN Clément | B19: SIMON Philippe | C19: P | D19: 0 | E19: 2 | F19: 99 | G19: 120 | H19: 2019-12-07 | I19: T2 CD02 R1 - Saint-Quentin | J19: Qualifications | K19: 2019-2020 | P19: =IF($K19=P$1,COUNTIF($C19,"G"),0) -> 0 | R19: =IF($K19=R$1,COUNTIF($C19,"G"),0) -> 0
A20: BABOLEIN Clément | B20: CASIER Philippe | C20: G | D20: 2 | E20: 0 | F20: 120 | G20: 79 | H20: 2021-11-27 | I20: T2 CD02 R1 - Billard Club de Soissons | J20: Qualifications | K20: 2021-2022 | P20: =IF($K20=P$1,COUNTIF($C20,"G"),0) -> 1 | R20: =IF($K20=R$1,COUNTIF($C20,"G"),0) -> 0
A21: BABOLEIN Clément | B21: DURAND Jéremy | C21: P | D21: 0 | E21: 2 | F21: 77 | G21: 120 | H21: 2021-11-27 | I21: T2 CD02 R1 - Billard Club de Soissons | J21: Qualifications | K21: 2021-2022 | P21: 0 | R21: 0
A22: BABOLEIN Clément | B22: BUTTI EmIlie | C22: P | D22: 0 | E22: 2 | F22: 80 | G22: 120 | H22: 2021-10-16 | I22: T1 CD02 R1 - Billard Club de Saint-Quentin | J22: Qualifications | K22: 2021-2022 | P22: 0 | R22: 0
A23: BABOLEIN Clément | B23: COUSIN Francis | C23: P | D23: 0 | E23: 2 | F23: 58 | G23: 120 | H23: 2021-10-16 | I23: T1 CD02 R1 - Billard Club de Saint-Quentin | J23: Qualifications | K23: 2021-2022 | P23: 0 | R23: 0
A24: BABOLEIN Clément | B24: SIMON Philippe | C24: G | D24: 2 | E24: 0 | F24: 120 | G24: 58 | H24: 2021-10-16 | I24: T1 CD02 R1 - Billard Club de Saint-Quentin | J24: Qualifications | K24: 2021-2022 | P24: 1 | R24: 0
A25: BABOLEIN Clément | B25: BUTTI Bertrand | C25: G | D25: 2 | E25: 0 | F25: 120 | G25: 91 | H25: 2022-01-29 | I25: T3 CD02 TOUTE CATEGORIE - Saint-Quentin | J25: Qualifications | K25: 2021-2022 | P25: 1 | R25: 0
A26: BABOLEIN Clément | B26: BUTTI EmIlie | C26: P | D26: 0 | E26: 2 | F26: 111 | G26: 120 | H26: 2022-01-29 | I26: T3 CD02 TOUTE CATEGORIE - Saint-Quentin | J26: Qualifications | K26: 2021-2022 | P26: 0 | R26: 0
A27: BABOLEIN Clément | B27: ROZE Dominique | C27: P | D27: 0 | E27: 2 | F27: 82 | G27: 120 | H27: 2022-01-29 | I27: T3 CD02 TOUTE CATEGORIE - Saint-Quentin | J27: Qualifications | K27: 2021-2022 | P27: 0 | R27: 0
A28: BABOLEIN Clément | B28: DURAND Jéremy | C28: P | D28: 1 | E28: 2 | F28: 155 | G28: 165 | H28: 2022-02-26 | I28: T4 CD02 R1 - Billard Club de Saint-Quentin | J28: Qualifications | K28: 2021-2022 | P28: 0 | R28: 0
A29: BABOLEIN Clément | B29: COUSIN Francis | C29: G | D29: 2 | E29: 1 | F29: 153 | G29: 177 | H29: 2022-04-24 | I29: Finale CD02- Billard Club de Saint-Quentin | J29: 1/4 Finale | K29: 2021-2022 | P29: 1 | R29: 0
A30: BABOLEIN Clément | B30: SIMON Philippe | C30: P | D30: 0 | E30: 2 | F30: 62 | G30: 120 | H30: 2022-04-24 | I30: Finale CD02- Billard Club de Saint-Quentin | J30: 1/4 Finale | K30: 2021-2022 | P30: 0 | R30: 0
A31: BABOLEIN Clément | B31: DURAND Jeremy | C31: P | D31: 0 | E31: 2 | F31: 63 | G31: 120 | H31: 2022-04-24 | I31: Finale CD02- Billard Club de Saint-Quentin | J31: 1/2 Finale | K31: 2021-2022 | P31: 0 | R31: 0
A32: Fin des données | P32: =IF($K32=P$1,COUNTIF($C32,"G"),0) -> 0 | R32: =IF($K32=R$1,COUNTIF($C32,"G"),0) -> 0

Sheet BARBE Logan
A1: BARBE Logan | P1: =SaisonDeb -> 2021-2022 | R1: =SaisonFin -> 2022-2023 | T1: Toutes saisons
P2: Nombre | Q2: %age | R2: Nombre | S2: %age | T2: Nombre | U2: %age
N3: Matchs | O3: Gagnés | P3: =SUM(P$15:P$114) -> 0 | Q3: =IF(P$3+P$4>0,P3/(P$3+P$4),"") -> 0 | R3: =SUM(R$15:R$114) -> 0 | S3: =IF(R$3+R$4>0,R3/(R$3+R$4),"") ->  | T3: =COUNTIF($C$15:$C$114,"G") -> 0 | U3: =IF(T$3+T$4>0,T3/(T$3+T$4),"") -> 0
O4: Perdus | P4: =COUNTIF($K$15:$M$114,SaisonDeb)-P3 -> 2 | Q4: =IF(P$3+P$4>0,P4/(P$3+P$4),"") -> 1 | R4: =COUNTIF($K$15:$K$114,SaisonFin)-R3 -> 0 | S4: =IF(R$3+R$4>0,R4/(R$3+R$4),"") ->  | T4: =COUNTIF($C$15:$C$114,"P") -> 2 | U4: =IF(T$3+T$4>0,T4/(T$3+T$4),"") -> 1
O5: Total / Moy. | P5: =SUM(P3:P4) -> 2 | Q5: =IF(SUMIF($K$15:$K$114,SaisonDeb,$G$15:$G$114)>0,SUMIF($K$15:$K$114,SaisonDeb,$F$15:$F$114)/SUMIF($K$15:$K$114,SaisonDeb,$G$15:$G$114),"") -> 0.5125 | R5: =SUM(R3:R4) -> 0 | S5: =IF(SUMIF($K$15:$K$114,SaisonFin,$G$15:$G$114)>0,SUMIF($K$15:$K$114,SaisonFin,$F$15:$F$114)/SUMIF($K$15:$K$114,SaisonFin,$G$15:$G$114),"") ->  | T5: =SUM(T3:T4) -> 2 | U5: =IF(SUM($G$15:$G$114)>0,SUM($F$15:$F$114)/SUM($G$15:$G$114),"") -> 0.5125 | V5: =IF(SUMIF($K$15:$K$18,SaisonDeb,$G$15:$G$18)+SUMIF($K$15:$K$18,SaisonFin,$G$15:$G$18)>0,(SUMIF($K$15:$K$18,SaisonDeb,$F$15:$F$18)+SUMIF($K$15:$K$18,SaisonFin,$F$15:$F$18))/(SUMIF($K$15:$K$18,SaisonDeb,$G$15:$G$18)+SUMIF($K$15:$K$18,SaisonFin,$G$15:$G$18)),"") -> 0.5125
N6: Sets | O6: Gagnés | P6: =SUMIF($K$15:$K$114,SaisonDeb,$D$15:$D$114) -> 0 | Q6: =IF(P$6+P$7>0,P6/(P$6+P$7),"") -> 0 | R6: =SUMIF($K$15:$K$114,SaisonFin,$D$15:$D$114) -> 0 | S6: =IF(R$6+R$7>0,R6/(R$6+R$7),"") ->  | T6: =SUM($D$15:$D$114) -> 0 | U6: =IF(T$6+T$7>0,T6/(T$6+T$7),"") -> 0
O7: Perdus | P7: =SUMIF($K$15:$K$114,SaisonDeb,$E$15:$E$114) -> 2 | Q7: =IF(P$6+P$7>0,P7/(P$6+P$7),"") -> 1 | R7: =SUMIF($K$15:$K$114,SaisonFin,$E$15:$E$114) -> 0 | S7: =IF(R$6+R$7>0,R7/(R$6+R$7),"") ->  | T7: =SUM($E$15:$E$114) -> 2 | U7: =IF(T$6+T$7>0,T7/(T$6+T$7),"") -> 1
A8: Récapitulatif joueurs | O8: Total | P8: =SUM(P6:P7) -> 2 | R8: =SUM(R6:R7) -> 0 | T8: =SUM(T6:T7) -> 2
A15: Joueur | B15: Adversaire | C15: G/P | D15: Sets gagnés | E15: Sets perdus | F15: pts marqués | G15: pts subis | H15: Date | I15: Compétition | J15: Phase | K15: Saison
A16: BARBE Logan | B16: BARTHON Aurélie | C16: P | D16: 0 | E16: 1 | F16: 85 | G16: 120 | H16: 2021-12-18 | I16: T 2 OISE - Qualifications R 1 - Tour principal - CREPY | J16: Qualifications | K16: =IF(H16<>"",IF(MONTH(H16)>MoisRef,YEAR(H16)&"-"&YEAR(H16)+1,YEAR(H16)-1&"-"&YEAR(H16)),"") -> 2021-2022 | P16: =IF($K16=P$1,COUNTIF($C16,"G"),0) -> 0 | R16: =IF($K16=R$1,COUNTIF($C16,"G"),0) -> 0
A17: BARBE Logan | B17: NAHIRNYJ Alexi | C17: P | D17: 0 | E17: 1 | F17: 38 | G17: 120 | H17: 2021-12-18 | I17: T 2 OISE - Qualifications R 1 - Tour principal - CREPY | J17: Qualifications | K17: =IF(H17<>"",IF(MONTH(H17)>MoisRef,YEAR(H17)&"-"&YEAR(H17)+1,YEAR(H17)-1&"-"&YEAR(H17)),"") -> 2021-2022 | P17: =IF($K17=P$1,COUNTIF($C17,"G"),0) -> 0 | R17: =IF($K17=R$1,COUNTIF($C17,"G"),0) -> 0
A18: Fin des données | K18: =IF(H18<>"",IF(MONTH(H18)>MoisRef,YEAR(H18)&"-"&YEAR(H18)+1,YEAR(H18)-1&"-"&YEAR(H18)),"") ->  | P18: =IF($K18=P$1,COUNTIF($C18,"G"),0) -> 0 | R18: =IF($K18=R$1,COUNTIF($C18,"G"),0) -> 0

Sheet BARBE Philippe
A1: BARBE Philippe | P1: =SaisonDeb -> 2021-2022 | R1: =SaisonFin -> 2022-2023 | T1: Toutes saisons
P2: Nombre | Q2: %age | R2: Nombre | S2: %age | T2: Nombre | U2: %age
N3: Matchs | O3: Gagnés | P3: =SUM(P$15:P$125) -> 8 | Q3: =IF(P$3+P$4>0,P3/(P$3+P$4),"") -> 0.6153846154 | R3: =SUM(R$15:R$125) -> 0 | S3: =IF(R$3+R$4>0,R3/(R$3+R$4),"") ->  | T3: =COUNTIF($C$15:$C$125,"G") -> 8 | U3: =IF(T$3+T$4>0,T3/(T$3+T$4),"") -> 0.6153846154
O4: Perdus | P4: =COUNTIF($K$15:$M$125,SaisonDeb)-P3 -> 5 | Q4: =IF(P$3+P$4>0,P4/(P$3+P$4),"") -> 0.3846153846 | R4: =COUNTIF($K$15:$K$125,SaisonFin)-R3 -> 0 | S4: =IF(R$3+R$4>0,R4/(R$3+R$4),"") ->  | T4: =COUNTIF($C$15:$C$125,"P") -> 5 | U4: =IF(T$3+T$4>0,T4/(T$3+T$4),"") -> 0.3846153846
O5: Total / Moy. | P5: =SUM(P3:P4) -> 13 | Q5: =IF(SUMIF($K$15:$K$125,SaisonDeb,$G$15:$G$125)>0,SUMIF($K$15:$K$125,SaisonDeb,$F$15:$F$125)/SUMIF($K$15:$K$125,SaisonDeb,$G$15:$G$125),"") -> 1.091757387 | R5: =SUM(R3:R4) -> 0 | S5: =IF(SUMIF($K$15:$K$125,SaisonFin,$G$15:$G$125)>0,SUMIF($K$15:$K$125,SaisonFin,$F$15:$F$125)/SUMIF($K$15:$K$125,SaisonFin,$G$15:$G$125),"") ->  | T5: =SUM(T3:T4) -> 13 | U5: =IF(SUM($G$15:$G$125)>0,SUM($F$15:$F$125)/SUM($G$15:$G$125),"") -> 1.091757387 | V5: =IF(SUMIF($K$15:$K$29,SaisonDeb,$G$15:$G$29)+SUMIF($K$15:$K$29,SaisonFin,$G$15:$G$29)>0,(SUMIF($K$15:$K$29,SaisonDeb,$F$15:$F$29)+SUMIF($K$15:$K$29,SaisonFin,$F$15:$F$29))/(SUMIF($K$15:$K$29,SaisonDeb,$G$15:$G$29)+SUMIF($K$15:$K$29,SaisonFin,$G$15:$G$29)),"") -> 1.091757387
N6: Sets | O6: Gagnés | P6: =SUMIF($K$15:$K$125,SaisonDeb,$D$15:$D$125) -> 13 | Q6: =IF(P$6+P$7>0,P6/(P$6+P$7),"") -> 0.5652173913 | R6: =SUMIF($K$15:$K$125,SaisonFin,$D$15:$D$125) -> 0 | S6: =IF(R$6+R$7>0,R6/(R$6+R$7),"") ->  | T6: =SUM($D$15:$D$125) -> 13 | U6: =IF(T$6+T$7>0,T6/(T$6+T$7),"") -> 0.5652173913
O7: Perdus | P7: =SUMIF($K$15:$K$125,SaisonDeb,$E$15:$E$125) -> 10 | Q7: =IF(P$6+P$7>0,P7/(P$6+P$7),"") -> 0.4347826087 | R7: =SUMIF($K$15:$K$125,SaisonFin,$E$15:$E$125) -> 0 | S7: =IF(R$6+R$7>0,R7/(R$6+R$7),"") ->  | T7: =SUM($E$15:$E$125) -> 10 | U7: =IF(T$6+T$7>0,T7/(T$6+T$7),"") -> 0.4347826087
A8: Récapitulatif joueurs | O8: Total | P8: =SUM(P6:P7) -> 23 | R8: =SUM(R6:R7) -> 0 | T8: =SUM(T6:T7) -> 23
A15: Joueur | B15: Adversaire | C15: G/P | D15: Sets gagnés | E15: Sets perdus | F15: pts marqués | G15: pts subis | H15: Date | I15: Compétition | J15: Phase | K15: Saison
A16: BARBE Philippe | B16: BOUIGES Armelle | C16: G | D16: 1 | E16: 0 | F16: 120 | G16: 43 | H16: 2021-10-02 | I16: T 1 OISE - Qualifications R 1 - Tour principal - MERU | J16: Qualifications | K16: =IF(H16<>"",IF(MONTH(H16)>MoisRef,YEAR(H16)&"-"&YEAR(H16)+1,YEAR(H16)-1&"-"&YEAR(H16)),"") -> 2021-2022 | P16: =IF($K16=P$1,COUNTIF($C16,"G"),0) -> 1 | R16: =IF($K16=R$1,COUNTIF($C16,"G"),0) -> 0
A17: BARBE Philippe | B17: BOZON Robert | C17: G | D17: 1 | E17: 0 | F17: 120 | G17: 73 | H17: 2021-10-02 | I17: T 1 OISE - Qualifications R 1 - Tour principal - MERU | J17: Finale | K17: 2021-2022 | P17: 1 | R17: 0
A18: BARBE Philippe | B18: CHARLES Dominique | C18: G | D18: 1 | E18: 0 | F18: 120 | G18: 88 | H18: 2021-10-02 | I18: T 1 OISE - Qualifications R 1 - Tour principal - MERU | J18: 1/2 Finale | K18: 2021-2022 | P18: 1 | R18: 0
A19: BARBE Philippe | B19: BOUIGES Armelle | C19: G | D19: 1 | E19: 0 | F19: 120 | G19: 51 | H19: 2022-04-16 | I19: T 4 OISE - Qualifications R 1 - Tour Principal - BEAUVAIS | J19: Qualifications | K19: 2021-2022 | P19: 1 | R19: 0
A20: BARBE Philippe | B20: BOZON Robert | C20: P | D20: 0 | E20: 1 | F20: 58 | G20: 120 | H20: 2022-04-16 | I20: T 4 OISE - Qualifications R 1 - Tour Principal - BEAUVAIS | J20: 1/4 Finale | K20: 2021-2022 | P20: 0 | R20: 0
A21: BARBE Philippe | B21: NAHIRNYJ Alexi | C21: P | D21: 0 | E21: 1 | F21: 89 | G21: 120 | H21: 2022-04-16 | I21: T 4 OISE - Qualifications R 1 - Tour Principal - BEAUVAIS | J21: Qualifications | K21: 2021-2022 | P21: 0 | R21: 0
A22: BARBE Philippe | B22: DESCLAIR Guy | C22: G | D22: 2 | E22: 0 | F22: 120 | G22: 90 | H22: 2022-05-14 | I22: FINALE OISE R 1 - SAISON 21-22 - SENLIS | J22: Qualifications | K22: 2021-2022 | P22: 1 | R22: 0
A23: BARBE Philippe | B23: HERTOUX Didier | C23: P | D23: 1 | E23: 2 | F23: 126 | G23: 152 | H23: 2022-05-14 | I23: FINALE OISE R 1 - SAISON 21-22 - SENLIS | J23: 1/2 Finale | K23: 2021-2022 | P23: 0 | R23: 0
A24: BARBE Philippe | B24: NAHIRNYJ Alexi | C24: G | D24: 2 | E24: 1 | F24: 138 | G24: 110 | H24: 2022-05-14 | I24: FINALE OISE R 1 - SAISON 21-22 - SENLIS | J24: Qualifications | K24: 2021-2022 | P24: 1 | R24: 0
A25: BARBE Philippe | B25: DURAND Jeremy | C25: G | D25: 2 | E25: 0 | F25: 120 | G25: 73 | H25: 2022-05-22 | I25: Finale Ligue 5Q R1 - ST QUENTIN | J25: Finale Ligue | K25: 2021-2022 | P25: 1 | R25: 0
A26: BARBE Philippe | B26: JOLY Kenan | C26: G | D26: 2 | E26: 1 | F26: 165 | G26: 126 | H26: 2022-05-22 | I26: Finale Ligue 5Q R1 - ST QUENTIN | J26: Finale Ligue | K26: 2021-2022 | P26: 1 | R26: 0
A27: BARBE Philippe | B27: LEBECQ Jean-Pierre | C27: P | D27: 0 | E27: 2 | F27: 87 | G27: 120 | H27: 2022-05-22 | I27: Finale Ligue 5Q R1 - ST QUENTIN | J27: Finale Ligue | K27: 2021-2022 | P27: 0 | R27: 0
A28: BARBE Philippe | B28: LORTHIOIR Jean-Luc | C28: P | D28: 0 | E28: 2 | F28: 21 | G28: 120 | H28: 2022-05-22 | I28: Finale Ligue 5Q R1 - ST QUENTIN | J28: Finale Ligue | K28: 2021-2022 | P28: 0 | R28: 0
A29: Fin des données | P29: =IF($K29=P$1,COUNTIF($C29,"G"),0) -> 0 | R29: =IF($K29=R$1,COUNTIF($C29,"G"),0) -> 0

Sheet BARKUT Volkan
A1: BARKUT Volkan | P1: =SaisonDeb -> 2021-2022 | R1: =SaisonFin -> 2022-2023 | T1: Toutes saisons
P2: Nombre | Q2: %age | R2: Nombre | S2: %age | T2: Nombre | U2: %age
N3: Matchs | O3: Gagnés | P3: =SUM(P$15:P$120) -> 3 | Q3: =IF(P$3+P$4>0,P3/(P$3+P$4),"") -> 0.375 | R3: =SUM(R$15:R$120) -> 0 | S3: =IF(R$3+R$4>0,R3/(R$3+R$4),"") ->  | T3: =COUNTIF($C$15:$C$120,"G") -> 3 | U3: =IF(T$3+T$4>0,T3/(T$3+T$4),"") -> 0.375
O4: Perdus | P4: =COUNTIF($K$15:$M$120,SaisonDeb)-P3 -> 5 | Q4: =IF(P$3+P$4>0,P4/(P$3+P$4),"") -> 0.625 | R4: =COUNTIF($K$15:$K$120,SaisonFin)-R3 -> 0 | S4: =IF(R$3+R$4>0,R4/(R$3+R$4),"") ->  | T4: =COUNTIF($C$15:$C$120,"P") -> 5 | U4: =IF(T$3+T$4>0,T4/(T$3+T$4),"") -> 0.625
O5: Total / Moy. | P5: =SUM(P3:P4) -> 8 | Q5: =IF(SUMIF($K$15:$K$120,SaisonDeb,$G$15:$G$120)>0,SUMIF($K$15:$K$120,SaisonDeb,$F$15:$F$120)/SUMIF($K$15:$K$120,SaisonDeb,$G$15:$G$120),"") -> 0.9643835616 | R5: =SUM(R3:R4) -> 0 | S5: =IF(SUMIF($K$15:$K$120,SaisonFin,$G$15:$G$120)>0,SUMIF($K$15:$K$120,SaisonFin,$F$15:$F$120)/SUMIF($K$15:$K$120,SaisonFin,$G$15:$G$120),"") ->  | T5: =SUM(T3:T4) -> 8 | U5: =IF(SUM($G$15:$G$120)>0,SUM($F$15:$F$120)/SUM($G$15:$G$120),"") -> 0.9643835616 | V5: =IF(SUMIF($K$15:$K$24,SaisonDeb,$G$15:$G$24)+SUMIF($K$15:$K$24,SaisonFin,$G$15:$G$24)>0,(SUMIF($K$15:$K$24,SaisonDeb,$F$15:$F$24)+SUMIF($K$15:$K$24,SaisonFin,$F$15:$F$24))/(SUMIF($K$15:$K$24,SaisonDeb,$G$15:$G$24)+SUMIF($K$15:$K$24,SaisonFin,$G$15:$G$24)),"") -> 0.9643835616
N6: Sets | O6: Gagnés | P6: =SUMIF($K$15:$K$120,SaisonDeb,$D$15:$D$120) -> 3 | Q6: =IF(P$6+P$7>0,P6/(P$6+P$7),"") -> 0.375 | R6: =SUMIF($K$15:$K$120,SaisonFin,$D$15:$D$120) -> 0 | S6: =IF(R$6+R$7>0,R6/(R$6+R$7),"") ->  | T6: =SUM($D$15:$D$120) -> 3 | U6: =IF(T$6+T$7>0,T6/(T$6+T$7),"") -> 0.375
O7: Perdus | P7: =SUMIF($K$15:$K$120,SaisonDeb,$E$15:$E$120) -> 5 | Q7: =IF(P$6+P$7>0,P7/(P$6+P$7),"") -> 0.625 | R7: =SUMIF($K$15:$K$120,SaisonFin,$E$15:$E$120) -> 0 | S7: =IF(R$6+R$7>0,R7/(R$6+R$7),"") ->  | T7: =SUM($E$15:$E$120) -> 5 | U7: =IF(T$6+T$7>0,T7/(T$6+T$7),"") -> 0.625
A8: Récapitulatif joueurs | O8: Total | P8: =SUM(P6:P7) -> 8 | R8: =SUM(R6:R7) -> 0 | T8: =SUM(T6:T7) -> 8
A15: Joueur | B15: Adversaire | C15: G/P | D15: Sets gagnés | E15: Sets perdus | F15: pts marqués | G15: pts subis | H15: Date | I15: Compétition | J15: Phase | K15: Saison
A16: BARKUT Volkan | B16: HOCHART James | C16: P | D16: 0 | E16: 1 | F16: 85 | G16: 100 | H16: 2021-10-16 | I16: T1 5Q R1 - VILLENEUVE D'ASCQ | J16: Qualifications | K16: =IF(H16<>"",IF(MONTH(H16)>MoisRef,YEAR(H16)&"-"&YEAR(H16)+1,YEAR(H16)-1&"-"&YEAR(H16)),"") -> 2021-2022 | P16: =IF($K16=P$1,COUNTIF($C16,"G"),0) -> 0 | R16: =IF($K16=R$1,COUNTIF($C16,"G"),0) -> 0
A17: BARKUT Volkan | B17: LECROART Serge | C17: P | D17: 0 | E17: 1 | F17: 69 | G17: 100 | H17: 2021-10-16 | I17: T1 5Q R1 - VILLENEUVE D'ASCQ | J17: Qualifications | K17: 2021-2022 | P17: 0 | R17: 0
A18: BARKUT Volkan | B18: BLONDEL Jean | C18: G | D18: 1 | E18: 0 | F18: 100 | G18: 48 | H18: 2021-10-16 | I18: T1 5Q R1 - VILLENEUVE D'ASCQ - CONSOLANTE | J18: Qualifications | K18: 2021-2022 | P18: 1 | R18: 0
A19: BARKUT Volkan | B19: SZWARC Johann | C19: P | D19: 0 | E19: 1 | F19: 95 | G19: 100 | H19: 2021-10-16 | I19: T1 5Q R1 - VILLENEUVE D'ASCQ - CONSOLANTE | J19: Qualifications | K19: 2021-2022 | P19: 0 | R19: 0
A20: BARKUT Volkan | B20: BEGHIN Nicolas | C20: P | D20: 0 | E20: 1 | F20: 59 | G20: 100 | H20: 2021-12-18 | I20: T2 5Q R1 - GRAVELINES - CONVOCATON 8h30 | J20: Qualifications | K20: 2021-2022 | P20: 0 | R20: 0
A21: BARKUT Volkan | B21: LORTHIOIR Jean-Luc | C21: G | D21: 1 | E21: 0 | F21: 100 | G21: 84 | H21: 2021-12-18 | I21: T2 5Q R1 - GRAVELINES - CONVOCATON 8h30 | J21: Qualifications | K21: 2021-2022 | P21: 1 | R21: 0
A22: BARKUT Volkan | B22: BLONDEL Jean | C22: G | D22: 1 | E22: 0 | F22: 100 | G22: 98 | H22: 2021-12-18 | I22: T2 5Q R1 - GRAVELINES - consolante | J22: Qualifications | K22: 2021-2022 | P22: 1 | R22: 0
A23: BARKUT Volkan | B23: HOCHART James | C23: P | D23: 0 | E23: 1 | F23: 96 | G23: 100 | H23: 2021-12-18 | I23: T2 5Q R1 - GRAVELINES - consolante | J23: Qualifications | K23: 2021-2022 | P23: 0 | R23: 0
A24: Fin des données | P24: =IF($K24=P$1,COUNTIF($C24,"G"),0) -> 0 | R24: =IF($K24=R$1,COUNTIF($C24,"G"),0) -> 0

Sheet BARTHON Aurélie
A1: BARTHON Aurélie | P1: =SaisonDeb -> 2021-2022 | R1: =SaisonFin -> 2022-2023 | T1: Toutes saisons
P2: Nombre | Q2: %age | R2: Nombre | S2: %age | T2: Nombre | U2: %age
N3: Matchs | O3: Gagnés | P3: =SUM(P$15:P$135) -> 2 | Q3: =IF(P$3+P$4>0,P3/(P$3+P$4),"") -> 0.3333333333 | R3: =SUM(R$15:R$135) -> 0 | S3: =IF(R$3+R$4>0,R3/(R$3+R$4),"") -> 0 | T3: =COUNTIF($C$15:$C$135,"G") -> 6 | U3: =IF(T$3+T$4>0,T3/(T$3+T$4),"") -> 0.2608695652
O4: Perdus | P4: =COUNTIF($K$15:$M$135,SaisonDeb)-P3 -> 4 | Q4: =IF(P$3+P$4>0,P4/(P$3+P$4),"") -> 0.6666666667 | R4: =COUNTIF($K$15:$K$135,SaisonFin)-R3 -> 2 | S4: =IF(R$3+R$4>0,R4/(R$3+R$4),"") -> 1 | T4: =COUNTIF($C$15:$C$135,"P") -> 17 | U4: =IF(T$3+T$4>0,T4/(T$3+T$4),"") -> 0.7391304348
O5: Total / Moy. | P5: =SUM(P3:P4) -> 6 | Q5: =IF(SUMIF($K$15:$K$135,SaisonDeb,$G$15:$G$135)>0,SUMIF($K$15:$K$135,SaisonDeb,$F$15:$F$135)/SUMIF($K$15:$K$135,SaisonDeb,$G$15:$G$135),"") -> 0.6715210356 | R5: =SUM(R3:R4) -> 2 | S5: =IF(SUMIF($K$15:$K$135,SaisonFin,$G$15:$G$135)>0,SUMIF($K$15:$K$135,SaisonFin,$F$15:$F$135)/SUMIF($K$15:$K$135,SaisonFin,$G$15:$G$135),"") -> 0.6166666667 | T5: =SUM(T3:T4) -> 23 | U5: =IF(SUM($G$15:$G$135)>0,SUM($F$15:$F$135)/SUM($G$15:$G$135),"") -> 0.6844834464 | V5: =IF(SUMIF($K$15:$K$39,SaisonDeb,$G$15:$G$39)+SUMIF($K$15:$K$39,SaisonFin,$G$15:$G$39)>0,(SUMIF($K$15:$K$39,SaisonDeb,$F$15:$F$39)+SUMIF($K$15:$K$39,SaisonFin,$F$15:$F$39))/(SUMIF($K$15:$K$39,SaisonDeb,$G$15:$G$39)+SUMIF($K$15:$K$39,SaisonFin,$G$15:$G$39)),"") -> 0.6561771562
N6: Sets | O6: Gagnés | P6: =SUMIF($K$15:$K$135,SaisonDeb,$D$15:$D$135) -> 2 | Q6: =IF(P$6+P$7>0,P6/(P$6+P$7),"") -> 0.3333333333 | R6: =SUMIF($K$15:$K$135,SaisonFin,$D$15:$D$135) -> 0 | S6: =IF(R$6+R$7>0,R6/(R$6+R$7),"") -> 0 | T6: =SUM($D$15:$D$135) -> 9 | U6: =IF(T$6+T$7>0,T6/(T$6+T$7),"") -> 0.2647058824
O7: Perdus | P7: =SUMIF($K$15:$K$135,SaisonDeb,$E$15:$E$135) -> 4 | Q7: =IF(P$6+P$7>0,P7/(P$6+P$7),"") -> 0.6666666667 | R7: =SUMIF($K$15:$K$135,SaisonFin,$E$15:$E$135) -> 2 | S7: =IF(R$6+R$7>0,R7/(R$6+R$7),"") -> 1 | T7: =SUM($E$15:$E$135) -> 25 | U7: =IF(T$6+T$7>0,T7/(T$6+T$7),"") -> 0.7352941176
A8: Récapitulatif joueurs | O8: Total | P8: =SUM(P6:P7) -> 6 | R8: =SUM(R6:R7) -> 2 | T8: =SUM(T6:T7) -> 34
A15: Joueur | B15: Adversaire | C15: G/P | D15: Sets gagnés | E15: Sets perdus | F15: pts marqués | G15: pts subis | H15: Date | I15: Compétition | J15: Phase | K15: Saison
A16: BARTHON Aurélie | B16: BOUIGES Armelle | C16: G | D16: 2 | E16: 0 | F16: 120 | G16: 86 | H16: 2018-05-13 | I16: FINALE OISE FEMININES - SENLIS | J16: Qualifications | K16: =IF(H16<>"",IF(MONTH(H16)>MoisRef,YEAR(H16)&"-"&YEAR(H16)+1,YEAR(H16)-1&"-"&YEAR(H16)),"") -> 2017-2018 | P16: =IF($K16=P$1,COUNTIF($C16,"G"),0) -> 0 | R16: =IF($K16=R$1,COUNTIF($C16,"G"),0) -> 0
A17: BARTHON Aurélie | B17: VANEME Sophie | C17: P | D17: 0 | E17: 2 | F17: 107 | G17: 120 | H17: 2018-05-13 | I17: FINALE OISE FEMININES - SENLIS | J17: Qualifications | K17: 2017-2018 | P17: 0 | R17: 0
A18: BARTHON Aurélie | B18: BOUIGES Armelle | C18: G | D18: 1 | E18: 0 | F18: 100 | G18: 57 | H18: 2017-09-30 | I18: T 1 OISE - Consolante - CREPY | J18: Qualifications | K18: 2017-2018 | P18: 0 | R18: 0
A19: BARTHON Aurélie | B19: TALEC Pierre | C19: P | D19: 0 | E19: 1 | F19: 97 | G19: 100 | H19: 2017-09-30 | I19: T 1 OISE - Consolante - CREPY | J19: Qualifications | K19: 2017-2018 | P19: 0 | R19: 0
A20: BARTHON Aurélie | B20: BOUIGES Armelle | C20: G | D20: 2 | E20: 1 | F20: 162 | G20: 154 | H20: 2017-09-30 | I20: T 1 OISE - CREPY | J20: Qualifications | K20: 2017-2018 | P20: 0 | R20: 0
A21: BARTHON Aurélie | B21: LAMARQUE Yves | C21: P | D21: 0 | E21: 2 | F21: 85 | G21: 120 | H21: 2017-09-30 | I21: T 1 OISE - CREPY | J21: Qualifications | K21: 2017-2018 | P21: 0 | R21: 0
A22: BARTHON Aurélie | B22: MARTIN Denis | C22: P | D22: 0 | E22: 2 | F22: 20 | G22: 120 | H22: 2017-09-30 | I22: T 1 OISE - CREPY | J22: Qualifications | K22: 2017-2018 | P22: 0 | R22: 0
A23: BARTHON Aurélie | B23: DUCHATEAU Jean-Pierre | C23: P | D23: 1 | E23: 2 | F23: 131 | G23: 175 | H23: 2019-10-19 | I23: CD60 R1 - T1 - Tour Principal - BEAUVAIS | J23: Qualifications | K23: 2019-2020 | P23: 0 | R23: 0
A24: BARTHON Aurélie | B24: MAUGER Jean-Paul | C24: P | D24: 0 | E24: 2 | F24: 38 | G24: 120 | H24: 2019-10-19 | I24: CD60 R1 - T1 - Tour Principal - BEAUVAIS | J24: Qualifications | K24: 2019-2020 | P24: 0 | R24: 0
A25: BARTHON Aurélie | B25: ALAZARD Philippe | C25: P | D25: 0 | E25: 1 | F25: 12 | G25: 100 | H25: 2020-01-11 | I25: CD60 R1 - T3 - Tour Principal - CREPY | J25: Qualifications | K25: 2019-2020 | P25: 0 | R25: 0
A26: BARTHON Aurélie | B26: BOUIGES Armelle | C26: G | D26: 1 | E26: 0 | F26: 100 | G26: 57 | H26: 2020-01-11 | I26: CD60 R1 - T3 - Tour Principal - CREPY | J26: Qualifications | K26: 2019-2020 | P26: 0 | R26: 0
A27: BARTHON Aurélie | B27: LAMARQUE Yves | C27: P | D27: 0 | E27: 1 | F27: 47 | G27: 100 | H27: 2020-02-15 | I27: CD60 R1 - T 4 - Tour Principal - SENLIS | J27: Qualifications | K27: 2019-2020 | P27: 0 | R27: 0
A28: BARTHON Aurélie | B28: LE FRIEC Daniel | C28: P | D28: 0 | E28: 1 | F28: 54 | G28: 100 | H28: 2020-02-15 | I28: CD60 R1 - T 4 - Tour Principal - SENLIS | J28: Qualifications | K28: 2019-2020 | P28: 0 | R28: 0
A29: BARTHON Aurélie | B29: ALAZARD Philippe | C29: P | D29: 0 | E29: 2 | F29: 28 | G29: 120 | H29: 2019-11-23 | I29: CD60 R1 - T2 - Tour Principal - MERU | J29: Qualifications | K29: 2019-2020 | P29: 0 | R29: 0
A30: BARTHON Aurélie | B30: BOZON Robert | C30: P | D30: 0 | E30: 2 | F30: 52 | G30: 120 | H30: 2019-11-23 | I30: CD60 R1 - T2 - Tour Principal - MERU | J30: Qualifications | K30: 2019-2020 | P30: 0 | R30: 0
A31: BARTHON Aurélie | B31: BARBE Philippe | C31: P | D31: 0 | E31: 1 | F31: 40 | G31: 120 | H31: 2021-10-02 | I31: T 1 OISE - Qualifications R 1 - Tour principal - MERU | J31: Qualifications | K31: 2021-2022 | P31: 0 | R31: 0
A32: BARTHON Aurélie | B32: BARBE Philippe | C32: P | D32: 0 | E32: 1 | F32: 50 | G32: 120 | H32: 2021-10-02 | I32: T 1 OISE - Qualifications R 1 - Tour principal - MERU | J32: 1/4 Finale | K32: 2021-2022 | P32: 0 | R32: 0
A33: BARTHON Aurélie | B33: BOUIGES Armelle | C33: G | D33: 1 | E33: 0 | F33: 120 | G33: 53 | H33: 2021-10-02 | I33: T 1 OISE - Qualifications R 1 - Tour principal - MERU | J33: Qualifications | K33: 2021-2022 | P33: 1 | R33: 0
A34: BARTHON Aurélie | B34: BARBE Logan | C34: G | D34: 1 | E34: 0 | F34: 120 | G34: 85 | H34: 2021-12-18 | I34: T 2 OISE - Qualifications R 1 - Tour principal - CREPY | J34: Qualifications | K34: 2021-2022 | P34: 1 | R34: 0
A35: BARTHON Aurélie | B35: NAHIRNYJ Alexi | C35: P | D35: 0 | E35: 1 | F35: 57 | G35: 120 | H35: 2021-12-18 | I35: T 2 OISE - Qualifications R 1 - Tour principal - CREPY | J35: Qualifications | K35: 2021-2022 | P35: 0 | R35: 0
A36: BARTHON Aurélie | B36: NAHIRNYJ Alexi | C36: P | D36: 0 | E36: 1 | F36: 28 | G36: 120 | H36: 2021-12-18 | I36: T 2 OISE - Qualifications R 1 - Tour principal - CREPY | J36: 1/4 Finale | K36: 2021-2022 | P36: 0 | R36: 0
A37: BARTHON Aurélie | B37: CHENAL Gérard | C37: P | D37: 0 | E37: 1 | F37: 106 | G37: 120 | H37: 2022-12-03 | I37: T 2 OISE - Qualifications R 1 - Tour Principal - SENLIS | J37: Qualifications | K37: 2022-2023 | P37: 0 | R37: 0
A38: BARTHON Aurélie | B38: GRANGER Pascal | C38: P | D38: 0 | E38: 1 | F38: 42 | G38: 120 | H38: 2022-12-03 | I38: T 2 OISE - Qualifications R 1 - Tour Principal - SENLIS | J38: Qualifications | K38: 2022-2023 | P38: 0 | R38: 0
A39: Fin des données | P39: =IF($K39=P$1,COUNTIF($C39,"G"),0) -> 0 | R39: =IF($K39=R$1,COUNTIF($C39,"G"),0) -> 0

Sheet BEGHIN Benjamin
A1: BEGHIN Benjamin | P1: =SaisonDeb -> 2021-2022 | R1: =SaisonFin -> 2022-2023 | T1: Toutes saisons
P2: Nombre | Q2: %age | R2: Nombre | S2: %age | T2: Nombre | U2: %age
N3: Matchs | O3: Gagnés | P3: =SUM(P$15:P$157) -> 17 | Q3: =IF(P$3+P$4>0,P3/(P$3+P$4),"") -> 0.7727272727 | R3: =SUM(R$15:R$157) -> 0 | S3: =IF(R$3+R$4>0,R3/(R$3+R$4),"") ->  | T3: =COUNTIF($C$15:$C$157,"G") -> 30 | U3: =IF(T$3+T$4>0,T3/(T$3+T$4),"") -> 0.6666666667
O4: Perdus | P4: =COUNTIF($K$15:$M$157,SaisonDeb)-P3 -> 5 | Q4: =IF(P$3+P$4>0,P4/(P$3+P$4),"") -> 0.2272727273 | R4: =COUNTIF($K$15:$K$157,SaisonFin)-R3 -> 0 | S4: =IF(R$3+R$4>0,R4/(R$3+R$4),"") ->  | T4: =COUNTIF($C$15:$C$157,"P") -> 15 | U4: =IF(T$3+T$4>0,T4/(T$3+T$4),"") -> 0.3333333333
O5: Total / Moy. | P5: =SUM(P3:P4) -> 22 | Q5: =IF(SUMIF($K$15:$K$157,SaisonDeb,$G$15:$G$157)>0,SUMIF($K$15:$K$157,SaisonDeb,$F$15:$F$157)/SUMIF($K$15:$K$157,SaisonDeb,$G$15:$G$157),"") -> 1.175921121 | R5: =SUM(R3:R4) -> 0 | S5: =IF(SUMIF($K$15:$K$157,SaisonFin,$G$15:$G$157)>0,SUMIF($K$15:$K$157,SaisonFin,$F$15:$F$157)/SUMIF($K$15:$K$157,SaisonFin,$G$15:$G$157),"") ->  | T5: =SUM(T3:T4) -> 45 | U5: =IF(SUM($G$15:$G$157)>0,SUM($F$15:$F$157)/SUM($G$15:$G$157),"") -> 1.155981067 | V5: =IF(SUMIF($K$15:$K$61,SaisonDeb,$G$15:$G$61)+SUMIF($K$15:$K$61,SaisonFin,$G$15:$G$61)>0,(SUMIF($K$15:$K$61,SaisonDeb,$F$15:$F$61)+SUMIF($K$15:$K$61,SaisonFin,$F$15:$F$61))/(SUMIF($K$15:$K$61,SaisonDeb,$G$15:$G$61)+SUMIF($K$15:$K$61,SaisonFin,$G$15:$G$61)),"") -> 1.175921121
N6: Sets | O6: Gagnés | P6: =SUMIF($K$15:$K$157,SaisonDeb,$D$15:$D$157) -> 21 | Q6: =IF(P$6+P$7>0,P6/(P$6+P$7),"") -> 0.724137931 | R6: =SUMIF($K$15:$K$157,SaisonFin,$D$15:$D$157) -> 0 | S6: =IF(R$6+R$7>0,R6/(R$6+R$7),"") ->  | T6: =SUM($D$15:$D$157) -> 50 | U6: =IF(T$6+T$7>0,T6/(T$6+T$7),"") -> 0.6097560976
O7: Perdus | P7: =SUMIF($K$15:$K$157,SaisonDeb,$E$15:$E$157) -> 8 | Q7: =IF(P$6+P$7>0,P7/(P$6+P$7),"") -> 0.275862069 | R7: =SUMIF($K$15:$K$157,SaisonFin,$E$15:$E$157) -> 0 | S7: =IF(R$6+R$7>0,R7/(R$6+R$7),"") ->  | T7: =SUM($E$15:$E$157) -> 32 | U7: =IF(T$6+T$7>0,T7/(T$6+T$7),"") -> 0.3902439024
A8: Récapitulatif joueurs | O8: Total | P8: =SUM(P6:P7) -> 29 | R8: =SUM(R6:R7) -> 0 | T8: =SUM(T6:T7) -> 82
A15: Joueur | B15: Adversaire | C15: G/P | D15: Sets gagnés | E15: Sets perdus | F15: pts marqués | G15: pts subis | H15: Date | I15: Compétition | J15: Phase | K15: Saison
A16: BEGHIN Benjamin | B16: DELATTRE Gregory | C16: G | D16: 2 | E16: 0 | F16: 120 | G16: 72 | H16: 2016-01-14 | I16: T1 Qualifications CD59 R1 - DUNKERQUE | J16: Qualifications | K16: =IF(H16<>"",IF(MONTH(H16)>MoisRef,YEAR(H16)&"-"&YEAR(H16)+1,YEAR(H16)-1&"-"&YEAR(H16)),"") -> 2015-2016 | P16: =IF($K16=P$1,COUNTIF($C16,"G"),0) -> 0 | R16: =IF($K16=R$1,COUNTIF($C16,"G"),0) -> 0
A17: BEGHIN Benjamin | B17: DELATTRE Gregory | C17: P | D17: 1 | E17: 2 | F17: 137 | G17: 168 | H17: 2016-01-14 | I17: T1 Qualifications CD59 R1 - DUNKERQUE | J17: 1/2 Finale | K17: 2015-2016 | P17: 0 | R17: 0
A18: BEGHIN Benjamin | B18: NOYER Pascal | C18: G | D18: 2 | E18: 0 | F18: 120 | G18: 61 | H18: 2016-01-14 | I18: T1 Qualifications CD59 R1 - DUNKERQUE | J18: 1/4 Finale | K18: 2015-2016 | P18: 0 | R18: 0
A19: BEGHIN Benjamin | B19: PAILLARD Bertrand | C19: P | D19: 1 | E19: 2 | F19: 155 | G19: 164 | H19: 2016-01-14 | I19: T1 Qualifications CD59 R1 - DUNKERQUE | J19: Qualifications | K19: 2015-2016 | P19: 0 | R19: 0
A20: BEGHIN Benjamin | B20: ESTERMANS Bernard | C20: P | D20: 1 | E20: 2 | F20: 147 | G20: 177 | H20: 2017-02-25 | I20: T2 Qualifications CD59 R1 - VILLENEUVE D'ASCQ | J20: Qualifications | K20: 2016-2017 | P20: 0 | R20: 0
A21: BEGHIN Benjamin | B21: ESTERMANS Bernard | C21: G | D21: 2 | E21: 0 | F21: 120 | G21: 77 | H21: 2017-02-25 | I21: T2 Qualifications CD59 R1 - VILLENEUVE D'ASCQ | J21: Qualifications | K21: 2016-2017 | P21: 0 | R21: 0
A22: BEGHIN Benjamin | B22: VEREECQUE Bernard | C22: P | D22: 0 | E22: 2 | F22: 97 | G22: 120 | H22: 2017-02-25 | I22: T2 Qualifications CD59 R1 - VILLENEUVE D'ASCQ | J22: 1/2 Finale | K22: 2016-2017 | P22: 0 | R22: 0
A23: BEGHIN Benjamin | B23: DUTAILLY Michel | C23: G | D23: 1 | E23: 0 | F23: 100 | G23: 58 | H23: 2017-03-11 | I23: T3 CD59 R1 - CONSOLANTE - ST POL SUR MER | J23: 1/2 Finale | K23: 2016-2017 | P23: 0 | R23: 0
A24: BEGHIN Benjamin | B24: TOP Alexis | C24: G | D24: 1 | E24: 0 | F24: 100 | G24: 37 | H24: 2017-03-11 | I24: T3 CD59 R1 - CONSOLANTE - ST POL SUR MER | J24: Finale | K24: 2016-2017 | P24: 0 | R24: 0
A25: BEGHIN Benjamin | B25: BEGHIN Nicolas | C25: P | D25: 1 | E25: 2 | F25: 140 | G25: 159 | H25: 2017-03-11 | I25: T3 Qualifications CD59 R1 - ST POL SUR MER | J25: Qualifications | K25: 2016-2017 | P25: 0 | R25: 0
A26: BEGHIN Benjamin | B26: SZWARC Patrick | C26: P | D26: 0 | E26: 2 | F26: 111 | G26: 120 | H26: 2017-03-11 | I26: T3 Qualifications CD59 R1 - ST POL SUR MER | J26: Qualifications | K26: 2016-2017 | P26: 0 | R26: 0
A27: BEGHIN Benjamin | B27: BEGHIN Nicolas | C27: G | D27: 3 | E27: 0 | F27: 180 | G27: 126 | H27: 2017-03-19 | I27: FINALE CD59 R1 - ST POL SUR MER | J27: Qualifications | K27: 2016-2017 | P27: 0 | R27: 0
A28: BEGHIN Benjamin | B28: ESTERMANS Bernard | C28: P | D28: 1 | E28: 3 | F28: 207 | G28: 233 | H28: 2017-03-19 | I28: FINALE CD59 R1 - ST POL SUR MER | J28: 1/2 Finale | K28: 2016-2017 | P28: 0 | R28: 0
A29: BEGHIN Benjamin | B29: MONFLIER Francis | C29: G | D29: 3 | E29: 2 | F29: 277 | G29: 228 | H29: 2017-03-19 | I29: FINALE CD59 R1 - ST POL SUR MER | J29: Qualifications | K29: 2016-2017 | P29: 0 | R29: 0
A30: BEGHIN Benjamin | B30: DEREUDDRE Dominique | C30: G | D30: 1 | E30: 0 | F30: 100 | G30: 51 | H30: 2017-09-30 | I30: T1 Qualifications R1 CD59 - GRAVELINES | J30: Qualifications | K30: 2017-2018 | P30: 0 | R30: 0
A31: BEGHIN Benjamin | B31: NOYER Pascal | C31: G | D31: 1 | E31: 0 | F31: 100 | G31: 73 | H31: 2017-09-30 | I31: T1 Qualifications R1 CD59 - GRAVELINES | J31: Qualifications | K31: 2017-2018 | P31: 0 | R31: 0
A32: BEGHIN Benjamin | B32: VEREECQUE Bernard | C32: G | D32: 1 | E32: 0 | F32: 100 | G32: 81 | H32: 2017-09-30 | I32: T1 Qualifications R1 CD59 - GRAVELINES | J32: Qualifications | K32: 2017-2018 | P32: 0 | R32: 0
A33: BEGHIN Benjamin | B33: WASYLYSZYN Jean-Pierre | C33: G | D33: 1 | E33: 0 | F33: 100 | G33: 52 | H33: 2017-09-30 | I33: T1 Qualifications R1 CD59 - GRAVELINES | J33: Qualifications | K33: 2017-2018 | P33: 0 | R33: 0
A34: BEGHIN Benjamin | B34: DUTAILLY Michel | C34: P | D34: 1 | E34: 2 | F34: 172 | G34: 173 | H34: 2017-09-30 | I34: T1 Qualifications R1 CD59 - GRAVELINES | J34: Qualifications | K34: 2017-2018 | P34: 0 | R34: 0
A35: BEGHIN Benjamin | B35: DUTAILLY Michel | C35: P | D35: 0 | E35: 2 | F35: 85 | G35: 120 | H35: 2017-09-30 | I35: T1 Qualifications R1 CD59 - GRAVELINES | J35: Qualifications | K35: 2017-2018 | P35: 0 | R35: 0
A36: BEGHIN Benjamin | B36: MANTEN Paul | C36: G | D36: 2 | E36: 1 | F36: 161 | G36: 145 | H36: 2018-01-20 | I36: T2 Qualifications R1 CD59 - ST POL SUR MER | J36: Qualifications | K36: 2017-2018 | P36: 0 | R36: 0
A37: BEGHIN Benjamin | B37: MANTEN Paul | C37: P | D37: 1 | E37: 2 | F37: 158 | G37: 172 | H37: 2018-01-20 | I37: T2 Qualifications R1 CD59 - ST POL SUR MER | J37: 1/4 Finale | K37: 2017-2018 | P37: 0 | R37: 0
A38: BEGHIN Benjamin | B38: VEREECQUE Bernard | C38: G | D38: 2 | E38: 0 | F38: 120 | G38: 54 | H38: 2018-01-20 | I38: T2 Qualifications R1 CD59 - ST POL SUR MER | J38: Qualifications | K38: 2017-2018 | P38: 0 | R38: 0
A39: BEGHIN Benjamin | B39: SZWARC Johann | C39: G | D39: 1 | E39: 0 | F39: 100 | G39: 53 | H39: 2021-10-16 | I39: T1 5Q R1 - VILLENEUVE D'ASCQ | J39: Qualifications | K39: 2021-2022 | P39: 1 | R39: 0
A40: BEGHIN Benjamin | B40: SZWARC Johann | C40: G | D40: 1 | E40: 0 | F40: 100 | G40: 79 | H40: 2021-10-16 | I40: T1 5Q R1 - VILLENEUVE D'ASCQ | J40: Qualifications | K40: 2021-2022 | P40: 1 | R40: 0
A41: BEGHIN Benjamin | B41: SZWARC Patrick | C41: P | D41: 0 | E41: 1 | F41: 52 | G41: 100 | H41: 2021-10-16 | I41: T1 5Q R1 - VILLENEUVE D'ASCQ | J41: 1/4 Finale | K41: 2021-2022 | P41: 0 | R41: 0
A42: BEGHIN Benjamin | B42: BEGHIN Nicolas | C42: G | D42: 1 | E42: 0 | F42: 100 | G42: 95 | H42: 2021-12-18 | I42: T2 5Q R1 - GRAVELINES - CONVOCATON 8h30 | J42: 1/2 Finale | K42: 2021-2022 | P42: 1 | R42: 0
A43: BEGHIN Benjamin | B43: KERKHOF Hervé | C43: P | D43: 0 | E43: 1 | F43: 53 | G43: 100 | H43: 2021-12-18 | I43: T2 5Q R1 - GRAVELINES - CONVOCATON 8h30 | J43: Finale | K43: 2021-2022 | P43: 0 | R43: 0
A44: BEGHIN Benjamin | B44: LORTHIOIR Jean-Luc | C44: G | D44: 1 | E44: 0 | F44: 100 | G44: 98 | H44: 2021-12-18 | I44: T2 5Q R1 - GRAVELINES - CONVOCATON 8h30 | J44: 1/4 Finale | K44: 2021-2022 | P44: 1 | R44: 0
A45: BEGHIN Benjamin | B45: MANTEN Paul | C45: P | D45: 0 | E45: 1 | F45: 92 | G45: 100 | H45: 2021-12-18 | I45: T2 5Q R1 - GRAVELINES - CONVOCATON 8h30 | J45: Qualifications | K45: 2021-2022 | P45: 0 | R45: 0
A46: BEGHIN Benjamin | B46: MANTEN Paul | C46: G | D46: 1 | E46: 0 | F46: 100 | G46: 85 | H46: 2021-12-18 | I46: T2 5Q R1 - GRAVELINES - CONVOCATON 8h30 | J46: Qualifications | K46: 2021-2022 | P46: 1 | R46: 0
A47: BEGHIN Benjamin | B47: BELLENS Antoine | C47: P | D47: 0 | E47: 1 | F47: 93 | G47: 100 | H47: 2022-02-26 | I47: T3 5Q R1 - GRAVELINES | J47: Finale | K47: 2021-2022 | P47: 0 | R47: 0
A48: BEGHIN Benjamin | B48: KERKHOF Hervé | C48: G | D48: 1 | E48: 0 | F48: 100 | G48: 51 | H48: 2022-02-26 | I48: T3 5Q R1 - GRAVELINES | J48: 1/2 Finale | K48: 2021-2022 | P48: 1 | R48: 0
A49: BEGHIN Benjamin | B49: LE GOHEBEL Jacques | C49: G | D49: 1 | E49: 0 | F49: 100 | G49: 98 | H49: 2022-02-26 | I49: T3 5Q R1 - GRAVELINES | J49: Qualifications | K49: 2021-2022 | P49: 1 | R49: 0
A50: BEGHIN Benjamin | B50: LORTHIOIR Jean-Luc | C50: G | D50: 1 | E50: 0 | F50: 100 | G50: 82 | H50: 2022-02-26 | I50: T3 5Q R1 - GRAVELINES | J50: 1/4 Finale | K50: 2021-2022 | P50: 1 | R50: 0
A51: BEGHIN Benjamin | B51: MANTEN Paul | C51: G | D51: 1 | E51: 0 | F51: 100 | G51: 60 | H51: 2022-02-26 | I51: T3 5Q R1 - GRAVELINES | J51: Qualifications | K51: 2021-2022 | P51: 1 | R51: 0
A52: BEGHIN Benjamin | B52: BELLENS Antoine | C52: G | D52: 1 | E52: 0 | F52: 100 | G52: 86 | H52: 2022-04-02 | I52: T4 5Q R1 - ANNOEULLIN | J52: 1/2 Finale | K52: 2021-2022 | P52: 1 | R52: 0
A53: BEGHIN Benjamin | B53: BERRIER François | C53: G | D53: 1 | E53: 0 | F53: 100 | G53: 50 | H53: 2022-04-02 | I53: T4 5Q R1 - ANNOEULLIN | J53: Qualifications | K53: 2021-2022 | P53: 1 | R53: 0
A54: BEGHIN Benjamin | B54: LORTHIOIR Jean-Luc | C54: P | D54: 0 | E54: 1 | F54: 63 | G54: 100 | H54: 2022-04-02 | I54: T4 5Q R1 - ANNOEULLIN | J54: Finale | K54: 2021-2022 | P54: 0 | R54: 0
A55: BEGHIN Benjamin | B55: NOYER Pascal | C55: G | D55: 1 | E55: 0 | F55: 100 | G55: 62 | H55: 2022-04-02 | I55: T4 5Q R1 - ANNOEULLIN | J55: Qualifications | K55: 2021-2022 | P55: 1 | R55: 0
A56: BEGHIN Benjamin | B56: SZWARC Johann | C56: G | D56: 1 | E56: 0 | F56: 100 | G56: 45 | H56: 2022-04-02 | I56: T4 5Q R1 - ANNOEULLIN | J56: 1/4 Finale | K56: 2021-2022 | P56: 1 | R56: 0
A57: BEGHIN Benjamin | B57: HOCHART James | C57: G | D57: 2 | E57: 1 | F57: 165 | G57: 119 | H57: 2022-05-08 | I57: Finale CD59 5Q R1 - VILLENEUVE D'ASCQ | J57: Qualifications | K57: 2021-2022 | P57: 1 | R57: 0
A58: BEGHIN Benjamin | B58: KERKHOF Hervé | C58: G | D58: 2 | E58: 1 | F58: 178 | G58: 167 | H58: 2022-05-08 | I58: Finale CD59 5Q R1 - VILLENEUVE D'ASCQ | J58: 1/2 Finale | K58: 2021-2022 | P58: 1 | R58: 0
A59: BEGHIN Benjamin | B59: LORTHIOIR Jean-Luc | C59: G | D59: 2 | E59: 0 | F59: 120 | G59: 63 | H59: 2022-05-08 | I59: Finale CD59 5Q R1 - VILLENEUVE D'ASCQ | J59: Qualifications | K59: 2021-2022 | P59: 1 | R59: 0
A60: BEGHIN Benjamin | B60: LORTHIOIR Jean-Luc | C60: G | D60: 2 | E60: 1 | F60: 150 | G60: 134 | H60: 2022-05-08 | I60: Finale CD59 5Q R1 - VILLENEUVE D'ASCQ | J60: Finale | K60: 2021-2022 | P60: 1 | R60: 0
A61: Fin des données | P61: =IF($K61=P$1,COUNTIF($C61,"G"),0) -> 0 | R61: =IF($K61=R$1,COUNTIF($C61,"G"),0) -> 0

Sheet BEGHIN Nicolas
A1: BEGHIN Nicolas | P1: =SaisonDeb -> 2021-2022 | R1: =SaisonFin -> 2022-2023 | T1: Toutes saisons
P2: Nombre | Q2: %age | R2: Nombre | S2: %age | T2: Nombre | U2: %age
N3: Matchs | O3: Gagnés | P3: =SUM(P$15:P$185) -> 13 | Q3: =IF(P$3+P$4>0,P3/(P$3+P$4),"") -> 0.6842105263 | R3: =SUM(R$15:R$185) -> 0 | S3: =IF(R$3+R$4>0,R3/(R$3+R$4),"") ->  | T3: =COUNTIF($C$15:$C$185,"G") -> 41 | U3: =IF(T$3+T$4>0,T3/(T$3+T$4),"") -> 0.5616438356
O4: Perdus | P4: =COUNTIF($K$15:$M$185,SaisonDeb)-P3 -> 6 | Q4: =IF(P$3+P$4>0,P4/(P$3+P$4),"") -> 0.3157894737 | R4: =COUNTIF($K$15:$K$185,SaisonFin)-R3 -> 0 | S4: =IF(R$3+R$4>0,R4/(R$3+R$4),"") ->  | T4: =COUNTIF($C$15:$C$185,"P") -> 32 | U4: =IF(T$3+T$4>0,T4/(T$3+T$4),"") -> 0.4383561644
O5: Total / Moy. | P5: =SUM(P3:P4) -> 19 | Q5: =IF(SUMIF($K$15:$K$185,SaisonDeb,$G$15:$G$185)>0,SUMIF($K$15:$K$185,SaisonDeb,$F$15:$F$185)/SUMIF($K$15:$K$185,SaisonDeb,$G$15:$G$185),"") -> 1.169751117 | R5: =SUM(R3:R4) -> 0 | S5: =IF(SUMIF($K$15:$K$185,SaisonFin,$G$15:$G$185)>0,SUMIF($K$15:$K$185,SaisonFin,$F$15:$F$185)/SUMIF($K$15:$K$185,SaisonFin,$G$15:$G$185),"") ->  | T5: =SUM(T3:T4) -> 73 | U5: =IF(SUM($G$15:$G$185)>0,SUM($F$15:$F$185)/SUM($G$15:$G$185),"") -> 1.059413203 | V5: =IF(SUMIF($K$15:$K$89,SaisonDeb,$G$15:$G$89)+SUMIF($K$15:$K$89,SaisonFin,$G$15:$G$89)>0,(SUMIF($K$15:$K$89,SaisonDeb,$F$15:$F$89)+SUMIF($K$15:$K$89,SaisonFin,$F$15:$F$89))/(SUMIF($K$15:$K$89,SaisonDeb,$G$15:$G$89)+SUMIF($K$15:$K$89,SaisonFin,$G$15:$G$89)),"") -> 1.169751117
N6: Sets | O6: Gagnés | P6: =SUMIF($K$15:$K$185,SaisonDeb,$D$15:$D$185) -> 15 | Q6: =IF(P$6+P$7>0,P6/(P$6+P$7),"") -> 0.652173913 | R6: =SUMIF($K$15:$K$185,SaisonFin,$D$15:$D$185) -> 0 | S6: =IF(R$6+R$7>0,R6/(R$6+R$7),"") ->  | T6: =SUM($D$15:$D$185) -> 83 | U6: =IF(T$6+T$7>0,T6/(T$6+T$7),"") -> 0.5424836601
O7: Perdus | P7: =SUMIF($K$15:$K$185,SaisonDeb,$E$15:$E$185) -> 8 | Q7: =IF(P$6+P$7>0,P7/(P$6+P$7),"") -> 0.347826087 | R7: =SUMIF($K$15:$K$185,SaisonFin,$E$15:$E$185) -> 0 | S7: =IF(R$6+R$7>0,R7/(R$6+R$7),"") ->  | T7: =SUM($E$15:$E$185) -> 70 | U7: =IF(T$6+T$7>0,T7/(T$6+T$7),"") -> 0.4575163399
A8: Récapitulatif joueurs | O8: Total | P8: =SUM(P6:P7) -> 23 | R8: =SUM(R6:R7) -> 0 | T8: =SUM(T6:T7) -> 153
A15: Joueur | B15: Adversaire | C15: G/P | D15: Sets gagnés | E15: Sets perdus | F15: pts marqués | G15: pts subis | H15: Date | I15: Compétition | J15: Phase | K15: Saison
A16: BEGHIN Nicolas | B16: ESTERMANS Bernard | C16: P | D16: 0 | E16: 2 | F16: 82 | G16: 120 | H16: 2016-01-14 | I16: T1 Qualifications CD59 R1 - DUNKERQUE | J16: Qualifications | K16: =IF(H16<>"",IF(MONTH(H16)>MoisRef,YEAR(H16)&"-"&YEAR(H16)+1,YEAR(H16)-1&"-"&YEAR(H16)),"") -> 2015-2016 | P16: =IF($K16=P$1,COUNTIF($C16,"G"),0) -> 0 | R16: =IF($K16=R$1,COUNTIF($C16,"G"),0) -> 0
A17: BEGHIN Nicolas | B17: MONFLIER Francis | C17: P | D17: 0 | E17: 2 | F17: 70 | G17: 120 | H17: 2016-01-14 | I17: T1 Qualifications CD59 R1 - DUNKERQUE | J17: 1/4 Finale | K17: 2015-2016 | P17: 0 | R17: 0
A18: BEGHIN Nicolas | B18: PARISIS Francis | C18: G | D18: 2 | E18: 0 | F18: 120 | G18: 79 | H18: 2016-01-14 | I18: T1 Qualifications CD59 R1 - DUNKERQUE | J18: Qualifications | K18: 2015-2016 | P18: 0 | R18: 0
A19: BEGHIN Nicolas | B19: DUTAILLY Michel | C19: G | D19: 2 | E19: 0 | F19: 120 | G19: 77 | H19: 2017-02-25 | I19: T2 Qualifications CD59 R1 - VILLENEUVE D'ASCQ | J19: Qualifications | K19: 2016-2017 | P19: 0 | R19: 0
A20: BEGHIN Nicolas | B20: MONFLIER Francis | C20: P | D20: 0 | E20: 2 | F20: 74 | G20: 120 | H20: 2017-02-25 | I20: T2 Qualifications CD59 R1 - VILLENEUVE D'ASCQ | J20: Qualifications | K20: 2016-2017 | P20: 0 | R20: 0
A21: BEGHIN Nicolas | B21: MONFLIER Francis | C21: P | D21: 1 | E21: 2 | F21: 162 | G21: 131 | H21: 2017-02-25 | I21: T2 Qualifications CD59 R1 - VILLENEUVE D'ASCQ | J21: 1/2 Finale | K21: 2016-2017 | P21: 0 | R21: 0
A22: BEGHIN Nicolas | B22: BEGHIN Benjamin | C22: G | D22: 2 | E22: 1 | F22: 159 | G22: 140 | H22: 2017-03-11 | I22: T3 Qualifications CD59 R1 - ST POL SUR MER | J22: Qualifications | K22: 2016-2017 | P22: 0 | R22: 0
A23: BEGHIN Nicolas | B23: ESTERMANS Bernard | C23: P | D23: 0 | E23: 2 | F23: 52 | G23: 120 | H23: 2017-03-11 | I23: T3 Qualifications CD59 R1 - ST POL SUR MER | J23: 1/2 Finale | K23: 2016-2017 | P23: 0 | R23: 0
A24: BEGHIN Nicolas | B24: PAILLARD Bertrand | C24: G | D24: 2 | E24: 1 | F24: 162 | G24: 156 | H24: 2017-03-11 | I24: T3 Qualifications CD59 R1 - ST POL SUR MER | J24: 1/4 Finale | K24: 2016-2017 | P24: 0 | R24: 0
A25: BEGHIN Nicolas | B25: SZWARC Patrick | C25: P | D25: 1 | E25: 2 | F25: 166 | G25: 173 | H25: 2017-03-11 | I25: T3 Qualifications CD59 R1 - ST POL SUR MER | J25: Qualifications | K25: 2016-2017 | P25: 0 | R25: 0
A26: BEGHIN Nicolas | B26: BEGHIN Benjamin | C26: P | D26: 0 | E26: 3 | F26: 126 | G26: 180 | H26: 2017-03-19 | I26: FINALE CD59 R1 - ST POL SUR MER | J26: Qualifications | K26: 2016-2017 | P26: 0 | R26: 0
A27: BEGHIN Nicolas | B27: ESTERMANS Bernard | C27: P | D27: 2 | E27: 3 | F27: 238 | G27: 272 | H27: 2017-03-19 | I27: FINALE CD59 R1 - ST POL SUR MER | J27: Finale | K27: 2016-2017 | P27: 0 | R27: 0
A28: BEGHIN Nicolas | B28: MONFLIER Francis | C28: G | D28: 3 | E28: 1 | F28: 219 | G28: 208 | H28: 2017-03-19 | I28: FINALE CD59 R1 - ST POL SUR MER | J28: Qualifications | K28: 2016-2017 | P28: 0 | R28: 0
A29: BEGHIN Nicolas | B29: PAILLARD Bertrand | C29: G | D29: 3 | E29: 0 | F29: 180 | G29: 129 | H29: 2017-03-19 | I29: FINALE CD59 R1 - ST POL SUR MER | J29: 1/2 Finale | K29: 2016-2017 | P29: 0 | R29: 0
A30: BEGHIN Nicolas | B30: ESTERMANS Bernard | C30: G | D30: 3 | E30: 2 | F30: 231 | G30: 211 | H30: 2018-04-15 | I30: Finale R1 CD59 - VILLENEUVE D'ASCQ | J30: Qualifications | K30: 2017-2018 | P30: 0 | R30: 0
A31: BEGHIN Nicolas | B31: MANTEN Paul | C31: P | D31: 1 | E31: 3 | F31: 177 | G31: 227 | H31: 2018-04-15 | I31: Finale R1 CD59 - VILLENEUVE D'ASCQ | J31: 1/2 Finale | K31: 2017-2018 | P31: 0 | R31: 0
A32: BEGHIN Nicolas | B32: PARISIS Francis | C32: G | D32: 3 | E32: 1 | F32: 221 | G32: 177 | H32: 2018-04-15 | I32: Finale R1 CD59 - VILLENEUVE D'ASCQ | J32: Qualifications | K32: 2017-2018 | P32: 0 | R32: 0
A33: BEGHIN Nicolas | B33: DEREUDDRE Dominique | C33: G | D33: 2 | E33: 0 | F33: 120 | G33: 85 | H33: 2017-09-30 | I33: T1 Qualifications R1 CD59 - GRAVELINES | J33: Qualifications | K33: 2017-2018 | P33: 0 | R33: 0
A34: BEGHIN Nicolas | B34: LEFORT Pierre | C34: G | D34: 2 | E34: 1 | F34: 174 | G34: 151 | H34: 2017-09-30 | I34: T1 Qualifications R1 CD59 - GRAVELINES | J34: 1/4 Finale | K34: 2017-2018 | P34: 0 | R34: 0
A35: BEGHIN Nicolas | B35: MANTEN Paul | C35: P | D35: 0 | E35: 2 | F35: 87 | G35: 120 | H35: 2017-09-30 | I35: T1 Qualifications R1 CD59 - GRAVELINES | J35: Finale | K35: 2017-2018 | P35: 0 | R35: 0
A36: BEGHIN Nicolas | B36: SZWARC Patrick | C36: G | D36: 2 | E36: 1 | F36: 172 | G36: 124 | H36: 2017-09-30 | I36: T1 Qualifications R1 CD59 - GRAVELINES | J36: Qualifications | K36: 2017-2018 | P36: 0 | R36: 0
A37: BEGHIN Nicolas | B37: SZWARC Patrick | C37: G | D37: 2 | E37: 0 | F37: 120 | G37: 110 | H37: 2017-09-30 | I37: T1 Qualifications R1 CD59 - GRAVELINES | J37: 1/2 Finale | K37: 2017-2018 | P37: 0 | R37: 0
A38: BEGHIN Nicolas | B38: ESTERMANS Bernard | C38: G | D38: 2 | E38: 0 | F38: 120 | G38: 113 | H38: 2018-01-20 | I38: T2 Qualifications R1 CD59 - ST POL SUR MER | J38: Finale | K38: 2017-2018 | P38: 0 | R38: 0
A39: BEGHIN Nicolas | B39: MANTEN Paul | C39: G | D39: 2 | E39: 0 | F39: 120 | G39: 107 | H39: 2018-01-20 | I39: T2 Qualifications R1 CD59 - ST POL SUR MER | J39: 1/2 Finale | K39: 2017-2018 | P39: 0 | R39: 0
A40: BEGHIN Nicolas | B40: PARISIS Francis | C40: P | D40: 1 | E40: 2 | F40: 150 | G40: 124 | H40: 2018-01-20 | I40: T2 Qualifications R1 CD59 - ST POL SUR MER | J40: Qualifications | K40: 2017-2018 | P40: 0 | R40: 0
A41: BEGHIN Nicolas | B41: PARISIS Francis | C41: G | D41: 2 | E41: 0 | F41: 120 | G41: 49 | H41: 2018-01-20 | I41: T2 Qualifications R1 CD59 - ST POL SUR MER | J41: 1/4 Finale | K41: 2017-2018 | P41: 0 | R41: 0
A42: BEGHIN Nicolas | B42: WASYLYSZYN Jean-Pierre | C42: G | D42: 2 | E42: 0 | F42: 120 | G42: 75 | H42: 2018-01-20 | I42: T2 Qualifications R1 CD59 - ST POL SUR MER | J42: Qualifications | K42: 2017-2018 | P42: 0 | R42: 0
A43: BEGHIN Nicolas | B43: LECROART Serge | C43: P | D43: 0 | E43: 2 | F43: 116 | G43: 120 | H43: 2018-02-04 | I43: T3 Qualifications R1 CD59 - GRAVELINES | J43: Qualifications | K43: 2017-2018 | P43: 0 | R43: 0
A44: BEGHIN Nicolas | B44: LECROART Serge | C44: P | D44: 1 | E44: 2 | F44: 146 | G44: 166 | H44: 2018-02-04 | I44: T3 Qualifications R1 CD59 - GRAVELINES | J44: 1/2 Finale | K44: 2017-2018 | P44: 0 | R44: 0
A45: BEGHIN Nicolas | B45: WASYLYSZYN Jean-Pierre | C45: G | D45: 2 | E45: 0 | F45: 120 | G45: 71 | H45: 2018-02-04 | I45: T3 Qualifications R1 CD59 - GRAVELINES | J45: Qualifications | K45: 2017-2018 | P45: 0 | R45: 0
A46: BEGHIN Nicolas | B46: DEREUDDRE Dominique | C46: G | D46: 2 | E46: 0 | F46: 120 | G46: 65 | H46: 2018-03-10 | I46: T4 Qualifications R1 CD59 - VILLENEUVE D'ASCQ | J46: Qualifications | K46: 2017-2018 | P46: 0 | R46: 0
A47: BEGHIN Nicolas | B47: LECROART Serge | C47: G | D47: 2 | E47: 1 | F47: 168 | G47: 138 | H47: 2018-03-10 | I47: T4 Qualifications R1 CD59 - VILLENEUVE D'ASCQ | J47: Qualifications | K47: 2017-2018 | P47: 0 | R47: 0
A48: BEGHIN Nicolas | B48: MANTEN Paul | C48: P | D48: 0 | E48: 2 | F48: 60 | G48: 120 | H48: 2018-03-10 | I48: T4 Qualifications R1 CD59 - VILLENEUVE D'ASCQ | J48: 1/2 Finale | K48: 2017-2018 | P48: 0 | R48: 0
A49: BEGHIN Nicolas | B49: CAUX Frédéric | C49: G | D49: 2 | E49: 0 | F49: 120 | G49: 85 | H49: 2018-10-20 | I49: T1 5Q R1 CD59 - DUNKERQUE | J49: 1/2 Finale | K49: 2018-2019 | P49: 0 | R49: 0
A50: BEGHIN Nicolas | B50: LORTHIOIR Jean-Luc | C50: G | D50: 2 | E50: 0 | F50: 120 | G50: 97 | H50: 2018-10-20 | I50: T1 5Q R1 CD59 - DUNKERQUE | J50: Qualifications | K50: 2018-2019 | P50: 0 | R50: 0
A51: BEGHIN Nicolas | B51: PAILLARD Bertrand | C51: P | D51: 1 | E51: 2 | F51: 131 | G51: 167 | H51: 2018-10-20 | I51: T1 5Q R1 CD59 - DUNKERQUE | J51: Qualifications | K51: 2018-2019 | P51: 0 | R51: 0
A52: BEGHIN Nicolas | B52: PAILLARD Bertrand | C52: P | D52: 1 | E52: 2 | F52: 128 | G52: 166 | H52: 2018-10-20 | I52: T1 5Q R1 CD59 - DUNKERQUE | J52: Finale | K52: 2018-2019 | P52: 0 | R52: 0
A53: BEGHIN Nicolas | B53: LECROART Serge | C53: G | D53: 2 | E53: 0 | F53: 120 | G53: 71 | H53: 2018-11-24 | I53: T2 5Q R1 CD59 - DOUAI | J53: 1/2 Finale | K53: 2018-2019 | P53: 0 | R53: 0
A54: BEGHIN Nicolas | B54: MONFLIER Francis | C54: P | D54: 0 | E54: 2 | F54: 66 | G54: 120 | H54: 2018-11-24 | I54: T2 5Q R1 CD59 - DOUAI | J54: Finale | K54: 2018-2019 | P54: 0 | R54: 0
A55: BEGHIN Nicolas | B55: HOCHART James | C55: G | D55: 2 | E55: 1 | F55: 162 | G55: 171 | H55: 2019-01-19 | I55: T4 5Q R1 CD59 - VILLENEUVE D'ASCQ | J55: Qualifications | K55: 2018-2019 | P55: 0 | R55: 0
A56: BEGHIN Nicolas | B56: MONFLIER Francis | C56: P | D56: 0 | E56: 2 | F56: 47 | G56: 120 | H56: 2019-01-19 | I56: T4 5Q R1 CD59 - VILLENEUVE D'ASCQ | J56: Qualifications | K56: 2018-2019 | P56: 0 | R56: 0
A57: BEGHIN Nicolas | B57: HOCHART James | C57: G | D57: 1 | E57: 0 | F57: 100 | G57: 88 | H57: 2019-01-19 | I57: T4 5Q R1 CD59 - VILLENEUVE D'ASCQ - CONSOLANTE - | J57: Qualifications | K57: 2018-2019 | P57: 0 | R57: 0
A58: BEGHIN Nicolas | B58: PAILLARD Bertrand | C58: P | D58: 0 | E58: 1 | F58: 78 | G58: 100 | H58: 2019-01-19 | I58: T4 5Q R1 CD59 - VILLENEUVE D'ASCQ - CONSOLANTE - | J58: Qualifications | K58: 2018-2019 | P58: 0 | R58: 0
A59: BEGHIN Nicolas | B59: ESTERMANS Bernard | C59: P | D59: 0 | E59: 2 | F59: 79 | G59: 120 | H59: 2019-03-02 | I59: Finale CD59 R1 - GRAVELINES | J59: Qualifications | K59: 2018-2019 | P59: 0 | R59: 0
A60: BEGHIN Nicolas | B60: PAILLARD Bertrand | C60: P | D60: 1 | E60: 2 | F60: 172 | G60: 176 | H60: 2019-03-02 | I60: Finale CD59 R1 - GRAVELINES | J60: Qualifications | K60: 2018-2019 | P60: 0 | R60: 0
A61: BEGHIN Nicolas | B61: DUTAILLY Michel | C61: P | D61: 0 | E61: 1 | F61: 76 | G61: 100 | H61: 2019-11-24 | I61: T2 5Q R1 CD59 - GRAVELINES - CONSOLANTE | J61: Qualifications | K61: 2019-2020 | P61: 0 | R61: 0
A62: BEGHIN Nicolas | B62: DUTAILLY Michel | C62: P | D62: 0 | E62: 1 | F62: 91 | G62: 100 | H62: 2019-11-24 | I62: T2 5Q R1 CD59 - GRAVELINES - CONSOLANTE | J62: 1/2 Finale | K62: 2019-2020 | P62: 0 | R62: 0
A63: BEGHIN Nicolas | B63: HOCHART James | C63: G | D63: 1 | E63: 0 | F63: 100 | G63: 17 | H63: 2019-11-24 | I63: T2 5Q R1 CD59 - GRAVELINES - CONSOLANTE | J63: Qualifications | K63: 2019-2020 | P63: 0 | R63: 0
A64: BEGHIN Nicolas | B64: VEREECQUE Bernard | C64: G | D64: 1 | E64: 0 | F64: 100 | G64: 53 | H64: 2019-11-24 | I64: T2 5Q R1 CD59 - GRAVELINES - CONSOLANTE | J64: Qualifications | K64: 2019-2020 | P64: 0 | R64: 0
A65: BEGHIN Nicolas | B65: HORNAIN Denis | C65: P | D65: 1 | E65: 2 | F65: 156 | G65: 138 | H65: 2019-11-24 | I65: T2 5Q R1 CD59 - GRAVELINES | J65: Qualifications | K65: 2019-2020 | P65: 0 | R65: 0
A66: BEGHIN Nicolas | B66: KERKHOF Hervé | C66: P | D66: 0 | E66: 2 | F66: 105 | G66: 120 | H66: 2019-11-24 | I66: T2 5Q R1 CD59 - GRAVELINES | J66: Qualifications | K66: 2019-2020 | P66: 0 | R66: 0
A67: BEGHIN Nicolas | B67: MANTEN Paul | C67: G | D67: 2 | E67: 0 | F67: 120 | G67: 71 | H67: 2020-01-04 | I67: T3 5Q R1 CD59 - GRAVELINES - Convocation 8h30 - | J67: Qualifications | K67: 2019-2020 | P67: 0 | R67: 0
A68: BEGHIN Nicolas | B68: MANTEN Paul | C68: P | D68: 0 | E68: 2 | F68: 50 | G68: 120 | H68: 2020-01-04 | I68: T3 5Q R1 CD59 - GRAVELINES - Convocation 8h30 - | J68: 1/4 Finale | K68: 2019-2020 | P68: 0 | R68: 0
A69: BEGHIN Nicolas | B69: VEREECQUE Bernard | C69: G | D69: 2 | E69: 0 | F69: 120 | G69: 35 | H69: 2020-01-04 | I69: T3 5Q R1 CD59 - GRAVELINES - Convocation 8h30 - | J69: Qualifications | K69: 2019-2020 | P69: 0 | R69: 0
A70: BEGHIN Nicolas | B70: BELLENS Antoine | C70: G | D70: 1 | E70: 0 | F70: 100 | G70: 94 | H70: 2021-10-16 | I70: T1 5Q R1 - VILLENEUVE D'ASCQ | J70: Finale | K70: 2021-2022 | P70: 1 | R70: 0
A71: BEGHIN Nicolas | B71: BLONDEL Jean | C71: G | D71: 1 | E71: 0 | F71: 100 | G71: 55 | H71: 2021-10-16 | I71: T1 5Q R1 - VILLENEUVE D'ASCQ | J71: Qualifications | K71: 2021-2022 | P71: 1 | R71: 0
A72: BEGHIN Nicolas | B72: HOCHART James | C72: G | D72: 1 | E72: 0 | F72: 100 | G72: 71 | H72: 2021-10-16 | I72: T1 5Q R1 - VILLENEUVE D'ASCQ | J72: 1/2 Finale | K72: 2021-2022 | P72: 1 | R72: 0
A73: BEGHIN Nicolas | B73: LECROART Serge | C73: G | D73: 1 | E73: 0 | F73: 100 | G73: 57 | H73: 2021-10-16 | I73: T1 5Q R1 - VILLENEUVE D'ASCQ | J73: 1/4 Finale | K73: 2021-2022 | P73: 1 | R73: 0
A74: BEGHIN Nicolas | B74: SZWARC Patrick | C74: G | D74: 1 | E74: 0 | F74: 100 | G74: 68 | H74: 2021-10-16 | I74: T1 5Q R1 - VILLENEUVE D'ASCQ | J74: Qualifications | K74: 2021-2022 | P74: 1 | R74: 0
A75: BEGHIN Nicolas | B75: BARKUT Volkan | C75: G | D75: 1 | E75: 0 | F75: 100 | G75: 59 | H75: 2021-12-18 | I75: T2 5Q R1 - GRAVELINES - CONVOCATON 8h30 | J75: Qualifications | K75: 2021-2022 | P75: 1 | R75: 0
A76: BEGHIN Nicolas | B76: BEGHIN Benjamin | C76: P | D76: 0 | E76: 1 | F76: 95 | G76: 100 | H76: 2021-12-18 | I76: T2 5Q R1 - GRAVELINES - CONVOCATON 8h30 | J76: 1/2 Finale | K76: 2021-2022 | P76: 0 | R76: 0
A77: BEGHIN Nicolas | B77: BELLENS Antoine | C77: G | D77: 1 | E77: 0 | F77: 100 | G77: 80 | H77: 2021-12-18 | I77: T2 5Q R1 - GRAVELINES - CONVOCATON 8h30 | J77: 1/4 Finale | K77: 2021-2022 | P77: 1 | R77: 0
A78: BEGHIN Nicolas | B78: LORTHIOIR Jean-Luc | C78: P | D78: 0 | E78: 1 | F78: 58 | G78: 100 | H78: 2021-12-18 | I78: T2 5Q R1 - GRAVELINES - CONVOCATON 8h30 | J78: Qualifications | K78: 2021-2022 | P78: 0 | R78: 0
A79: BEGHIN Nicolas | B79: DUTAILLY Michel | C79: G | D79: 1 | E79: 0 | F79: 100 | G79: 78 | H79: 2022-02-26 | I79: T3 5Q R1 - GRAVELINES - CONSOLANTE | J79: Qualifications | K79: 2021-2022 | P79: 1 | R79: 0
A80: BEGHIN Nicolas | B80: SZWARC Johann | C80: G | D80: 1 | E80: 0 | F80: 100 | G80: 54 | H80: 2022-02-26 | I80: T3 5Q R1 - GRAVELINES - CONSOLANTE | J80: Qualifications | K80: 2021-2022 | P80: =IF($K80=P$1,COUNTIF($C80,"G"),0) -> 1 | R80: =IF($K80=R$1,COUNTIF($C80,"G"),0) -> 0
A81: BEGHIN Nicolas | B81: DUTAILLY Michel | C81: G | D81: 1 | E81: 0 | F81: 100 | G81: 90 | H81: 2022-02-26 | I81: T3 5Q R1 - GRAVELINES | J81: Qualifications | K81: 2021-2022 | P81: 1 | R81: 0
A82: BEGHIN Nicolas | B82: MONFLIER Francis | C82: P | D82: 0 | E82: 1 | F82: 89 | G82: 100 | H82: 2022-02-26 | I82: T3 5Q R1 - GRAVELINES | J82: Qualifications | K82: 2021-2022 | P82: 0 | R82: 0
A83: BEGHIN Nicolas | B83: LECROART Serge | C83: G | D83: 1 | E83: 0 | F83: 100 | G83: 74 | H83: 2022-04-02 | I83: T4 5Q R1 - ANNOEULLIN | J83: Qualifications | K83: 2021-2022 | P83: 1 | R83: 0
A84: BEGHIN Nicolas | B84: LORTHIOIR Jean-Luc | C84: P | D84: 0 | E84: 1 | F84: 87 | G84: 100 | H84: 2022-04-02 | I84: T4 5Q R1 - ANNOEULLIN | J84: 1/4 Finale | K84: 2021-2022 | P84: 0 | R84: 0
A85: BEGHIN Nicolas | B85: PARENT Jean-René | C85: G | D85: 1 | E85: 0 | F85: 100 | G85: 44 | H85: 2022-04-02 | I85: T4 5Q R1 - ANNOEULLIN | J85: Qualifications | K85: 2021-2022 | P85: 1 | R85: 0
A86: BEGHIN Nicolas | B86: DUC Stéphane | C86: G | D86: 2 | E86: 0 | F86: 120 | G86: 57 | H86: 2022-05-08 | I86: Finale CD59 5Q R1 - VILLENEUVE D'ASCQ | J86: Qualifications | K86: 2021-2022 | P86: 1 | R86: 0
A87: BEGHIN Nicolas | B87: KERKHOF Hervé | C87: P | D87: 1 | E87: 2 | F87: 134 | G87: 166 | H87: 2022-05-08 | I87: Finale CD59 5Q R1 - VILLENEUVE D'ASCQ | J87: Qualifications | K87: 2021-2022 | P87: 0 | R87: 0
A88: BEGHIN Nicolas | B88: LORTHIOIR Jean-Luc | C88: P | D88: 0 | E88: 2 | F88: 50 | G88: 120 | H88: 2022-05-08 | I88: Finale CD59 5Q R1 - VILLENEUVE D'ASCQ | J88: 1/2 Finale | K88: 2021-2022 | P88: 0 | R88: 0
A89: Fin des données | P89: =IF($K89=P$1,COUNTIF($C89,"G"),0) -> 0 | R89: =IF($K89=R$1,COUNTIF($C89,"G"),0) -> 0

Sheet BEGUIN Jean-Luc
A1: BEGUIN Jean-Luc | P1: =SaisonDeb -> 2021-2022 | R1: =SaisonFin -> 2022-2023 | T1: Toutes saisons
P2: Nombre | Q2: %age | R2: Nombre | S2: %age | T2: Nombre | U2: %age
N3: Matchs | O3: Gagnés | P3: =SUM(P$15:P$131) -> 0 | Q3: =IF(P$3+P$4>0,P3/(P$3+P$4),"") ->  | R3: =SUM(R$15:R$131) -> 0 | S3: =IF(R$3+R$4>0,R3/(R$3+R$4),"") ->  | T3: =COUNTIF($C$15:$C$131,"G") -> 7 | U3: =IF(T$3+T$4>0,T3/(T$3+T$4),"") -> 0.3684210526
O4: Perdus | P4: =COUNTIF($K$15:$M$131,SaisonDeb)-P3 -> 0 | Q4: =IF(P$3+P$4>0,P4/(P$3+P$4),"") ->  | R4: =COUNTIF($K$15:$K$131,SaisonFin)-R3 -> 0 | S4: =IF(R$3+R$4>0,R4/(R$3+R$4),"") ->  | T4: =COUNTIF($C$15:$C$131,"P") -> 12 | U4: =IF(T$3+T$4>0,T4/(T$3+T$4),"") -> 0.6315789474
O5: Total / Moy. | P5: =SUM(P3:P4) -> 0 | Q5: =IF(SUMIF($K$15:$K$131,SaisonDeb,$G$15:$G$131)>0,SUMIF($K$15:$K$131,SaisonDeb,$F$15:$F$131)/SUMIF($K$15:$K$131,SaisonDeb,$G$15:$G$131),"") ->  | R5: =SUM(R3:R4) -> 0 | S5: =IF(SUMIF($K$15:$K$131,SaisonFin,$G$15:$G$131)>0,SUMIF($K$15:$K$131,SaisonFin,$F$15:$F$131)/SUMIF($K$15:$K$131,SaisonFin,$G$15:$G$131),"") ->  | T5: =SUM(T3:T4) -> 19 | U5: =IF(SUM($G$15:$G$131)>0,SUM($F$15:$F$131)/SUM($G$15:$G$131),"") -> 0.9170875421 | V5: =IF(SUMIF($K$15:$K$35,SaisonDeb,$G$15:$G$35)+SUMIF($K$15:$K$35,SaisonFin,$G$15:$G$35)>0,(SUMIF($K$15:$K$35,SaisonDeb,$F$15:$F$35)+SUMIF($K$15:$K$35,SaisonFin,$F$15:$F$35))/(SUMIF($K$15:$K$35,SaisonDeb,$G$15:$G$35)+SUMIF($K$15:$K$35,SaisonFin,$G$15:$G$35)),"") -> 
N6: Sets | O6: Gagnés | P6: =SUMIF($K$15:$K$131,SaisonDeb,$D$15:$D$131) -> 0 | Q6: =IF(P$6+P$7>0,P6/(P$6+P$7),"") ->  | R6: =SUMIF($K$15:$K$131,SaisonFin,$D$15:$D$131) -> 0 | S6: =IF(R$6+R$7>0,R6/(R$6+R$7),"") ->  | T6: =SUM($D$15:$D$131) -> 18 | U6: =IF(T$6+T$7>0,T6/(T$6+T$7),"") -> 0.4090909091
O7: Perdus | P7: =SUMIF($K$15:$K$131,SaisonDeb,$E$15:$E$131) -> 0 | Q7: =IF(P$6+P$7>0,P7/(P$6+P$7),"") ->  | R7: =SUMIF($K$15:$K$131,SaisonFin,$E$15:$E$131) -> 0 | S7: =IF(R$6+R$7>0,R7/(R$6+R$7),"") ->  | T7: =SUM($E$15:$E$131) -> 26 | U7: =IF(T$6+T$7>0,T7/(T$6+T$7),"") -> 0.5909090909
A8: Récapitulatif joueurs | O8: Total | P8: =SUM(P6:P7) -> 0 | R8: =SUM(R6:R7) -> 0 | T8: =SUM(T6:T7) -> 44
A15: Joueur | B15: Adversaire | C15: G/P | D15: Sets gagnés | E15: Sets perdus | F15: pts marqués | G15: pts subis | H15: Date | I15: Compétition | J15: Phase | K15: Saison
A16: BEGUIN Jean-Luc | B16: SZWARC Patrick | C16: P | D16: 1 | E16: 2 | F16: 136 | G16: 179 | H16: 2018-10-20 | I16: T1 5Q R2 CD59 - ST POL SUR MER | J16: Qualifications | K16: =IF(H16<>"",IF(MONTH(H16)>MoisRef,YEAR(H16)&"-"&YEAR(H16)+1,YEAR(H16)-1&"-"&YEAR(H16)),"") -> 2018-2019 | P16: =IF($K16=P$1,COUNTIF($C16,"G"),0) -> 0 | R16: =IF($K16=R$1,COUNTIF($C16,"G"),0) -> 0
A17: BEGUIN Jean-Luc | B17: WASYLYSZYN Jean-Pierre | C17: G | D17: 2 | E17: 1 | F17: 175 | G17: 133 | H17: 2018-10-20 | I17: T1 5Q R2 CD59 - ST POL SUR MER | J17: Qualifications | K17: 2018-2019 | P17: 0 | R17: 0
A18: BEGUIN Jean-Luc | B18: DEREUDDRE Dominique | C18: P | D18: 0 | E18: 1 | F18: 83 | G18: 100 | H18: 2018-10-20 | I18: T1 5Q R2 CD59 - CONSOLANTE - ST POL SUR MER | J18: Qualifications | K18: 2018-2019 | P18: 0 | R18: 0
A19: BEGUIN Jean-Luc | B19: SZWARC Johann | C19: P | D19: 0 | E19: 1 | F19: 68 | G19: 100 | H19: 2018-10-20 | I19: T1 5Q R2 CD59 - CONSOLANTE - ST POL SUR MER | J19: Qualifications | K19: 2018-2019 | P19: 0 | R19: 0
A20: BEGUIN Jean-Luc | B20: DUTAILLY Michel | C20: P | D20: 0 | E20: 2 | F20: 41 | G20: 120 | H20: 2018-11-24 | I20: T2 5Q R2 CD59 - GRAVELINES | J20: Qualifications | K20: 2018-2019 | P20: 0 | R20: 0
A21: BEGUIN Jean-Luc | B21: NOYER Pascal | C21: G | D21: 2 | E21: 1 | F21: 147 | G21: 109 | H21: 2018-11-24 | I21: T2 5Q R2 CD59 - GRAVELINES | J21: Qualifications | K21: 2018-2019 | P21: 0 | R21: 0
A22: BEGUIN Jean-Luc | B22: SZWARC Johann | C22: P | D22: 0 | E22: 1 | F22: 97 | G22: 100 | H22: 2018-11-24 | I22: T2 5Q R2 CD59 - CONSOLANTE - GRAVELINES | J22: Qualifications | K22: 2018-2019 | P22: 0 | R22: 0
A23: BEGUIN Jean-Luc | B23: DEREUDDRE Dominique | C23: P | D23: 1 | E23: 2 | F23: 149 | G23: 152 | H23: 2019-01-19 | I23: T4 5Q R2 CD59 - ST POL SUR MER | J23: Qualifications | K23: 2018-2019 | P23: 0 | R23: 0
A24: BEGUIN Jean-Luc | B24: DUTAILLY Michel | C24: P | D24: 1 | E24: 2 | F24: 149 | G24: 153 | H24: 2019-01-19 | I24: T4 5Q R2 CD59 - ST POL SUR MER | J24: Qualifications | K24: 2018-2019 | P24: 0 | R24: 0
A25: BEGUIN Jean-Luc | B25: VEREECQUE Bernard | C25: P | D25: 0 | E25: 2 | F25: 67 | G25: 120 | H25: 2019-01-19 | I25: T4 5Q R2 CD59 - ST POL SUR MER | J25: Qualifications | K25: 2018-2019 | P25: 0 | R25: 0
A26: BEGUIN Jean-Luc | B26: DEREUDDRE Dominique | C26: G | D26: 2 | E26: 1 | F26: 161 | G26: 107 | H26: 2019-03-02 | I26: Finale CD59 R2 - GRAVELINES | J26: Qualifications | K26: 2018-2019 | P26: 0 | R26: 0
A27: BEGUIN Jean-Luc | B27: SZWARC Johann | C27: G | D27: 2 | E27: 1 | F27: 175 | G27: 162 | H27: 2019-03-02 | I27: Finale CD59 R2 - GRAVELINES | J27: Qualifications | K27: 2018-2019 | P27: 0 | R27: 0
A28: BEGUIN Jean-Luc | B28: SZWARC Patrick | C28: P | D28: 0 | E28: 2 | F28: 86 | G28: 120 | H28: 2019-03-02 | I28: Finale CD59 R2 - GRAVELINES | J28: 1/2 Finale | K28: 2018-2019 | P28: 0 | R28: 0
A29: BEGUIN Jean-Luc | B29: HORNAIN Denis | C29: P | D29: 1 | E29: 2 | F29: 134 | G29: 178 | H29: 2019-10-26 | I29: T1 5Q R1 CD59 - VILLENEUVE D'ASCQ | J29: Qualifications | K29: 2019-2020 | P29: 0 | R29: 0
A30: BEGUIN Jean-Luc | B30: HORNAIN Denis | C30: P | D30: 0 | E30: 2 | F30: 42 | G30: 120 | H30: 2019-10-26 | I30: T1 5Q R1 CD59 - VILLENEUVE D'ASCQ | J30: 1/4 Finale | K30: 2019-2020 | P30: 0 | R30: 0
A31: BEGUIN Jean-Luc | B31: SZWARC Johann | C31: G | D31: 2 | E31: 1 | F31: 176 | G31: 151 | H31: 2019-10-26 | I31: T1 5Q R1 CD59 - VILLENEUVE D'ASCQ | J31: Qualifications | K31: 2019-2020 | P31: 0 | R31: 0
A32: BEGUIN Jean-Luc | B32: HOCHART James | C32: G | D32: 2 | E32: 0 | F32: 120 | G32: 65 | H32: 2019-11-24 | I32: T2 5Q R1 CD59 - GRAVELINES | J32: Qualifications | K32: 2019-2020 | P32: 0 | R32: 0
A33: BEGUIN Jean-Luc | B33: HORNAIN Denis | C33: P | D33: 0 | E33: 2 | F33: 53 | G33: 120 | H33: 2019-11-24 | I33: T2 5Q R1 CD59 - GRAVELINES | J33: 1/4 Finale | K33: 2019-2020 | P33: 0 | R33: 0
A34: BEGUIN Jean-Luc | B34: VEREECQUE Esteban | C34: G | D34: 2 | E34: 0 | F34: 120 | G34: 87 | H34: 2019-11-24 | I34: T2 5Q R1 CD59 - GRAVELINES | J34: Qualifications | K34: 2019-2020 | P34: 0 | R34: 0
A35: Fin des données | P35: =IF($K35=P$1,COUNTIF($C35,"G"),0) -> 0 | R35: =IF($K35=R$1,COUNTIF($C35,"G"),0) -> 0

Sheet BELLENS Antoine
A1: BELLENS Antoine | P1: =SaisonDeb -> 2021-2022 | R1: =SaisonFin -> 2022-2023 | T1: Toutes saisons
P2: Nombre | Q2: %age | R2: Nombre | S2: %age | T2: Nombre | U2: %age
N3: Matchs | O3: Gagnés | P3: =SUM(P$15:P$129) -> 14 | Q3: =IF(P$3+P$4>0,P3/(P$3+P$4),"") -> 0.8235294118 | R3: =SUM(R$15:R$129) -> 0 | S3: =IF(R$3+R$4>0,R3/(R$3+R$4),"") ->  | T3: =COUNTIF($C$15:$C$129,"G") -> 14 | U3: =IF(T$3+T$4>0,T3/(T$3+T$4),"") -> 0.8235294118
O4: Perdus | P4: =COUNTIF($K$15:$M$129,SaisonDeb)-P3 -> 3 | Q4: =IF(P$3+P$4>0,P4/(P$3+P$4),"") -> 0.1764705882 | R4: =COUNTIF($K$15:$K$129,SaisonFin)-R3 -> 0 | S4: =IF(R$3+R$4>0,R4/(R$3+R$4),"") ->  | T4: =COUNTIF($C$15:$C$129,"P") -> 3 | U4: =IF(T$3+T$4>0,T4/(T$3+T$4),"") -> 0.1764705882
O5: Total / Moy. | P5: =SUM(P3:P4) -> 17 | Q5: =IF(SUMIF($K$15:$K$129,SaisonDeb,$G$15:$G$129)>0,SUMIF($K$15:$K$129,SaisonDeb,$F$15:$F$129)/SUMIF($K$15:$K$129,SaisonDeb,$G$15:$G$129),"") -> 1.267175573 | R5: =SUM(R3:R4) -> 0 | S5: =IF(SUMIF($K$15:$K$129,SaisonFin,$G$15:$G$129)>0,SUMIF($K$15:$K$129,SaisonFin,$F$15:$F$129)/SUMIF($K$15:$K$129,SaisonFin,$G$15:$G$129),"") ->  | T5: =SUM(T3:T4) -> 17 | U5: =IF(SUM($G$15:$G$129)>0,SUM($F$15:$F$129)/SUM($G$15:$G$129),"") -> 1.267175573 | V5: =IF(SUMIF($K$15:$K$33,SaisonDeb,$G$15:$G$33)+SUMIF($K$15:$K$33,SaisonFin,$G$15:$G$33)>0,(SUMIF($K$15:$K$33,SaisonDeb,$F$15:$F$33)+SUMIF($K$15:$K$33,SaisonFin,$F$15:$F$33))/(SUMIF($K$15:$K$33,SaisonDeb,$G$15:$G$33)+SUMIF($K$15:$K$33,SaisonFin,$G$15:$G$33)),"") -> 1.267175573
N6: Sets | O6: Gagnés | P6: =SUMIF($K$15:$K$129,SaisonDeb,$D$15:$D$129) -> 14 | Q6: =IF(P$6+P$7>0,P6/(P$6+P$7),"") -> 0.8235294118 | R6: =SUMIF($K$15:$K$129,SaisonFin,$D$15:$D$129) -> 0 | S6: =IF(R$6+R$7>0,R6/(R$6+R$7),"") ->  | T6: =SUM($D$15:$D$129) -> 14 | U6: =IF(T$6+T$7>0,T6/(T$6+T$7),"") -> 0.8235294118
O7: Perdus | P7: =SUMIF($K$15:$K$129,SaisonDeb,$E$15:$E$129) -> 3 | Q7: =IF(P$6+P$7>0,P7/(P$6+P$7),"") -> 0.1764705882 | R7: =SUMIF($K$15:$K$129,SaisonFin,$E$15:$E$129) -> 0 | S7: =IF(R$6+R$7>0,R7/(R$6+R$7),"") ->  | T7: =SUM($E$15:$E$129) -> 3 | U7: =IF(T$6+T$7>0,T7/(T$6+T$7),"") -> 0.1764705882
A8: Récapitulatif joueurs | O8: Total | P8: =SUM(P6:P7) -> 17 | R8: =SUM(R6:R7) -> 0 | T8: =SUM(T6:T7) -> 17
A15: Joueur | B15: Adversaire | C15: G/P | D15: Sets gagnés | E15: Sets perdus | F15: pts marqués | G15: pts subis | H15: Date | I15: Compétition | J15: Phase | K15: Saison
A16: BELLENS Antoine | B16: BEGHIN Nicolas | C16: P | D16: 0 | E16: 1 | F16: 94 | G16: 100 | H16: 2021-10-16 | I16: T1 5Q R1 - VILLENEUVE D'ASCQ | J16: Finale | K16: =IF(H16<>"",IF(MONTH(H16)>MoisRef,YEAR(H16)&"-"&YEAR(H16)+1,YEAR(H16)-1&"-"&YEAR(H16)),"") -> 2021-2022 | P16: =IF($K16=P$1,COUNTIF($C16,"G"),0) -> 0 | R16: =IF($K16=R$1,COUNTIF($C16,"G"),0) -> 0
A17: BELLENS Antoine | B17: HAZELAERE François | C17: G | D17: 1 | E17: 0 | F17: 100 | G17: 40 | H17: 2021-10-16 | I17: T1 5Q R1 - VILLENEUVE D'ASCQ | J17: Qualifications | K17: 2021-2022 | P17: 1 | R17: 0
A18: BELLENS Antoine | B18: LE GOHEBEL Jacques | C18: G | D18: 1 | E18: 0 | F18: 100 | G18: 83 | H18: 2021-10-16 | I18: T1 5Q R1 - VILLENEUVE D'ASCQ | J18: 1/4 Finale | K18: 2021-2022 | P18: 1 | R18: 0
A19: BELLENS Antoine | B19: LORTHIOIR Jean-Luc | C19: G | D19: 1 | E19: 0 | F19: 100 | G19: 92 | H19: 2021-10-16 | I19: T1 5Q R1 - VILLENEUVE D'ASCQ | J19: Qualifications | K19: 2021-2022 | P19: 1 | R19: 0
A20: BELLENS Antoine | B20: SZWARC Patrick | C20: G | D20: 1 | E20: 0 | F20: 100 | G20: 96 | H20: 2021-10-16 | I20: T1 5Q R1 - VILLENEUVE D'ASCQ | J20: 1/2 Finale | K20: 2021-2022 | P20: 1 | R20: 0
A21: BELLENS Antoine | B21: BEGHIN Nicolas | C21: P | D21: 0 | E21: 1 | F21: 80 | G21: 100 | H21: 2021-12-18 | I21: T2 5Q R1 - GRAVELINES - CONVOCATON 8h30 | J21: 1/4 Finale | K21: 2021-2022 | P21: 0 | R21: 0
A22: BELLENS Antoine | B22: BLONDEL Jean | C22: G | D22: 1 | E22: 0 | F22: 100 | G22: 44 | H22: 2021-12-18 | I22: T2 5Q R1 - GRAVELINES - CONVOCATON 8h30 | J22: Qualifications | K22: 2021-2022 | P22: 1 | R22: 0
A23: BELLENS Antoine | B23: DUC Stéphane | C23: G | D23: 1 | E23: 0 | F23: 100 | G23: 54 | H23: 2021-12-18 | I23: T2 5Q R1 - GRAVELINES - CONVOCATON 8h30 | J23: Qualifications | K23: 2021-2022 | P23: 1 | R23: 0
A24: BELLENS Antoine | B24: BEGHIN Benjamin | C24: G | D24: 1 | E24: 0 | F24: 100 | G24: 93 | H24: 2022-02-26 | I24: T3 5Q R1 - GRAVELINES | J24: Finale | K24: 2021-2022 | P24: 1 | R24: 0
A25: BELLENS Antoine | B25: MONFLIER Francis | C25: G | D25: 1 | E25: 0 | F25: 100 | G25: 51 | H25: 2022-02-26 | I25: T3 5Q R1 - GRAVELINES | J25: 1/2 Finale | K25: 2021-2022 | P25: 1 | R25: 0
A26: BELLENS Antoine | B26: NOYER Pascal | C26: G | D26: 1 | E26: 0 | F26: 100 | G26: 90 | H26: 2022-02-26 | I26: T3 5Q R1 - GRAVELINES | J26: Qualifications | K26: 2021-2022 | P26: 1 | R26: 0
A27: BELLENS Antoine | B27: NOYER Pascal | C27: G | D27: 1 | E27: 0 | F27: 100 | G27: 90 | H27: 2022-02-26 | I27: T3 5Q R1 - GRAVELINES | J27: 1/4 Finale | K27: 2021-2022 | P27: 1 | R27: 0
A28: BELLENS Antoine | B28: SZWARC Johann | C28: G | D28: 1 | E28: 0 | F28: 100 | G28: 92 | H28: 2022-02-26 | I28: T3 5Q R1 - GRAVELINES | J28: Qualifications | K28: 2021-2022 | P28: 1 | R28: 0
A29: BELLENS Antoine | B29: BEGHIN Benjamin | C29: P | D29: 0 | E29: 1 | F29: 86 | G29: 100 | H29: 2022-04-02 | I29: T4 5Q R1 - ANNOEULLIN | J29: 1/2 Finale | K29: 2021-2022 | P29: 0 | R29: 0
A30: BELLENS Antoine | B30: BLONDEL Jean | C30: G | D30: 1 | E30: 0 | F30: 100 | G30: 47 | H30: 2022-04-02 | I30: T4 5Q R1 - ANNOEULLIN | J30: Qualifications | K30: 2021-2022 | P30: 1 | R30: 0
A31: BELLENS Antoine | B31: DUC Stéphane | C31: G | D31: 1 | E31: 0 | F31: 100 | G31: 54 | H31: 2022-04-02 | I31: T4 5Q R1 - ANNOEULLIN | J31: 1/4 Finale | K31: 2021-2022 | P31: 1 | R31: 0
A32: BELLENS Antoine | B32: SZWARC Johann | C32: G | D32: 1 | E32: 0 | F32: 100 | G32: 84 | H32: 2022-04-02 | I32: T4 5Q R1 - ANNOEULLIN | J32: Qualifications | K32: 2021-2022 | P32: 1 | R32: 0
A33: Fin des données | P33: =IF($K33=P$1,COUNTIF($C33,"G"),0) -> 0 | R33: =IF($K33=R$1,COUNTIF($C33,"G"),0) -> 0

Sheet BENLAMLIH Abdelilah
A1: BENLAMLIH Abdelilah | P1: =SaisonDeb -> 2021-2022 | R1: =SaisonFin -> 2022-2023 | T1: Toutes saisons
P2: Nombre | Q2: %age | R2: Nombre | S2: %age | T2: Nombre | U2: %age
N3: Matchs | O3: Gagnés | P3: =SUM(P$15:P$114) -> 0 | Q3: =IF(P$3+P$4>0,P3/(P$3+P$4),"") ->  | R3: =SUM(R$15:R$114) -> 0 | S3: =IF(R$3+R$4>0,R3/(R$3+R$4),"") -> 0 | T3: =COUNTIF($C$15:$C$114,"G") -> 0 | U3: =IF(T$3+T$4>0,T3/(T$3+T$4),"") -> 0
O4: Perdus | P4: =COUNTIF($K$15:$M$114,SaisonDeb)-P3 -> 0 | Q4: =IF(P$3+P$4>0,P4/(P$3+P$4),"") ->  | R4: =COUNTIF($K$15:$K$114,SaisonFin)-R3 -> 2 | S4: =IF(R$3+R$4>0,R4/(R$3+R$4),"") -> 1 | T4: =COUNTIF($C$15:$C$114,"P") -> 2 | U4: =IF(T$3+T$4>0,T4/(T$3+T$4),"") -> 1
O5: Total / Moy. | P5: =SUM(P3:P4) -> 0 | Q5: =IF(SUMIF($K$15:$K$114,SaisonDeb,$G$15:$G$114)>0,SUMIF($K$15:$K$114,SaisonDeb,$F$15:$F$114)/SUMIF($K$15:$K$114,SaisonDeb,$G$15:$G$114),"") ->  | R5: =SUM(R3:R4) -> 2 | S5: =IF(SUMIF($K$15:$K$114,SaisonFin,$G$15:$G$114)>0,SUMIF($K$15:$K$114,SaisonFin,$F$15:$F$114)/SUMIF($K$15:$K$114,SaisonFin,$G$15:$G$114),"") -> 0.585 | T5: =SUM(T3:T4) -> 2 | U5: =IF(SUM($G$15:$G$114)>0,SUM($F$15:$F$114)/SUM($G$15:$G$114),"") -> 0.585 | V5: =IF(SUMIF($K$15:$K$18,SaisonDeb,$G$15:$G$18)+SUMIF($K$15:$K$18,SaisonFin,$G$15:$G$18)>0,(SUMIF($K$15:$K$18,SaisonDeb,$F$15:$F$18)+SUMIF($K$15:$K$18,SaisonFin,$F$15:$F$18))/(SUMIF($K$15:$K$18,SaisonDeb,$G$15:$G$18)+SUMIF($K$15:$K$18,SaisonFin,$G$15:$G$18)),"") -> 0.585
N6: Sets | O6: Gagnés | P6: =SUMIF($K$15:$K$114,SaisonDeb,$D$15:$D$114) -> 0 | Q6: =IF(P$6+P$7>0,P6/(P$6+P$7),"") ->  | R6: =SUMIF($K$15:$K$114,SaisonFin,$D$15:$D$114) -> 0 | S6: =IF(R$6+R$7>0,R6/(R$6+R$7),"") -> 0 | T6: =SUM($D$15:$D$114) -> 0 | U6: =IF(T$6+T$7>0,T6/(T$6+T$7),"") -> 0
O7: Perdus | P7: =SUMIF($K$15:$K$114,SaisonDeb,$E$15:$E$114) -> 0 | Q7: =IF(P$6+P$7>0,P7/(P$6+P$7),"") ->  | R7: =SUMIF($K$15:$K$114,SaisonFin,$E$15:$E$114) -> 2 | S7: =IF(R$6+R$7>0,R7/(R$6+R$7),"") -> 1 | T7: =SUM($E$15:$E$114) -> 2 | U7: =IF(T$6+T$7>0,T7/(T$6+T$7),"") -> 1
A8: Récapitulatif joueurs | O8: Total | P8: =SUM(P6:P7) -> 0 | R8: =SUM(R6:R7) -> 2 | T8: =SUM(T6:T7) -> 2
A15: Joueur | B15: Adversaire | C15: G/P | D15: Sets gagnés | E15: Sets perdus | F15: pts marqués | G15: pts subis | H15: Date | I15: Compétition | J15: Phase | K15: Saison
A16: BENLAMLIH Abdelilah | B16: BETTEFORT Mickael | C16: P | D16: 0 | E16: 1 | F16: 75 | G16: 100 | H16: 2022-10-01 | I16: T1 CD80 - R1 - abbeville | J16: Qualifications | K16: =IF(H16<>"",IF(MONTH(H16)>MoisRef,YEAR(H16)&"-"&YEAR(H16)+1,YEAR(H16)-1&"-"&YEAR(H16)),"") -> 2022-2023 | P16: =IF($K16=P$1,COUNTIF($C16,"G"),0) -> 0 | R16: =IF($K16=R$1,COUNTIF($C16,"G"),0) -> 0
A17: BENLAMLIH Abdelilah | B17: CABUZEL Denis | C17: P | D17: 0 | E17: 1 | F17: 42 | G17: 100 | H17: 2022-10-01 | I17: T1 CD80 - R1 - abbeville | J17: Qualifications | K17: =IF(H17<>"",IF(MONTH(H17)>MoisRef,YEAR(H17)&"-"&YEAR(H17)+1,YEAR(H17)-1&"-"&YEAR(H17)),"") -> 2022-2023 | P17: =IF($K17=P$1,COUNTIF($C17,"G"),0) -> 0 | R17: =IF($K17=R$1,COUNTIF($C17,"G"),0) -> 0
A18: Fin des données | K18: =IF(H18<>"",IF(MONTH(H18)>MoisRef,YEAR(H18)&"-"&YEAR(H18)+1,YEAR(H18)-1&"-"&YEAR(H18)),"") ->  | P18: =IF($K18=P$1,COUNTIF($C18,"G"),0) -> 0 | R18: =IF($K18=R$1,COUNTIF($C18,"G"),0) -> 0

Sheet BERRIER François
A1: BERRIER François | P1: =SaisonDeb -> 2021-2022 | R1: =SaisonFin -> 2022-2023 | T1: Toutes saisons
P2: Nombre | Q2: %age | R2: Nombre | S2: %age | T2: Nombre | U2: %age
N3: Matchs | O3: Gagnés | P3: =SUM(P$15:P$120) -> 0 | Q3: =IF(P$3+P$4>0,P3/(P$3+P$4),"") -> 0 | R3: =SUM(R$15:R$120) -> 1 | S3: =IF(R$3+R$4>0,R3/(R$3+R$4),"") -> 0.25 | T3: =COUNTIF($C$15:$C$120,"G") -> 1 | U3: =IF(T$3+T$4>0,T3/(T$3+T$4),"") -> 0.125
O4: Perdus | P4: =COUNTIF($K$15:$M$120,SaisonDeb)-P3 -> 4 | Q4: =IF(P$3+P$4>0,P4/(P$3+P$4),"") -> 1 | R4: =COUNTIF($K$15:$K$120,SaisonFin)-R3 -> 3 | S4: =IF(R$3+R$4>0,R4/(R$3+R$4),"") -> 0.75 | T4: =COUNTIF($C$15:$C$120,"P") -> 7 | U4: =IF(T$3+T$4>0,T4/(T$3+T$4),"") -> 0.875
O5: Total / Moy. | P5: =SUM(P3:P4) -> 4 | Q5: =IF(SUMIF($K$15:$K$120,SaisonDeb,$G$15:$G$120)>0,SUMIF($K$15:$K$120,SaisonDeb,$F$15:$F$120)/SUMIF($K$15:$K$120,SaisonDeb,$G$15:$G$120),"") -> 0.725 | R5: =SUM(R3:R4) -> 4 | S5: =IF(SUMIF($K$15:$K$120,SaisonFin,$G$15:$G$120)>0,SUMIF($K$15:$K$120,SaisonFin,$F$15:$F$120)/SUMIF($K$15:$K$120,SaisonFin,$G$15:$G$120),"") -> 0.7817258883 | T5: =SUM(T3:T4) -> 8 | U5: =IF(SUM($G$15:$G$120)>0,SUM($F$15:$F$120)/SUM($G$15:$G$120),"") -> 0.7531486146 | V5: =IF(SUMIF($K$15:$K$24,SaisonDeb,$G$15:$G$24)+SUMIF($K$15:$K$24,SaisonFin,$G$15:$G$24)>0,(SUMIF($K$15:$K$24,SaisonDeb,$F$15:$F$24)+SUMIF($K$15:$K$24,SaisonFin,$F$15:$F$24))/(SUMIF($K$15:$K$24,SaisonDeb,$G$15:$G$24)+SUMIF($K$15:$K$24,SaisonFin,$G$15:$G$24)),"") -> 0.7531486146
N6: Sets | O6: Gagnés | P6: =SUMIF($K$15:$K$120,SaisonDeb,$D$15:$D$120) -> 0 | Q6: =IF(P$6+P$7>0,P6/(P$6+P$7),"") -> 0 | R6: =SUMIF($K$15:$K$120,SaisonFin,$D$15:$D$120) -> 1 | S6: =IF(R$6+R$7>0,R6/(R$6+R$7),"") -> 0.25 | T6: =SUM($D$15:$D$120) -> 1 | U6: =IF(T$6+T$7>0,T6/(T$6+T$7),"") -> 0.125
O7: Perdus | P7: =SUMIF($K$15:$K$120,SaisonDeb,$E$15:$E$120) -> 4 | Q7: =IF(P$6+P$7>0,P7/(P$6+P$7),"") -> 1 | R7: =SUMIF($K$15:$K$120,SaisonFin,$E$15:$E$120) -> 3 | S7: =IF(R$6+R$7>0,R7/(R$6+R$7),"") -> 0.75 | T7: =SUM($E$15:$E$120) -> 7 | U7: =IF(T$6+T$7>0,T7/(T$6+T$7),"") -> 0.875
A8: Récapitulatif joueurs | O8: Total | P8: =SUM(P6:P7) -> 4 | R8: =SUM(R6:R7) -> 4 | T8: =SUM(T6:T7) -> 8
A15: Joueur | B15: Adversaire | C15: G/P | D15: Sets gagnés | E15: Sets perdus | F15: pts marqués | G15: pts subis | H15: Date | I15: Compétition | J15: Phase | K15: Saison
A16: BERRIER François | B16: HOCHART James | C16: P | D16: 0 | E16: 1 | F16: 69 | G16: 100 | H16: 2022-04-02 | I16: T4 5Q R1 - ANNOEULLIN - CONSOLANTE | J16: Qualifications | K16: =IF(H16<>"",IF(MONTH(H16)>MoisRef,YEAR(H16)&"-"&YEAR(H16)+1,YEAR(H16)-1&"-"&YEAR(H16)),"") -> 2021-2022 | P16: =IF($K16=P$1,COUNTIF($C16,"G"),0) -> 0 | R16: =IF($K16=R$1,COUNTIF($C16,"G"),0) -> 0
A17: BERRIER François | B17: PARENT Jean-René | C17: P | D17: 0 | E17: 1 | F17: 73 | G17: 100 | H17: 2022-04-02 | I17: T4 5Q R1 - ANNOEULLIN - CONSOLANTE | J17: Qualifications | K17: 2021-2022 | P17: 0 | R17: 0
A18: BERRIER François | B18: BEGHIN Benjamin | C18: P | D18: 0 | E18: 1 | F18: 50 | G18: 100 | H18: 2022-04-02 | I18: T4 5Q R1 - ANNOEULLIN | J18: Qualifications | K18: 2021-2022 | P18: 0 | R18: 0
A19: BERRIER François | B19: NOYER Pascal | C19: P | D19: 0 | E19: 1 | F19: 98 | G19: 100 | H19: 2022-04-02 | I19: T4 5Q R1 - ANNOEULLIN | J19: Qualifications | K19: 2021-2022 | P19: 0 | R19: 0
A20: BERRIER François | B20: DUC Stéphane | C20: P | D20: 0 | E20: 1 | F20: 81 | G20: 100 | H20: 2022-10-30 | I20: T2 5Q R1 - GRAVELINES | J20: Qualifications | K20: 2022-2023 | P20: 0 | R20: 0
A21: BERRIER François | B21: LECROART Serge | C21: P | D21: 0 | E21: 1 | F21: 45 | G21: 100 | H21: 2022-10-30 | I21: T2 5Q R1 - GRAVELINES | J21: Qualifications | K21: 2022-2023 | P21: 0 | R21: 0
A22: BERRIER François | B22: CAVITTE Jean-Pierre | C22: P | D22: 0 | E22: 1 | F22: 82 | G22: 100 | H22: 2022-10-30 | I22: T2 5Q R1 - GRAVELINES - CONSOLANTE | J22: Qualifications | K22: 2022-2023 | P22: 0 | R22: 0
A23: BERRIER François | B23: PARENT Jean-René | C23: G | D23: 1 | E23: 0 | F23: 100 | G23: 94 | H23: 2022-10-30 | I23: T2 5Q R1 - GRAVELINES - CONSOLANTE | J23: Qualifications | K23: 2022-2023 | P23: 0 | R23: 1
A24: Fin des données | P24: 0 | R24: 0

Sheet BETTEFORT Clémence
A1: BETTEFORT Clémence | P1: =SaisonDeb -> 2021-2022 | R1: =SaisonFin -> 2022-2023 | T1: Toutes saisons
P2: Nombre | Q2: %age | R2: Nombre | S2: %age | T2: Nombre | U2: %age
N3: Matchs | O3: Gagnés | P3: =SUM(P$15:P$124) -> 3 | Q3: =IF(P$3+P$4>0,P3/(P$3+P$4),"") -> 0.5 | R3: =SUM(R$15:R$124) -> 1 | S3: =IF(R$3+R$4>0,R3/(R$3+R$4),"") -> 0.25 | T3: =COUNTIF($C$15:$C$124,"G") -> 4 | U3: =IF(T$3+T$4>0,T3/(T$3+T$4),"") -> 0.3333333333
O4: Perdus | P4: =COUNTIF($K$15:$M$124,SaisonDeb)-P3 -> 3 | Q4: =IF(P$3+P$4>0,P4/(P$3+P$4),"") -> 0.5 | R4: =COUNTIF($K$15:$K$124,SaisonFin)-R3 -> 3 | S4: =IF(R$3+R$4>0,R4/(R$3+R$4),"") -> 0.75 | T4: =COUNTIF($C$15:$C$124,"P") -> 8 | U4: =IF(T$3+T$4>0,T4/(T$3+T$4),"") -> 0.6666666667
O5: Total / Moy. | P5: =SUM(P3:P4) -> 6 | Q5: =IF(SUMIF($K$15:$K$124,SaisonDeb,$G$15:$G$124)>0,SUMIF($K$15:$K$124,SaisonDeb,$F$15:$F$124)/SUMIF($K$15:$K$124,SaisonDeb,$G$15:$G$124),"") -> 0.9167717528 | R5: =SUM(R3:R4) -> 4 | S5: =IF(SUMIF($K$15:$K$124,SaisonFin,$G$15:$G$124)>0,SUMIF($K$15:$K$124,SaisonFin,$F$15:$F$124)/SUMIF($K$15:$K$124,SaisonFin,$G$15:$G$124),"") -> 0.8773784355 | T5: =SUM(T3:T4) -> 12 | U5: =IF(SUM($G$15:$G$124)>0,SUM($F$15:$F$124)/SUM($G$15:$G$124),"") -> 0.8711819389 | V5: =IF(SUMIF($K$15:$K$28,SaisonDeb,$G$15:$G$28)+SUMIF($K$15:$K$28,SaisonFin,$G$15:$G$28)>0,(SUMIF($K$15:$K$28,SaisonDeb,$F$15:$F$28)+SUMIF($K$15:$K$28,SaisonFin,$F$15:$F$28))/(SUMIF($K$15:$K$28,SaisonDeb,$G$15:$G$28)+SUMIF($K$15:$K$28,SaisonFin,$G$15:$G$28)),"") -> 0.9020537125
N6: Sets | O6: Gagnés | P6: =SUMIF($K$15:$K$124,SaisonDeb,$D$15:$D$124) -> 7 | Q6: =IF(P$6+P$7>0,P6/(P$6+P$7),"") -> 0.5 | R6: =SUMIF($K$15:$K$124,SaisonFin,$D$15:$D$124) -> 2 | S6: =IF(R$6+R$7>0,R6/(R$6+R$7),"") -> 0.2857142857 | T6: =SUM($D$15:$D$124) -> 9 | U6: =IF(T$6+T$7>0,T6/(T$6+T$7),"") -> 0.36
O7: Perdus | P7: =SUMIF($K$15:$K$124,SaisonDeb,$E$15:$E$124) -> 7 | Q7: =IF(P$6+P$7>0,P7/(P$6+P$7),"") -> 0.5 | R7: =SUMIF($K$15:$K$124,SaisonFin,$E$15:$E$124) -> 5 | S7: =IF(R$6+R$7>0,R7/(R$6+R$7),"") -> 0.7142857143 | T7: =SUM($E$15:$E$124) -> 16 | U7: =IF(T$6+T$7>0,T7/(T$6+T$7),"") -> 0.64
A8: Récapitulatif joueurs | O8: Total | P8: =SUM(P6:P7) -> 14 | R8: =SUM(R6:R7) -> 7 | T8: =SUM(T6:T7) -> 25
A15: Joueur | B15: Adversaire | C15: G/P | D15: Sets gagnés | E15: Sets perdus | F15: pts marqués | G15: pts subis | H15: Date | I15: Compétition | J15: Phase | K15: Saison
A16: BETTEFORT Clémence | B16: DIEU Jean-Charles | C16: P | D16: 0 | E16: 2 | F16: 69 | G16: 120 | H16: 2019-01-05 | I16: T3 R1 CD80 - MOREUIL | J16: Qualifications | K16: =IF(H16<>"",IF(MONTH(H16)>MoisRef,YEAR(H16)&"-"&YEAR(H16)+1,YEAR(H16)-1&"-"&YEAR(H16)),"") -> 2018-2019 | P16: =IF($K16=P$1,COUNTIF($C16,"G"),0) -> 0 | R16: =IF($K16=R$1,COUNTIF($C16,"G"),0) -> 0
A17: BETTEFORT Clémence | B17: POINTIN Régis | C17: P | D17: 0 | E17: 2 | F17: 101 | G17: 120 | H17: 2019-01-05 | I17: T3 R1 CD80 - MOREUIL | J17: Qualifications | K17: 2018-2019 | P17: =IF($K17=P$1,COUNTIF($C17,"G"),0) -> 0 | R17: =IF($K17=R$1,COUNTIF($C17,"G"),0) -> 0
A18: BETTEFORT Clémence | B18: BETTEFORT Véronique | C18: G | D18: 1 | E18: 0 | F18: 80 | G18: 64 | H18: 2022-02-12 | I18: 5 Quilles Dames T2 - MOREUIL | J18: Qualifications | K18: 2021-2022 | P18: =IF($K18=P$1,COUNTIF($C18,"G"),0) -> 1 | R18: =IF($K18=R$1,COUNTIF($C18,"G"),0) -> 0
A19: BETTEFORT Clémence | B19: GUERIN Astrid | C19: P | D19: 0 | E19: 1 | F19: 31 | G19: 80 | H19: 2022-02-12 | I19: 5 Quilles Dames T2 - MOREUIL | J19: Qualifications | K19: 2021-2022 | P19: 0 | R19: 0
A20: BETTEFORT Clémence | B20: GUERIN Isabelle | C20: P | D20: 0 | E20: 1 | F20: 70 | G20: 80 | H20: 2022-02-12 | I20: 5 Quilles Dames T2 - MOREUIL | J20: Qualifications | K20: 2021-2022 | P20: 0 | R20: 0
A21: BETTEFORT Clémence | B21: BETTEFORT Véronique | C21: G | D21: 3 | E21: 1 | F21: 207 | G21: 190 | H21: 2022-05-21 | I21: 5 Quilles Dames FINALE - MOREUIL | J21: Finale Dames | K21: 2021-2022 | P21: 1 | R21: 0
A22: BETTEFORT Clémence | B22: GUERIN Astrid | C22: P | D22: 0 | E22: 3 | F22: 102 | G22: 180 | H22: 2022-05-21 | I22: 5 Quilles Dames FINALE - MOREUIL | J22: Finale Dames | K22: 2021-2022 | P22: 0 | R22: 0
A23: BETTEFORT Clémence | B23: GUERIN Isabelle | C23: G | D23: 3 | E23: 1 | F23: 237 | G23: 199 | H23: 2022-05-21 | I23: 5 Quilles Dames FINALE - MOREUIL | J23: Finale Dames | K23: 2021-2022 | P23: 1 | R23: 0
A24: BETTEFORT Clémence | B24: BETTEFORT Véronique | C24: P | D24: 0 | E24: 2 | F24: 93 | G24: 120 | H24: 45010 | I24: finale de somme - friville | J24: Qualifications | K24: 2022-2023 | P24: 0 | R24: 0
A25: BETTEFORT Clémence | B25: LEBORGNE Léa | C25: P | D25: 1 | E25: 2 | F25: 135 | G25: 168 | H25: 45010 | I25: finale de somme - friville | J25: Qualifications | K25: 2022-2023 | P25: 0 | R25: 0
A26: BETTEFORT Clémence | B26: BETTEFORT Véronique | C26: P | D26: 0 | E26: 1 | F26: 87 | G26: 100 | H26: 2022-12-04 | I26: T1 CD80 - R1 dames - friville | J26: Qualifications | K26: 2022-2023 | P26: 0 | R26: 0
A27: BETTEFORT Clémence | B27: LEBORGNE Léa | C27: G | D27: 1 | E27: 0 | F27: 100 | G27: 85 | H27: 2022-12-04 | I27: T1 CD80 - R1 dames - friville | J27: Qualifications | K27: 2022-2023 | P27: 0 | R27: 1
A28: Fin des données | P28: =IF($K28=P$1,COUNTIF($C28,"G"),0) -> 0 | R28: =IF($K28=R$1,COUNTIF($C28,"G"),0) -> 0

Sheet BETTEFORT Mickael
A1: BETTEFORT Mickael | P1: =SaisonDeb -> 2021-2022 | R1: =SaisonFin -> 2022-2023 | T1: Toutes saisons
P2: Nombre | Q2: %age | R2: Nombre | S2: %age | T2: Nombre | U2: %age
N3: Matchs | O3: Gagnés | P3: =SUM(P$15:P$146) -> 0 | Q3: =IF(P$3+P$4>0,P3/(P$3+P$4),"") ->  | R3: =SUM(R$15:R$146) -> 7 | S3: =IF(R$3+R$4>0,R3/(R$3+R$4),"") -> 0.6363636364 | T3: =COUNTIF($C$15:$C$146,"G") -> 16 | U3: =IF(T$3+T$4>0,T3/(T$3+T$4),"") -> 0.4705882353
O4: Perdus | P4: =COUNTIF($K$15:$M$146,SaisonDeb)-P3 -> 0 | Q4: =IF(P$3+P$4>0,P4/(P$3+P$4),"") ->  | R4: =COUNTIF($K$15:$K$146,SaisonFin)-R3 -> 4 | S4: =IF(R$3+R$4>0,R4/(R$3+R$4),"") -> 0.3636363636 | T4: =COUNTIF($C$15:$C$146,"P") -> 18 | U4: =IF(T$3+T$4>0,T4/(T$3+T$4),"") -> 0.5294117647
O5: Total / Moy. | P5: =SUM(P3:P4) -> 0 | Q5: =IF(SUMIF($K$15:$K$146,SaisonDeb,$G$15:$G$146)>0,SUMIF($K$15:$K$146,SaisonDeb,$F$15:$F$146)/SUMIF($K$15:$K$146,SaisonDeb,$G$15:$G$146),"") ->  | R5: =SUM(R3:R4) -> 11 | S5: =IF(SUMIF($K$15:$K$146,SaisonFin,$G$15:$G$146)>0,SUMIF($K$15:$K$146,SaisonFin,$F$15:$F$146)/SUMIF($K$15:$K$146,SaisonFin,$G$15:$G$146),"") -> 1.016863406 | T5: =SUM(T3:T4) -> 34 | U5: =IF(SUM($G$15:$G$146)>0,SUM($F$15:$F$146)/SUM($G$15:$G$146),"") -> 0.9786039048 | V5: =IF(SUMIF($K$15:$K$50,SaisonDeb,$G$15:$G$50)+SUMIF($K$15:$K$50,SaisonFin,$G$15:$G$50)>0,(SUMIF($K$15:$K$50,SaisonDeb,$F$15:$F$50)+SUMIF($K$15:$K$50,SaisonFin,$F$15:$F$50))/(SUMIF($K$15:$K$50,SaisonDeb,$G$15:$G$50)+SUMIF($K$15:$K$50,SaisonFin,$G$15:$G$50)),"") -> 1.016863406
N6: Sets | O6: Gagnés | P6: =SUMIF($K$15:$K$146,SaisonDeb,$D$15:$D$146) -> 0 | Q6: =IF(P$6+P$7>0,P6/(P$6+P$7),"") ->  | R6: =SUMIF($K$15:$K$146,SaisonFin,$D$15:$D$146) -> 13 | S6: =IF(R$6+R$7>0,R6/(R$6+R$7),"") -> 0.619047619 | T6: =SUM($D$15:$D$146) -> 29 | U6: =IF(T$6+T$7>0,T6/(T$6+T$7),"") -> 0.4677419355
O7: Perdus | P7: =SUMIF($K$15:$K$146,SaisonDeb,$E$15:$E$146) -> 0 | Q7: =IF(P$6+P$7>0,P7/(P$6+P$7),"") ->  | R7: =SUMIF($K$15:$K$146,SaisonFin,$E$15:$E$146) -> 8 | S7: =IF(R$6+R$7>0,R7/(R$6+R$7),"") -> 0.380952381 | T7: =SUM($E$15:$E$146) -> 33 | U7: =IF(T$6+T$7>0,T7/(T$6+T$7),"") -> 0.5322580645
A8: Récapitulatif joueurs | O8: Total | P8: =SUM(P6:P7) -> 0 | R8: =SUM(R6:R7) -> 21 | T8: =SUM(T6:T7) -> 62
A15: Joueur | B15: Adversaire | C15: G/P | D15: Sets gagnés | E15: Sets perdus | F15: pts marqués | G15: pts subis | H15: Date | I15: Compétition | J15: Phase | K15: Saison
A16: BETTEFORT Mickael | B16: VASSEUR Gaëtan | C16: P | D16: 0 | E16: 1 | F16: 72 | G16: 100 | H16: 2016-11-26 | I16: 5Q R1 CD80 - T1 | J16: Qualifications | K16: =IF(H16<>"",IF(MONTH(H16)>MoisRef,YEAR(H16)&"-"&YEAR(H16)+1,YEAR(H16)-1&"-"&YEAR(H16)),"") -> 2016-2017 | P16: =IF($K16=P$1,COUNTIF($C16,"G"),0) -> 0 | R16: =IF($K16=R$1,COUNTIF($C16,"G"),0) -> 0
A17: BETTEFORT Mickael | B17: DELAFOSSE Gilles | C17: P | D17: 0 | E17: 1 | F17: 70 | G17: 100 | H17: 2016-11-26 | I17: 5Q R1 CD80 - T1 | J17: Qualifications | K17: 2016-2017 | P17: 0 | R17: 0
A18: BETTEFORT Mickael | B18: CUVILLIER François | C18: G | D18: 1 | E18: 0 | F18: 100 | G18: 81 | H18: 2016-11-26 | I18: 5Q R1 CD80 - T1 | J18: Qualifications | K18: 2016-2017 | P18: 0 | R18: 0
A19: BETTEFORT Mickael | B19: WANQUETIN Sylvain | C19: G | D19: 1 | E19: 0 | F19: 100 | G19: 64 | H19: 2016-11-26 | I19: 5Q R1 CD80 - T1 | J19: Qualifications | K19: 2016-2017 | P19: 0 | R19: 0
A20: BETTEFORT Mickael | B20: RENAULT Marius | C20: G | D20: 1 | E20: 0 | F20: 100 | G20: 54 | H20: 2017-01-21 | I20: 5Q R1 CD80 - T2 - ABBEVILLE | J20: Qualifications | K20: 2016-2017 | P20: 0 | R20: 0
A21: BETTEFORT Mickael | B21: HERSELIN Jean-Claude | C21: G | D21: 1 | E21: 0 | F21: 100 | G21: 96 | H21: 2017-01-21 | I21: 5Q R1 CD80 - T2 - ABBEVILLE | J21: Qualifications | K21: 2016-2017 | P21: 0 | R21: 0
A22: BETTEFORT Mickael | B22: DUBOIS Jean-Bernard | C22: G | D22: 1 | E22: 0 | F22: 100 | G22: 65 | H22: 2017-01-21 | I22: 5Q R1 CD80 - T2 - ABBEVILLE | J22: Qualifications | K22: 2016-2017 | P22: 0 | R22: 0
A23: BETTEFORT Mickael | B23: VASSEUR Gaëtan | C23: P | D23: 0 | E23: 1 | F23: 54 | G23: 100 | H23: 2017-01-21 | I23: 5Q R1 CD80 - T2 - ABBEVILLE | J23: Qualifications | K23: 2016-2017 | P23: 0 | R23: 0
A24: BETTEFORT Mickael | B24: VASSEUR Gaëtan | C24: P | D24: 0 | E24: 1 | F24: 79 | G24: 100 | H24: 2017-02-25 | I24: 5Q R1 CD80 - T3 - MOREUIL | J24: Qualifications | K24: 2016-2017 | P24: 0 | R24: 0
A25: BETTEFORT Mickael | B25: MALET Eric | C25: P | D25: 0 | E25: 1 | F25: 84 | G25: 100 | H25: 2017-02-25 | I25: 5Q R1 CD80 - T3 - MOREUIL | J25: Qualifications | K25: 2016-2017 | P25: 0 | R25: 0
A26: BETTEFORT Mickael | B26: WARIN Yannick | C26: G | D26: 1 | E26: 0 | F26: 100 | G26: 91 | H26: 2017-02-25 | I26: 5Q R1 CD80 - T3 - MOREUIL | J26: Qualifications | K26: 2016-2017 | P26: 0 | R26: 0
A27: BETTEFORT Mickael | B27: HERSELIN Jean-claude | C27: G | D27: 1 | E27: 0 | F27: 100 | G27: 91 | H27: 2017-02-25 | I27: 5Q R1 CD80 - T3 - MOREUIL | J27: Qualifications | K27: 2016-2017 | P27: 0 | R27: 0
A28: BETTEFORT Mickael | B28: VASSEUR Gaëtan | C28: P | D28: 0 | E28: 3 | F28: 143 | G28: 180 | H28: 2017-03-18 | I28: 5Q R1 - Finale CD80 - PONT DE METZ | J28: Poule unique | K28: 2016-2017 | P28: 0 | R28: 0
A29: BETTEFORT Mickael | B29: CABUZEL Denis | C29: P | D29: 0 | E29: 3 | F29: 144 | G29: 180 | H29: 2017-03-18 | I29: 5Q R1 - Finale CD80 - PONT DE METZ | J29: Poule unique | K29: 2016-2017 | P29: 0 | R29: 0
A30: BETTEFORT Mickael | B30: MALET Eric | C30: G | D30: 3 | E30: 0 | F30: 180 | G30: 107 | H30: 2017-03-18 | I30: 5Q R1 - Finale CD80 - PONT DE METZ | J30: Poule unique | K30: 2016-2017 | P30: 0 | R30: 0
A31: BETTEFORT Mickael | B31: DUHAMEL Eddy | C31: P | D31: 1 | E31: 2 | F31: 147 | G31: 171 | H31: 2018-10-20 | I31: T1 R1 CD80 - MOREUIL | J31: Qualifications | K31: 2018-2019 | P31: 0 | R31: 0
A32: BETTEFORT Mickael | B32: DUHAMEL Eddy | C32: P | D32: 0 | E32: 2 | F32: 95 | G32: 120 | H32: 2018-10-20 | I32: T1 R1 CD80 - MOREUIL | J32: 1/4 Finale | K32: 2018-2019 | P32: 0 | R32: 0
A33: BETTEFORT Mickael | B33: GUERIN Astrid | C33: G | D33: 2 | E33: 0 | F33: 120 | G33: 32 | H33: 2018-10-20 | I33: T1 R1 CD80 - MOREUIL | J33: Qualifications | K33: 2018-2019 | P33: 0 | R33: 0
A34: BETTEFORT Mickael | B34: CHAIGNE Gilles | C34: P | D34: 1 | E34: 2 | F34: 128 | G34: 145 | H34: 2018-11-24 | I34: T2 R1 CD80 - | J34: Qualifications | K34: 2018-2019 | P34: 0 | R34: 0
A35: BETTEFORT Mickael | B35: CHAIGNE Gilles | C35: P | D35: 1 | E35: 2 | F35: 146 | G35: 173 | H35: 2018-11-24 | I35: T2 R1 CD80 - | J35: Qualifications | K35: 2018-2019 | P35: 0 | R35: 0
A36: BETTEFORT Mickael | B36: CHAIGNE Gilles | C36: P | D36: 0 | E36: 2 | F36: 54 | G36: 120 | H36: 2018-11-24 | I36: T2 R1 CD80 - | J36: 1/8 Finale | K36: 2018-2019 | P36: 0 | R36: 0
A37: BETTEFORT Mickael | B37: CHAIGNE Gilles | C37: P | D37: 0 | E37: 2 | F37: 88 | G37: 120 | H37: 2019-01-05 | I37: T3 R1 CD80 - MOREUIL | J37: Qualifications | K37: 2018-2019 | P37: 0 | R37: 0
A38: BETTEFORT Mickael | B38: JOLY Kenan | C38: P | D38: 1 | E38: 2 | F38: 149 | G38: 163 | H38: 2019-01-05 | I38: T3 R1 CD80 - MOREUIL | J38: Qualifications | K38: 2018-2019 | P38: 0 | R38: 0
A39: BETTEFORT Mickael | B39: CABUZEL Denis | C39: G | D39: 2 | E39: 0 | F39: 120 | G39: 108 | H39: 2023-03-25 | I39: finale de somme - friville | J39: Qualifications | K39: 2022-2023 | P39: 0 | R39: 1
A40: BETTEFORT Mickael | B40: CARON Didier | C40: G | D40: 2 | E40: 0 | F40: 120 | G40: 56 | H40: 2023-03-25 | I40: finale de somme - friville | J40: Qualifications | K40: 2022-2023 | P40: 0 | R40: 1
A41: BETTEFORT Mickael | B41: DELAFOSSE Gilles | C41: G | D41: 2 | E41: 1 | F41: 153 | G41: 128 | H41: 2023-03-25 | I41: finale de somme - friville | J41: Qualifications | K41: 2022-2023 | P41: 0 | R41: 1
A42: BETTEFORT Mickael | B42: BENLAMLIH Abdelilah | C42: G | D42: 1 | E42: 0 | F42: 100 | G42: 75 | H42: 2022-10-01 | I42: T1 CD80 - R1 - abbeville | J42: Qualifications | K42: 2022-2023 | P42: 0 | R42: 1
A43: BETTEFORT Mickael | B43: CABUZEL Denis | C43: G | D43: 1 | E43: 0 | F43: 100 | G43: 92 | H43: 2022-10-01 | I43: T1 CD80 - R1 - abbeville | J43: Qualifications | K43: 2022-2023 | P43: 0 | R43: 1
A44: BETTEFORT Mickael | B44: DELAFOSSE Gilles | C44: P | D44: 0 | E44: 1 | F44: 86 | G44: 100 | H44: 2023-01-12 | I44: T2 CD80 - R1 - pont de metz | J44: Qualifications | K44: 2022-2023 | P44: 0 | R44: 0
A45: BETTEFORT Mickael | B45: DELAFOSSE Gilles | C45: G | D45: 1 | E45: 0 | F45: 100 | G45: 92 | H45: 2023-01-12 | I45: T2 CD80 - R1 - pont de metz | J45: Qualifications | K45: 2022-2023 | P45: 0 | R45: 1
A46: BETTEFORT Mickael | B46: HERTOUX Didier | C46: P | D46: 1 | E46: 2 | F46: 130 | G46: 153 | H46: 2023-05-14 | I46: Finale Ligue 5Q R1 - DENAIN | J46: Poule unique | K46: 2022-2023 | P46: 0 | R46: 0
A47: BETTEFORT Mickael | B47: HOCHART James | C47: P | D47: 1 | E47: 2 | F47: 135 | G47: 158 | H47: 2023-05-14 | I47: Finale Ligue 5Q R1 - DENAIN | J47: Poule unique | K47: 2022-2023 | P47: 0 | R47: 0
A48: BETTEFORT Mickael | B48: LANCRY Bruno | C48: P | D48: 0 | E48: 2 | F48: 42 | G48: 120 | H48: 2023-05-14 | I48: Finale Ligue 5Q R1 - DENAIN | J48: Poule unique | K48: 2022-2023 | P48: 0 | R48: 0
A49: BETTEFORT Mickael | B49: SCHERER Didier | C49: G | D49: 2 | E49: 0 | F49: 120 | G49: 104 | H49: 2023-05-14 | I49: Finale Ligue 5Q R1 - DENAIN | J49: Poule unique | K49: 2022-2023 | P49: 0 | R49: 1
A50: Fin des données | P50: =IF($K50=P$1,COUNTIF($C50,"G"),0) -> 0 | R50: =IF($K50=R$1,COUNTIF($C50,"G"),0) -> 0

Sheet BETTEFORT Véronique
A1: BETTEFORT Véronique | P1: =SaisonDeb -> 2021-2022 | R1: =SaisonFin -> 2022-2023 | T1: Toutes saisons
P2: Nombre | Q2: %age | R2: Nombre | S2: %age | T2: Nombre | U2: %age
N3: Matchs | O3: Gagnés | P3: =SUM(P$15:P$128) -> 2 | Q3: =IF(P$3+P$4>0,P3/(P$3+P$4),"") -> 0.3333333333 | R3: =SUM(R$15:R$128) -> 6 | S3: =IF(R$3+R$4>0,R3/(R$3+R$4),"") -> 0.75 | T3: =COUNTIF($C$15:$C$128,"G") -> 8 | U3: =IF(T$3+T$4>0,T3/(T$3+T$4),"") -> 0.5
O4: Perdus | P4: =COUNTIF($K$15:$M$128,SaisonDeb)-P3 -> 4 | Q4: =IF(P$3+P$4>0,P4/(P$3+P$4),"") -> 0.6666666667 | R4: =COUNTIF($K$15:$K$128,SaisonFin)-R3 -> 2 | S4: =IF(R$3+R$4>0,R4/(R$3+R$4),"") -> 0.25 | T4: =COUNTIF($C$15:$C$128,"P") -> 8 | U4: =IF(T$3+T$4>0,T4/(T$3+T$4),"") -> 0.5
O5: Total / Moy. | P5: =SUM(P3:P4) -> 6 | Q5: =IF(SUMIF($K$15:$K$128,SaisonDeb,$G$15:$G$128)>0,SUMIF($K$15:$K$128,SaisonDeb,$F$15:$F$128)/SUMIF($K$15:$K$128,SaisonDeb,$G$15:$G$128),"") -> 0.8611111111 | R5: =SUM(R3:R4) -> 8 | S5: =IF(SUMIF($K$15:$K$128,SaisonFin,$G$15:$G$128)>0,SUMIF($K$15:$K$128,SaisonFin,$F$15:$F$128)/SUMIF($K$15:$K$128,SaisonFin,$G$15:$G$128),"") -> 1.028822055 | T5: =SUM(T3:T4) -> 16 | U5: =IF(SUM($G$15:$G$128)>0,SUM($F$15:$F$128)/SUM($G$15:$G$128),"") -> 0.881420765 | V5: =IF(SUMIF($K$15:$K$32,SaisonDeb,$G$15:$G$32)+SUMIF($K$15:$K$32,SaisonFin,$G$15:$G$32)>0,(SUMIF($K$15:$K$32,SaisonDeb,$F$15:$F$32)+SUMIF($K$15:$K$32,SaisonFin,$F$15:$F$32))/(SUMIF($K$15:$K$32,SaisonDeb,$G$15:$G$32)+SUMIF($K$15:$K$32,SaisonFin,$G$15:$G$32)),"") -> 0.9452830189
N6: Sets | O6: Gagnés | P6: =SUMIF($K$15:$K$128,SaisonDeb,$D$15:$D$128) -> 5 | Q6: =IF(P$6+P$7>0,P6/(P$6+P$7),"") -> 0.3571428571 | R6: =SUMIF($K$15:$K$128,SaisonFin,$D$15:$D$128) -> 8 | S6: =IF(R$6+R$7>0,R6/(R$6+R$7),"") -> 0.7272727273 | T6: =SUM($D$15:$D$128) -> 13 | U6: =IF(T$6+T$7>0,T6/(T$6+T$7),"") -> 0.4482758621
O7: Perdus | P7: =SUMIF($K$15:$K$128,SaisonDeb,$E$15:$E$128) -> 9 | Q7: =IF(P$6+P$7>0,P7/(P$6+P$7),"") -> 0.6428571429 | R7: =SUMIF($K$15:$K$128,SaisonFin,$E$15:$E$128) -> 3 | S7: =IF(R$6+R$7>0,R7/(R$6+R$7),"") -> 0.2727272727 | T7: =SUM($E$15:$E$128) -> 16 | U7: =IF(T$6+T$7>0,T7/(T$6+T$7),"") -> 0.5517241379
A8: Récapitulatif joueurs | O8: Total | P8: =SUM(P6:P7) -> 14 | R8: =SUM(R6:R7) -> 11 | T8: =SUM(T6:T7) -> 29
A15: Joueur | B15: Adversaire | C15: G/P | D15: Sets gagnés | E15: Sets perdus | F15: pts marqués | G15: pts subis | H15: Date | I15: Compétition | J15: Phase | K15: Saison
A16: BETTEFORT Véronique | B16: DUMEIGE Similien | C16: P | D16: 0 | E16: 2 | F16: 31 | G16: 120 | H16: 2019-01-05 | I16: T3 R1 CD80 - MOREUIL | J16: Qualifications | K16: =IF(H16<>"",IF(MONTH(H16)>MoisRef,YEAR(H16)&"-"&YEAR(H16)+1,YEAR(H16)-1&"-"&YEAR(H16)),"") -> 2018-2019 | P16: =IF($K16=P$1,COUNTIF($C16,"G"),0) -> 0 | R16: =IF($K16=R$1,COUNTIF($C16,"G"),0) -> 0
A17: BETTEFORT Véronique | B17: DUMEIGE Stéphane | C17: P | D17: 0 | E17: 2 | F17: 79 | G17: 120 | H17: 2019-01-05 | I17: T3 R1 CD80 - MOREUIL | J17: Qualifications | K17: 2018-2019 | P17: =IF($K17=P$1,COUNTIF($C17,"G"),0) -> 0 | R17: =IF($K17=R$1,COUNTIF($C17,"G"),0) -> 0
A18: BETTEFORT Véronique | B18: BETTEFORT Clémence | C18: P | D18: 0 | E18: 1 | F18: 64 | G18: 80 | H18: 2022-02-12 | I18: 5 Quilles Dames T2 - MOREUIL | J18: Qualifications | K18: 2021-2022 | P18: =IF($K18=P$1,COUNTIF($C18,"G"),0) -> 0 | R18: =IF($K18=R$1,COUNTIF($C18,"G"),0) -> 0
A19: BETTEFORT Véronique | B19: GUERIN Astrid | C19: P | D19: 0 | E19: 1 | F19: 27 | G19: 80 | H19: 2022-02-12 | I19: 5 Quilles Dames T2 - MOREUIL | J19: Qualifications | K19: 2021-2022 | P19: 0 | R19: 0
A20: BETTEFORT Véronique | B20: GUERIN Isabelle | C20: G | D20: 1 | E20: 0 | F20: 80 | G20: 16 | H20: 2022-02-12 | I20: 5 Quilles Dames T2 - MOREUIL | J20: Qualifications | K20: 2021-2022 | P20: 1 | R20: 0
A21: BETTEFORT Véronique | B21: BETTEFORT Clémence | C21: P | D21: 1 | E21: 3 | F21: 190 | G21: 207 | H21: 2022-05-21 | I21: 5 Quilles Dames FINALE - MOREUIL | J21: Finale Dames | K21: 2021-2022 | P21: 0 | R21: 0
A22: BETTEFORT Véronique | B22: GUERIN Astrid | C22: P | D22: 0 | E22: 3 | F22: 82 | G22: 180 | H22: 2022-05-21 | I22: 5 Quilles Dames FINALE - MOREUIL | J22: Finale Dames | K22: 2021-2022 | P22: 0 | R22: 0
A23: BETTEFORT Véronique | B23: GUERIN Isabelle | C23: G | D23: 3 | E23: 1 | F23: 239 | G23: 229 | H23: 2022-05-21 | I23: 5 Quilles Dames FINALE - MOREUIL | J23: Finale Dames | K23: 2021-2022 | P23: 1 | R23: 0
A24: BETTEFORT Véronique | B24: BETTEFORT Clémence | C24: G | D24: 2 | E24: 0 | F24: 120 | G24: 93 | H24: 45010 | I24: finale de somme - friville | J24: Qualifications | K24: 2022-2023 | P24: 0 | R24: 1
A25: BETTEFORT Véronique | B25: LEBORGNE Léa | C25: G | D25: 2 | E25: 1 | F25: 159 | G25: 170 | H25: 45010 | I25: finale de somme - friville | J25: Qualifications | K25: 2022-2023 | P25: 0 | R25: 1
A26: BETTEFORT Véronique | B26: DUHAMEL Marcellin | C26: P | D26: 0 | E26: 1 | F26: 84 | G26: 100 | H26: 2022-10-01 | I26: T1 CD80 - R1 - abbeville | J26: Qualifications | K26: 2022-2023 | P26: 0 | R26: 0
A27: BETTEFORT Véronique | B27: DUHAMEL Marcellin | C27: G | D27: 1 | E27: 0 | F27: 100 | G27: 87 | H27: 2022-10-01 | I27: T1 CD80 - R1 - abbeville | J27: Qualifications | K27: 2022-2023 | P27: 0 | R27: 1
A28: BETTEFORT Véronique | B28: CABUZEL Denis | C28: G | D28: 1 | E28: 0 | F28: 100 | G28: 86 | H28: 2023-01-12 | I28: T2 CD80 - R1 - pont de metz | J28: Qualifications | K28: 2022-2023 | P28: 0 | R28: 1
A29: BETTEFORT Véronique | B29: CARON Didier | C29: P | D29: 0 | E29: 1 | F29: 58 | G29: 100 | H29: 2023-01-12 | I29: T2 CD80 - R1 - pont de metz | J29: Qualifications | K29: 2022-2023 | P29: 0 | R29: 0
A30: BETTEFORT Véronique | B30: BETTEFORT Clémence | C30: G | D30: 1 | E30: 0 | F30: 100 | G30: 87 | H30: 2022-12-04 | I30: T1 CD80 - R1 dames - friville | J30: Qualifications | K30: 2022-2023 | P30: 0 | R30: 1
A31: BETTEFORT Véronique | B31: LEBORGNE Léa | C31: G | D31: 1 | E31: 0 | F31: 100 | G31: 75 | H31: 2022-12-04 | I31: T1 CD80 - R1 dames - friville | J31: Qualifications | K31: 2022-2023 | P31: 0 | R31: 1
A32: Fin des données | P32: =IF($K32=P$1,COUNTIF($C32,"G"),0) -> 0 | R32: =IF($K32=R$1,COUNTIF($C32,"G"),0) -> 0

Sheet BLONDEL Jean
A1: BLONDEL Jean | P1: =SaisonDeb -> 2021-2022 | R1: =SaisonFin -> 2022-2023 | T1: Toutes saisons
P2: Nombre | Q2: %age | R2: Nombre | S2: %age | T2: Nombre | U2: %age
N3: Matchs | O3: Gagnés | P3: =SUM(P$15:P$125) -> 0 | Q3: =IF(P$3+P$4>0,P3/(P$3+P$4),"") -> 0 | R3: =SUM(R$15:R$125) -> 0 | S3: =IF(R$3+R$4>0,R3/(R$3+R$4),"") ->  | T3: =COUNTIF($C$15:$C$125,"G") -> 0 | U3: =IF(T$3+T$4>0,T3/(T$3+T$4),"") -> 0
O4: Perdus | P4: =COUNTIF($K$15:$M$125,SaisonDeb)-P3 -> 13 | Q4: =IF(P$3+P$4>0,P4/(P$3+P$4),"") -> 1 | R4: =COUNTIF($K$15:$K$125,SaisonFin)-R3 -> 0 | S4: =IF(R$3+R$4>0,R4/(R$3+R$4),"") ->  | T4: =COUNTIF($C$15:$C$125,"P") -> 13 | U4: =IF(T$3+T$4>0,T4/(T$3+T$4),"") -> 1
O5: Total / Moy. | P5: =SUM(P3:P4) -> 13 | Q5: =IF(SUMIF($K$15:$K$125,SaisonDeb,$G$15:$G$125)>0,SUMIF($K$15:$K$125,SaisonDeb,$F$15:$F$125)/SUMIF($K$15:$K$125,SaisonDeb,$G$15:$G$125),"") -> 0.5692307692 | R5: =SUM(R3:R4) -> 0 | S5: =IF(SUMIF($K$15:$K$125,SaisonFin,$G$15:$G$125)>0,SUMIF($K$15:$K$125,SaisonFin,$F$15:$F$125)/SUMIF($K$15:$K$125,SaisonFin,$G$15:$G$125),"") ->  | T5: =SUM(T3:T4) -> 13 | U5: =IF(SUM($G$15:$G$125)>0,SUM($F$15:$F$125)/SUM($G$15:$G$125),"") -> 0.5692307692 | V5: =IF(SUMIF($K$15:$K$29,SaisonDeb,$G$15:$G$29)+SUMIF($K$15:$K$29,SaisonFin,$G$15:$G$29)>0,(SUMIF($K$15:$K$29,SaisonDeb,$F$15:$F$29)+SUMIF($K$15:$K$29,SaisonFin,$F$15:$F$29))/(SUMIF($K$15:$K$29,SaisonDeb,$G$15:$G$29)+SUMIF($K$15:$K$29,SaisonFin,$G$15:$G$29)),"") -> 0.5692307692
N6: Sets | O6: Gagnés | P6: =SUMIF($K$15:$K$125,SaisonDeb,$D$15:$D$125) -> 0 | Q6: =IF(P$6+P$7>0,P6/(P$6+P$7),"") -> 0 | R6: =SUMIF($K$15:$K$125,SaisonFin,$D$15:$D$125) -> 0 | S6: =IF(R$6+R$7>0,R6/(R$6+R$7),"") ->  | T6: =SUM($D$15:$D$125) -> 0 | U6: =IF(T$6+T$7>0,T6/(T$6+T$7),"") -> 0
O7: Perdus | P7: =SUMIF($K$15:$K$125,SaisonDeb,$E$15:$E$125) -> 13 | Q7: =IF(P$6+P$7>0,P7/(P$6+P$7),"") -> 1 | R7: =SUMIF($K$15:$K$125,SaisonFin,$E$15:$E$125) -> 0 | S7: =IF(R$6+R$7>0,R7/(R$6+R$7),"") ->  | T7: =SUM($E$15:$E$125) -> 13 | U7: =IF(T$6+T$7>0,T7/(T$6+T$7),"") -> 1
A8: Récapitulatif joueurs | O8: Total | P8: =SUM(P6:P7) -> 13 | R8: =SUM(R6:R7) -> 0 | T8: =SUM(T6:T7) -> 13
A15: Joueur | B15: Adversaire | C15: G/P | D15: Sets gagnés | E15: Sets perdus | F15: pts marqués | G15: pts subis | H15: Date | I15: Compétition | J15: Phase | K15: Saison
A16: BLONDEL Jean | B16: BEGHIN Nicolas | C16: P | D16: 0 | E16: 1 | F16: 55 | G16: 100 | H16: 2021-10-16 | I16: T1 5Q R1 - VILLENEUVE D'ASCQ | J16: Qualifications | K16: =IF(H16<>"",IF(MONTH(H16)>MoisRef,YEAR(H16)&"-"&YEAR(H16)+1,YEAR(H16)-1&"-"&YEAR(H16)),"") -> 2021-2022 | P16: =IF($K16=P$1,COUNTIF($C16,"G"),0) -> 0 | R16: =IF($K16=R$1,COUNTIF($C16,"G"),0) -> 0
A17: BLONDEL Jean | B17: SZWARC Patrick | C17: P | D17: 0 | E17: 1 | F17: 20 | G17: 100 | H17: 2021-10-16 | I17: T1 5Q R1 - VILLENEUVE D'ASCQ | J17: Qualifications | K17: 2021-2022 | P17: 0 | R17: 0
A18: BLONDEL Jean | B18: BARKUT Volkan | C18: P | D18: 0 | E18: 1 | F18: 48 | G18: 100 | H18: 2021-10-16 | I18: T1 5Q R1 - VILLENEUVE D'ASCQ - CONSOLANTE | J18: Qualifications | K18: 2021-2022 | P18: 0 | R18: 0
A19: BLONDEL Jean | B19: SZWARC Johann | C19: P | D19: 0 | E19: 1 | F19: 60 | G19: 100 | H19: 2021-10-16 | I19: T1 5Q R1 - VILLENEUVE D'ASCQ - CONSOLANTE | J19: Qualifications | K19: 2021-2022 | P19: 0 | R19: 0
A20: BLONDEL Jean | B20: BELLENS Antoine | C20: P | D20: 0 | E20: 1 | F20: 44 | G20: 100 | H20: 2021-12-18 | I20: T2 5Q R1 - GRAVELINES - CONVOCATON 8h30 | J20: Qualifications | K20: 2021-2022 | P20: 0 | R20: 0
A21: BLONDEL Jean | B21: DUC Stéphane | C21: P | D21: 0 | E21: 1 | F21: 36 | G21: 100 | H21: 2021-12-18 | I21: T2 5Q R1 - GRAVELINES - CONVOCATON 8h30 | J21: Qualifications | K21: 2021-2022 | P21: 0 | R21: 0
A22: BLONDEL Jean | B22: BARKUT Volkan | C22: P | D22: 0 | E22: 1 | F22: 98 | G22: 100 | H22: 2021-12-18 | I22: T2 5Q R1 - GRAVELINES - consolante | J22: Qualifications | K22: 2021-2022 | P22: 0 | R22: 0
A23: BLONDEL Jean | B23: HOCHART James | C23: P | D23: 0 | E23: 1 | F23: 49 | G23: 100 | H23: 2021-12-18 | I23: T2 5Q R1 - GRAVELINES - consolante | J23: Qualifications | K23: 2021-2022 | P23: 0 | R23: 0
A24: BLONDEL Jean | B24: MACAREZ Guy | C24: P | D24: 0 | E24: 1 | F24: 50 | G24: 100 | H24: 2022-04-02 | I24: T4 5Q R1 - ANNOEULLIN - CONSOLANTE | J24: Qualifications | K24: 2021-2022 | P24: 0 | R24: 0
A25: BLONDEL Jean | B25: NOYER Pascal | C25: P | D25: 0 | E25: 1 | F25: 85 | G25: 100 | H25: 2022-04-02 | I25: T4 5Q R1 - ANNOEULLIN - CONSOLANTE | J25: Qualifications | K25: 2021-2022 | P25: 0 | R25: 0
A26: BLONDEL Jean | B26: WALGRAEF Pascal | C26: P | D26: 0 | E26: 1 | F26: 72 | G26: 100 | H26: 2022-04-02 | I26: T4 5Q R1 - ANNOEULLIN - CONSOLANTE | J26: Qualifications | K26: 2021-2022 | P26: 0 | R26: 0
A27: BLONDEL Jean | B27: BELLENS Antoine | C27: P | D27: 0 | E27: 1 | F27: 47 | G27: 100 | H27: 2022-04-02 | I27: T4 5Q R1 - ANNOEULLIN | J27: Qualifications | K27: 2021-2022 | P27: 0 | R27: 0
A28: BLONDEL Jean | B28: SZWARC Johann | C28: P | D28: 0 | E28: 1 | F28: 76 | G28: 100 | H28: 2022-04-02 | I28: T4 5Q R1 - ANNOEULLIN | J28: Qualifications | K28: 2021-2022 | P28: 0 | R28: 0
A29: Fin des données | P29: =IF($K29=P$1,COUNTIF($C29,"G"),0) -> 0 | R29: =IF($K29=R$1,COUNTIF($C29,"G"),0) -> 0

Sheet BLOUIN Nicolas
A1: BLOUIN Nicolas | P1: =SaisonDeb -> 2021-2022 | R1: =SaisonFin -> 2022-2023 | T1: Toutes saisons
P2: Nombre | Q2: %age | R2: Nombre | S2: %age | T2: Nombre | U2: %age
N3: Matchs | O3: Gagnés | P3: =SUM(P$15:P$114) -> 0 | Q3: =IF(P$3+P$4>0,P3/(P$3+P$4),"") ->  | R3: =SUM(R$15:R$114) -> 0 | S3: =IF(R$3+R$4>0,R3/(R$3+R$4),"") ->  | T3: =COUNTIF($C$15:$C$114,"G") -> 0 | U3: =IF(T$3+T$4>0,T3/(T$3+T$4),"") -> 0
O4: Perdus | P4: =COUNTIF($K$15:$M$114,SaisonDeb)-P3 -> 0 | Q4: =IF(P$3+P$4>0,P4/(P$3+P$4),"") ->  | R4: =COUNTIF($K$15:$K$114,SaisonFin)-R3 -> 0 | S4: =IF(R$3+R$4>0,R4/(R$3+R$4),"") ->  | T4: =COUNTIF($C$15:$C$114,"P") -> 2 | U4: =IF(T$3+T$4>0,T4/(T$3+T$4),"") -> 1
O5: Total / Moy. | P5: =SUM(P3:P4) -> 0 | Q5: =IF(SUMIF($K$15:$K$114,SaisonDeb,$G$15:$G$114)>0,SUMIF($K$15:$K$114,SaisonDeb,$F$15:$F$114)/SUMIF($K$15:$K$114,SaisonDeb,$G$15:$G$114),"") ->  | R5: =SUM(R3:R4) -> 0 | S5: =IF(SUMIF($K$15:$K$114,SaisonFin,$G$15:$G$114)>0,SUMIF($K$15:$K$114,SaisonFin,$F$15:$F$114)/SUMIF($K$15:$K$114,SaisonFin,$G$15:$G$114),"") ->  | T5: =SUM(T3:T4) -> 2 | U5: =IF(SUM($G$15:$G$114)>0,SUM($F$15:$F$114)/SUM($G$15:$G$114),"") -> 0.5929824561 | V5: =IF(SUMIF($K$15:$K$18,SaisonDeb,$G$15:$G$18)+SUMIF($K$15:$K$18,SaisonFin,$G$15:$G$18)>0,(SUMIF($K$15:$K$18,SaisonDeb,$F$15:$F$18)+SUMIF($K$15:$K$18,SaisonFin,$F$15:$F$18))/(SUMIF($K$15:$K$18,SaisonDeb,$G$15:$G$18)+SUMIF($K$15:$K$18,SaisonFin,$G$15:$G$18)),"") -> 
N6: Sets | O6: Gagnés | P6: =SUMIF($K$15:$K$114,SaisonDeb,$D$15:$D$114) -> 0 | Q6: =IF(P$6+P$7>0,P6/(P$6+P$7),"") ->  | R6: =SUMIF($K$15:$K$114,SaisonFin,$D$15:$D$114) -> 0 | S6: =IF(R$6+R$7>0,R6/(R$6+R$7),"") ->  | T6: =SUM($D$15:$D$114) -> 1 | U6: =IF(T$6+T$7>0,T6/(T$6+T$7),"") -> 0.2
O7: Perdus | P7: =SUMIF($K$15:$K$114,SaisonDeb,$E$15:$E$114) -> 0 | Q7: =IF(P$6+P$7>0,P7/(P$6+P$7),"") ->  | R7: =SUMIF($K$15:$K$114,SaisonFin,$E$15:$E$114) -> 0 | S7: =IF(R$6+R$7>0,R7/(R$6+R$7),"") ->  | T7: =SUM($E$15:$E$114) -> 4 | U7: =IF(T$6+T$7>0,T7/(T$6+T$7),"") -> 0.8
A8: Récapitulatif joueurs | O8: Total | P8: =SUM(P6:P7) -> 0 | R8: =SUM(R6:R7) -> 0 | T8: =SUM(T6:T7) -> 5
A15: Joueur | B15: Adversaire | C15: G/P | D15: Sets gagnés | E15: Sets perdus | F15: pts marqués | G15: pts subis | H15: Date | I15: Compétition | J15: Phase | K15: Saison
A16: BLOUIN Nicolas | B16: NAHIRNYJ Alexi | C16: P | D16: 1 | E16: 2 | F16: 136 | G16: 165 | H16: 2018-05-23 | I16: FINALE OISE JUNIORS - CHAMBLY | J16: Qualifications | K16: =IF(H16<>"",IF(MONTH(H16)>MoisRef,YEAR(H16)&"-"&YEAR(H16)+1,YEAR(H16)-1&"-"&YEAR(H16)),"") -> 2017-2018 | P16: =IF($K16=P$1,COUNTIF($C16,"G"),0) -> 0 | R16: =IF($K16=R$1,COUNTIF($C16,"G"),0) -> 0
A17: BLOUIN Nicolas | B17: POLIN Thibault | C17: P | D17: 0 | E17: 2 | F17: 33 | G17: 120 | H17: 2018-05-23 | I17: FINALE OISE JUNIORS - CHAMBLY | J17: Qualifications | K17: =IF(H17<>"",IF(MONTH(H17)>MoisRef,YEAR(H17)&"-"&YEAR(H17)+1,YEAR(H17)-1&"-"&YEAR(H17)),"") -> 2017-2018 | P17: =IF($K17=P$1,COUNTIF($C17,"G"),0) -> 0 | R17: =IF($K17=R$1,COUNTIF($C17,"G"),0) -> 0
A18: Fin des données | K18: =IF(H18<>"",IF(MONTH(H18)>MoisRef,YEAR(H18)&"-"&YEAR(H18)+1,YEAR(H18)-1&"-"&YEAR(H18)),"") ->  | P18: =IF($K18=P$1,COUNTIF($C18,"G"),0) -> 0 | R18: =IF($K18=R$1,COUNTIF($C18,"G"),0) -> 0

Sheet BOLLINNE Simon
A1: BOLLINNE Simon | P1: =SaisonDeb -> 2021-2022 | R1: =SaisonFin -> 2022-2023 | T1: Toutes saisons
P2: Nombre | Q2: %age | R2: Nombre | S2: %age | T2: Nombre | U2: %age
N3: Matchs | O3: Gagnés | P3: =SUM(P$15:P$120) -> 0 | Q3: =IF(P$3+P$4>0,P3/(P$3+P$4),"") ->  | R3: =SUM(R$15:R$120) -> 0 | S3: =IF(R$3+R$4>0,R3/(R$3+R$4),"") ->  | T3: =COUNTIF($C$15:$C$120,"G") -> 3 | U3: =IF(T$3+T$4>0,T3/(T$3+T$4),"") -> 0.375
O4: Perdus | P4: =COUNTIF($K$15:$M$120,SaisonDeb)-P3 -> 0 | Q4: =IF(P$3+P$4>0,P4/(P$3+P$4),"") ->  | R4: =COUNTIF($K$15:$K$120,SaisonFin)-R3 -> 0 | S4: =IF(R$3+R$4>0,R4/(R$3+R$4),"") ->  | T4: =COUNTIF($C$15:$C$120,"P") -> 5 | U4: =IF(T$3+T$4>0,T4/(T$3+T$4),"") -> 0.625
O5: Total / Moy. | P5: =SUM(P3:P4) -> 0 | Q5: =IF(SUMIF($K$15:$K$120,SaisonDeb,$G$15:$G$120)>0,SUMIF($K$15:$K$120,SaisonDeb,$F$15:$F$120)/SUMIF($K$15:$K$120,SaisonDeb,$G$15:$G$120),"") ->  | R5: =SUM(R3:R4) -> 0 | S5: =IF(SUMIF($K$15:$K$120,SaisonFin,$G$15:$G$120)>0,SUMIF($K$15:$K$120,SaisonFin,$F$15:$F$120)/SUMIF($K$15:$K$120,SaisonFin,$G$15:$G$120),"") ->  | T5: =SUM(T3:T4) -> 8 | U5: =IF(SUM($G$15:$G$120)>0,SUM($F$15:$F$120)/SUM($G$15:$G$120),"") -> 0.871042471 | V5: =IF(SUMIF($K$15:$K$24,SaisonDeb,$G$15:$G$24)+SUMIF($K$15:$K$24,SaisonFin,$G$15:$G$24)>0,(SUMIF($K$15:$K$24,SaisonDeb,$F$15:$F$24)+SUMIF($K$15:$K$24,SaisonFin,$F$15:$F$24))/(SUMIF($K$15:$K$24,SaisonDeb,$G$15:$G$24)+SUMIF($K$15:$K$24,SaisonFin,$G$15:$G$24)),"") -> 
N6: Sets | O6: Gagnés | P6: =SUMIF($K$15:$K$120,SaisonDeb,$D$15:$D$120) -> 0 | Q6: =IF(P$6+P$7>0,P6/(P$6+P$7),"") ->  | R6: =SUMIF($K$15:$K$120,SaisonFin,$D$15:$D$120) -> 0 | S6: =IF(R$6+R$7>0,R6/(R$6+R$7),"") ->  | T6: =SUM($D$15:$D$120) -> 11 | U6: =IF(T$6+T$7>0,T6/(T$6+T$7),"") -> 0.44
O7: Perdus | P7: =SUMIF($K$15:$K$120,SaisonDeb,$E$15:$E$120) -> 0 | Q7: =IF(P$6+P$7>0,P7/(P$6+P$7),"") ->  | R7: =SUMIF($K$15:$K$120,SaisonFin,$E$15:$E$120) -> 0 | S7: =IF(R$6+R$7>0,R7/(R$6+R$7),"") ->  | T7: =SUM($E$15:$E$120) -> 14 | U7: =IF(T$6+T$7>0,T7/(T$6+T$7),"") -> 0.56
A8: Récapitulatif joueurs | O8: Total | P8: =SUM(P6:P7) -> 0 | R8: =SUM(R6:R7) -> 0 | T8: =SUM(T6:T7) -> 25
A15: Joueur | B15: Adversaire | C15: G/P | D15: Sets gagnés | E15: Sets perdus | F15: pts marqués | G15: pts subis | H15: Date | I15: Compétition | J15: Phase | K15: Saison
A16: BOLLINNE Simon | B16: BUTTI Bertrand | C16: G | D16: 2 | E16: 1 | F16: 137 | G16: 142 | H16: 2017-11-18 | I16: qualification AISNE R1 - St Q uentin | J16: Qualifications | K16: =IF(H16<>"",IF(MONTH(H16)>MoisRef,YEAR(H16)&"-"&YEAR(H16)+1,YEAR(H16)-1&"-"&YEAR(H16)),"") -> 2017-2018 | P16: =IF($K16=P$1,COUNTIF($C16,"G"),0) -> 0 | R16: =IF($K16=R$1,COUNTIF($C16,"G"),0) -> 0
A17: BOLLINNE Simon | B17: COLAS Gerard | C17: P | D17: 1 | E17: 2 | F17: 110 | G17: 172 | H17: 2017-11-18 | I17: qualification AISNE R1 - St Q uentin | J17: Qualifications | K17: 2017-2018 | P17: 0 | R17: 0
A18: BOLLINNE Simon | B18: CORRE Maxime | C18: G | D18: 2 | E18: 1 | F18: 161 | G18: 130 | H18: 2018-01-27 | I18: Qualifications AISNE R1 - guignicourt | J18: Qualifications | K18: 2017-2018 | P18: 0 | R18: 0
A19: BOLLINNE Simon | B19: COUSIN Francis | C19: P | D19: 1 | E19: 2 | F19: 126 | G19: 153 | H19: 2018-01-27 | I19: Qualifications AISNE R1 - guignicourt | J19: Qualifications | K19: 2017-2018 | P19: 0 | R19: 0
A20: BOLLINNE Simon | B20: BUTTI Bertrand | C20: P | D20: 0 | E20: 3 | F20: 119 | G20: 180 | H20: 2018-03-03 | I20: FINALE AISNE R1 - guignicourt | J20: Qualifications | K20: 2017-2018 | P20: 0 | R20: 0
A21: BOLLINNE Simon | B21: COLAS Gerard | C21: P | D21: 2 | E21: 3 | F21: 207 | G21: 261 | H21: 2018-03-03 | I21: FINALE AISNE R1 - guignicourt | J21: Qualifications | K21: 2017-2018 | P21: 0 | R21: 0
A22: BOLLINNE Simon | B22: DECHAMPS Enguerrand | C22: G | D22: 2 | E22: 0 | F22: 120 | G22: 94 | H22: 2017-12-16 | I22: Qualifications AISNE R1 - SOISSONS | J22: Qualifications | K22: 2017-2018 | P22: 0 | R22: 0
A23: BOLLINNE Simon | B23: MIQUEE Florine | C23: P | D23: 1 | E23: 2 | F23: 148 | G23: 163 | H23: 2017-12-16 | I23: Qualifications AISNE R1 - SOISSONS | J23: Qualifications | K23: 2017-2018 | P23: 0 | R23: 0
A24: Fin des données | P24: =IF($K24=P$1,COUNTIF($C24,"G"),0) -> 0 | R24: =IF($K24=R$1,COUNTIF($C24,"G"),0) -> 0

Sheet BOUIGES Armelle
A1: BOUIGES Armelle | P1: =SaisonDeb -> 2021-2022 | R1: =SaisonFin -> 2022-2023 | T1: Toutes saisons
P2: Nombre | Q2: %age | R2: Nombre | S2: %age | T2: Nombre | U2: %age
N3: Matchs | O3: Gagnés | P3: =SUM(P$15:P$166) -> 0 | Q3: =IF(P$3+P$4>0,P3/(P$3+P$4),"") -> 0 | R3: =SUM(R$15:R$166) -> 0 | S3: =IF(R$3+R$4>0,R3/(R$3+R$4),"") ->  | T3: =COUNTIF($C$15:$C$166,"G") -> 3 | U3: =IF(T$3+T$4>0,T3/(T$3+T$4),"") -> 0.05555555556
O4: Perdus | P4: =COUNTIF($K$15:$M$166,SaisonDeb)-P3 -> 7 | Q4: =IF(P$3+P$4>0,P4/(P$3+P$4),"") -> 1 | R4: =COUNTIF($K$15:$K$166,SaisonFin)-R3 -> 0 | S4: =IF(R$3+R$4>0,R4/(R$3+R$4),"") ->  | T4: =COUNTIF($C$15:$C$166,"P") -> 51 | U4: =IF(T$3+T$4>0,T4/(T$3+T$4),"") -> 0.9444444444
O5: Total / Moy. | P5: =SUM(P3:P4) -> 7 | Q5: =IF(SUMIF($K$15:$K$166,SaisonDeb,$G$15:$G$166)>0,SUMIF($K$15:$K$166,SaisonDeb,$F$15:$F$166)/SUMIF($K$15:$K$166,SaisonDeb,$G$15:$G$166),"") -> 0.5273809524 | R5: =SUM(R3:R4) -> 0 | S5: =IF(SUMIF($K$15:$K$166,SaisonFin,$G$15:$G$166)>0,SUMIF($K$15:$K$166,SaisonFin,$F$15:$F$166)/SUMIF($K$15:$K$166,SaisonFin,$G$15:$G$166),"") ->  | T5: =SUM(T3:T4) -> 54 | U5: =IF(SUM($G$15:$G$166)>0,SUM($F$15:$F$166)/SUM($G$15:$G$166),"") -> 0.5854945718 | V5: =IF(SUMIF($K$15:$K$70,SaisonDeb,$G$15:$G$70)+SUMIF($K$15:$K$70,SaisonFin,$G$15:$G$70)>0,(SUMIF($K$15:$K$70,SaisonDeb,$F$15:$F$70)+SUMIF($K$15:$K$70,SaisonFin,$F$15:$F$70))/(SUMIF($K$15:$K$70,SaisonDeb,$G$15:$G$70)+SUMIF($K$15:$K$70,SaisonFin,$G$15:$G$70)),"") -> 0.5273809524
N6: Sets | O6: Gagnés | P6: =SUMIF($K$15:$K$166,SaisonDeb,$D$15:$D$166) -> 0 | Q6: =IF(P$6+P$7>0,P6/(P$6+P$7),"") -> 0 | R6: =SUMIF($K$15:$K$166,SaisonFin,$D$15:$D$166) -> 0 | S6: =IF(R$6+R$7>0,R6/(R$6+R$7),"") ->  | T6: =SUM($D$15:$D$166) -> 12 | U6: =IF(T$6+T$7>0,T6/(T$6+T$7),"") -> 0.1263157895
O7: Perdus | P7: =SUMIF($K$15:$K$166,SaisonDeb,$E$15:$E$166) -> 7 | Q7: =IF(P$6+P$7>0,P7/(P$6+P$7),"") -> 1 | R7: =SUMIF($K$15:$K$166,SaisonFin,$E$15:$E$166) -> 0 | S7: =IF(R$6+R$7>0,R7/(R$6+R$7),"") ->  | T7: =SUM($E$15:$E$166) -> 83 | U7: =IF(T$6+T$7>0,T7/(T$6+T$7),"") -> 0.8736842105
A8: Récapitulatif joueurs | O8: Total | P8: =SUM(P6:P7) -> 7 | R8: =SUM(R6:R7) -> 0 | T8: =SUM(T6:T7) -> 95
A15: Joueur | B15: Adversaire | C15: G/P | D15: Sets gagnés | E15: Sets perdus | F15: pts marqués | G15: pts subis | H15: Date | I15: Compétition | J15: Phase | K15: Saison
A16: BOUIGES Armelle | B16: MURIOT Jean-Pierre | C16: P | D16: 0 | E16: 1 | F16: 37 | G16: 100 | H16: 2016-10-22 | I16: 5Q CD60 R1 - T 1 -CREPY | J16: Tour 3 | K16: =IF(H16<>"",IF(MONTH(H16)>MoisRef,YEAR(H16)&"-"&YEAR(H16)+1,YEAR(H16)-1&"-"&YEAR(H16)),"") -> 2016-2017 | P16: =IF($K16=P$1,COUNTIF($C16,"G"),0) -> 0 | R16: =IF($K16=R$1,COUNTIF($C16,"G"),0) -> 0
A17: BOUIGES Armelle | B17: BOUIGES Armelle | C17: P | D17: 0 | E17: 1 | F17: 55 | G17: 100 | H17: 2016-10-22 | I17: 5Q CD60 R1 - T 1 -CREPY | J17: Tour 4 | K17: 2016-2017 | P17: 0 | R17: 0
A18: BOUIGES Armelle | B18: MURIOT Jean-Pierre | C18: P | D18: 0 | E18: 1 | F18: 86 | G18: 100 | H18: 2016-11-26 | I18: 5Q CD60 R1 - T 2 - SENLIS | J18: Tour 2 | K18: 2016-2017 | P18: 0 | R18: 0
A19: BOUIGES Armelle | B19: MURIOT Jean-Pierre | C19: P | D19: 0 | E19: 1 | F19: 53 | G19: 100 | H19: 2016-11-26 | I19: 5Q CD60 R1 - T 2 - SENLIS | J19: Tour 3 | K19: 2016-2017 | P19: 0 | R19: 0
A20: BOUIGES Armelle | B20: STEINMANN Sébastien | C20: P | D20: 0 | E20: 1 | F20: 67 | G20: 100 | H20: 2017-02-25 | I20: 5Q CD60 R1 - T 2 - SENLIS | J20: Tour 2 | K20: 2016-2017 | P20: 0 | R20: 0
A21: BOUIGES Armelle | B21: DIOT Alain | C21: P | D21: 0 | E21: 1 | F21: 43 | G21: 100 | H21: 2017-02-25 | I21: 5Q CD60 R1 - T 2 - SENLIS | J21: Tour 3 | K21: 2016-2017 | P21: 0 | R21: 0
A22: BOUIGES Armelle | B22: DUCHATEAU Jean-Pierre | C22: P | D22: 0 | E22: 1 | F22: 19 | G22: 100 | H22: 2017-02-25 | I22: 5Q CD60 R1 - T 2 - SENLIS | J22: Tour 4 | K22: 2016-2017 | P22: 0 | R22: 0
A23: BOUIGES Armelle | B23: LEGER Emmanuel | C23: P | D23: 0 | E23: 1 | F23: 82 | G23: 100 | H23: 2017-01-21 | I23: 5Q CD60 R1 - T 3 - MERU | J23: Tour 3 | K23: 2016-2017 | P23: 0 | R23: 0
A24: BOUIGES Armelle | B24: DIOT Alain | C24: P | D24: 0 | E24: 1 | F24: 26 | G24: 100 | H24: 2017-01-21 | I24: 5Q CD60 R1 - T 3 - MERU | J24: Tour 4 | K24: 2016-2017 | P24: 0 | R24: 0
A25: BOUIGES Armelle | B25: FAURE Stéphane | C25: P | D25: 0 | E25: 3 | F25: 29 | G25: 180 | H25: 2018-02-17 | I25: FINALE OISE - CREPY | J25: Qualifications | K25: 2017-2018 | P25: 0 | R25: 0
A26: BOUIGES Armelle | B26: LALOT Gérard | C26: P | D26: 0 | E26: 3 | F26: 69 | G26: 180 | H26: 2018-02-17 | I26: FINALE OISE - CREPY | J26: Qualifications | K26: 2017-2018 | P26: 0 | R26: 0
A27: BOUIGES Armelle | B27: MARTIN Denis | C27: P | D27: 1 | E27: 3 | F27: 155 | G27: 239 | H27: 2018-02-17 | I27: FINALE OISE - CREPY | J27: Qualifications | K27: 2017-2018 | P27: 0 | R27: 0
A28: BOUIGES Armelle | B28: BARTHON Aurélie | C28: P | D28: 0 | E28: 2 | F28: 86 | G28: 120 | H28: 2018-05-13 | I28: FINALE OISE FEMININES - SENLIS | J28: Qualifications | K28: 2017-2018 | P28: 0 | R28: 0
A29: BOUIGES Armelle | B29: VANEME Sophie | C29: P | D29: 0 | E29: 2 | F29: 100 | G29: 120 | H29: 2018-05-13 | I29: FINALE OISE FEMININES - SENLIS | J29: Qualifications | K29: 2017-2018 | P29: 0 | R29: 0
A30: BOUIGES Armelle | B30: BARTHON Aurélie | C30: P | D30: 0 | E30: 1 | F30: 57 | G30: 100 | H30: 2017-09-30 | I30: T 1 OISE - Consolante - CREPY | J30: Qualifications | K30: 2017-2018 | P30: 0 | R30: 0
A31: BOUIGES Armelle | B31: TALEC Pierre | C31: P | D31: 0 | E31: 1 | F31: 35 | G31: 100 | H31: 2017-09-30 | I31: T 1 OISE - Consolante - CREPY | J31: Qualifications | K31: 2017-2018 | P31: 0 | R31: 0
A32: BOUIGES Armelle | B32: BARTHON Aurélie | C32: P | D32: 1 | E32: 2 | F32: 154 | G32: 162 | H32: 2017-09-30 | I32: T 1 OISE - CREPY | J32: Qualifications | K32: 2017-2018 | P32: 0 | R32: 0
A33: BOUIGES Armelle | B33: LAMARQUE Yves | C33: P | D33: 0 | E33: 2 | F33: 76 | G33: 120 | H33: 2017-09-30 | I33: T 1 OISE - CREPY | J33: Qualifications | K33: 2017-2018 | P33: 0 | R33: 0
A34: BOUIGES Armelle | B34: MARTIN Denis | C34: P | D34: 0 | E34: 2 | F34: 28 | G34: 120 | H34: 2017-09-30 | I34: T 1 OISE - CREPY | J34: Qualifications | K34: 2017-2018 | P34: 0 | R34: 0
A35: BOUIGES Armelle | B35: FAURE Stéphane | C35: P | D35: 0 | E35: 2 | F35: 79 | G35: 120 | H35: 2017-10-21 | I35: T 2 OISE - SENLIS | J35: Qualifications | K35: 2017-2018 | P35: 0 | R35: 0
A36: BOUIGES Armelle | B36: TALEC Pierre | C36: P | D36: 1 | E36: 2 | F36: 145 | G36: 178 | H36: 2017-10-21 | I36: T 2 OISE - SENLIS | J36: Qualifications | K36: 2017-2018 | P36: 0 | R36: 0
A37: BOUIGES Armelle | B37: LAMARQUE Yves | C37: G | D37: 1 | E37: 0 | F37: 100 | G37: 34 | H37: 43029 | I37: T 2 OISE Consolante - SENLIS | J37: Qualifications | K37: 2017-2018 | P37: 0 | R37: 0
A38: BOUIGES Armelle | B38: MURIOT Jean-Pierre | C38: P | D38: 0 | E38: 1 | F38: 94 | G38: 100 | H38: 43029 | I38: T 2 OISE Consolante - SENLIS | J38: Qualifications | K38: 2017-2018 | P38: 0 | R38: 0
A39: BOUIGES Armelle | B39: FAURE Stéphane | C39: P | D39: 0 | E39: 2 | F39: 60 | G39: 120 | H39: 2017-11-25 | I39: T 3 OISE - MERU | J39: Qualifications | K39: 2017-2018 | P39: 0 | R39: 0
A40: BOUIGES Armelle | B40: FAURE Stéphane | C40: P | D40: 1 | E40: 2 | F40: 114 | G40: 156 | H40: 2017-11-25 | I40: T 3 OISE - MERU | J40: 1/2 Finale | K40: 2017-2018 | P40: 0 | R40: 0
A41: BOUIGES Armelle | B41: LAMARQUE Yves | C41: G | D41: 2 | E41: 1 | F41: 157 | G41: 162 | H41: 2017-11-25 | I41: T 3 OISE - MERU | J41: Qualifications | K41: 2017-2018 | P41: 0 | R41: 0
A42: BOUIGES Armelle | B42: LEFEBVRE Gérard | C42: P | D42: 0 | E42: 2 | F42: 52 | G42: 120 | H42: 2018-01-06 | I42: T 4 OISE - VILLERS | J42: Qualifications | K42: 2017-2018 | P42: 0 | R42: 0
A43: BOUIGES Armelle | B43: MARTIN Denis | C43: P | D43: 0 | E43: 2 | F43: 70 | G43: 120 | H43: 2018-01-06 | I43: T 4 OISE - VILLERS | J43: Qualifications | K43: 2017-2018 | P43: 0 | R43: 0
A44: BOUIGES Armelle | B44: MARTIN Denis | C44: P | D44: 1 | E44: 2 | F44: 103 | G44: 166 | H44: 2018-01-06 | I44: T 4 OISE - VILLERS | J44: 1/4 Finale | K44: 2017-2018 | P44: 0 | R44: 0
A45: BOUIGES Armelle | B45: VANEME Sophie | C45: G | D45: 2 | E45: 0 | F45: 120 | G45: 105 | H45: 2018-01-06 | I45: T 4 OISE - VILLERS | J45: Qualifications | K45: 2017-2018 | P45: 0 | R45: 0
A46: BOUIGES Armelle | B46: DESCLAIR Guy | C46: P | D46: 0 | E46: 2 | F46: 55 | G46: 120 | H46: 2018-09-29 | I46: 5 Q - T 1 OISE 2018-19 - R 1 - TOURNOI PRINCIPAL - CREPY | J46: Qualifications | K46: 2018-2019 | P46: 0 | R46: 0
A47: BOUIGES Armelle | B47: DESCLAIR Guy | C47: P | D47: 0 | E47: 2 | F47: 68 | G47: 120 | H47: 2018-09-29 | I47: 5 Q - T 1 OISE 2018-19 - R 1 - TOURNOI PRINCIPAL - CREPY | J47: Qualifications | K47: 2018-2019 | P47: 0 | R47: 0
A48: BOUIGES Armelle | B48: DESCLAIR Guy | C48: P | D48: 0 | E48: 2 | F48: 60 | G48: 120 | H48: 2018-09-29 | I48: 5 Q - T 1 OISE 2018-19 - R 1 - TOURNOI PRINCIPAL - CREPY | J48: 1/4 Finale | K48: 2018-2019 | P48: 0 | R48: 0
A49: BOUIGES Armelle | B49: GROSS Xavier | C49: P | D49: 0 | E49: 2 | F49: 55 | G49: 120 | H49: 2018-10-27 | I49: 5 Q - T 2 OISE 2018-19 - R 1 - TOURNOI PRINCIPAL - VILLERS | J49: Qualifications | K49: 2018-2019 | P49: 0 | R49: 0
A50: BOUIGES Armelle | B50: LALOT Gérard | C50: P | D50: 0 | E50: 2 | F50: 29 | G50: 120 | H50: 2018-10-27 | I50: 5 Q - T 2 OISE 2018-19 - R 1 - TOURNOI PRINCIPAL - VILLERS | J50: Qualifications | K50: 2018-2019 | P50: 0 | R50: 0
A51: BOUIGES Armelle | B51: ALAZARD Philippe | C51: P | D51: 0 | E51: 2 | F51: 52 | G51: 120 | H51: 2018-11-24 | I51: 5 Q - T 3 OISE 2018-19 - R 1 - TOURNOI PRINCIPAL - MERU | J51: Qualifications | K51: 2018-2019 | P51: 0 | R51: 0
A52: BOUIGES Armelle | B52: VANDEPUTTE Laurent | C52: P | D52: 1 | E52: 2 | F52: 124 | G52: 173 | H52: 2018-11-24 | I52: 5 Q - T 3 OISE 2018-19 - R 1 - TOURNOI PRINCIPAL - MERU | J52: Qualifications | K52: 2018-2019 | P52: 0 | R52: 0
A53: BOUIGES Armelle | B53: LALOT Gérard | C53: P | D53: 1 | E53: 2 | F53: 126 | G53: 177 | H53: 2019-01-19 | I53: 5 Q - T 4 OISE 2018-19 - R 1 - TOURNOI PRINCIPAL - CHAMBLY | J53: Qualifications | K53: 2018-2019 | P53: 0 | R53: 0
A54: BOUIGES Armelle | B54: TALEC Pierre | C54: P | D54: 0 | E54: 2 | F54: 110 | G54: 120 | H54: 2019-01-19 | I54: 5 Q - T 4 OISE 2018-19 - R 1 - TOURNOI PRINCIPAL - CHAMBLY | J54: Qualifications | K54: 2018-2019 | P54: 0 | R54: 0
A55: BOUIGES Armelle | B55: BOURGOGNE Claude | C55: P | D55: 0 | E55: 2 | F55: 51 | G55: 120 | H55: 2019-10-19 | I55: CD60 R1 - T1 - Tour Principal - BEAUVAIS | J55: Qualifications | K55: 2019-2020 | P55: 0 | R55: 0
A56: BOUIGES Armelle | B56: VASSEUR Francis | C56: P | D56: 0 | E56: 2 | F56: 64 | G56: 120 | H56: 2019-10-19 | I56: CD60 R1 - T1 - Tour Principal - BEAUVAIS | J56: Qualifications | K56: 2019-2020 | P56: 0 | R56: 0
A57: BOUIGES Armelle | B57: ALAZARD Philippe | C57: P | D57: 0 | E57: 1 | F57: 36 | G57: 100 | H57: 2020-01-11 | I57: CD60 R1 - T3 - Tour Principal - CREPY | J57: Qualifications | K57: 2019-2020 | P57: 0 | R57: 0
A58: BOUIGES Armelle | B58: BARTHON Aurélie | C58: P | D58: 0 | E58: 1 | F58: 57 | G58: 100 | H58: 2020-01-11 | I58: CD60 R1 - T3 - Tour Principal - CREPY | J58: Qualifications | K58: 2019-2020 | P58: 0 | R58: 0
A59: BOUIGES Armelle | B59: ALAZARD Philippe | C59: P | D59: 0 | E59: 1 | F59: 34 | G59: 100 | H59: 2020-02-15 | I59: CD60 R1 - T 4 - Tour Principal - SENLIS | J59: Qualifications | K59: 2019-2020 | P59: 0 | R59: 0
A60: BOUIGES Armelle | B60: CHENAL Gérard | C60: P | D60: 0 | E60: 1 | F60: 43 | G60: 100 | H60: 2020-02-15 | I60: CD60 R1 - T 4 - Tour Principal - SENLIS | J60: Qualifications | K60: 2019-2020 | P60: 0 | R60: 0
A61: BOUIGES Armelle | B61: BOURGOGNE Claude | C61: P | D61: 0 | E61: 2 | F61: 44 | G61: 120 | H61: 2019-11-23 | I61: CD60 R1 - T2 - Tour Principal - MERU | J61: Qualifications | K61: 2019-2020 | P61: 0 | R61: 0
A62: BOUIGES Armelle | B62: MURIOT Jean-Pierre | C62: P | D62: 0 | E62: 2 | F62: 81 | G62: 120 | H62: 2019-11-23 | I62: CD60 R1 - T2 - Tour Principal - MERU | J62: Qualifications | K62: 2019-2020 | P62: 0 | R62: 0
A63: BOUIGES Armelle | B63: BARBE Philippe | C63: P | D63: 0 | E63: 1 | F63: 43 | G63: 120 | H63: 2021-10-02 | I63: T 1 OISE - Qualifications R 1 - Tour principal - MERU | J63: Qualifications | K63: 2021-2022 | P63: 0 | R63: 0
A64: BOUIGES Armelle | B64: BARTHON Aurélie | C64: P | D64: 0 | E64: 1 | F64: 53 | G64: 120 | H64: 2021-10-02 | I64: T 1 OISE - Qualifications R 1 - Tour principal - MERU | J64: Qualifications | K64: 2021-2022 | P64: 0 | R64: 0
A65: BOUIGES Armelle | B65: BOZON Robert | C65: P | D65: 0 | E65: 1 | F65: 55 | G65: 120 | H65: 2021-12-18 | I65: T 2 OISE - Qualifications R 1 - Tour principal - CREPY | J65: Qualifications | K65: 2021-2022 | P65: 0 | R65: 0
A66: BOUIGES Armelle | B66: HERTOUX Didier | C66: P | D66: 0 | E66: 1 | F66: 81 | G66: 120 | H66: 2021-12-18 | I66: T 2 OISE - Qualifications R 1 - Tour principal - CREPY | J66: Qualifications | K66: 2021-2022 | P66: 0 | R66: 0
A67: BOUIGES Armelle | B67: BARBE Philippe | C67: P | D67: 0 | E67: 1 | F67: 51 | G67: 120 | H67: 2022-04-16 | I67: T 4 OISE - Qualifications R 1 - Tour Principal - BEAUVAIS | J67: Qualifications | K67: 2021-2022 | P67: 0 | R67: 0
A68: BOUIGES Armelle | B68: LAMARQUE Yves | C68: P | D68: 0 | E68: 1 | F68: 52 | G68: 120 | H68: 2022-04-16 | I68: T 4 OISE - Qualifications R 1 - Tour Principal - BEAUVAIS | J68: 1/4 Finale | K68: 2021-2022 | P68: 0 | R68: 0
A69: BOUIGES Armelle | B69: NAHIRNYJ Alexi | C69: P | D69: 0 | E69: 1 | F69: 108 | G69: 120 | H69: 2022-04-16 | I69: T 4 OISE - Qualifications R 1 - Tour Principal - BEAUVAIS | J69: Qualifications | K69: 2021-2022 | P69: 0 | R69: 0
A70: Fin des données | P70: =IF($K70=P$1,COUNTIF($C70,"G"),0) -> 0 | R70: =IF($K70=R$1,COUNTIF($C70,"G"),0) -> 0

Sheet BOULINGUEZ Yves
A1: BOULINGUEZ Yves | P1: =SaisonDeb -> 2021-2022 | R1: =SaisonFin -> 2022-2023 | T1: Toutes saisons
P2: Nombre | Q2: %age | R2: Nombre | S2: %age | T2: Nombre | U2: %age
N3: Matchs | O3: Gagnés | P3: =SUM(P$15:P$135) -> 0 | Q3: =IF(P$3+P$4>0,P3/(P$3+P$4),"") ->  | R3: =SUM(R$15:R$135) -> 0 | S3: =IF(R$3+R$4>0,R3/(R$3+R$4),"") ->  | T3: =COUNTIF($C$15:$C$135,"G") -> 6 | U3: =IF(T$3+T$4>0,T3/(T$3+T$4),"") -> 0.2608695652
O4: Perdus | P4: =COUNTIF($K$15:$M$135,SaisonDeb)-P3 -> 0 | Q4: =IF(P$3+P$4>0,P4/(P$3+P$4),"") ->  | R4: =COUNTIF($K$15:$K$135,SaisonFin)-R3 -> 0 | S4: =IF(R$3+R$4>0,R4/(R$3+R$4),"") ->  | T4: =COUNTIF($C$15:$C$135,"P") -> 17 | U4: =IF(T$3+T$4>0,T4/(T$3+T$4),"") -> 0.7391304348
O5: Total / Moy. | P5: =SUM(P3:P4) -> 0 | Q5: =IF(SUMIF($K$15:$K$135,SaisonDeb,$G$15:$G$135)>0,SUMIF($K$15:$K$135,SaisonDeb,$F$15:$F$135)/SUMIF($K$15:$K$135,SaisonDeb,$G$15:$G$135),"") ->  | R5: =SUM(R3:R4) -> 0 | S5: =IF(SUMIF($K$15:$K$135,SaisonFin,$G$15:$G$135)>0,SUMIF($K$15:$K$135,SaisonFin,$F$15:$F$135)/SUMIF($K$15:$K$135,SaisonFin,$G$15:$G$135),"") ->  | T5: =SUM(T3:T4) -> 23 | U5: =IF(SUM($G$15:$G$135)>0,SUM($F$15:$F$135)/SUM($G$15:$G$135),"") -> 0.8387096774 | V5: =IF(SUMIF($K$15:$K$39,SaisonDeb,$G$15:$G$39)+SUMIF($K$15:$K$39,SaisonFin,$G$15:$G$39)>0,(SUMIF($K$15:$K$39,SaisonDeb,$F$15:$F$39)+SUMIF($K$15:$K$39,SaisonFin,$F$15:$F$39))/(SUMIF($K$15:$K$39,SaisonDeb,$G$15:$G$39)+SUMIF($K$15:$K$39,SaisonFin,$G$15:$G$39)),"") -> 
N6: Sets | O6: Gagnés | P6: =SUMIF($K$15:$K$135,SaisonDeb,$D$15:$D$135) -> 0 | Q6: =IF(P$6+P$7>0,P6/(P$6+P$7),"") ->  | R6: =SUMIF($K$15:$K$135,SaisonFin,$D$15:$D$135) -> 0 | S6: =IF(R$6+R$7>0,R6/(R$6+R$7),"") ->  | T6: =SUM($D$15:$D$135) -> 18 | U6: =IF(T$6+T$7>0,T6/(T$6+T$7),"") -> 0.3214285714
O7: Perdus | P7: =SUMIF($K$15:$K$135,SaisonDeb,$E$15:$E$135) -> 0 | Q7: =IF(P$6+P$7>0,P7/(P$6+P$7),"") ->  | R7: =SUMIF($K$15:$K$135,SaisonFin,$E$15:$E$135) -> 0 | S7: =IF(R$6+R$7>0,R7/(R$6+R$7),"") ->  | T7: =SUM($E$15:$E$135) -> 38 | U7: =IF(T$6+T$7>0,T7/(T$6+T$7),"") -> 0.6785714286
A8: Récapitulatif joueurs | O8: Total | P8: =SUM(P6:P7) -> 0 | R8: =SUM(R6:R7) -> 0 | T8: =SUM(T6:T7) -> 56
A15: Joueur | B15: Adversaire | C15: G/P | D15: Sets gagnés | E15: Sets perdus | F15: pts marqués | G15: pts subis | H15: Date | I15: Compétition | J15: Phase | K15: Saison
A16: BOULINGUEZ Yves | B16: DA SILVA José | C16: P | D16: 0 | E16: 2 | F16: 103 | G16: 120 | H16: 2016-11-19 | I16: 5Q R1 CD02 - T1 - SOISSONS | J16: Qualifications | K16: =IF(H16<>"",IF(MONTH(H16)>MoisRef,YEAR(H16)&"-"&YEAR(H16)+1,YEAR(H16)-1&"-"&YEAR(H16)),"") -> 2016-2017 | P16: =IF($K16=P$1,COUNTIF($C16,"G"),0) -> 0 | R16: =IF($K16=R$1,COUNTIF($C16,"G"),0) -> 0
A17: BOULINGUEZ Yves | B17: FRISON Michel | C17: P | D17: 0 | E17: 2 | F17: 55 | G17: 120 | H17: 2016-11-19 | I17: 5Q R1 CD02 - T1 - SOISSONS | J17: Qualifications | K17: 2016-2017 | P17: 0 | R17: 0
A18: BOULINGUEZ Yves | B18: BUTTI EmIlie | C18: G | D18: 2 | E18: 1 | F18: 164 | G18: 142 | H18: 2017-01-21 | I18: 5Q R1 CD02 - T3 - st quentin | J18: Qualifications | K18: 2016-2017 | P18: 0 | R18: 0
A19: BOULINGUEZ Yves | B19: CHOUX André | C19: P | D19: 1 | E19: 2 | F19: 127 | G19: 155 | H19: 2017-01-21 | I19: 5Q R1 CD02 - T3 - st quentin | J19: Qualifications | K19: 2016-2017 | P19: 0 | R19: 0
A20: BOULINGUEZ Yves | B20: CORRE Maxime | C20: P | D20: 1 | E20: 2 | F20: 162 | G20: 158 | H20: 2017-11-18 | I20: qualification AISNE R1 - St Q uentin | J20: Qualifications | K20: 2017-2018 | P20: 0 | R20: 0
A21: BOULINGUEZ Yves | B21: DURTETTE Daniel | C21: G | D21: 2 | E21: 1 | F21: 168 | G21: 172 | H21: 2017-11-18 | I21: qualification AISNE R1 - St Q uentin | J21: Qualifications | K21: 2017-2018 | P21: 0 | R21: 0
A22: BOULINGUEZ Yves | B22: COLAS Gerard | C22: P | D22: 0 | E22: 2 | F22: 65 | G22: 120 | H22: 2018-01-27 | I22: Qualifications AISNE R1 - guignicourt | J22: Qualifications | K22: 2017-2018 | P22: 0 | R22: 0
A23: BOULINGUEZ Yves | B23: COLAS Gerard | C23: P | D23: 0 | E23: 2 | F23: 94 | G23: 120 | H23: 2018-01-27 | I23: Qualifications AISNE R1 - guignicourt | J23: Qualifications | K23: 2017-2018 | P23: 0 | R23: 0
A24: BOULINGUEZ Yves | B24: BUTTI Bertrand | C24: G | D24: 2 | E24: 1 | F24: 166 | G24: 162 | H24: 2017-12-16 | I24: Qualifications AISNE R1 - SOISSONS | J24: Qualifications | K24: 2017-2018 | P24: 0 | R24: 0
A25: BOULINGUEZ Yves | B25: COUSIN Francis | C25: G | D25: 2 | E25: 1 | F25: 165 | G25: 160 | H25: 2017-12-16 | I25: Qualifications AISNE R1 - SOISSONS | J25: Qualifications | K25: 2017-2018 | P25: 0 | R25: 0
A26: BOULINGUEZ Yves | B26: BUTTI Bertrand | C26: P | D26: 0 | E26: 2 | F26: 87 | G26: 120 | H26: 2018-11-10 | I26: T1 CD02 - R1 - SOISSONS | J26: Qualifications | K26: 2018-2019 | P26: 0 | R26: 0
A27: BOULINGUEZ Yves | B27: COUSIN Francis | C27: P | D27: 1 | E27: 2 | F27: 126 | G27: 167 | H27: 2018-11-10 | I27: T1 CD02 - R1 - SOISSONS | J27: Qualifications | K27: 2018-2019 | P27: 0 | R27: 0
A28: BOULINGUEZ Yves | B28: DELFOSSE Fabien | C28: P | D28: 0 | E28: 2 | F28: 70 | G28: 120 | H28: 2018-11-10 | I28: T1 CD02 - R1 - SOISSONS | J28: Qualifications | K28: 2018-2019 | P28: 0 | R28: 0
A29: BOULINGUEZ Yves | B29: BUTTI Bertrand | C29: P | D29: 1 | E29: 2 | F29: 148 | G29: 168 | H29: 2018-12-15 | I29: T2 CD02 - R1 - ST QUENTIN | J29: Qualifications | K29: 2018-2019 | P29: 0 | R29: 0
A30: BOULINGUEZ Yves | B30: COUSIN Francis | C30: P | D30: 0 | E30: 2 | F30: 55 | G30: 120 | H30: 2018-12-15 | I30: T2 CD02 - R1 - ST QUENTIN | J30: Qualifications | K30: 2018-2019 | P30: 0 | R30: 0
A31: BOULINGUEZ Yves | B31: DELFOSSE Fabien | C31: P | D31: 0 | E31: 2 | F31: 86 | G31: 120 | H31: 2018-12-15 | I31: T2 CD02 - R1 - ST QUENTIN | J31: Qualifications | K31: 2018-2019 | P31: 0 | R31: 0
A32: BOULINGUEZ Yves | B32: BUTTI Bertrand | C32: P | D32: 1 | E32: 2 | F32: 112 | G32: 159 | H32: 2019-01-19 | I32: T3 CD02 - R1 - LA FERE | J32: Qualifications | K32: 2018-2019 | P32: 0 | R32: 0
A33: BOULINGUEZ Yves | B33: COUSIN Francis | C33: P | D33: 0 | E33: 2 | F33: 110 | G33: 120 | H33: 2019-01-19 | I33: T3 CD02 - R1 - LA FERE | J33: Qualifications | K33: 2018-2019 | P33: 0 | R33: 0
A34: BOULINGUEZ Yves | B34: DELFOSSE Fabien | C34: P | D34: 1 | E34: 2 | F34: 134 | G34: 163 | H34: 2019-01-19 | I34: T3 CD02 - R1 - LA FERE | J34: Qualifications | K34: 2018-2019 | P34: 0 | R34: 0
A35: BOULINGUEZ Yves | B35: COUSIN Francis | C35: G | D35: 2 | E35: 0 | F35: 120 | G35: 88 | H35: 2019-10-19 | I35: T1 CD02 R1 - Billard Club de Soissons | J35: Qualifications | K35: 2019-2020 | P35: 0 | R35: 0
A36: BOULINGUEZ Yves | B36: SIMON Philippe | C36: P | D36: 0 | E36: 2 | F36: 79 | G36: 120 | H36: 2019-10-19 | I36: T1 CD02 R1 - Billard Club de Soissons | J36: Qualifications | K36: 2019-2020 | P36: 0 | R36: 0
A37: BOULINGUEZ Yves | B37: CASIER Philippe | C37: G | D37: 2 | E37: 0 | F37: 120 | G37: 86 | H37: 2019-12-07 | I37: T2 CD02 R1 - Saint-Quentin | J37: Qualifications | K37: 2019-2020 | P37: 0 | R37: 0
A38: BOULINGUEZ Yves | B38: COUSIN Francis | C38: P | D38: 0 | E38: 2 | F38: 84 | G38: 120 | H38: 2019-12-07 | I38: T2 CD02 R1 - Saint-Quentin | J38: Qualifications | K38: 2019-2020 | P38: 0 | R38: 0
A39: Fin des données | P39: 0 | R39: 0

Sheet BOURGOGNE Claude
A1: BOURGOGNE Claude | P1: =SaisonDeb -> 2021-2022 | R1: =SaisonFin -> 2022-2023 | T1: Toutes saisons
P2: Nombre | Q2: %age | R2: Nombre | S2: %age | T2: Nombre | U2: %age
N3: Matchs | O3: Gagnés | P3: =SUM(P$15:P$128) -> 0 | Q3: =IF(P$3+P$4>0,P3/(P$3+P$4),"") ->  | R3: =SUM(R$15:R$128) -> 0 | S3: =IF(R$3+R$4>0,R3/(R$3+R$4),"") ->  | T3: =COUNTIF($C$15:$C$128,"G") -> 12 | U3: =IF(T$3+T$4>0,T3/(T$3+T$4),"") -> 0.75
O4: Perdus | P4: =COUNTIF($K$15:$M$128,SaisonDeb)-P3 -> 0 | Q4: =IF(P$3+P$4>0,P4/(P$3+P$4),"") ->  | R4: =COUNTIF($K$15:$K$128,SaisonFin)-R3 -> 0 | S4: =IF(R$3+R$4>0,R4/(R$3+R$4),"") ->  | T4: =COUNTIF($C$15:$C$128,"P") -> 4 | U4: =IF(T$3+T$4>0,T4/(T$3+T$4),"") -> 0.25
O5: Total / Moy. | P5: =SUM(P3:P4) -> 0 | Q5: =IF(SUMIF($K$15:$K$128,SaisonDeb,$G$15:$G$128)>0,SUMIF($K$15:$K$128,SaisonDeb,$F$15:$F$128)/SUMIF($K$15:$K$128,SaisonDeb,$G$15:$G$128),"") ->  | R5: =SUM(R3:R4) -> 0 | S5: =IF(SUMIF($K$15:$K$128,SaisonFin,$G$15:$G$128)>0,SUMIF($K$15:$K$128,SaisonFin,$F$15:$F$128)/SUMIF($K$15:$K$128,SaisonFin,$G$15:$G$128),"") ->  | T5: =SUM(T3:T4) -> 16 | U5: =IF(SUM($G$15:$G$128)>0,SUM($F$15:$F$128)/SUM($G$15:$G$128),"") -> 1.357630979 | V5: =IF(SUMIF($K$15:$K$32,SaisonDeb,$G$15:$G$32)+SUMIF($K$15:$K$32,SaisonFin,$G$15:$G$32)>0,(SUMIF($K$15:$K$32,SaisonDeb,$F$15:$F$32)+SUMIF($K$15:$K$32,SaisonFin,$F$15:$F$32))/(SUMIF($K$15:$K$32,SaisonDeb,$G$15:$G$32)+SUMIF($K$15:$K$32,SaisonFin,$G$15:$G$32)),"") -> 
N6: Sets | O6: Gagnés | P6: =SUMIF($K$15:$K$128,SaisonDeb,$D$15:$D$128) -> 0 | Q6: =IF(P$6+P$7>0,P6/(P$6+P$7),"") ->  | R6: =SUMIF($K$15:$K$128,SaisonFin,$D$15:$D$128) -> 0 | S6: =IF(R$6+R$7>0,R6/(R$6+R$7),"") ->  | T6: =SUM($D$15:$D$128) -> 20 | U6: =IF(T$6+T$7>0,T6/(T$6+T$7),"") -> 0.7142857143
O7: Perdus | P7: =SUMIF($K$15:$K$128,SaisonDeb,$E$15:$E$128) -> 0 | Q7: =IF(P$6+P$7>0,P7/(P$6+P$7),"") ->  | R7: =SUMIF($K$15:$K$128,SaisonFin,$E$15:$E$128) -> 0 | S7: =IF(R$6+R$7>0,R7/(R$6+R$7),"") ->  | T7: =SUM($E$15:$E$128) -> 8 | U7: =IF(T$6+T$7>0,T7/(T$6+T$7),"") -> 0.2857142857
A8: Récapitulatif joueurs | O8: Total | P8: =SUM(P6:P7) -> 0 | R8: =SUM(R6:R7) -> 0 | T8: =SUM(T6:T7) -> 28
A15: Joueur | B15: Adversaire | C15: G/P | D15: Sets gagnés | E15: Sets perdus | F15: pts marqués | G15: pts subis | H15: Date | I15: Compétition | J15: Phase | K15: Saison
A16: BOURGOGNE Claude | B16: ALAZARD Philippe | C16: G | D16: 2 | E16: 0 | F16: 120 | G16: 85 | H16: 2019-10-19 | I16: CD60 R1 - T1 - Tour Principal - BEAUVAIS | J16: Finale | K16: =IF(H16<>"",IF(MONTH(H16)>MoisRef,YEAR(H16)&"-"&YEAR(H16)+1,YEAR(H16)-1&"-"&YEAR(H16)),"") -> 2019-2020 | P16: =IF($K16=P$1,COUNTIF($C16,"G"),0) -> 0 | R16: =IF($K16=R$1,COUNTIF($C16,"G"),0) -> 0
A17: BOURGOGNE Claude | B17: BOUIGES Armelle | C17: G | D17: 2 | E17: 0 | F17: 120 | G17: 51 | H17: 2019-10-19 | I17: CD60 R1 - T1 - Tour Principal - BEAUVAIS | J17: Qualifications | K17: 2019-2020 | P17: 0 | R17: 0
A18: BOURGOGNE Claude | B18: LALOT Gérard | C18: G | D18: 2 | E18: 1 | F18: 170 | G18: 158 | H18: 2019-10-19 | I18: CD60 R1 - T1 - Tour Principal - BEAUVAIS | J18: 1/4 Finale | K18: 2019-2020 | P18: 0 | R18: 0
A19: BOURGOGNE Claude | B19: VASSEUR Francis | C19: G | D19: 2 | E19: 0 | F19: 120 | G19: 61 | H19: 2019-10-19 | I19: CD60 R1 - T1 - Tour Principal - BEAUVAIS | J19: Qualifications | K19: 2019-2020 | P19: 0 | R19: 0
A20: BOURGOGNE Claude | B20: VASSEUR Francis | C20: G | D20: 2 | E20: 1 | F20: 175 | G20: 136 | H20: 2019-10-19 | I20: CD60 R1 - T1 - Tour Principal - BEAUVAIS | J20: 1/2 Finale | K20: 2019-2020 | P20: 0 | R20: 0
A21: BOURGOGNE Claude | B21: DESCLAIR Guy | C21: G | D21: 1 | E21: 0 | F21: 100 | G21: 29 | H21: 2020-01-11 | I21: CD60 R1 - T3 - Tour Principal - CREPY | J21: 1/4 Finale | K21: 2019-2020 | P21: 0 | R21: 0
A22: BOURGOGNE Claude | B22: GEOFFROY Florent | C22: P | D22: 0 | E22: 1 | F22: 76 | G22: 100 | H22: 2020-01-11 | I22: CD60 R1 - T3 - Tour Principal - CREPY | J22: Qualifications | K22: 2019-2020 | P22: 0 | R22: 0
A23: BOURGOGNE Claude | B23: LALOT Gérard | C23: P | D23: 0 | E23: 1 | F23: 54 | G23: 100 | H23: 2020-01-11 | I23: CD60 R1 - T3 - Tour Principal - CREPY | J23: 1/2 Finale | K23: 2019-2020 | P23: 0 | R23: 0
A24: BOURGOGNE Claude | B24: NAHIRNYJ Alexi | C24: G | D24: 1 | E24: 0 | F24: 100 | G24: 28 | H24: 2020-01-11 | I24: CD60 R1 - T3 - Tour Principal - CREPY | J24: Qualifications | K24: 2019-2020 | P24: 0 | R24: 0
A25: BOURGOGNE Claude | B25: COUPLET Sébastien | C25: G | D25: 1 | E25: 0 | F25: 100 | G25: 39 | H25: 2020-02-15 | I25: CD60 R1 - T 4 - Tour Principal - SENLIS | J25: Qualifications | K25: 2019-2020 | P25: 0 | R25: 0
A26: BOURGOGNE Claude | B26: HERTOUX Didier | C26: G | D26: 1 | E26: 0 | F26: 100 | G26: 64 | H26: 2020-02-15 | I26: CD60 R1 - T 4 - Tour Principal - SENLIS | J26: Qualifications | K26: 2019-2020 | P26: 0 | R26: 0
A27: BOURGOGNE Claude | B27: LAMARQUE Yves | C27: P | D27: 0 | E27: 1 | F27: 93 | G27: 100 | H27: 2020-02-15 | I27: CD60 R1 - T 4 - Tour Principal - SENLIS | J27: 1/4 Finale | K27: 2019-2020 | P27: 0 | R27: 0
A28: BOURGOGNE Claude | B28: BOUIGES Armelle | C28: G | D28: 2 | E28: 0 | F28: 120 | G28: 44 | H28: 2019-11-23 | I28: CD60 R1 - T2 - Tour Principal - MERU | J28: Qualifications | K28: 2019-2020 | P28: 0 | R28: 0
A29: BOURGOGNE Claude | B29: DESCLAIR Guy | C29: P | D29: 0 | E29: 2 | F29: 67 | G29: 120 | H29: 2019-11-23 | I29: CD60 R1 - T2 - Tour Principal - MERU | J29: 1/2 Finale | K29: 2019-2020 | P29: 0 | R29: 0
A30: BOURGOGNE Claude | B30: MURIOT Jean-Pierre | C30: G | D30: 2 | E30: 0 | F30: 120 | G30: 75 | H30: 2019-11-23 | I30: CD60 R1 - T2 - Tour Principal - MERU | J30: Qualifications | K30: 2019-2020 | P30: 0 | R30: 0
A31: BOURGOGNE Claude | B31: NAHIRNYJ Alexi | C31: G | D31: 2 | E31: 1 | F31: 153 | G31: 127 | H31: 2019-11-23 | I31: CD60 R1 - T2 - Tour Principal - MERU | J31: 1/4 Finale | K31: 2019-2020 | P31: 0 | R31: 0
A32: Fin des données | P32: =IF($K32=P$1,COUNTIF($C32,"G"),0) -> 0 | R32: =IF($K32=R$1,COUNTIF($C32,"G"),0) -> 0

Sheet BOUTON Gérard
A1: BOUTON Gérard | P1: =SaisonDeb -> 2021-2022 | R1: =SaisonFin -> 2022-2023 | T1: Toutes saisons
P2: Nombre | Q2: %age | R2: Nombre | S2: %age | T2: Nombre | U2: %age
N3: Matchs | O3: Gagnés | P3: =SUM(P$15:P$132) -> 3 | Q3: =IF(P$3+P$4>0,P3/(P$3+P$4),"") -> 0.3333333333 | R3: =SUM(R$15:R$132) -> 4 | S3: =IF(R$3+R$4>0,R3/(R$3+R$4),"") -> 0.3636363636 | T3: =COUNTIF($C$15:$C$132,"G") -> 7 | U3: =IF(T$3+T$4>0,T3/(T$3+T$4),"") -> 0.35
O4: Perdus | P4: =COUNTIF($K$15:$M$132,SaisonDeb)-P3 -> 6 | Q4: =IF(P$3+P$4>0,P4/(P$3+P$4),"") -> 0.6666666667 | R4: =COUNTIF($K$15:$K$132,SaisonFin)-R3 -> 7 | S4: =IF(R$3+R$4>0,R4/(R$3+R$4),"") -> 0.6363636364 | T4: =COUNTIF($C$15:$C$132,"P") -> 13 | U4: =IF(T$3+T$4>0,T4/(T$3+T$4),"") -> 0.65
O5: Total / Moy. | P5: =SUM(P3:P4) -> 9 | Q5: =IF(SUMIF($K$15:$K$132,SaisonDeb,$G$15:$G$132)>0,SUMIF($K$15:$K$132,SaisonDeb,$F$15:$F$132)/SUMIF($K$15:$K$132,SaisonDeb,$G$15:$G$132),"") -> 0.8085106383 | R5: =SUM(R3:R4) -> 11 | S5: =IF(SUMIF($K$15:$K$132,SaisonFin,$G$15:$G$132)>0,SUMIF($K$15:$K$132,SaisonFin,$F$15:$F$132)/SUMIF($K$15:$K$132,SaisonFin,$G$15:$G$132),"") -> 1.019930676 | T5: =SUM(T3:T4) -> 20 | U5: =IF(SUM($G$15:$G$132)>0,SUM($F$15:$F$132)/SUM($G$15:$G$132),"") -> 0.9200182815 | V5: =IF(SUMIF($K$15:$K$36,SaisonDeb,$G$15:$G$36)+SUMIF($K$15:$K$36,SaisonFin,$G$15:$G$36)>0,(SUMIF($K$15:$K$36,SaisonDeb,$F$15:$F$36)+SUMIF($K$15:$K$36,SaisonFin,$F$15:$F$36))/(SUMIF($K$15:$K$36,SaisonDeb,$G$15:$G$36)+SUMIF($K$15:$K$36,SaisonFin,$G$15:$G$36)),"") -> 0.9200182815
N6: Sets | O6: Gagnés | P6: =SUMIF($K$15:$K$132,SaisonDeb,$D$15:$D$132) -> 3 | Q6: =IF(P$6+P$7>0,P6/(P$6+P$7),"") -> 0.3333333333 | R6: =SUMIF($K$15:$K$132,SaisonFin,$D$15:$D$132) -> 4 | S6: =IF(R$6+R$7>0,R6/(R$6+R$7),"") -> 0.3636363636 | T6: =SUM($D$15:$D$132) -> 7 | U6: =IF(T$6+T$7>0,T6/(T$6+T$7),"") -> 0.35
O7: Perdus | P7: =SUMIF($K$15:$K$132,SaisonDeb,$E$15:$E$132) -> 6 | Q7: =IF(P$6+P$7>0,P7/(P$6+P$7),"") -> 0.6666666667 | R7: =SUMIF($K$15:$K$132,SaisonFin,$E$15:$E$132) -> 7 | S7: =IF(R$6+R$7>0,R7/(R$6+R$7),"") -> 0.6363636364 | T7: =SUM($E$15:$E$132) -> 13 | U7: =IF(T$6+T$7>0,T7/(T$6+T$7),"") -> 0.65
A8: Récapitulatif joueurs | O8: Total | P8: =SUM(P6:P7) -> 9 | R8: =SUM(R6:R7) -> 11 | T8: =SUM(T6:T7) -> 20
A15: Joueur | B15: Adversaire | C15: G/P | D15: Sets gagnés | E15: Sets perdus | F15: pts marqués | G15: pts subis | H15: Date | I15: Compétition | J15: Phase | K15: Saison
A16: BOUTON Gérard | B16: CHARLES Dominique | C16: P | D16: 0 | E16: 1 | F16: 80 | G16: 120 | H16: 2021-10-02 | I16: T 1 OISE - Qualifications R 1 - Tour principal - MERU | J16: 1/4 Finale | K16: =IF(H16<>"",IF(MONTH(H16)>MoisRef,YEAR(H16)&"-"&YEAR(H16)+1,YEAR(H16)-1&"-"&YEAR(H16)),"") -> 2021-2022 | P16: =IF($K16=P$1,COUNTIF($C16,"G"),0) -> 0 | R16: =IF($K16=R$1,COUNTIF($C16,"G"),0) -> 0
A17: BOUTON Gérard | B17: DESCLAIR Guy | C17: G | D17: 1 | E17: 0 | F17: 120 | G17: 117 | H17: 2021-10-02 | I17: T 1 OISE - Qualifications R 1 - Tour principal - MERU | J17: Qualifications | K17: 2021-2022 | P17: 1 | R17: 0
A18: BOUTON Gérard | B18: LAMARQUE Yves | C18: G | D18: 1 | E18: 0 | F18: 120 | G18: 115 | H18: 2021-10-02 | I18: T 1 OISE - Qualifications R 1 - Tour principal - MERU | J18: Qualifications | K18: 2021-2022 | P18: 1 | R18: 0
A19: BOUTON Gérard | B19: DESCLAIR Guy | C19: P | D19: 0 | E19: 1 | F19: 45 | G19: 120 | H19: 2021-12-18 | I19: T 2 OISE - Qualifications R 1 - Tour principal - CREPY | J19: Qualifications | K19: 2021-2022 | P19: 0 | R19: 0
A20: BOUTON Gérard | B20: DESCLAIR Guy | C20: P | D20: 0 | E20: 1 | F20: 75 | G20: 120 | H20: 2021-12-18 | I20: T 2 OISE - Qualifications R 1 - Tour principal - CREPY | J20: 1/4 Finale | K20: 2021-2022 | P20: 0 | R20: 0
A21: BOUTON Gérard | B21: MURIOT Jean-Pierre | C21: G | D21: 1 | E21: 0 | F21: 120 | G21: 82 | H21: 2021-12-18 | I21: T 2 OISE - Qualifications R 1 - Tour principal - CREPY | J21: Qualifications | K21: 2021-2022 | P21: 1 | R21: 0
A22: BOUTON Gérard | B22: BOZON Robert | C22: P | D22: 0 | E22: 1 | F22: 71 | G22: 120 | H22: 2022-04-16 | I22: T 4 OISE - Qualifications R 1 - Tour Principal - BEAUVAIS | J22: Qualifications | K22: 2021-2022 | P22: 0 | R22: 0
A23: BOUTON Gérard | B23: HERTOUX Didier | C23: P | D23: 0 | E23: 1 | F23: 101 | G23: 120 | H23: 2022-04-16 | I23: T 4 OISE - Qualifications R 1 - Tour Principal - BEAUVAIS | J23: Qualifications | K23: 2021-2022 | P23: 0 | R23: 0
A24: BOUTON Gérard | B24: NAHIRNYJ Alexi | C24: P | D24: 0 | E24: 1 | F24: 104 | G24: 120 | H24: 2022-04-16 | I24: T 4 OISE - Qualifications R 1 - Tour Principal - BEAUVAIS | J24: 1/4 Finale | K24: 2021-2022 | P24: 0 | R24: 0
A25: BOUTON Gérard | B25: CHENAL Gérard | C25: G | D25: 1 | E25: 0 | F25: 120 | G25: 80 | H25: 2022-12-03 | I25: T 2 OISE - Qualifications R 1 - Tour Principal - SENLIS | J25: 1/4 Finale | K25: 2022-2023 | P25: 0 | R25: 1
A26: BOUTON Gérard | B26: HERTOUX Didier | C26: P | D26: 0 | E26: 1 | F26: 117 | G26: 120 | H26: 2022-12-03 | I26: T 2 OISE - Qualifications R 1 - Tour Principal - SENLIS | J26: Qualifications | K26: 2022-2023 | P26: 0 | R26: 0
A27: BOUTON Gérard | B27: PELLETIER Steeve | C27: G | D27: 1 | E27: 0 | F27: 120 | G27: 26 | H27: 2022-12-03 | I27: T 2 OISE - Qualifications R 1 - Tour Principal - SENLIS | J27: Qualifications | K27: 2022-2023 | P27: 0 | R27: 1
A28: BOUTON Gérard | B28: ZANOTTI Michel | C28: P | D28: 0 | E28: 1 | F28: 89 | G28: 120 | H28: 2022-12-03 | I28: T 2 OISE - Qualifications R 1 - Tour Principal - SENLIS | J28: 1/2 Finale | K28: 2022-2023 | P28: 0 | R28: 0
A29: BOUTON Gérard | B29: CUNIN Mickael | C29: P | D29: 0 | E29: 1 | F29: 102 | G29: 120 | H29: 2023-02-18 | I29: T 3 OISE - Qualifications R 1 - Tour Principal - BEAUVAIS | J29: Qualifications | K29: 2022-2023 | P29: 0 | R29: 0
A30: BOUTON Gérard | B30: GERONIMI Thierry | C30: P | D30: 0 | E30: 1 | F30: 116 | G30: 120 | H30: 2023-02-18 | I30: T 3 OISE - Qualifications R 1 - Tour Principal - BEAUVAIS | J30: Qualifications | K30: 2022-2023 | P30: 0 | R30: 0
A31: BOUTON Gérard | B31: CHENAL Gérard | C31: G | D31: 1 | E31: 0 | F31: 120 | G31: 103 | H31: 2023-03-18 | I31: T 4 OISE - Qualifications R 1 - Tour Principal - CREPY | J31: Qualifications | K31: 2022-2023 | P31: 0 | R31: 1
A32: BOUTON Gérard | B32: CUNIN Mickael | C32: P | D32: 0 | E32: 1 | F32: 100 | G32: 120 | H32: 2023-03-18 | I32: T 4 OISE - Qualifications R 1 - Tour Principal - CREPY | J32: 1/4 Finale | K32: 2022-2023 | P32: 0 | R32: 0
A33: BOUTON Gérard | B33: NAHIRNYJ Alexi | C33: P | D33: 0 | E33: 1 | F33: 78 | G33: 120 | H33: 2023-03-18 | I33: T 4 OISE - Qualifications R 1 - Tour Principal - CREPY | J33: Qualifications | K33: 2022-2023 | P33: 0 | R33: 0
A34: BOUTON Gérard | B34: DIOT Alain | C34: G | D34: 1 | E34: 0 | F34: 120 | G34: 105 | H34: 2022-10-29 | I34: T 1 OISE - Qualifications R 1 - Tour Principal - MERU | J34: Qualifications | K34: 2022-2023 | P34: 0 | R34: 1
A35: BOUTON Gérard | B35: DIOT Alain | C35: P | D35: 0 | E35: 1 | F35: 95 | G35: 120 | H35: 2022-10-29 | I35: T 1 OISE - Qualifications R 1 - Tour Principal - MERU | J35: Qualifications | K35: 2022-2023 | P35: 0 | R35: 0
A36: Fin des données | P36: =IF($K36=P$1,COUNTIF($C36,"G"),0) -> 0 | R36: =IF($K36=R$1,COUNTIF($C36,"G"),0) -> 0

Sheet BOZON Robert
A1: BOZON Robert | P1: =SaisonDeb -> 2021-2022 | R1: =SaisonFin -> 2022-2023 | T1: Toutes saisons
P2: Nombre | Q2: %age | R2: Nombre | S2: %age | T2: Nombre | U2: %age
N3: Matchs | O3: Gagnés | P3: =SUM(P$15:P$140) -> 12 | Q3: =IF(P$3+P$4>0,P3/(P$3+P$4),"") -> 0.75 | R3: =SUM(R$15:R$140) -> 1 | S3: =IF(R$3+R$4>0,R3/(R$3+R$4),"") -> 0.3333333333 | T3: =COUNTIF($C$15:$C$140,"G") -> 15 | U3: =IF(T$3+T$4>0,T3/(T$3+T$4),"") -> 0.5357142857
O4: Perdus | P4: =COUNTIF($K$15:$M$140,SaisonDeb)-P3 -> 4 | Q4: =IF(P$3+P$4>0,P4/(P$3+P$4),"") -> 0.25 | R4: =COUNTIF($K$15:$K$140,SaisonFin)-R3 -> 2 | S4: =IF(R$3+R$4>0,R4/(R$3+R$4),"") -> 0.6666666667 | T4: =COUNTIF($C$15:$C$140,"P") -> 13 | U4: =IF(T$3+T$4>0,T4/(T$3+T$4),"") -> 0.4642857143
O5: Total / Moy. | P5: =SUM(P3:P4) -> 16 | Q5: =IF(SUMIF($K$15:$K$140,SaisonDeb,$G$15:$G$140)>0,SUMIF($K$15:$K$140,SaisonDeb,$F$15:$F$140)/SUMIF($K$15:$K$140,SaisonDeb,$G$15:$G$140),"") -> 1.260695187 | R5: =SUM(R3:R4) -> 3 | S5: =IF(SUMIF($K$15:$K$140,SaisonFin,$G$15:$G$140)>0,SUMIF($K$15:$K$140,SaisonFin,$F$15:$F$140)/SUMIF($K$15:$K$140,SaisonFin,$G$15:$G$140),"") -> 0.9643916914 | T5: =SUM(T3:T4) -> 28 | U5: =IF(SUM($G$15:$G$140)>0,SUM($F$15:$F$140)/SUM($G$15:$G$140),"") -> 1.07841752 | V5: =IF(SUMIF($K$15:$K$44,SaisonDeb,$G$15:$G$44)+SUMIF($K$15:$K$44,SaisonFin,$G$15:$G$44)>0,(SUMIF($K$15:$K$44,SaisonDeb,$F$15:$F$44)+SUMIF($K$15:$K$44,SaisonFin,$F$15:$F$44))/(SUMIF($K$15:$K$44,SaisonDeb,$G$15:$G$44)+SUMIF($K$15:$K$44,SaisonFin,$G$15:$G$44)),"") -> 1.206219313
N6: Sets | O6: Gagnés | P6: =SUMIF($K$15:$K$140,SaisonDeb,$D$15:$D$140) -> 15 | Q6: =IF(P$6+P$7>0,P6/(P$6+P$7),"") -> 0.75 | R6: =SUMIF($K$15:$K$140,SaisonFin,$D$15:$D$140) -> 1 | S6: =IF(R$6+R$7>0,R6/(R$6+R$7),"") -> 0.3333333333 | T6: =SUM($D$15:$D$140) -> 22 | U6: =IF(T$6+T$7>0,T6/(T$6+T$7),"") -> 0.5641025641
O7: Perdus | P7: =SUMIF($K$15:$K$140,SaisonDeb,$E$15:$E$140) -> 5 | Q7: =IF(P$6+P$7>0,P7/(P$6+P$7),"") -> 0.25 | R7: =SUMIF($K$15:$K$140,SaisonFin,$E$15:$E$140) -> 2 | S7: =IF(R$6+R$7>0,R7/(R$6+R$7),"") -> 0.6666666667 | T7: =SUM($E$15:$E$140) -> 17 | U7: =IF(T$6+T$7>0,T7/(T$6+T$7),"") -> 0.4358974359
A8: Récapitulatif joueurs | O8: Total | P8: =SUM(P6:P7) -> 20 | R8: =SUM(R6:R7) -> 3 | T8: =SUM(T6:T7) -> 39
A15: Joueur | B15: Adversaire | C15: G/P | D15: Sets gagnés | E15: Sets perdus | F15: pts marqués | G15: pts subis | H15: Date | I15: Compétition | J15: Phase | K15: Saison
A16: BOZON Robert | B16: ALAZARD Philippe | C16: P | D16: 1 | E16: 2 | F16: 162 | G16: 167 | H16: 2018-11-24 | I16: 5 Q - T 3 OISE 2018-19 - R 1 - TOURNOI PRINCIPAL - MERU | J16: 1/4 Finale | K16: =IF(H16<>"",IF(MONTH(H16)>MoisRef,YEAR(H16)&"-"&YEAR(H16)+1,YEAR(H16)-1&"-"&YEAR(H16)),"") -> 2018-2019 | P16: =IF($K16=P$1,COUNTIF($C16,"G"),0) -> 0 | R16: =IF($K16=R$1,COUNTIF($C16,"G"),0) -> 0
A17: BOZON Robert | B17: DESCLAIR Guy | C17: P | D17: 1 | E17: 2 | F17: 142 | G17: 160 | H17: 2018-11-24 | I17: 5 Q - T 3 OISE 2018-19 - R 1 - TOURNOI PRINCIPAL - MERU | J17: Qualifications | K17: 2018-2019 | P17: 0 | R17: 0
A18: BOZON Robert | B18: TALEC Pierre | C18: G | D18: 2 | E18: 0 | F18: 120 | G18: 99 | H18: 2018-11-24 | I18: 5 Q - T 3 OISE 2018-19 - R 1 - TOURNOI PRINCIPAL - MERU | J18: Qualifications | K18: 2018-2019 | P18: 0 | R18: 0
A19: BOZON Robert | B19: COUPLET Valentin | C19: P | D19: 0 | E19: 1 | F19: 53 | G19: 100 | H19: 2020-01-11 | I19: CD60 R1 - T3 - Tour Principal - CREPY | J19: Qualifications | K19: 2019-2020 | P19: 0 | R19: 0
A20: BOZON Robert | B20: LAMARQUE Yves | C20: P | D20: 0 | E20: 1 | F20: 73 | G20: 100 | H20: 2020-01-11 | I20: CD60 R1 - T3 - Tour Principal - CREPY | J20: Qualifications | K20: 2019-2020 | P20: 0 | R20: 0
A21: BOZON Robert | B21: DUCHATEAU Jean-Pierre | C21: P | D21: 0 | E21: 1 | F21: 71 | G21: 100 | H21: 2020-02-15 | I21: CD60 R1 - T 4 - Tour Principal - SENLIS | J21: Qualifications | K21: 2019-2020 | P21: 0 | R21: 0
A22: BOZON Robert | B22: LALOT Gérard | C22: P | D22: 0 | E22: 1 | F22: 77 | G22: 100 | H22: 2020-02-15 | I22: CD60 R1 - T 4 - Tour Principal - SENLIS | J22: Qualifications | K22: 2019-2020 | P22: 0 | R22: 0
A23: BOZON Robert | B23: ALAZARD Philippe | C23: P | D23: 0 | E23: 2 | F23: 24 | G23: 120 | H23: 2019-11-23 | I23: CD60 R1 - T2 - Tour Principal - MERU | J23: Qualifications | K23: 2019-2020 | P23: 0 | R23: 0
A24: BOZON Robert | B24: BARTHON Aurélie | C24: G | D24: 2 | E24: 0 | F24: 120 | G24: 52 | H24: 2019-11-23 | I24: CD60 R1 - T2 - Tour Principal - MERU | J24: Qualifications | K24: 2019-2020 | P24: 0 | R24: 0
A25: BOZON Robert | B25: BARBE Philippe | C25: P | D25: 0 | E25: 1 | F25: 73 | G25: 120 | H25: 2021-10-02 | I25: T 1 OISE - Qualifications R 1 - Tour principal - MERU | J25: Finale | K25: 2021-2022 | P25: 0 | R25: 0
A26: BOZON Robert | B26: LAMARQUE Yves | C26: G | D26: 1 | E26: 0 | F26: 120 | G26: 103 | H26: 2021-10-02 | I26: T 1 OISE - Qualifications R 1 - Tour principal - MERU | J26: 1/4 Finale | K26: 2021-2022 | P26: 1 | R26: 0
A27: BOZON Robert | B27: MARTIN Denis | C27: G | D27: 1 | E27: 0 | F27: 120 | G27: 82 | H27: 2021-10-02 | I27: T 1 OISE - Qualifications R 1 - Tour principal - MERU | J27: Qualifications | K27: 2021-2022 | P27: 1 | R27: 0
A28: BOZON Robert | B28: MAUGER Jean-Paul | C28: G | D28: 1 | E28: 0 | F28: 120 | G28: 119 | H28: 2021-10-02 | I28: T 1 OISE - Qualifications R 1 - Tour principal - MERU | J28: 1/2 Finale | K28: 2021-2022 | P28: 1 | R28: 0
A29: BOZON Robert | B29: NAHIRNYJ Alexi | C29: G | D29: 1 | E29: 0 | F29: 120 | G29: 107 | H29: 2021-10-02 | I29: T 1 OISE - Qualifications R 1 - Tour principal - MERU | J29: Qualifications | K29: 2021-2022 | P29: 1 | R29: 0
A30: BOZON Robert | B30: BOUIGES Armelle | C30: G | D30: 1 | E30: 0 | F30: 120 | G30: 55 | H30: 2021-12-18 | I30: T 2 OISE - Qualifications R 1 - Tour principal - CREPY | J30: Qualifications | K30: 2021-2022 | P30: 1 | R30: 0
A31: BOZON Robert | B31: HERTOUX Didier | C31: G | D31: 1 | E31: 0 | F31: 120 | G31: 79 | H31: 2021-12-18 | I31: T 2 OISE - Qualifications R 1 - Tour principal - CREPY | J31: Qualifications | K31: 2021-2022 | P31: 1 | R31: 0
A32: BOZON Robert | B32: HERTOUX Didier | C32: P | D32: 0 | E32: 1 | F32: 115 | G32: 120 | H32: 2021-12-18 | I32: T 2 OISE - Qualifications R 1 - Tour principal - CREPY | J32: 1/4 Finale | K32: 2021-2022 | P32: 0 | R32: 0
A33: BOZON Robert | B33: MASSARD Patrick | C33: P | D33: 0 | E33: 1 | F33: 89 | G33: 120 | H33: 2022-12-29 | I33: T 3 OISE - Qualifications R 1 - Tour principal - SENLIS | J33: Qualifications | K33: 2022-2023 | P33: 0 | R33: 0
A34: BOZON Robert | B34: NAHIRNYJ Alexi | C34: P | D34: 0 | E34: 1 | F34: 116 | G34: 120 | H34: 2022-12-29 | I34: T 3 OISE - Qualifications R 1 - Tour principal - SENLIS | J34: 1/2 Finale | K34: 2022-2023 | P34: 0 | R34: 0
A35: BOZON Robert | B35: ZANOTTI Michel | C35: G | D35: 1 | E35: 0 | F35: 120 | G35: 97 | H35: 2022-12-29 | I35: T 3 OISE - Qualifications R 1 - Tour principal - SENLIS | J35: Qualifications | K35: 2022-2023 | P35: 0 | R35: 1
A36: BOZON Robert | B36: BARBE Philippe | C36: G | D36: 1 | E36: 0 | F36: 120 | G36: 58 | H36: 2022-04-16 | I36: T 4 OISE - Qualifications R 1 - Tour Principal - BEAUVAIS | J36: 1/4 Finale | K36: 2021-2022 | P36: 1 | R36: 0
A37: BOZON Robert | B37: BOUTON Gérard | C37: G | D37: 1 | E37: 0 | F37: 120 | G37: 71 | H37: 2022-04-16 | I37: T 4 OISE - Qualifications R 1 - Tour Principal - BEAUVAIS | J37: Qualifications | K37: 2021-2022 | P37: 1 | R37: 0
A38: BOZON Robert | B38: HERTOUX Didier | C38: P | D38: 0 | E38: 1 | F38: 115 | G38: 120 | H38: 2022-04-16 | I38: T 4 OISE - Qualifications R 1 - Tour Principal - BEAUVAIS | J38: Qualifications | K38: 2021-2022 | P38: 0 | R38: 0
A39: BOZON Robert | B39: HERTOUX Didier | C39: G | D39: 1 | E39: 0 | F39: 120 | G39: 72 | H39: 2022-04-16 | I39: T 4 OISE - Qualifications R 1 - Tour Principal - BEAUVAIS | J39: Finale | K39: 2021-2022 | P39: 1 | R39: 0
A40: BOZON Robert | B40: LAMARQUE Yves | C40: G | D40: 1 | E40: 0 | F40: 120 | G40: 99 | H40: 2022-04-16 | I40: T 4 OISE - Qualifications R 1 - Tour Principal - BEAUVAIS | J40: 1/2 Finale | K40: 2021-2022 | P40: 1 | R40: 0
A41: BOZON Robert | B41: HERTOUX Didier | C41: G | D41: 2 | E41: 0 | F41: 120 | G41: 75 | H41: 2022-05-14 | I41: FINALE OISE R 1 - SAISON 21-22 - SENLIS | J41: Qualifications | K41: 2021-2022 | P41: 1 | R41: 0
A42: BOZON Robert | B42: LAMARQUE Yves | C42: G | D42: 2 | E42: 0 | F42: 120 | G42: 49 | H42: 2022-05-14 | I42: FINALE OISE R 1 - SAISON 21-22 - SENLIS | J42: Qualifications | K42: 2021-2022 | P42: 1 | R42: 0
A43: BOZON Robert | B43: NAHIRNYJ Alexi | C43: P | D43: 1 | E43: 2 | F43: 143 | G43: 167 | H43: 2022-05-14 | I43: FINALE OISE R 1 - SAISON 21-22 - SENLIS | J43: 1/2 Finale | K43: 2021-2022 | P43: 0 | R43: 0
A44: Fin des données | P44: 0 | R44: 0

Sheet BUTTI Bertrand
A1: BUTTI Bertrand | P1: =SaisonDeb -> 2021-2022 | R1: =SaisonFin -> 2022-2023 | T1: Toutes saisons
P2: Nombre | Q2: %age | R2: Nombre | S2: %age | T2: Nombre | U2: %age
N3: Matchs | O3: Gagnés | P3: =SUM(P$15:P$149) -> 0 | Q3: =IF(P$3+P$4>0,P3/(P$3+P$4),"") ->  | R3: =SUM(R$15:R$149) -> 0 | S3: =IF(R$3+R$4>0,R3/(R$3+R$4),"") ->  | T3: =COUNTIF($C$15:$C$149,"G") -> 21 | U3: =IF(T$3+T$4>0,T3/(T$3+T$4),"") -> 0.5675675676
O4: Perdus | P4: =COUNTIF($K$15:$M$149,SaisonDeb)-P3 -> 0 | Q4: =IF(P$3+P$4>0,P4/(P$3+P$4),"") ->  | R4: =COUNTIF($K$15:$K$149,SaisonFin)-R3 -> 0 | S4: =IF(R$3+R$4>0,R4/(R$3+R$4),"") ->  | T4: =COUNTIF($C$15:$C$149,"P") -> 16 | U4: =IF(T$3+T$4>0,T4/(T$3+T$4),"") -> 0.4324324324
O5: Total / Moy. | P5: =SUM(P3:P4) -> 0 | Q5: =IF(SUMIF($K$15:$K$149,SaisonDeb,$G$15:$G$149)>0,SUMIF($K$15:$K$149,SaisonDeb,$F$15:$F$149)/SUMIF($K$15:$K$149,SaisonDeb,$G$15:$G$149),"") ->  | R5: =SUM(R3:R4) -> 0 | S5: =IF(SUMIF($K$15:$K$149,SaisonFin,$G$15:$G$149)>0,SUMIF($K$15:$K$149,SaisonFin,$F$15:$F$149)/SUMIF($K$15:$K$149,SaisonFin,$G$15:$G$149),"") ->  | T5: =SUM(T3:T4) -> 37 | U5: =IF(SUM($G$15:$G$149)>0,SUM($F$15:$F$149)/SUM($G$15:$G$149),"") -> 1.037827352 | V5: =IF(SUMIF($K$15:$K$53,SaisonDeb,$G$15:$G$53)+SUMIF($K$15:$K$53,SaisonFin,$G$15:$G$53)>0,(SUMIF($K$15:$K$53,SaisonDeb,$F$15:$F$53)+SUMIF($K$15:$K$53,SaisonFin,$F$15:$F$53))/(SUMIF($K$15:$K$53,SaisonDeb,$G$15:$G$53)+SUMIF($K$15:$K$53,SaisonFin,$G$15:$G$53)),"") -> 
N6: Sets | O6: Gagnés | P6: =SUMIF($K$15:$K$149,SaisonDeb,$D$15:$D$149) -> 0 | Q6: =IF(P$6+P$7>0,P6/(P$6+P$7),"") ->  | R6: =SUMIF($K$15:$K$149,SaisonFin,$D$15:$D$149) -> 0 | S6: =IF(R$6+R$7>0,R6/(R$6+R$7),"") ->  | T6: =SUM($D$15:$D$149) -> 58 | U6: =IF(T$6+T$7>0,T6/(T$6+T$7),"") -> 0.5523809524
O7: Perdus | P7: =SUMIF($K$15:$K$149,SaisonDeb,$E$15:$E$149) -> 0 | Q7: =IF(P$6+P$7>0,P7/(P$6+P$7),"") ->  | R7: =SUMIF($K$15:$K$149,SaisonFin,$E$15:$E$149) -> 0 | S7: =IF(R$6+R$7>0,R7/(R$6+R$7),"") ->  | T7: =SUM($E$15:$E$149) -> 47 | U7: =IF(T$6+T$7>0,T7/(T$6+T$7),"") -> 0.4476190476
A8: Récapitulatif joueurs | O8: Total | P8: =SUM(P6:P7) -> 0 | R8: =SUM(R6:R7) -> 0 | T8: =SUM(T6:T7) -> 105
A15: Joueur | B15: Adversaire | C15: G/P | D15: Sets gagnés | E15: Sets perdus | F15: pts marqués | G15: pts subis | H15: Date | I15: Compétition | J15: Phase | K15: Saison
A16: BUTTI Bertrand | B16: BUTTI EmIlie | C16: P | D16: 1 | E16: 2 | F16: 167 | G16: 170 | H16: 2016-11-19 | I16: 5Q R1 CD02 - T1 - SOISSONS | J16: Qualifications | K16: =IF(H16<>"",IF(MONTH(H16)>MoisRef,YEAR(H16)&"-"&YEAR(H16)+1,YEAR(H16)-1&"-"&YEAR(H16)),"") -> 2016-2017 | P16: =IF($K16=P$1,COUNTIF($C16,"G"),0) -> 0 | R16: =IF($K16=R$1,COUNTIF($C16,"G"),0) -> 0
A17: BUTTI Bertrand | B17: BUTTI EmIlie | C17: P | D17: 0 | E17: 2 | F17: 78 | G17: 120 | H17: 2016-11-19 | I17: 5Q R1 CD02 - T1 - SOISSONS | J17: Qualifications | K17: 2016-2017 | P17: 0 | R17: 0
A18: BUTTI Bertrand | B18: MIQUEE Florine | C18: P | D18: 1 | E18: 2 | F18: 113 | G18: 172 | H18: 2017-01-21 | I18: 5Q R1 CD02 - T3 - st quentin | J18: Qualifications | K18: 2016-2017 | P18: 0 | R18: 0
A19: BUTTI Bertrand | B19: MIQUEE Florine | C19: P | D19: 1 | E19: 2 | F19: 147 | G19: 161 | H19: 2017-01-21 | I19: 5Q R1 CD02 - T3 - st quentin | J19: Qualifications | K19: 2016-2017 | P19: 0 | R19: 0
A20: BUTTI Bertrand | B20: DA SILVA José | C20: G | D20: 2 | E20: 0 | F20: 120 | G20: 80 | H20: 2016-12-17 | I20: 5Q R1 CD02 - T2 - LA FERRE | J20: Qualifications | K20: 2016-2017 | P20: 0 | R20: 0
A21: BUTTI Bertrand | B21: FRISON Michel | C21: G | D21: 2 | E21: 1 | F21: 138 | G21: 146 | H21: 2016-12-17 | I21: 5Q R1 CD02 - T2 - LA FERRE | J21: Qualifications | K21: 2016-2017 | P21: 0 | R21: 0
A22: BUTTI Bertrand | B22: CHOUX André | C22: P | D22: 0 | E22: 3 | F22: 92 | G22: 180 | H22: 2017-03-04 | I22: 5Q R1 CD02 - FINALE CD - SOISSONS | J22: Qualifications | K22: 2016-2017 | P22: 0 | R22: 0
A23: BUTTI Bertrand | B23: FRISON Michel | C23: P | D23: 0 | E23: 3 | F23: 107 | G23: 180 | H23: 2017-03-04 | I23: 5Q R1 CD02 - FINALE CD - SOISSONS | J23: Qualifications | K23: 2016-2017 | P23: 0 | R23: 0
A24: BUTTI Bertrand | B24: BOLLINNE Simon | C24: P | D24: 1 | E24: 2 | F24: 142 | G24: 137 | H24: 2017-11-18 | I24: qualification AISNE R1 - St Q uentin | J24: Qualifications | K24: 2017-2018 | P24: 0 | R24: 0
A25: BUTTI Bertrand | B25: COLAS Gerard | C25: G | D25: 2 | E25: 0 | F25: 120 | G25: 92 | H25: 2017-11-18 | I25: qualification AISNE R1 - St Q uentin | J25: Qualifications | K25: 2017-2018 | P25: 0 | R25: 0
A26: BUTTI Bertrand | B26: HECQ Anthony | C26: G | D26: 2 | E26: 1 | F26: 148 | G26: 135 | H26: 2018-01-27 | I26: Qualifications AISNE R1 - guignicourt | J26: Qualifications | K26: 2017-2018 | P26: 0 | R26: 0
A27: BUTTI Bertrand | B27: HECQ Anthony | C27: G | D27: 2 | E27: 0 | F27: 120 | G27: 69 | H27: 2018-01-27 | I27: Qualifications AISNE R1 - guignicourt | J27: Qualifications | K27: 2017-2018 | P27: 0 | R27: 0
A28: BUTTI Bertrand | B28: BOLLINNE Simon | C28: G | D28: 3 | E28: 0 | F28: 180 | G28: 119 | H28: 2018-03-03 | I28: FINALE AISNE R1 - guignicourt | J28: Qualifications | K28: 2017-2018 | P28: 0 | R28: 0
A29: BUTTI Bertrand | B29: COLAS Gerard | C29: G | D29: 3 | E29: 0 | F29: 180 | G29: 110 | H29: 2018-03-03 | I29: FINALE AISNE R1 - guignicourt | J29: Qualifications | K29: 2017-2018 | P29: 0 | R29: 0
A30: BUTTI Bertrand | B30: COLAS Gerard | C30: G | D30: 3 | E30: 1 | F30: 202 | G30: 205 | H30: 2018-03-03 | I30: FINALE AISNE R1 - guignicourt | J30: 1/2 Finale | K30: 2017-2018 | P30: 0 | R30: 0
A31: BUTTI Bertrand | B31: MIQUEE Florine | C31: G | D31: 3 | E31: 1 | F31: 227 | G31: 169 | H31: 2018-03-03 | I31: FINALE AISNE R1 - guignicourt | J31: Finale | K31: 2017-2018 | P31: 0 | R31: 0
A32: BUTTI Bertrand | B32: CUVILLIER François | C32: P | D32: 1 | E32: 3 | F32: 180 | G32: 204 | H32: 2018-04-29 | I32: Finale LIGUE 5 QUILLES R1 - CREPY EN VALOIS | J32: Qualifications | K32: 2017-2018 | P32: 0 | R32: 0
A33: BUTTI Bertrand | B33: FAURE Stéphane | C33: P | D33: 0 | E33: 3 | F33: 91 | G33: 180 | H33: 2018-04-29 | I33: Finale LIGUE 5 QUILLES R1 - CREPY EN VALOIS | J33: Qualifications | K33: 2017-2018 | P33: 0 | R33: 0
A34: BUTTI Bertrand | B34: MANTEN Paul | C34: P | D34: 1 | E34: 3 | F34: 181 | G34: 228 | H34: 2018-04-29 | I34: Finale LIGUE 5 QUILLES R1 - CREPY EN VALOIS | J34: Qualifications | K34: 2017-2018 | P34: 0 | R34: 0
A35: BUTTI Bertrand | B35: MARTEL Bruno | C35: G | D35: 3 | E35: 0 | F35: 180 | G35: 147 | H35: 2018-04-29 | I35: Finale LIGUE 5 QUILLES R1 - CREPY EN VALOIS | J35: Qualifications | K35: 2017-2018 | P35: 0 | R35: 0
A36: BUTTI Bertrand | B36: BOULINGUEZ Yves | C36: P | D36: 1 | E36: 2 | F36: 162 | G36: 166 | H36: 2017-12-16 | I36: Qualifications AISNE R1 - SOISSONS | J36: Qualifications | K36: 2017-2018 | P36: 0 | R36: 0
A37: BUTTI Bertrand | B37: COUSIN Francis | C37: G | D37: 2 | E37: 0 | F37: 120 | G37: 72 | H37: 2017-12-16 | I37: Qualifications AISNE R1 - SOISSONS | J37: Qualifications | K37: 2017-2018 | P37: 0 | R37: 0
A38: BUTTI Bertrand | B38: BOULINGUEZ Yves | C38: G | D38: 2 | E38: 0 | F38: 120 | G38: 87 | H38: 2018-11-10 | I38: T1 CD02 - R1 - SOISSONS | J38: Qualifications | K38: 2018-2019 | P38: 0 | R38: 0
A39: BUTTI Bertrand | B39: COUSIN Francis | C39: G | D39: 2 | E39: 0 | F39: 120 | G39: 84 | H39: 2018-11-10 | I39: T1 CD02 - R1 - SOISSONS | J39: Qualifications | K39: 2018-2019 | P39: 0 | R39: 0
A40: BUTTI Bertrand | B40: DELFOSSE Fabien | C40: P | D40: 0 | E40: 2 | F40: 97 | G40: 120 | H40: 2018-11-10 | I40: T1 CD02 - R1 - SOISSONS | J40: Qualifications | K40: 2018-2019 | P40: 0 | R40: 0
A41: BUTTI Bertrand | B41: BOULINGUEZ Yves | C41: G | D41: 2 | E41: 1 | F41: 168 | G41: 148 | H41: 2018-12-15 | I41: T2 CD02 - R1 - ST QUENTIN | J41: Qualifications | K41: 2018-2019 | P41: 0 | R41: 0
A42: BUTTI Bertrand | B42: COUSIN Francis | C42: P | D42: 1 | E42: 2 | F42: 159 | G42: 125 | H42: 2018-12-15 | I42: T2 CD02 - R1 - ST QUENTIN | J42: Qualifications | K42: 2018-2019 | P42: 0 | R42: 0
A43: BUTTI Bertrand | B43: DELFOSSE Fabien | C43: P | D43: 0 | E43: 2 | F43: 103 | G43: 120 | H43: 2018-12-15 | I43: T2 CD02 - R1 - ST QUENTIN | J43: Qualifications | K43: 2018-2019 | P43: 0 | R43: 0
A44: BUTTI Bertrand | B44: BOULINGUEZ Yves | C44: G | D44: 2 | E44: 1 | F44: 159 | G44: 112 | H44: 2019-01-19 | I44: T3 CD02 - R1 - LA FERE | J44: Qualifications | K44: 2018-2019 | P44: 0 | R44: 0
A45: BUTTI Bertrand | B45: COUSIN Francis | C45: G | D45: 2 | E45: 0 | F45: 120 | G45: 88 | H45: 2019-01-19 | I45: T3 CD02 - R1 - LA FERE | J45: Qualifications | K45: 2018-2019 | P45: 0 | R45: 0
A46: BUTTI Bertrand | B46: DELFOSSE Fabien | C46: P | D46: 1 | E46: 2 | F46: 158 | G46: 159 | H46: 2019-01-19 | I46: T3 CD02 - R1 - LA FERE | J46: Qualifications | K46: 2018-2019 | P46: 0 | R46: 0
A47: BUTTI Bertrand | B47: COUSIN Francis | C47: G | D47: 3 | E47: 1 | F47: 222 | G47: 174 | H47: 2019-02-24 | I47: Finale CD02 5Q R1 - ST QUENTIN | J47: Poule unique | K47: 2018-2019 | P47: 0 | R47: 0
A48: BUTTI Bertrand | B48: DELFOSSE Fabien | C48: P | D48: 1 | E48: 3 | F48: 163 | G48: 218 | H48: 2019-02-24 | I48: Finale CD02 5Q R1 - ST QUENTIN | J48: Poule unique | K48: 2018-2019 | P48: 0 | R48: 0
A49: BUTTI Bertrand | B49: BABOLEIN Clément | C49: G | D49: 2 | E49: 1 | F49: 161 | G49: 158 | H49: 2019-10-19 | I49: T1 CD02 R1 - Billard Club de Soissons | J49: Qualifications | K49: 2019-2020 | P49: 0 | R49: 0
A50: BUTTI Bertrand | B50: CASIER Philippe | C50: G | D50: 2 | E50: 0 | F50: 120 | G50: 99 | H50: 2019-10-19 | I50: T1 CD02 R1 - Billard Club de Soissons | J50: Qualifications | K50: 2019-2020 | P50: 0 | R50: 0
A51: BUTTI Bertrand | B51: BABOLEIN Clément | C51: G | D51: 2 | E51: 0 | F51: 120 | G51: 92 | H51: 2019-12-07 | I51: T2 CD02 R1 - Saint-Quentin | J51: Qualifications | K51: 2019-2020 | P51: 0 | R51: 0
A52: BUTTI Bertrand | B52: SIMON Philippe | C52: G | D52: 2 | E52: 1 | F52: 165 | G52: 129 | H52: 2019-12-07 | I52: T2 CD02 R1 - Saint-Quentin | J52: Qualifications | K52: 2019-2020 | P52: 0 | R52: 0
A53: Fin des données | P53: =IF($K53=P$1,COUNTIF($C53,"G"),0) -> 0 | R53: =IF($K53=R$1,COUNTIF($C53,"G"),0) -> 0

Sheet BUTTI EmIlie
A1: BUTTI EmIlie | P1: =SaisonDeb -> 2021-2022 | R1: =SaisonFin -> 2022-2023 | T1: Toutes saisons
P2: Nombre | Q2: %age | R2: Nombre | S2: %age | T2: Nombre | U2: %age
N3: Matchs | O3: Gagnés | P3: =SUM(P$15:P$139) -> 6 | Q3: =IF(P$3+P$4>0,P3/(P$3+P$4),"") -> 0.375 | R3: =SUM(R$15:R$139) -> 3 | S3: =IF(R$3+R$4>0,R3/(R$3+R$4),"") -> 0.2727272727 | T3: =COUNTIF($C$15:$C$139,"G") -> 9 | U3: =IF(T$3+T$4>0,T3/(T$3+T$4),"") -> 0.3333333333
O4: Perdus | P4: =COUNTIF($K$15:$M$139,SaisonDeb)-P3 -> 10 | Q4: =IF(P$3+P$4>0,P4/(P$3+P$4),"") -> 0.625 | R4: =COUNTIF($K$15:$K$139,SaisonFin)-R3 -> 8 | S4: =IF(R$3+R$4>0,R4/(R$3+R$4),"") -> 0.7272727273 | T4: =COUNTIF($C$15:$C$139,"P") -> 18 | U4: =IF(T$3+T$4>0,T4/(T$3+T$4),"") -> 0.6666666667
O5: Total / Moy. | P5: =SUM(P3:P4) -> 16 | Q5: =IF(SUMIF($K$15:$K$139,SaisonDeb,$G$15:$G$139)>0,SUMIF($K$15:$K$139,SaisonDeb,$F$15:$F$139)/SUMIF($K$15:$K$139,SaisonDeb,$G$15:$G$139),"") -> 0.8705715635 | R5: =SUM(R3:R4) -> 11 | S5: =IF(SUMIF($K$15:$K$139,SaisonFin,$G$15:$G$139)>0,SUMIF($K$15:$K$139,SaisonFin,$F$15:$F$139)/SUMIF($K$15:$K$139,SaisonFin,$G$15:$G$139),"") -> 0.9496890899 | T5: =SUM(T3:T4) -> 27 | U5: =IF(SUM($G$15:$G$139)>0,SUM($F$15:$F$139)/SUM($G$15:$G$139),"") -> 0.9065877509 | V5: =IF(SUMIF($K$15:$K$43,SaisonDeb,$G$15:$G$43)+SUMIF($K$15:$K$43,SaisonFin,$G$15:$G$43)>0,(SUMIF($K$15:$K$43,SaisonDeb,$F$15:$F$43)+SUMIF($K$15:$K$43,SaisonFin,$F$15:$F$43))/(SUMIF($K$15:$K$43,SaisonDeb,$G$15:$G$43)+SUMIF($K$15:$K$43,SaisonFin,$G$15:$G$43)),"") -> 0.9065877509
N6: Sets | O6: Gagnés | P6: =SUMIF($K$15:$K$139,SaisonDeb,$D$15:$D$139) -> 15 | Q6: =IF(P$6+P$7>0,P6/(P$6+P$7),"") -> 0.3947368421 | R6: =SUMIF($K$15:$K$139,SaisonFin,$D$15:$D$139) -> 12 | S6: =IF(R$6+R$7>0,R6/(R$6+R$7),"") -> 0.3428571429 | T6: =SUM($D$15:$D$139) -> 27 | U6: =IF(T$6+T$7>0,T6/(T$6+T$7),"") -> 0.3698630137
O7: Perdus | P7: =SUMIF($K$15:$K$139,SaisonDeb,$E$15:$E$139) -> 23 | Q7: =IF(P$6+P$7>0,P7/(P$6+P$7),"") -> 0.6052631579 | R7: =SUMIF($K$15:$K$139,SaisonFin,$E$15:$E$139) -> 23 | S7: =IF(R$6+R$7>0,R7/(R$6+R$7),"") -> 0.6571428571 | T7: =SUM($E$15:$E$139) -> 46 | U7: =IF(T$6+T$7>0,T7/(T$6+T$7),"") -> 0.6301369863
A8: Récapitulatif joueurs | O8: Total | P8: =SUM(P6:P7) -> 38 | R8: =SUM(R6:R7) -> 35 | T8: =SUM(T6:T7) -> 73
A15: Joueur | B15: Adversaire | C15: G/P | D15: Sets gagnés | E15: Sets perdus | F15: pts marqués | G15: pts subis | H15: Date | I15: Compétition | J15: Phase | K15: Saison
A16: BUTTI EmIlie | B16: COUSIN Francis | C16: P | D16: 0 | E16: 2 | F16: 94 | G16: 120 | H16: 2021-11-27 | I16: T2 CD02 R1 - Billard Club de Soissons | J16: Qualifications | K16: =IF(H16<>"",IF(MONTH(H16)>MoisRef,YEAR(H16)&"-"&YEAR(H16)+1,YEAR(H16)-1&"-"&YEAR(H16)),"") -> 2021-2022 | P16: =IF($K16=P$1,COUNTIF($C16,"G"),0) -> 0 | R16: =IF($K16=R$1,COUNTIF($C16,"G"),0) -> 0
A17: BUTTI EmIlie | B17: SIMON Philippe | C17: P | D17: 1 | E17: 2 | F17: 165 | G17: 157 | H17: 2021-11-27 | I17: T2 CD02 R1 - Billard Club de Soissons | J17: Qualifications | K17: 2021-2022 | P17: 0 | R17: 0
A18: BUTTI EmIlie | B18: BABOLEIN Clément | C18: G | D18: 2 | E18: 0 | F18: 120 | G18: 80 | H18: 2021-10-16 | I18: T1 CD02 R1 - Billard Club de Saint-Quentin | J18: Qualifications | K18: 2021-2022 | P18: 1 | R18: 0
A19: BUTTI EmIlie | B19: COUSIN Francis | C19: P | D19: 1 | E19: 2 | F19: 148 | G19: 175 | H19: 2021-10-16 | I19: T1 CD02 R1 - Billard Club de Saint-Quentin | J19: Qualifications | K19: 2021-2022 | P19: 0 | R19: 0
A20: BUTTI EmIlie | B20: SIMON Philippe | C20: P | D20: 0 | E20: 2 | F20: 69 | G20: 120 | H20: 2021-10-16 | I20: T1 CD02 R1 - Billard Club de Saint-Quentin | J20: Qualifications | K20: 2021-2022 | P20: 0 | R20: 0
A21: BUTTI EmIlie | B21: BABOLEIN Clément | C21: G | D21: 2 | E21: 0 | F21: 120 | G21: 111 | H21: 2022-01-29 | I21: T3 CD02 TOUTE CATEGORIE - Saint-Quentin | J21: Qualifications | K21: 2021-2022 | P21: 1 | R21: 0
A22: BUTTI EmIlie | B22: BUTTI Bertrand | C22: G | D22: 2 | E22: 0 | F22: 120 | G22: 113 | H22: 2022-01-29 | I22: T3 CD02 TOUTE CATEGORIE - Saint-Quentin | J22: Qualifications | K22: 2021-2022 | P22: 1 | R22: 0
A23: BUTTI EmIlie | B23: ROZE Dominique | C23: P | D23: 0 | E23: 2 | F23: 85 | G23: 120 | H23: 2022-01-29 | I23: T3 CD02 TOUTE CATEGORIE - Saint-Quentin | J23: Qualifications | K23: 2021-2022 | P23: 0 | R23: 0
A24: BUTTI EmIlie | B24: DURAND Jéremy | C24: P | D24: 0 | E24: 2 | F24: 43 | G24: 120 | H24: 2022-02-26 | I24: T4 CD02 R1 - Billard Club de Saint-Quentin | J24: Qualifications | K24: 2021-2022 | P24: 0 | R24: 0
A25: BUTTI EmIlie | B25: BUTTI Bertrand | C25: G | D25: 2 | E25: 1 | F25: 174 | G25: 202 | H25: 2022-02-26 | I25: T5 CD02 R1 N1- Billard Club de Saint-Quentin | J25: Qualifications | K25: 2021-2022 | P25: 1 | R25: 0
A26: BUTTI EmIlie | B26: CASIER Philippe | C26: G | D26: 2 | E26: 1 | F26: 172 | G26: 140 | H26: 2022-02-26 | I26: T5 CD02 R1 N1- Billard Club de Saint-Quentin | J26: Qualifications | K26: 2021-2022 | P26: 1 | R26: 0
A27: BUTTI EmIlie | B27: SIMON Philippe | C27: P | D27: 0 | E27: 2 | F27: 103 | G27: 120 | H27: 2022-02-26 | I27: T5 CD02 R1 N1- Billard Club de Saint-Quentin | J27: Qualifications | K27: 2021-2022 | P27: 0 | R27: 0
A28: BUTTI EmIlie | B28: DURAND Jéremy | C28: G | D28: 2 | E28: 1 | F28: 138 | G28: 137 | H28: 2022-02-26 | I28: T5 CD02 R1 N1- Billard Club de Saint-Quentin | J28: Qualifications | K28: 2021-2022 | P28: 1 | R28: 0
A29: BUTTI EmIlie | B29: CASIER Philippe | C29: P | D29: 0 | E29: 2 | F29: 90 | G29: 120 | H29: 2022-04-24 | I29: Finale CD02- Billard Club de Saint-Quentin | J29: 1/4 Finale | K29: 2021-2022 | P29: 0 | R29: 0
A30: BUTTI EmIlie | B30: DURAND Jeremy | C30: P | D30: 1 | E30: 2 | F30: 114 | G30: 162 | H30: 2022-04-24 | I30: Finale CD02- Billard Club de Saint-Quentin | J30: 1/4 Finale | K30: 2021-2022 | P30: 0 | R30: 0
A31: BUTTI EmIlie | B31: SIMON Philippe | C31: P | D31: 0 | E31: 2 | F31: 88 | G31: 120 | H31: 2022-04-24 | I31: Finale CD02- Billard Club de Saint-Quentin | J31: 1/2 Finale | K31: 2021-2022 | P31: 0 | R31: 0
A32: BUTTI EmIlie | B32: COUSIN Francis | C32: P | D32: 1 | E32: 3 | F32: 198 | G32: 220 | H32: 2022-12-03 | I32: T1 CD02 R1 - saint quentin | J32: Qualifications | K32: 2022-2023 | P32: 0 | R32: 0
A33: BUTTI EmIlie | B33: ROZE Dominique | C33: P | D33: 0 | E33: 3 | F33: 157 | G33: 180 | H33: 2022-12-03 | I33: T1 CD02 R1 - saint quentin | J33: Qualifications | K33: 2022-2023 | P33: 0 | R33: 0
A34: BUTTI EmIlie | B34: KUZMA Régis | C34: P | D34: 0 | E34: 2 | F34: 87 | G34: 120 | H34: 2023-01-28 | I34: T2 CD02 R1 poule 2 - SAINT QUENTIN | J34: Qualifications | K34: 2022-2023 | P34: 0 | R34: 0
A35: BUTTI EmIlie | B35: SCHERER Didier | C35: P | D35: 1 | E35: 2 | F35: 157 | G35: 129 | H35: 2023-01-28 | I35: T2 CD02 R1 poule 2 - SAINT QUENTIN | J35: Qualifications | K35: 2022-2023 | P35: 0 | R35: 0
A36: BUTTI EmIlie | B36: FRANCOIS Bernard | C36: P | D36: 0 | E36: 2 | F36: 82 | G36: 120 | H36: 2023-03-25 | I36: T3 CD02 R1 - SAINT QUENTIN | J36: Qualifications | K36: 2022-2023 | P36: 0 | R36: 0
A37: BUTTI EmIlie | B37: KUZMA Régis | C37: G | D37: 2 | E37: 1 | F37: 167 | G37: 122 | H37: 2023-03-25 | I37: T3 CD02 R1 - SAINT QUENTIN | J37: Qualifications | K37: 2022-2023 | P37: 0 | R37: 1
A38: BUTTI EmIlie | B38: LEFEVRE Alexandre | C38: P | D38: 1 | E38: 2 | F38: 143 | G38: 142 | H38: 2023-03-25 | I38: T3 CD02 R1 - SAINT QUENTIN | J38: Qualifications | K38: 2022-2023 | P38: 0 | R38: 0
A39: BUTTI EmIlie | B39: SCHERER Didier | C39: G | D39: 2 | E39: 1 | F39: 138 | G39: 102 | H39: 2023-03-25 | I39: T3 CD02 R1 - SAINT QUENTIN | J39: Qualifications | K39: 2022-2023 | P39: 0 | R39: 1
A40: BUTTI EmIlie | B40: FRANCOIS Bernard | C40: P | D40: 2 | E40: 3 | F40: 251 | G40: 265 | H40: 2023-04-22 | I40: FINALE CD02 R1 - SAINT QUENTIN | J40: Qualifications | K40: 2022-2023 | P40: 0 | R40: 0
A41: BUTTI EmIlie | B41: LEFEVRE Alexandre | C41: P | D41: 0 | E41: 3 | F41: 81 | G41: 180 | H41: 2023-04-22 | I41: FINALE CD02 R1 - SAINT QUENTIN | J41: Qualifications | K41: 2022-2023 | P41: 0 | R41: 0
A42: BUTTI EmIlie | B42: SCHERER Didier | C42: G | D42: 3 | E42: 1 | F42: 219 | G42: 189 | H42: 2023-04-22 | I42: FINALE CD02 R1 - SAINT QUENTIN | J42: Qualifications | K42: 2022-2023 | P42: 0 | R42: 1
A43: Fin des données | P43: =IF($K43=P$1,COUNTIF($C43,"G"),0) -> 0 | R43: =IF($K43=R$1,COUNTIF($C43,"G"),0) -> 0

Sheet CABUZEL Denis
A1: CABUZEL Denis | P1: =SaisonDeb -> 2021-2022 | R1: =SaisonFin -> 2022-2023 | T1: Toutes saisons
P2: Nombre | Q2: %age | R2: Nombre | S2: %age | T2: Nombre | U2: %age
N3: Matchs | O3: Gagnés | P3: =SUM(P$15:P$143) -> 0 | Q3: =IF(P$3+P$4>0,P3/(P$3+P$4),"") ->  | R3: =SUM(R$15:R$143) -> 3 | S3: =IF(R$3+R$4>0,R3/(R$3+R$4),"") -> 0.4285714286 | T3: =COUNTIF($C$15:$C$143,"G") -> 18 | U3: =IF(T$3+T$4>0,T3/(T$3+T$4),"") -> 0.5806451613
O4: Perdus | P4: =COUNTIF($K$15:$M$143,SaisonDeb)-P3 -> 0 | Q4: =IF(P$3+P$4>0,P4/(P$3+P$4),"") ->  | R4: =COUNTIF($K$15:$K$143,SaisonFin)-R3 -> 4 | S4: =IF(R$3+R$4>0,R4/(R$3+R$4),"") -> 0.5714285714 | T4: =COUNTIF($C$15:$C$143,"P") -> 13 | U4: =IF(T$3+T$4>0,T4/(T$3+T$4),"") -> 0.4193548387
O5: Total / Moy. | P5: =SUM(P3:P4) -> 0 | Q5: =IF(SUMIF($K$15:$K$143,SaisonDeb,$G$15:$G$143)>0,SUMIF($K$15:$K$143,SaisonDeb,$F$15:$F$143)/SUMIF($K$15:$K$143,SaisonDeb,$G$15:$G$143),"") ->  | R5: =SUM(R3:R4) -> 7 | S5: =IF(SUMIF($K$15:$K$143,SaisonFin,$G$15:$G$143)>0,SUMIF($K$15:$K$143,SaisonFin,$F$15:$F$143)/SUMIF($K$15:$K$143,SaisonFin,$G$15:$G$143),"") -> 1.221088435 | T5: =SUM(T3:T4) -> 31 | U5: =IF(SUM($G$15:$G$143)>0,SUM($F$15:$F$143)/SUM($G$15:$G$143),"") -> 1.136895353 | V5: =IF(SUMIF($K$15:$K$47,SaisonDeb,$G$15:$G$47)+SUMIF($K$15:$K$47,SaisonFin,$G$15:$G$47)>0,(SUMIF($K$15:$K$47,SaisonDeb,$F$15:$F$47)+SUMIF($K$15:$K$47,SaisonFin,$F$15:$F$47))/(SUMIF($K$15:$K$47,SaisonDeb,$G$15:$G$47)+SUMIF($K$15:$K$47,SaisonFin,$G$15:$G$47)),"") -> 1.221088435
N6: Sets | O6: Gagnés | P6: =SUMIF($K$15:$K$143,SaisonDeb,$D$15:$D$143) -> 0 | Q6: =IF(P$6+P$7>0,P6/(P$6+P$7),"") ->  | R6: =SUMIF($K$15:$K$143,SaisonFin,$D$15:$D$143) -> 5 | S6: =IF(R$6+R$7>0,R6/(R$6+R$7),"") -> 0.5 | T6: =SUM($D$15:$D$143) -> 30 | U6: =IF(T$6+T$7>0,T6/(T$6+T$7),"") -> 0.5555555556
O7: Perdus | P7: =SUMIF($K$15:$K$143,SaisonDeb,$E$15:$E$143) -> 0 | Q7: =IF(P$6+P$7>0,P7/(P$6+P$7),"") ->  | R7: =SUMIF($K$15:$K$143,SaisonFin,$E$15:$E$143) -> 5 | S7: =IF(R$6+R$7>0,R7/(R$6+R$7),"") -> 0.5 | T7: =SUM($E$15:$E$143) -> 24 | U7: =IF(T$6+T$7>0,T7/(T$6+T$7),"") -> 0.4444444444
A8: Récapitulatif joueurs | O8: Total | P8: =SUM(P6:P7) -> 0 | R8: =SUM(R6:R7) -> 10 | T8: =SUM(T6:T7) -> 54
A15: Joueur | B15: Adversaire | C15: G/P | D15: Sets gagnés | E15: Sets perdus | F15: pts marqués | G15: pts subis | H15: Date | I15: Compétition | J15: Phase | K15: Saison
A16: CABUZEL Denis | B16: MALET Eric | C16: G | D16: 1 | E16: 0 | F16: 100 | G16: 60 | H16: 2016-11-26 | I16: 5Q R1 CD80 - T1 | J16: Qualifications | K16: =IF(H16<>"",IF(MONTH(H16)>MoisRef,YEAR(H16)&"-"&YEAR(H16)+1,YEAR(H16)-1&"-"&YEAR(H16)),"") -> 2016-2017 | P16: =IF($K16=P$1,COUNTIF($C16,"G"),0) -> 0 | R16: =IF($K16=R$1,COUNTIF($C16,"G"),0) -> 0
A17: CABUZEL Denis | B17: DELAFOSSE Gilles | C17: G | D17: 1 | E17: 0 | F17: 100 | G17: 91 | H17: 2016-11-26 | I17: 5Q R1 CD80 - T1 | J17: Qualifications | K17: 2016-2017 | P17: 0 | R17: 0
A18: CABUZEL Denis | B18: WARIN Yannick | C18: P | D18: 0 | E18: 1 | F18: 87 | G18: 100 | H18: 2016-11-26 | I18: 5Q R1 CD80 - T1 | J18: Qualifications | K18: 2016-2017 | P18: 0 | R18: 0
A19: CABUZEL Denis | B19: RENAULT Marius | C19: G | D19: 1 | E19: 0 | F19: 100 | G19: 78 | H19: 2016-11-26 | I19: 5Q R1 CD80 - T1 | J19: Qualifications | K19: 2016-2017 | P19: 0 | R19: 0
A20: CABUZEL Denis | B20: HERSELIN Jean-Claude | C20: G | D20: 1 | E20: 0 | F20: 100 | G20: 85 | H20: 2017-01-21 | I20: 5Q R1 CD80 - T2 - ABBEVILLE | J20: Qualifications | K20: 2016-2017 | P20: 0 | R20: 0
A21: CABUZEL Denis | B21: VASSEUR Gaëtan | C21: P | D21: 0 | E21: 1 | F21: 92 | G21: 100 | H21: 2017-01-21 | I21: 5Q R1 CD80 - T2 - ABBEVILLE | J21: Qualifications | K21: 2016-2017 | P21: 0 | R21: 0
A22: CABUZEL Denis | B22: MALET Eric | C22: G | D22: 1 | E22: 0 | F22: 100 | G22: 90 | H22: 2017-01-21 | I22: 5Q R1 CD80 - T2 - ABBEVILLE | J22: Qualifications | K22: 2016-2017 | P22: 0 | R22: 0
A23: CABUZEL Denis | B23: DUBOIS Jean-Bernard | C23: G | D23: 1 | E23: 0 | F23: 100 | G23: 43 | H23: 2017-01-21 | I23: 5Q R1 CD80 - T2 - ABBEVILLE | J23: Qualifications | K23: 2016-2017 | P23: 0 | R23: 0
A24: CABUZEL Denis | B24: VASSEUR Gaëtan | C24: P | D24: 0 | E24: 1 | F24: 97 | G24: 100 | H24: 2017-02-25 | I24: 5Q R1 CD80 - T3 - MOREUIL | J24: Qualifications | K24: 2016-2017 | P24: 0 | R24: 0
A25: CABUZEL Denis | B25: DELAFOSSE Gilles | C25: G | D25: 1 | E25: 0 | F25: 100 | G25: 61 | H25: 2017-02-25 | I25: 5Q R1 CD80 - T3 - MOREUIL | J25: Qualifications | K25: 2016-2017 | P25: 0 | R25: 0
A26: CABUZEL Denis | B26: WARIN Yannick | C26: G | D26: 1 | E26: 0 | F26: 100 | G26: 65 | H26: 2017-02-25 | I26: 5Q R1 CD80 - T3 - MOREUIL | J26: Qualifications | K26: 2016-2017 | P26: 0 | R26: 0
A27: CABUZEL Denis | B27: RENAULT Marius | C27: G | D27: 1 | E27: 0 | F27: 100 | G27: 86 | H27: 2017-02-25 | I27: 5Q R1 CD80 - T3 - MOREUIL | J27: Qualifications | K27: 2016-2017 | P27: 0 | R27: 0
A28: CABUZEL Denis | B28: VASSEUR Gaëtan | C28: P | D28: 1 | E28: 3 | F28: 215 | G28: 221 | H28: 2017-03-18 | I28: 5Q R1 - Finale CD80 - PONT DE METZ | J28: Poule unique | K28: 2016-2017 | P28: 0 | R28: 0
A29: CABUZEL Denis | B29: MALET Eric | C29: G | D29: 3 | E29: 1 | F29: 217 | G29: 185 | H29: 2017-03-18 | I29: 5Q R1 - Finale CD80 - PONT DE METZ | J29: Poule unique | K29: 2016-2017 | P29: 0 | R29: 0
A30: CABUZEL Denis | B30: BETTEFORT Mickael | C30: G | D30: 3 | E30: 0 | F30: 180 | G30: 144 | H30: 2017-03-18 | I30: 5Q R1 - Finale CD80 - PONT DE METZ | J30: Poule unique | K30: 2016-2017 | P30: 0 | R30: 0
A31: CABUZEL Denis | B31: DIEU Jean-Charles | C31: P | D31: 0 | E31: 2 | F31: 106 | G31: 120 | H31: 2018-10-20 | I31: T1 R1 CD80 - MOREUIL | J31: Qualifications | K31: 2018-2019 | P31: 0 | R31: 0
A32: CABUZEL Denis | B32: POINTIN Régis | C32: P | D32: 0 | E32: 2 | F32: 80 | G32: 120 | H32: 2018-10-20 | I32: T1 R1 CD80 - MOREUIL | J32: Qualifications | K32: 2018-2019 | P32: 0 | R32: 0
A33: CABUZEL Denis | B33: DUFRESNOY Michel | C33: G | D33: 2 | E33: 1 | F33: 172 | G33: 143 | H33: 2018-11-24 | I33: T2 R1 CD80 - | J33: 1/8 Finale | K33: 2018-2019 | P33: 0 | R33: 0
A34: CABUZEL Denis | B34: MALET Eric | C34: P | D34: 0 | E34: 2 | F34: 98 | G34: 120 | H34: 2018-11-24 | I34: T2 R1 CD80 - | J34: 1/4 Finale | K34: 2018-2019 | P34: 0 | R34: 0
A35: CABUZEL Denis | B35: RENAULT Marius | C35: P | D35: 0 | E35: 2 | F35: 108 | G35: 120 | H35: 2018-11-24 | I35: T2 R1 CD80 - | J35: Qualifications | K35: 2018-2019 | P35: 0 | R35: 0
A36: CABUZEL Denis | B36: VACAVANT Michel | C36: G | D36: 2 | E36: 1 | F36: 170 | G36: 115 | H36: 2018-11-24 | I36: T2 R1 CD80 - | J36: Qualifications | K36: 2018-2019 | P36: 0 | R36: 0
A37: CABUZEL Denis | B37: CHAIGNE Gilles | C37: P | D37: 1 | E37: 2 | F37: 116 | G37: 149 | H37: 2019-01-05 | I37: T3 R1 CD80 - MOREUIL | J37: 1/4 Finale | K37: 2018-2019 | P37: 0 | R37: 0
A38: CABUZEL Denis | B38: DELRUE Céline | C38: G | D38: 2 | E38: 0 | F38: 120 | G38: 81 | H38: 2019-01-05 | I38: T3 R1 CD80 - MOREUIL | J38: Qualifications | K38: 2018-2019 | P38: 0 | R38: 0
A39: CABUZEL Denis | B39: RENAULT Marius | C39: G | D39: 2 | E39: 0 | F39: 120 | G39: 98 | H39: 2019-01-05 | I39: T3 R1 CD80 - MOREUIL | J39: Qualifications | K39: 2018-2019 | P39: 0 | R39: 0
A40: CABUZEL Denis | B40: BETTEFORT Mickael | C40: P | D40: 0 | E40: 2 | F40: 108 | G40: 120 | H40: 2023-03-25 | I40: finale de somme - friville | J40: Qualifications | K40: 2022-2023 | P40: 0 | R40: 0
A41: CABUZEL Denis | B41: CARON Didier | C41: G | D41: 2 | E41: 0 | F41: 120 | G41: 60 | H41: 2023-03-25 | I41: finale de somme - friville | J41: Qualifications | K41: 2022-2023 | P41: 0 | R41: 1
A42: CABUZEL Denis | B42: DELAFOSSE Gilles | C42: G | D42: 2 | E42: 0 | F42: 120 | G42: 66 | H42: 2023-03-25 | I42: finale de somme - friville | J42: Qualifications | K42: 2022-2023 | P42: 0 | R42: 1
A43: CABUZEL Denis | B43: BENLAMLIH Abdelilah | C43: G | D43: 1 | E43: 0 | F43: 100 | G43: 42 | H43: 2022-10-01 | I43: T1 CD80 - R1 - abbeville | J43: Qualifications | K43: 2022-2023 | P43: 0 | R43: 1
A44: CABUZEL Denis | B44: BETTEFORT Mickael | C44: P | D44: 0 | E44: 1 | F44: 92 | G44: 100 | H44: 2022-10-01 | I44: T1 CD80 - R1 - abbeville | J44: Qualifications | K44: 2022-2023 | P44: 0 | R44: 0
A45: CABUZEL Denis | B45: BETTEFORT Véronique | C45: P | D45: 0 | E45: 1 | F45: 86 | G45: 100 | H45: 2023-01-12 | I45: T2 CD80 - R1 - pont de metz | J45: Qualifications | K45: 2022-2023 | P45: 0 | R45: 0
A46: CABUZEL Denis | B46: CARON Didier | C46: P | D46: 0 | E46: 1 | F46: 92 | G46: 100 | H46: 2023-01-12 | I46: T2 CD80 - R1 - pont de metz | J46: Qualifications | K46: 2022-2023 | P46: 0 | R46: 0
A47: Fin des données | P47: =IF($K47=P$1,COUNTIF($C47,"G"),0) -> 0 | R47: =IF($K47=R$1,COUNTIF($C47,"G"),0) -> 0

Sheet CARON Didier
A1: CARON Didier | P1: =SaisonDeb -> 2021-2022 | R1: =SaisonFin -> 2022-2023 | T1: Toutes saisons
P2: Nombre | Q2: %age | R2: Nombre | S2: %age | T2: Nombre | U2: %age
N3: Matchs | O3: Gagnés | P3: =SUM(P$15:P$116) -> 0 | Q3: =IF(P$3+P$4>0,P3/(P$3+P$4),"") ->  | R3: =SUM(R$15:R$116) -> 3 | S3: =IF(R$3+R$4>0,R3/(R$3+R$4),"") ->  | T3: =COUNTIF($C$15:$C$116,"G") -> 0 | U3: =IF(T$3+T$4>0,T3/(T$3+T$4),"") -> 
O4: Perdus | P4: =COUNTIF($K$15:$M$116,SaisonDeb)-P3 -> 0 | Q4: =IF(P$3+P$4>0,P4/(P$3+P$4),"") ->  | R4: =COUNTIF($K$15:$K$116,SaisonFin)-R3 -> -3 | S4: =IF(R$3+R$4>0,R4/(R$3+R$4),"") ->  | T4: =COUNTIF($C$15:$C$116,"P") -> 0 | U4: =IF(T$3+T$4>0,T4/(T$3+T$4),"") -> 
O5: Total / Moy. | P5: =SUM(P3:P4) -> 0 | Q5: =IF(SUMIF($K$15:$K$116,SaisonDeb,$G$15:$G$116)>0,SUMIF($K$15:$K$116,SaisonDeb,$F$15:$F$116)/SUMIF($K$15:$K$116,SaisonDeb,$G$15:$G$116),"") ->  | R5: =SUM(R3:R4) -> 0 | S5: =IF(SUMIF($K$15:$K$116,SaisonFin,$G$15:$G$116)>0,SUMIF($K$15:$K$116,SaisonFin,$F$15:$F$116)/SUMIF($K$15:$K$116,SaisonFin,$G$15:$G$116),"") ->  | T5: =SUM(T3:T4) -> 0 | U5: =IF(SUM($G$15:$G$116)>0,SUM($F$15:$F$116)/SUM($G$15:$G$116),"") ->  | V5: =IF(SUMIF($K$15:$K$20,SaisonDeb,$G$15:$G$20)+SUMIF($K$15:$K$20,SaisonFin,$G$15:$G$20)>0,(SUMIF($K$15:$K$20,SaisonDeb,$F$15:$F$20)+SUMIF($K$15:$K$20,SaisonFin,$F$15:$F$20))/(SUMIF($K$15:$K$20,SaisonDeb,$G$15:$G$20)+SUMIF($K$15:$K$20,SaisonFin,$G$15:$G$20)),"") -> 
N6: Sets | O6: Gagnés | P6: =SUMIF($K$15:$K$116,SaisonDeb,$D$15:$D$116) -> 0 | Q6: =IF(P$6+P$7>0,P6/(P$6+P$7),"") ->  | R6: =SUMIF($K$15:$K$116,SaisonFin,$D$15:$D$116) -> 0 | S6: =IF(R$6+R$7>0,R6/(R$6+R$7),"") ->  | T6: =SUM($D$15:$D$116) -> 0 | U6: =IF(T$6+T$7>0,T6/(T$6+T$7),"") -> 
O7: Perdus | P7: =SUMIF($K$15:$K$116,SaisonDeb,$E$15:$E$116) -> 0 | Q7: =IF(P$6+P$7>0,P7/(P$6+P$7),"") ->  | R7: =SUMIF($K$15:$K$116,SaisonFin,$E$15:$E$116) -> 0 | S7: =IF(R$6+R$7>0,R7/(R$6+R$7),"") ->  | T7: =SUM($E$15:$E$116) -> 0 | U7: =IF(T$6+T$7>0,T7/(T$6+T$7),"") -> 
A8: Récapitulatif joueurs | O8: Total | P8: =SUM(P6:P7) -> 0 | R8: =SUM(R6:R7) -> 0 | T8: =SUM(T6:T7) -> 0
A15: Joueur | B15: Adversaire | C15: G/P | D15: Sets gagnés | E15: Sets perdus | F15: pts marqués | G15: pts subis | H15: Date | I15: Compétition | J15: Phase | K15: Saison
P16: =IF('CARON Didier'!$K19=P$1,COUNTIF('CARON Didier'!$C19,"G"),0) -> 0 | R16: =IF('CARON Didier'!$K19=R$1,COUNTIF('CARON Didier'!$C19,"G"),0) -> 0
P17: =IF('CARON Didier'!$K20=P$1,COUNTIF('CARON Didier'!$C20,"G"),0) -> 0 | R17: =IF('CARON Didier'!$K20=R$1,COUNTIF('CARON Didier'!$C20,"G"),0) -> 1
P18: =IF('CARON Didier'!$K21=P$1,COUNTIF('CARON Didier'!$C21,"G"),0) -> 0 | R18: =IF('CARON Didier'!$K21=R$1,COUNTIF('CARON Didier'!$C21,"G"),0) -> 1
P19: =IF('CARON Didier'!$K22=P$1,COUNTIF('CARON Didier'!$C22,"G"),0) -> 0 | R19: =IF('CARON Didier'!$K22=R$1,COUNTIF('CARON Didier'!$C22,"G"),0) -> 1
A20: Fin des données | K20: =IF(H20<>"",IF(MONTH(H20)>MoisRef,YEAR(H20)&"-"&YEAR(H20)+1,YEAR(H20)-1&"-"&YEAR(H20)),"") ->  | P20: =IF($K20=P$1,COUNTIF($C20,"G"),0) -> 0 | R20: =IF($K20=R$1,COUNTIF($C20,"G"),0) -> 0

Sheet CARON Didier
A1: CARON Didier | P1: =SaisonDeb -> 2021-2022 | R1: =SaisonFin -> 2022-2023 | T1: Toutes saisons
P2: Nombre | Q2: %age | R2: Nombre | S2: %age | T2: Nombre | U2: %age
N3: Matchs | O3: Gagnés | P3: =SUM(P$15:P$115) -> 0 | Q3: =IF(P$3+P$4>0,P3/(P$3+P$4),"") ->  | R3: =SUM(R$15:R$115) -> 3 | S3: =IF(R$3+R$4>0,R3/(R$3+R$4),"") -> 0.4285714286 | T3: =COUNTIF($C$15:$C$119,"G") -> 3 | U3: =IF(T$3+T$4>0,T3/(T$3+T$4),"") -> 0.4285714286
O4: Perdus | P4: =COUNTIF($K$15:$M$115,SaisonDeb)-P3 -> 0 | Q4: =IF(P$3+P$4>0,P4/(P$3+P$4),"") ->  | R4: =COUNTIF($K$15:$K$119,SaisonFin)-R3 -> 4 | S4: =IF(R$3+R$4>0,R4/(R$3+R$4),"") -> 0.5714285714 | T4: =COUNTIF($C$15:$C$119,"P") -> 4 | U4: =IF(T$3+T$4>0,T4/(T$3+T$4),"") -> 0.5714285714
O5: Total / Moy. | P5: =SUM(P3:P4) -> 0 | Q5: =IF(SUMIF($K$15:$K$119,SaisonDeb,$G$15:$G$119)>0,SUMIF($K$15:$K$119,SaisonDeb,$F$15:$F$119)/SUMIF($K$15:$K$119,SaisonDeb,$G$15:$G$119),"") ->  | R5: =SUM(R3:R4) -> 7 | S5: =IF(SUMIF($K$15:$K$119,SaisonFin,$G$15:$G$119)>0,SUMIF($K$15:$K$119,SaisonFin,$F$15:$F$119)/SUMIF($K$15:$K$119,SaisonFin,$G$15:$G$119),"") -> 0.8034300792 | T5: =SUM(T3:T4) -> 7 | U5: =IF(SUM($G$15:$G$119)>0,SUM($F$15:$F$119)/SUM($G$15:$G$119),"") -> 0.8034300792 | V5: =IF(SUMIF($K$15:$K$23,SaisonDeb,$G$15:$G$23)+SUMIF($K$15:$K$23,SaisonFin,$G$15:$G$23)>0,(SUMIF($K$15:$K$23,SaisonDeb,$F$15:$F$23)+SUMIF($K$15:$K$23,SaisonFin,$F$15:$F$23))/(SUMIF($K$15:$K$23,SaisonDeb,$G$15:$G$23)+SUMIF($K$15:$K$23,SaisonFin,$G$15:$G$23)),"") -> 0.8034300792
N6: Sets | O6: Gagnés | P6: =SUMIF($K$15:$K$119,SaisonDeb,$D$15:$D$119) -> 0 | Q6: =IF(P$6+P$7>0,P6/(P$6+P$7),"") ->  | R6: =SUMIF($K$15:$K$119,SaisonFin,$D$15:$D$119) -> 4 | S6: =IF(R$6+R$7>0,R6/(R$6+R$7),"") -> 0.3636363636 | T6: =SUM($D$15:$D$119) -> 4 | U6: =IF(T$6+T$7>0,T6/(T$6+T$7),"") -> 0.3636363636
O7: Perdus | P7: =SUMIF($K$15:$K$119,SaisonDeb,$E$15:$E$119) -> 0 | Q7: =IF(P$6+P$7>0,P7/(P$6+P$7),"") ->  | R7: =SUMIF($K$15:$K$119,SaisonFin,$E$15:$E$119) -> 7 | S7: =IF(R$6+R$7>0,R7/(R$6+R$7),"") -> 0.6363636364 | T7: =SUM($E$15:$E$119) -> 7 | U7: =IF(T$6+T$7>0,T7/(T$6+T$7),"") -> 0.6363636364
A8: Récapitulatif joueurs | O8: Total | P8: =SUM(P6:P7) -> 0 | R8: =SUM(R6:R7) -> 11 | T8: =SUM(T6:T7) -> 11
A15: Joueur | B15: Adversaire | C15: G/P | D15: Sets gagnés | E15: Sets perdus | F15: pts marqués | G15: pts subis | H15: Date | I15: Compétition | J15: Phase | K15: Saison
A16: CARON Didier | B16: BETTEFORT Mickael | C16: P | D16: 0 | E16: 2 | F16: 56 | G16: 120 | H16: 2023-03-25 | I16: finale de somme - friville | J16: Qualifications | K16: =IF(H16<>"",IF(MONTH(H16)>MoisRef,YEAR(H16)&"-"&YEAR(H16)+1,YEAR(H16)-1&"-"&YEAR(H16)),"") -> 2022-2023 | P16: =IF($K16=P$1,COUNTIF($C16,"G"),0) -> 0 | R16: =IF($K16=R$1,COUNTIF($C16,"G"),0) -> 0
A17: CARON Didier | B17: CABUZEL Denis | C17: P | D17: 0 | E17: 2 | F17: 60 | G17: 120 | H17: 2023-03-25 | I17: finale de somme - friville | J17: Qualifications | K17: 2022-2023 | P17: =IF($K17=P$1,COUNTIF($C17,"G"),0) -> 0 | R17: =IF($K17=R$1,COUNTIF($C17,"G"),0) -> 0
A18: CARON Didier | B18: DELAFOSSE Gilles | C18: P | D18: 1 | E18: 2 | F18: 101 | G18: 172 | H18: 2023-03-25 | I18: finale de somme - friville | J18: Qualifications | K18: 2022-2023 | P18: 0 | R18: 0
A19: CARON Didier | B19: DELAFOSSE Gilles | C19: P | D19: 0 | E19: 1 | F19: 92 | G19: 100 | H19: 2022-10-01 | I19: T1 CD80 - R1 - abbeville | J19: Qualifications | K19: 2022-2023 | P19: 0 | R19: 0
A20: CARON Didier | B20: DELAFOSSE Gilles | C20: G | D20: 1 | E20: 0 | F20: 100 | G20: 96 | H20: 2022-10-01 | I20: T1 CD80 - R1 - abbeville | J20: Qualifications | K20: 2022-2023 | P20: 0 | R20: 1
A21: CARON Didier | B21: BETTEFORT Véronique | C21: G | D21: 1 | E21: 0 | F21: 100 | G21: 58 | H21: 2023-01-12 | I21: T2 CD80 - R1 - pont de metz | J21: Qualifications | K21: 2022-2023 | P21: 0 | R21: 1
A22: CARON Didier | B22: CABUZEL Denis | C22: G | D22: 1 | E22: 0 | F22: 100 | G22: 92 | H22: 2023-01-12 | I22: T2 CD80 - R1 - pont de metz | J22: Qualifications | K22: 2022-2023 | P22: 0 | R22: 1
A23: Fin des données

Sheet CARTIERE André
A1: CARTIERE André | P1: =SaisonDeb -> 2021-2022 | R1: =SaisonFin -> 2022-2023 | T1: Toutes saisons
A2: CUCQ | P2: Nombre | Q2: %age | R2: Nombre | S2: %age | T2: Nombre | U2: %age
A3: 117749-V | N3: Matchs | O3: Gagnés | P3: =SUM(P$15:P$116) -> 0 | Q3: =IF(P$3+P$4>0,P3/(P$3+P$4),"") ->  | R3: =SUM(R$15:R$116) -> 3 | S3: =IF(R$3+R$4>0,R3/(R$3+R$4),"") -> 0.2142857143 | T3: =COUNTIF($C$15:$C$116,"G") -> 21 | U3: =IF(T$3+T$4>0,T3/(T$3+T$4),"") -> 0.21
O4: Perdus | P4: =COUNTIF($K$15:$K$116,SaisonDeb)-P3 -> 0 | Q4: =IF(P$3+P$4>0,P4/(P$3+P$4),"") ->  | R4: =COUNTIF($K$15:$K$116,SaisonFin)-R3 -> 11 | S4: =IF(R$3+R$4>0,R4/(R$3+R$4),"") -> 0.7857142857 | T4: =COUNTIF($C$15:$C$116,"P") -> 79 | U4: =IF(T$3+T$4>0,T4/(T$3+T$4),"") -> 0.79
O5: Total / Moy. | P5: =SUM(P3:P4) -> 0 | Q5: =IF(SUMIF($K$15:$K$116,SaisonDeb,$G$15:$G$116)>0,SUMIF($K$15:$K$116,SaisonDeb,$F$15:$F$116)/SUMIF($K$15:$K$116,SaisonDeb,$G$15:$G$116),"") ->  | R5: =SUM(R3:R4) -> 14 | S5: =IF(SUMIF($K$15:$K$116,SaisonFin,$G$15:$G$116)>0,SUMIF($K$15:$K$116,SaisonFin,$F$15:$F$116)/SUMIF($K$15:$K$116,SaisonFin,$G$15:$G$116),"") -> 0.7855936972 | T5: =SUM(T3:T4) -> 100 | U5: =IF(SUM($G$15:$G$116)>0,SUM($F$15:$F$116)/SUM($G$15:$G$116),"") -> 0.8156576862 | V5: =IF(SUMIF($K$15:$K$116,SaisonDeb,$G$15:$G$116)+SUMIF($K$15:$K$116,SaisonFin,$G$15:$G$116)>0,(SUMIF($K$15:$K$116,SaisonDeb,$F$15:$F$116)+SUMIF($K$15:$K$116,SaisonFin,$F$15:$F$116))/(SUMIF($K$15:$K$116,SaisonDeb,$G$15:$G$116)+SUMIF($K$15:$K$116,SaisonFin,$G$15:$G$116)),"") -> 0.7855936972
N6: Sets | O6: Gagnés | P6: =SUMIF($K$15:$K$116,SaisonDeb,$D$15:$D$116) -> 0 | Q6: =IF(P$6+P$7>0,P6/(P$6+P$7),"") ->  | R6: =SUMIF($K$15:$K$116,SaisonFin,$D$15:$D$116) -> 10 | S6: =IF(R$6+R$7>0,R6/(R$6+R$7),"") -> 0.303030303 | T6: =SUM($D$15:$D$116) -> 106 | U6: =IF(T$6+T$7>0,T6/(T$6+T$7),"") -> 0.3212121212
O7: Perdus | P7: =SUMIF($K$15:$K$116,SaisonDeb,$E$15:$E$116) -> 0 | Q7: =IF(P$6+P$7>0,P7/(P$6+P$7),"") ->  | R7: =SUMIF($K$15:$K$116,SaisonFin,$E$15:$E$116) -> 23 | S7: =IF(R$6+R$7>0,R7/(R$6+R$7),"") -> 0.696969697 | T7: =SUM($E$15:$E$116) -> 224 | U7: =IF(T$6+T$7>0,T7/(T$6+T$7),"") -> 0.6787878788
A8: Récapitulatif joueurs | O8: Total | P8: =SUM(P6:P7) -> 0 | R8: =SUM(R6:R7) -> 33 | T8: =SUM(T6:T7) -> 330
A15: Joueur | B15: Adversaire | C15: G/P | D15: Sets gagnés | E15: Sets perdus | F15: pts marqués | G15: pts subis | H15: Date | I15: Compétition | J15: Phase | K15: Saison
A16: CARTIERE André | B16: CLAIRET Jean-François | C16: P | D16: 1 | E16: 3 | F16: =43+33+50+24 -> 150 | G16: 188 | H16: 2008-11-15 | I16: Qualifications R1 CD62 T1 COURRIERES | J16: Poules | K16: =IF(H16<>"",IF(MONTH(H16)>MoisRef,YEAR(H16)&"-"&YEAR(H16)+1,YEAR(H16)-1&"-"&YEAR(H16)),"") -> 2008-2009 | P16: =IF($K16=P$1,COUNTIF($C16,"G"),0) -> 0 | R16: =IF($K16=R$1,COUNTIF($C16,"G"),0) -> 0
A17: CARTIERE André | B17: MORANT Cindy | C17: P | D17: 1 | E17: 3 | F17: =12+14+50+22 -> 98 | G17: 176 | H17: 2008-11-15 | I17: Qualifications R1 CD62 T1 COURRIERES | J17: Poules | K17: 2008-2009 | P17: 0 | R17: 0
A18: CARTIERE André | B18: CAQUELOT Maurice | C18: G | D18: 3 | E18: 2 | F18: 212 | G18: 205 | H18: 2009-01-17 | I18: Qualifications R1 CD62 T2 LE TOUQUET | J18: Poules | K18: 2008-2009 | P18: 0 | R18: 0
A19: CARTIERE André | B19: BOUBET Jean | C19: P | D19: 2 | E19: 3 | F19: 203 | G19: 229 | H19: 2009-01-17 | I19: Qualifications R1 CD62 T2 LE TOUQUET | J19: Poules | K19: 2008-2009 | P19: 0 | R19: 0
A20: CARTIERE André | B20: CAQUELOT Maurice | C20: P | D20: 0 | E20: 3 | F20: 73 | G20: 150 | H20: 2009-01-17 | I20: Qualifications R1 CD62 T2 LE TOUQUET | J20: 1/2 finale | K20: 2008-2009 | P20: 0 | R20: 0
A21: CARTIERE André | B21: MARTEL Bruno | C21: P | D21: 2 | E21: 3 | F21: 197 | G21: 230 | H21: 2009-04-17 | I21: Qualifications R1 CD62 T3 CARVIN | J21: Poules | K21: 2008-2009 | P21: 0 | R21: 0
A22: CARTIERE André | B22: CLAIRET Jean-François | C22: P | D22: 1 | E22: 3 | F22: =50+24+37+23 -> 134 | G22: 192 | H22: 2009-04-17 | I22: Qualifications R1 CD62 T3 CARVIN | J22: Poules | K22: 2008-2009 | P22: 0 | R22: 0
A23: CARTIERE André | B23: CAQUELOT Maurice | C23: P | D23: 0 | E23: 3 | F23: 65 | G23: 150 | H23: 2009-05-17 | I23: Finale CD62 R1 CUCQ | J23: Poules | K23: 2008-2009 | P23: 0 | R23: 0
A24: CARTIERE André | B24: MARTEL Bruno | C24: P | D24: 2 | E24: 3 | F24: 172 | G24: 201 | H24: 2009-05-17 | I24: Finale CD62 R1 CUCQ | J24: Poules | K24: 2008-2009 | P24: 0 | R24: 0
A25: CARTIERE André | B25: MARTEL Bruno | C25: P | D25: 1 | E25: 3 | F25: 125 | G25: 180 | H25: 2009-12-08 | I25: Qualifications R1 CD62 T1 CUCQ | J25: Poules | K25: 2009-2010 | P25: 0 | R25: 0
A26: CARTIERE André | B26: DEPLECHIN Robert | C26: P | D26: 1 | E26: 3 | F26: 145 | G26: 193 | H26: 2009-12-08 | I26: Qualifications R1 CD62 T1 CUCQ | J26: Poules | K26: 2009-2010 | P26: 0 | R26: 0
A27: CARTIERE André | B27: MEUROT Philippe | C27: P | D27: 0 | E27: 3 | F27: 98 | G27: 150 | H27: 2009-12-08 | I27: Qualifications R1 CD62 T1 CUCQ | J27: Poules | K27: 2009-2010 | P27: 0 | R27: 0
A28: CARTIERE André | B28: DEPLECHIN Robert | C28: P | D28: 0 | E28: 3 | F28: 76 | G28: 150 | H28: 2010-01-24 | I28: Qualifications R1 CD62 T2 CUCQ | J28: Poules | K28: 2009-2010 | P28: 0 | R28: 0
A29: CARTIERE André | B29: DEPLECHIN Robert | C29: G | D29: 3 | E29: 1 | F29: 171 | G29: 159 | H29: 2010-01-24 | I29: Qualifications R1 CD62 T2 CUCQ | J29: Poules | K29: 2009-2010 | P29: 0 | R29: 0
A30: CARTIERE André | B30: DEPLECHIN Robert | C30: P | D30: 0 | E30: 3 | F30: 86 | G30: 150 | H30: 2010-02-07 | I30: Qualifications R1 CD62 T3 CUCQ | J30: Poules | K30: 2009-2010 | P30: 0 | R30: 0
A31: CARTIERE André | B31: BOUBET Jean | C31: P | D31: 0 | E31: 3 | F31: 122 | G31: 150 | H31: 2010-02-07 | I31: Qualifications R1 CD62 T3 CUCQ | J31: Poules | K31: 2009-2010 | P31: 0 | R31: 0
A32: CARTIERE André | B32: MARTEL Bruno | C32: G | D32: 3 | E32: 2 | F32: 211 | G32: 210 | H32: 2010-02-07 | I32: Qualifications R1 CD62 T3 CUCQ | J32: Poules | K32: 2009-2010 | P32: 0 | R32: 0
A33: CARTIERE André | B33: DEPLECHIN Robert | C33: P | D33: 0 | E33: 3 | F33: 124 | G33: 150 | H33: 2010-03-06 | I33: Qualifications R1 CD62 T4 LE TOUQUET | J33: Poules | K33: 2009-2010 | P33: 0 | R33: 0
A34: CARTIERE André | B34: MARTEL Bruno | C34: P | D34: 0 | E34: 3 | F34: 101 | G34: 150 | H34: 2010-03-06 | I34: Qualifications R1 CD62 T4 LE TOUQUET | J34: Poules | K34: 2009-2010 | P34: 0 | R34: 0
A35: CARTIERE André | B35: BOUBET Jean | C35: P | D35: 2 | E35: 3 | F35: 197 | G35: 198 | H35: 2010-03-06 | I35: Qualifications R1 CD62 T4 LE TOUQUET | J35: Poules | K35: 2009-2010 | P35: 0 | R35: 0
A36: CARTIERE André | B36: BLONDEEL Firmin | C36: P | D36: 0 | E36: 3 | F36: 114 | G36: 150 | H36: 2011-10-02 | I36: R1 CD62 T1 WIMILLE | J36: Poules | K36: 2011-2012 | P36: 0 | R36: 0
A37: CARTIERE André | B37: DEPLECHIN Robert | C37: P | D37: 1 | E37: 3 | F37: 116 | G37: 166 | H37: 2011-10-02 | I37: R1 CD62 T1 WIMILLE | J37: Poules | K37: 2011-2012 | P37: 0 | R37: 0
A38: CARTIERE André | B38: PIERRU Didier | C38: P | D38: 1 | E38: 3 | F38: 138 | G38: 186 | H38: 2012-01-07 | I38: R1 CD62 T2 LE TOUQUET | J38: Poules | K38: 2011-2012 | P38: 0 | R38: 0
A39: CARTIERE André | B39: TRIPLET Freddy | C39: G | D39: 3 | E39: 0 | F39: 150 | G39: 138 | H39: 2012-01-07 | I39: R1 CD62 T2 LE TOUQUET | J39: Poules | K39: 2011-2012 | P39: 0 | R39: 0
A40: CARTIERE André | B40: BLONDEEL Bruno | C40: P | D40: 1 | E40: 3 | F40: 139 | G40: 199 | H40: 2012-01-07 | I40: R1 CD62 T2 LE TOUQUET | J40: 1/2 Finale | K40: 2011-2012 | P40: 0 | R40: 0
A41: CARTIERE André | B41: PIERRU Didier | C41: P | D41: 2 | E41: 3 | F41: 176 | G41: 220 | H41: 2012-01-07 | I41: R1 CD62 T2 LE TOUQUET | J41: 3ème/4ème place | K41: 2011-2012 | P41: 0 | R41: 0
A42: CARTIERE André | B42: TRIPLET Gilbert | C42: P | D42: 0 | E42: 3 | F42: 98 | G42: 150 | H42: 2012-03-10 | I42: R1 CD62 T3 CUCQ | J42: Poules | K42: 2011-2012 | P42: 0 | R42: 0
A43: CARTIERE André | B43: BLONDEEL Firmin | C43: P | D43: 1 | E43: 3 | F43: 149 | G43: 174 | H43: 2012-03-10 | I43: R1 CD62 T3 CUCQ | J43: Poules | K43: 2011-2012 | P43: 0 | R43: 0
A44: CARTIERE André | B44: BLONDEEL Bruno | C44: P | D44: 0 | E44: 3 | F44: 91 | G44: 150 | H44: 2012-09-30 | I44: R1 CD62 T1 LE TOUQUET | J44: Poules | K44: 2012-2013 | P44: 0 | R44: 0
A45: CARTIERE André | B45: MARTEL Michel | C45: G | D45: 3 | E45: 1 | F45: 190 | G45: 126 | H45: 2012-09-30 | I45: R1 CD62 T1 LE TOUQUET | J45: Poules | K45: 2012-2013 | P45: 0 | R45: 0
A46: CARTIERE André | B46: BLONDEEL Firmin | C46: P | D46: 2 | E46: 3 | F46: 201 | G46: 225 | H46: 2012-11-10 | I46: R1 CD62 T2 CUCQ | J46: Poules | K46: 2012-2013 | P46: 0 | R46: 0
A47: CARTIERE André | B47: TRIPLET Eddie | C47: P | D47: 1 | E47: 3 | F47: 168 | G47: 176 | H47: 2012-11-10 | I47: R1 CD62 T2 CUCQ | J47: Poules | K47: 2012-2013 | P47: 0 | R47: 0
A48: CARTIERE André | B48: PIERRU Didier | C48: P | D48: 1 | E48: 3 | F48: 157 | G48: 188 | H48: 2013-01-06 | I48: R1 CD62 T3 CUCQ | J48: Poules | K48: 2012-2013 | P48: 0 | R48: 0
A49: CARTIERE André | B49: DEPLECHIN Robert | C49: P | D49: 0 | E49: 3 | F49: 110 | G49: 150 | H49: 2013-01-06 | I49: R1 CD62 T3 CUCQ | J49: Poules | K49: 2012-2013 | P49: 0 | R49: 0
A50: CARTIERE André | B50: TRIPLET Freddy | C50: P | D50: 1 | E50: 3 | F50: 143 | G50: 170 | H50: 2013-09-15 | I50: R1 CD62 T1 LE TOUQUET | J50: Poules | K50: 2013-2014 | P50: 0 | R50: 0
A51: CARTIERE André | B51: MERLIN Christian | C51: P | D51: 2 | E51: 3 | F51: 184 | G51: 210 | H51: 2013-09-15 | I51: R1 CD62 T1 LE TOUQUET | J51: Poules | K51: 2013-2014 | P51: 0 | R51: 0
A52: CARTIERE André | B52: TRIPLET Freddy | C52: P | D52: 2 | E52: 3 | F52: =100+31+29+20 -> 180 | G52: =150+18+49 -> 217 | H52: 2013-12-21 | I52: R1 CD62 T2 WIMILLE | J52: Poules | K52: 2013-2014 | P52: 0 | R52: 0
A53: CARTIERE André | B53: TRIPLET Freddy | C53: P | D53: 1 | E53: 3 | F53: =50+19+19+31 -> 119 | G53: 189 | H53: 2013-12-21 | I53: R1 CD62 T2 WIMILLE | J53: Poules | K53: 2013-2014 | P53: 0 | R53: 0
A54: CARTIERE André | B54: =A53 -> CARTIERE André | C54: P | D54: 2 | E54: 3 | F54: 152 | G54: 194 | H54: 2014-10-26 | I54: R1 CD62 T1 CUCQ | J54: Poules | K54: 2014-2015 | P54: 0 | R54: 0
A55: CARTIERE André | B55: TRIPLET Freddy | C55: P | D55: 1 | E55: 3 | F55: 124 | G55: 165 | H55: 2014-10-26 | I55: R1 CD62 T1 CUCQ | J55: Poules | K55: 2014-2015 | P55: 0 | R55: 0
A56: CARTIERE André | B56: MONTADOR Christophe | C56: P | D56: 2 | E56: 3 | F56: 194 | G56: 242 | H56: 2014-11-30 | I56: R1 CD62 T2 WIMILLE | J56: Poules | K56: 2014-2015 | P56: 0 | R56: 0
A57: CARTIERE André | B57: MONTADOR Christophe | C57: G | D57: 3 | E57: 0 | F57: 150 | G57: 126 | H57: 2014-11-30 | I57: R1 CD62 T2 WIMILLE | J57: Poules | K57: 2014-2015 | P57: 0 | R57: 0
A58: CARTIERE André | B58: PIERRU Didier | C58: P | D58: 1 | E58: 3 | F58: 159 | G58: 171 | H58: 2014-11-30 | I58: R1 CD62 T2 WIMILLE | J58: 1/2 Finale | K58: 2014-2015 | P58: 0 | R58: 0
A59: CARTIERE André | B59: MARTEL Bruno | C59: P | D59: 0 | E59: 3 | F59: 74 | G59: 150 | H59: 2014-11-30 | I59: R1 CD62 T2 WIMILLE | J59: 3ème 4ème | K59: 2014-2015 | P59: 0 | R59: 0
A60: CARTIERE André | B60: BLONDEEL Bruno | C60: P | D60: 1 | E60: 3 | F60: 122 | G60: 193 | H60: 2014-12-28 | I60: R1 CD62 T3 CUCQ | J60: Poules | K60: 2014-2015 | P60: 0 | R60: 0
A61: CARTIERE André | B61: BLONDEEL Bruno | C61: G | D61: 3 | E61: 2 | F61: 193 | G61: 205 | H61: 2014-12-28 | I61: R1 CD62 T3 CUCQ | J61: Poules | K61: 2014-2015 | P61: 0 | R61: 0
A62: CARTIERE André | B62: BLONDEEL Bruno | C62: P | D62: 0 | E62: 3 | F62: 84 | G62: 150 | H62: 2016-01-17 | I62: T1 Qualifications CD62 R1 Maritime - CUCQ | J62: Qualifications | K62: 2015-2016 | P62: 0 | R62: 0
A63: CARTIERE André | B63: VADUNTHUN Daniel | C63: G | D63: 3 | E63: 2 | F63: 191 | G63: 219 | H63: 2016-01-17 | I63: T1 Qualifications CD62 R1 Maritime - CUCQ | J63: Qualifications | K63: 2015-2016 | P63: 0 | R63: 0
A64: CARTIERE André | B64: BLONDEEL Bruno | C64: P | D64: 0 | E64: 3 | F64: 84 | G64: 150 | H64: 2016-01-17 | I64: T1 Qualifications CD62 R1 Maritime - CUCQ | J64: Qualifications | K64: 2015-2016 | P64: 0 | R64: 0
A65: CARTIERE André | B65: VADUNTHUN Daniel | C65: G | D65: 3 | E65: 2 | F65: 191 | G65: 219 | H65: 2016-01-17 | I65: T1 Qualifications CD62 R1 Maritime - CUCQ | J65: Qualifications | K65: 2015-2016 | P65: 0 | R65: 0
A66: CARTIERE André | B66: BLONDEEL Bruno | C66: P | D66: 1 | E66: 3 | F66: 107 | G66: 163 | H66: 2016-03-13 | I66: T3 Qualifications CD62 R1 Maritime - Cucq | J66: Qualifications | K66: 2015-2016 | P66: 0 | R66: 0
A67: CARTIERE André | B67: BLONDEEL Bruno | C67: P | D67: 1 | E67: 3 | F67: 158 | G67: 176 | H67: 2016-03-13 | I67: T3 Qualifications CD62 R1 Maritime - Cucq | J67: 1/4 Finale | K67: 2015-2016 | P67: 0 | R67: 0
A68: CARTIERE André | B68: TRIPLET Eddy | C68: G | D68: 3 | E68: 0 | F68: 150 | G68: 101 | H68: 2016-03-13 | I68: T3 Qualifications CD62 R1 Maritime - Cucq | J68: Qualifications | K68: 2015-2016 | P68: 0 | R68: 0
A69: CARTIERE André | B69: LEBECQ Jean-Pierre | C69: P | D69: 1 | E69: 3 | F69: 109 | G69: 183 | H69: 2016-12-11 | I69: T1 Qualification CD62 R1 Maritime - CUCQ | J69: Qualifications | K69: 2016-2017 | P69: 0 | R69: 0
A70: CARTIERE André | B70: TIZON Alain | C70: P | D70: 2 | E70: 3 | F70: 216 | G70: 225 | H70: 2016-12-11 | I70: T1 Qualification CD62 R1 Maritime - CUCQ | J70: Qualifications | K70: 2016-2017 | P70: 0 | R70: 0
A71: CARTIERE André | B71: BOUBET Jean | C71: P | D71: 0 | E71: 3 | F71: 95 | G71: 150 | H71: 2017-01-08 | I71: T2 Qualification CD62 R1 Maritime - Wimille | J71: Qualifications | K71: 2016-2017 | P71: 0 | R71: 0
A72: CARTIERE André | B72: TRIPLET Eddy | C72: P | D72: 1 | E72: 3 | F72: 144 | G72: 169 | H72: 2017-01-08 | I72: T2 Qualification CD62 R1 Maritime - Wimille | J72: Qualifications | K72: 2016-2017 | P72: 0 | R72: 0
A73: CARTIERE André | B73: MARTEL Bruno | C73: P | D73: 0 | E73: 3 | F73: 97 | G73: 150 | H73: 2017-02-11 | I73: T3 Qualification CD62 R1 Maritime - CUCQ | J73: Qualifications | K73: 2016-2017 | P73: 0 | R73: 0
A74: CARTIERE André | B74: TIZON Alain | C74: G | D74: 3 | E74: 2 | F74: 214 | G74: 198 | H74: 2017-02-11 | I74: T3 Qualification CD62 R1 Maritime - CUCQ | J74: Qualifications | K74: 2016-2017 | P74: 0 | R74: 0
A75: CARTIERE André | B75: CAPLIEZ Bernard | C75: P | D75: 0 | E75: 2 | F75: 102 | G75: 120 | H75: 2017-12-10 | I75: T1 Qualification CD62 R1 - CUCQ | J75: Qualifications | K75: 2017-2018 | P75: 0 | R75: 0
A76: CARTIERE André | B76: CAPLIEZ Bernard | C76: P | D76: 1 | E76: 2 | F76: 151 | G76: 179 | H76: 2017-12-10 | I76: T1 Qualification CD62 R1 - CUCQ | J76: Qualifications | K76: 2017-2018 | P76: 0 | R76: 0
A77: CARTIERE André | B77: CAPLIEZ Bernard | C77: P | D77: 0 | E77: 2 | F77: 102 | G77: 120 | H77: 2018-01-06 | I77: T2 Qualification CD62 R1 - xxxx | J77: Qualifications | K77: 2017-2018 | P77: 0 | R77: 0
A78: CARTIERE André | B78: CAPLIEZ Bernard | C78: P | D78: 1 | E78: 2 | F78: 151 | G78: 179 | H78: 2018-01-06 | I78: T2 Qualification CD62 R1 - xxxx | J78: Qualifications | K78: 2017-2018 | P78: 0 | R78: 0
A79: CARTIERE André | B79: DEPLECHIN Roland | C79: P | D79: 1 | E79: 2 | F79: 155 | G79: 159 | H79: 2018-01-13 | I79: T2 Qualification CD62 R1 - WIMILLE | J79: Qualifications | K79: 2017-2018 | P79: 0 | R79: 0
A80: CARTIERE André | B80: TIZON Alain | C80: G | D80: 2 | E80: 1 | F80: 145 | G80: 151 | H80: 2018-01-13 | I80: T2 Qualification CD62 R1 - WIMILLE | J80: Qualifications | K80: 2017-2018 | P80: =IF($K80=P$1,COUNTIF($C80,"G"),0) -> 0 | R80: =IF($K80=R$1,COUNTIF($C80,"G"),0) -> 0
A81: CARTIERE André | B81: MONTADOR Ludovic | C81: P | D81: 0 | E81: 2 | F81: 106 | G81: 120 | H81: 2018-02-24 | I81: T3 Qualification CD62 R1 - WIMILLE | J81: Qualifications | K81: 2017-2018 | P81: 0 | R81: 0
A82: CARTIERE André | B82: MONTADOR Ludovic | C82: P | D82: 0 | E82: 2 | F82: 89 | G82: 120 | H82: 2018-02-24 | I82: T3 Qualification CD62 R1 - WIMILLE | J82: Qualifications | K82: 2017-2018 | P82: 0 | R82: 0
A83: CARTIERE André | B83: MARTEL Bruno | C83: P | D83: 0 | E83: 2 | F83: 81 | G83: 120 | H83: 2018-03-18 | I83: T4 Qualification CD62 R1 - CUCQ | J83: Qualifications | K83: 2017-2018 | P83: 0 | R83: 0
A84: CARTIERE André | B84: TIZON Alain | C84: P | D84: 0 | E84: 2 | F84: 72 | G84: 120 | H84: 2018-03-18 | I84: T4 Qualification CD62 R1 - CUCQ | J84: Qualifications | K84: 2017-2018 | P84: 0 | R84: 0
A85: CARTIERE André | B85: MARTEL Bruno | C85: P | D85: 0 | E85: 2 | F85: 96 | G85: 120 | H85: 2019-01-13 | I85: T3 Qualification CD62 R1 - WIMILLE | J85: Qualifications | K85: 2018-2019 | P85: 0 | R85: 0
A86: CARTIERE André | B86: SAISON Bertrand | C86: P | D86: 0 | E86: 2 | F86: 86 | G86: 120 | H86: 2019-01-13 | I86: T3 Qualification CD62 R1 - WIMILLE | J86: Qualifications | K86: 2018-2019 | P86: 0 | R86: 0
A87: CARTIERE André | B87: MONTADOR Christophe | C87: P | D87: 1 | E87: 2 | F87: 142 | G87: 162 | H87: 2018-12-01 | I87: T2 Qualification CD62 R1 - WIMILLE | J87: Finale | K87: 2018-2019 | P87: 0 | R87: 0
A88: CARTIERE André | B88: MONTADOR Ludovic | C88: P | D88: 1 | E88: 2 | F88: 154 | G88: 165 | H88: 2018-12-01 | I88: T2 Qualification CD62 R1 - WIMILLE | J88: Qualifications | K88: 2018-2019 | P88: 0 | R88: 0
A89: CARTIERE André | B89: RAMET Jacques | C89: G | D89: 2 | E89: 0 | F89: 120 | G89: 62 | H89: 2018-12-01 | I89: T2 Qualification CD62 R1 - WIMILLE | J89: 1/2 Finale | K89: 2018-2019 | P89: 0 | R89: 0
A90: CARTIERE André | B90: TIZON Alain | C90: G | D90: 2 | E90: 0 | F90: 120 | G90: 108 | H90: 2018-12-01 | I90: T2 Qualification CD62 R1 - WIMILLE | J90: Qualifications | K90: 2018-2019 | P90: 0 | R90: 0
A91: CARTIERE André | B91: FLAHAUT Ghislain | C91: P | D91: 0 | E91: 2 | F91: 89 | G91: 120 | H91: 2018-11-03 | I91: T1 Qualification CD62 R1 - CUCQ | J91: Qualifications | K91: 2018-2019 | P91: 0 | R91: 0
A92: CARTIERE André | B92: MARTEL Bruno | C92: P | D92: 0 | E92: 2 | F92: 74 | G92: 120 | H92: 2018-11-03 | I92: T1 Qualification CD62 R1 - CUCQ | J92: Qualifications | K92: 2018-2019 | P92: 0 | R92: 0
A93: CARTIERE André | B93: MONTADOR Christophe | C93: G | D93: 2 | E93: 1 | F93: 164 | G93: 152 | H93: 2019-01-27 | I93: T4 Qualification CD62 R1 - CUCQ | J93: Qualifications | K93: 2018-2019 | P93: 0 | R93: 0
A94: CARTIERE André | B94: TIZON Alain | C94: P | D94: 1 | E94: 2 | F94: 142 | G94: 178 | H94: 2019-01-27 | I94: T4 Qualification CD62 R1 - CUCQ | J94: Qualifications | K94: 2018-2019 | P94: 0 | R94: 0
A95: CARTIERE André | B95: TIZON Alain | C95: P | D95: 0 | E95: 2 | F95: 49 | G95: 120 | H95: 2020-01-12 | I95: T1 Qualifications CD 62 R1 - CUCQ | J95: Qualifications | K95: 2019-2020 | P95: 0 | R95: 0
A96: CARTIERE André | B96: TIZON Alain | C96: P | D96: 0 | E96: 2 | F96: 58 | G96: 120 | H96: 2020-01-12 | I96: T1 Qualifications CD 62 R1 - CUCQ | J96: Qualifications | K96: 2019-2020 | P96: 0 | R96: 0
A97: CARTIERE André | B97: GAMBIER Francis | C97: G | D97: 2 | E97: 0 | F97: 120 | G97: 85 | H97: 2020-02-02 | I97: T2 Qualifications CD62 R1 - WIMILLE | J97: Qualifications | K97: 2019-2020 | P97: 0 | R97: 0
A98: CARTIERE André | B98: TIZON Alain | C98: G | D98: 2 | E98: 0 | F98: 120 | G98: 104 | H98: 2020-02-02 | I98: T2 Qualifications CD62 R1 - WIMILLE | J98: Qualifications | K98: 2019-2020 | P98: 0 | R98: 0
A99: CARTIERE André | B99: TRIPLET Gilbert | C99: P | D99: 1 | E99: 2 | F99: 123 | G99: 165 | H99: 2020-02-02 | I99: T2 Qualifications CD62 R1 - WIMILLE | J99: 1/2 Finale | K99: 2019-2020 | P99: 0 | R99: 0
A100: CARTIERE André | B100: TIZON Alain | C100: P | D100: 0 | E100: 2 | F100: 95 | G100: 120 | H100: 2020-02-15 | I100: T3 Qualifications CD62 R1 - WIMILLE | J100: Qualifications | K100: 2019-2020 | P100: 0 | R100: 0
A101: CARTIERE André | B101: TIZON Alain | C101: G | D101: 2 | E101: 1 | F101: 174 | G101: 145 | H101: 2020-02-15 | I101: T3 Qualifications CD62 R1 - WIMILLE | J101: Qualifications | K101: 2019-2020 | P101: 0 | R101: 0
A102: CARTIERE André | B102: LANCRY Bruno | C102: P | D102: 0 | E102: 2 | F102: 51 | G102: 120 | H102: 2023-04-15 | I102: Finale CD62 R1 DIVION - DIVION | J102: Qualifications | K102: 2022-2023 | P102: 0 | R102: 0
A103: CARTIERE André | B103: MINET Lionel | C103: P | D103: 1 | E103: 2 | F103: 111 | G103: 170 | H103: 2023-04-15 | I103: Finale CD62 R1 DIVION - DIVION | J103: Qualifications | K103: 2022-2023 | P103: 0 | R103: 0
A104: CARTIERE André | B104: TILLIETTE Michel | C104: P | D104: 0 | E104: 2 | F104: 84 | G104: 120 | H104: 2023-04-15 | I104: Finale CD62 R1 DIVION - DIVION | J104: Qualifications | K104: 2022-2023 | P104: 0 | R104: 0
A105: CARTIERE André | B105: DUCROCQ Joël | C105: G | D105: 2 | E105: 0 | F105: 120 | G105: 42 | H105: 2023-02-12 | I105: T3 CD62 5Q R1 - CUCQ | J105: Qualifications | K105: 2022-2023 | P105: 0 | R105: 1
A106: CARTIERE André | B106: LANCRY Bruno | C106: G | D106: 2 | E106: 0 | F106: 120 | G106: 92 | H106: 2023-02-12 | I106: T3 CD62 5Q R1 - CUCQ | J106: Qualifications | K106: 2022-2023 | P106: 0 | R106: 1
A107: CARTIERE André | B107: MINET Lionel | C107: P | D107: 0 | E107: 2 | F107: 63 | G107: 120 | H107: 2023-02-12 | I107: T3 CD62 5Q R1 - CUCQ | J107: Qualifications | K107: 2022-2023 | P107: 0 | R107: 0
A108: CARTIERE André | B108: TILLIETTE Michel | C108: G | D108: 2 | E108: 1 | F108: 179 | G108: 153 | H108: 2023-02-12 | I108: T3 CD62 5Q R1 - CUCQ | J108: Qualifications | K108: 2022-2023 | P108: 0 | R108: 1
A109: CARTIERE André | B109: LANCRY Bruno | C109: P | D109: 0 | E109: 2 | F109: 54 | G109: 120 | H109: 2023-02-25 | I109: T4 CD62 5Q R1 - DIVION | J109: Qualifications | K109: 2022-2023 | P109: 0 | R109: 0
A110: CARTIERE André | B110: MINET Lionel | C110: P | D110: 0 | E110: 2 | F110: 66 | G110: 120 | H110: 2023-02-25 | I110: T4 CD62 5Q R1 - DIVION | J110: Qualifications | K110: 2022-2023 | P110: 0 | R110: 0
A111: CARTIERE André | B111: TILLIETTE Michel | C111: P | D111: 1 | E111: 2 | F111: 150 | G111: 160 | H111: 2023-02-25 | I111: T4 CD62 5Q R1 - DIVION | J111: Qualifications | K111: 2022-2023 | P111: 0 | R111: 0
A112: CARTIERE André | B112: LANCRY Bruno | C112: P | D112: 0 | E112: 2 | F112: 83 | G112: 120 | H112: 2023-01-15 | I112: T2 CD62 5Q R1 - DIVION | J112: Qualifications | K112: 2022-2023 | P112: 0 | R112: 0
A113: CARTIERE André | B113: MINET Lionel | C113: P | D113: 1 | E113: 2 | F113: 120 | G113: 148 | H113: 2023-01-15 | I113: T2 CD62 5Q R1 - DIVION | J113: Qualifications | K113: 2022-2023 | P113: 0 | R113: 0
A114: CARTIERE André | B114: LANCRY Bruno | C114: P | D114: 0 | E114: 2 | F114: 76 | G114: 120 | H114: 2022-11-05 | I114: T1 CD62 5Q R1 - WIMILLE | J114: Qualifications | K114: 2022-2023 | P114: 0 | R114: 0
A115: CARTIERE André | B115: MINET Lionel | C115: P | D115: 1 | E115: 2 | F115: 119 | G115: 172 | H115: 2022-11-05 | I115: T1 CD62 5Q R1 - WIMILLE | J115: Qualifications | K115: 2022-2023 | P115: 0 | R115: 0
A116: Fin des données | P116: 0 | R116: 0

Sheet CASIER Philippe
A1: CASIER Philippe | P1: =SaisonDeb -> 2021-2022 | R1: =SaisonFin -> 2022-2023 | T1: Toutes saisons
P2: Nombre | Q2: %age | R2: Nombre | S2: %age | T2: Nombre | U2: %age
N3: Matchs | O3: Gagnés | P3: =SUM(P$15:P$128) -> 1 | Q3: =IF(P$3+P$4>0,P3/(P$3+P$4),"") -> 0.08333333333 | R3: =SUM(R$15:R$128) -> 0 | S3: =IF(R$3+R$4>0,R3/(R$3+R$4),"") ->  | T3: =COUNTIF($C$15:$C$128,"G") -> 1 | U3: =IF(T$3+T$4>0,T3/(T$3+T$4),"") -> 0.0625
O4: Perdus | P4: =COUNTIF($K$15:$M$128,SaisonDeb)-P3 -> 11 | Q4: =IF(P$3+P$4>0,P4/(P$3+P$4),"") -> 0.9166666667 | R4: =COUNTIF($K$15:$K$128,SaisonFin)-R3 -> 0 | S4: =IF(R$3+R$4>0,R4/(R$3+R$4),"") ->  | T4: =COUNTIF($C$15:$C$128,"P") -> 15 | U4: =IF(T$3+T$4>0,T4/(T$3+T$4),"") -> 0.9375
O5: Total / Moy. | P5: =SUM(P3:P4) -> 12 | Q5: =IF(SUMIF($K$15:$K$128,SaisonDeb,$G$15:$G$128)>0,SUMIF($K$15:$K$128,SaisonDeb,$F$15:$F$128)/SUMIF($K$15:$K$128,SaisonDeb,$G$15:$G$128),"") -> 0.6869187849 | R5: =SUM(R3:R4) -> 0 | S5: =IF(SUMIF($K$15:$K$128,SaisonFin,$G$15:$G$128)>0,SUMIF($K$15:$K$128,SaisonFin,$F$15:$F$128)/SUMIF($K$15:$K$128,SaisonFin,$G$15:$G$128),"") ->  | T5: =SUM(T3:T4) -> 16 | U5: =IF(SUM($G$15:$G$128)>0,SUM($F$15:$F$128)/SUM($G$15:$G$128),"") -> 0.6784519828 | V5: =IF(SUMIF($K$15:$K$32,SaisonDeb,$G$15:$G$32)+SUMIF($K$15:$K$32,SaisonFin,$G$15:$G$32)>0,(SUMIF($K$15:$K$32,SaisonDeb,$F$15:$F$32)+SUMIF($K$15:$K$32,SaisonFin,$F$15:$F$32))/(SUMIF($K$15:$K$32,SaisonDeb,$G$15:$G$32)+SUMIF($K$15:$K$32,SaisonFin,$G$15:$G$32)),"") -> 0.6869187849
N6: Sets | O6: Gagnés | P6: =SUMIF($K$15:$K$128,SaisonDeb,$D$15:$D$128) -> 5 | Q6: =IF(P$6+P$7>0,P6/(P$6+P$7),"") -> 0.1851851852 | R6: =SUMIF($K$15:$K$128,SaisonFin,$D$15:$D$128) -> 0 | S6: =IF(R$6+R$7>0,R6/(R$6+R$7),"") ->  | T6: =SUM($D$15:$D$128) -> 5 | U6: =IF(T$6+T$7>0,T6/(T$6+T$7),"") -> 0.1428571429
O7: Perdus | P7: =SUMIF($K$15:$K$128,SaisonDeb,$E$15:$E$128) -> 22 | Q7: =IF(P$6+P$7>0,P7/(P$6+P$7),"") -> 0.8148148148 | R7: =SUMIF($K$15:$K$128,SaisonFin,$E$15:$E$128) -> 0 | S7: =IF(R$6+R$7>0,R7/(R$6+R$7),"") ->  | T7: =SUM($E$15:$E$128) -> 30 | U7: =IF(T$6+T$7>0,T7/(T$6+T$7),"") -> 0.8571428571
A8: Récapitulatif joueurs | O8: Total | P8: =SUM(P6:P7) -> 27 | R8: =SUM(R6:R7) -> 0 | T8: =SUM(T6:T7) -> 35
A15: Joueur | B15: Adversaire | C15: G/P | D15: Sets gagnés | E15: Sets perdus | F15: pts marqués | G15: pts subis | H15: Date | I15: Compétition | J15: Phase | K15: Saison
A16: CASIER Philippe | B16: BABOLEIN Clément | C16: P | D16: 0 | E16: 2 | F16: 76 | G16: 120 | H16: 2019-10-19 | I16: T1 CD02 R1 - Billard Club de Soissons | J16: Qualifications | K16: =IF(H16<>"",IF(MONTH(H16)>MoisRef,YEAR(H16)&"-"&YEAR(H16)+1,YEAR(H16)-1&"-"&YEAR(H16)),"") -> 2019-2020 | P16: =IF($K16=P$1,COUNTIF($C16,"G"),0) -> 0 | R16: =IF($K16=R$1,COUNTIF($C16,"G"),0) -> 0
A17: CASIER Philippe | B17: BUTTI Bertrand | C17: P | D17: 0 | E17: 2 | F17: 99 | G17: 120 | H17: 2019-10-19 | I17: T1 CD02 R1 - Billard Club de Soissons | J17: Qualifications | K17: 2019-2020 | P17: =IF($K17=P$1,COUNTIF($C17,"G"),0) -> 0 | R17: =IF($K17=R$1,COUNTIF($C17,"G"),0) -> 0
A18: CASIER Philippe | B18: BOULINGUEZ Yves | C18: P | D18: 0 | E18: 2 | F18: 86 | G18: 120 | H18: 2019-12-07 | I18: T2 CD02 R1 - Saint-Quentin | J18: Qualifications | K18: 2019-2020 | P18: =IF($K18=P$1,COUNTIF($C18,"G"),0) -> 0 | R18: =IF($K18=R$1,COUNTIF($C18,"G"),0) -> 0
A19: CASIER Philippe | B19: COUSIN Francis | C19: P | D19: 0 | E19: 2 | F19: 51 | G19: 120 | H19: 2019-12-07 | I19: T2 CD02 R1 - Saint-Quentin | J19: Qualifications | K19: 2019-2020 | P19: =IF($K19=P$1,COUNTIF($C19,"G"),0) -> 0 | R19: =IF($K19=R$1,COUNTIF($C19,"G"),0) -> 0
A20: CASIER Philippe | B20: BABOLEIN Clément | C20: P | D20: 0 | E20: 2 | F20: 79 | G20: 120 | H20: 2021-11-27 | I20: T2 CD02 R1 - Billard Club de Soissons | J20: Qualifications | K20: 2021-2022 | P20: =IF($K20=P$1,COUNTIF($C20,"G"),0) -> 0 | R20: =IF($K20=R$1,COUNTIF($C20,"G"),0) -> 0
A21: CASIER Philippe | B21: DURAND Jéremy | C21: P | D21: 0 | E21: 2 | F21: 72 | G21: 120 | H21: 2021-11-27 | I21: T2 CD02 R1 - Billard Club de Soissons | J21: Qualifications | K21: 2021-2022 | P21: 0 | R21: 0
A22: CASIER Philippe | B22: COUSIN Francis | C22: P | D22: 1 | E22: 2 | F22: 149 | G22: 174 | H22: 2022-01-29 | I22: T3 CD02 TOUTE CATEGORIE - Saint-Quentin | J22: Qualifications | K22: 2021-2022 | P22: 0 | R22: 0
A23: CASIER Philippe | B23: DURAND Jéremy | C23: P | D23: 0 | E23: 2 | F23: 40 | G23: 120 | H23: 2022-01-29 | I23: T3 CD02 TOUTE CATEGORIE - Saint-Quentin | J23: Qualifications | K23: 2021-2022 | P23: 0 | R23: 0
A24: CASIER Philippe | B24: SIMON Philippe | C24: P | D24: 0 | E24: 2 | F24: 61 | G24: 120 | H24: 2022-01-29 | I24: T3 CD02 TOUTE CATEGORIE - Saint-Quentin | J24: Qualifications | K24: 2021-2022 | P24: 0 | R24: 0
A25: CASIER Philippe | B25: SIMON Philippe | C25: P | D25: 0 | E25: 2 | F25: 64 | G25: 120 | H25: 2022-02-26 | I25: T4 CD02 R1 - Billard Club de Saint-Quentin | J25: Qualifications | K25: 2021-2022 | P25: 0 | R25: 0
A26: CASIER Philippe | B26: BUTTI Bertrand | C26: P | D26: 1 | E26: 2 | F26: 169 | G26: 217 | H26: 2022-02-26 | I26: T4 CD02 R1 N1- Billard Club de Saint-Quentin | J26: Qualifications | K26: 2021-2022 | P26: 0 | R26: 0
A27: CASIER Philippe | B27: BUTTI EmIlie | C27: P | D27: 1 | E27: 2 | F27: 140 | G27: 172 | H27: 2022-02-26 | I27: T5 CD02 R1 N1- Billard Club de Saint-Quentin | J27: Qualifications | K27: 2021-2022 | P27: 0 | R27: 0
A28: CASIER Philippe | B28: SIMON Philippe | C28: P | D28: 0 | E28: 2 | F28: 86 | G28: 120 | H28: 2022-02-26 | I28: T5 CD02 R1 N1- Billard Club de Saint-Quentin | J28: Qualifications | K28: 2021-2022 | P28: 0 | R28: 0
A29: CASIER Philippe | B29: DURAND Jéremy | C29: P | D29: 0 | E29: 2 | F29: 62 | G29: 120 | H29: 2022-02-26 | I29: T5 CD02 R1 N1- Billard Club de Saint-Quentin | J29: Qualifications | K29: 2021-2022 | P29: 0 | R29: 0
A30: CASIER Philippe | B30: BUTTI EmIlie | C30: G | D30: 2 | E30: 0 | F30: 120 | G30: 90 | H30: 2022-04-24 | I30: Finale CD02- Billard Club de Saint-Quentin | J30: 1/4 Finale | K30: 2021-2022 | P30: 1 | R30: 0
A31: CASIER Philippe | B31: DURAND Jeremy | C31: P | D31: 0 | E31: 2 | F31: 66 | G31: 120 | H31: 2022-04-24 | I31: Finale CD02- Billard Club de Saint-Quentin | J31: 1/4 Finale | K31: 2021-2022 | P31: 0 | R31: 0
A32: Fin des données | P32: =IF($K32=P$1,COUNTIF($C32,"G"),0) -> 0 | R32: =IF($K32=R$1,COUNTIF($C32,"G"),0) -> 0

Sheet CAVITTE Jean-Pierre
A1: CAVITTE Jean-Pierre | P1: =SaisonDeb -> 2021-2022 | R1: =SaisonFin -> 2022-2023 | T1: Toutes saisons
P2: Nombre | Q2: %age | R2: Nombre | S2: %age | T2: Nombre | U2: %age
N3: Matchs | O3: Gagnés | P3: =SUM(P$15:P$123) -> 0 | Q3: =IF(P$3+P$4>0,P3/(P$3+P$4),"") ->  | R3: =SUM(R$15:R$123) -> 2 | S3: =IF(R$3+R$4>0,R3/(R$3+R$4),"") -> 0.1818181818 | T3: =COUNTIF($C$15:$C$123,"G") -> 2 | U3: =IF(T$3+T$4>0,T3/(T$3+T$4),"") -> 0.1818181818
O4: Perdus | P4: =COUNTIF($K$15:$M$123,SaisonDeb)-P3 -> 0 | Q4: =IF(P$3+P$4>0,P4/(P$3+P$4),"") ->  | R4: =COUNTIF($K$15:$K$123,SaisonFin)-R3 -> 9 | S4: =IF(R$3+R$4>0,R4/(R$3+R$4),"") -> 0.8181818182 | T4: =COUNTIF($C$15:$C$123,"P") -> 9 | U4: =IF(T$3+T$4>0,T4/(T$3+T$4),"") -> 0.8181818182
O5: Total / Moy. | P5: =SUM(P3:P4) -> 0 | Q5: =IF(SUMIF($K$15:$K$123,SaisonDeb,$G$15:$G$123)>0,SUMIF($K$15:$K$123,SaisonDeb,$F$15:$F$123)/SUMIF($K$15:$K$123,SaisonDeb,$G$15:$G$123),"") ->  | R5: =SUM(R3:R4) -> 11 | S5: =IF(SUMIF($K$15:$K$123,SaisonFin,$G$15:$G$123)>0,SUMIF($K$15:$K$123,SaisonFin,$F$15:$F$123)/SUMIF($K$15:$K$123,SaisonFin,$G$15:$G$123),"") -> 0.7117537313 | T5: =SUM(T3:T4) -> 11 | U5: =IF(SUM($G$15:$G$123)>0,SUM($F$15:$F$123)/SUM($G$15:$G$123),"") -> 0.7117537313 | V5: =IF(SUMIF($K$15:$K$27,SaisonDeb,$G$15:$G$27)+SUMIF($K$15:$K$27,SaisonFin,$G$15:$G$27)>0,(SUMIF($K$15:$K$27,SaisonDeb,$F$15:$F$27)+SUMIF($K$15:$K$27,SaisonFin,$F$15:$F$27))/(SUMIF($K$15:$K$27,SaisonDeb,$G$15:$G$27)+SUMIF($K$15:$K$27,SaisonFin,$G$15:$G$27)),"") -> 0.7117537313
N6: Sets | O6: Gagnés | P6: =SUMIF($K$15:$K$123,SaisonDeb,$D$15:$D$123) -> 0 | Q6: =IF(P$6+P$7>0,P6/(P$6+P$7),"") ->  | R6: =SUMIF($K$15:$K$123,SaisonFin,$D$15:$D$123) -> 2 | S6: =IF(R$6+R$7>0,R6/(R$6+R$7),"") -> 0.1818181818 | T6: =SUM($D$15:$D$123) -> 2 | U6: =IF(T$6+T$7>0,T6/(T$6+T$7),"") -> 0.1818181818
O7: Perdus | P7: =SUMIF($K$15:$K$123,SaisonDeb,$E$15:$E$123) -> 0 | Q7: =IF(P$6+P$7>0,P7/(P$6+P$7),"") ->  | R7: =SUMIF($K$15:$K$123,SaisonFin,$E$15:$E$123) -> 9 | S7: =IF(R$6+R$7>0,R7/(R$6+R$7),"") -> 0.8181818182 | T7: =SUM($E$15:$E$123) -> 9 | U7: =IF(T$6+T$7>0,T7/(T$6+T$7),"") -> 0.8181818182
A8: Récapitulatif joueurs | O8: Total | P8: =SUM(P6:P7) -> 0 | R8: =SUM(R6:R7) -> 11 | T8: =SUM(T6:T7) -> 11
A15: Joueur | B15: Adversaire | C15: G/P | D15: Sets gagnés | E15: Sets perdus | F15: pts marqués | G15: pts subis | H15: Date | I15: Compétition | J15: Phase | K15: Saison
A16: CAVITTE Jean-Pierre | B16: KERKHOF Hervé | C16: P | D16: 0 | E16: 1 | F16: 43 | G16: 100 | H16: 2022-10-30 | I16: T2 5Q R1 - GRAVELINES | J16: Qualifications | K16: =IF(H16<>"",IF(MONTH(H16)>MoisRef,YEAR(H16)&"-"&YEAR(H16)+1,YEAR(H16)-1&"-"&YEAR(H16)),"") -> 2022-2023 | P16: =IF($K16=P$1,COUNTIF($C16,"G"),0) -> 0 | R16: =IF($K16=R$1,COUNTIF($C16,"G"),0) -> 0
A17: CAVITTE Jean-Pierre | B17: PAILLARD Bertrand | C17: P | D17: 0 | E17: 1 | F17: 67 | G17: 100 | H17: 2022-10-30 | I17: T2 5Q R1 - GRAVELINES | J17: Qualifications | K17: 2022-2023 | P17: 0 | R17: 0
A18: CAVITTE Jean-Pierre | B18: BERRIER François | C18: G | D18: 1 | E18: 0 | F18: 100 | G18: 82 | H18: 2022-10-30 | I18: T2 5Q R1 - GRAVELINES - CONSOLANTE | J18: Qualifications | K18: 2022-2023 | P18: 0 | R18: 1
A19: CAVITTE Jean-Pierre | B19: PARENT Jean-René | C19: P | D19: 0 | E19: 1 | F19: 70 | G19: 100 | H19: 2022-10-30 | I19: T2 5Q R1 - GRAVELINES - CONSOLANTE | J19: Qualifications | K19: 2022-2023 | P19: 0 | R19: 0
A20: CAVITTE Jean-Pierre | B20: LE GOHEBEL Jacques | C20: P | D20: 0 | E20: 1 | F20: 65 | G20: 100 | H20: 2023-02-04 | I20: T3 5Q R1 - GRAVELINES | J20: Qualifications | K20: 2022-2023 | P20: 0 | R20: 0
A21: CAVITTE Jean-Pierre | B21: LECROART Serge | C21: P | D21: 0 | E21: 1 | F21: 66 | G21: 100 | H21: 2023-02-04 | I21: T3 5Q R1 - GRAVELINES | J21: Qualifications | K21: 2022-2023 | P21: 0 | R21: 0
A22: CAVITTE Jean-Pierre | B22: LEVECQUE Jean-Bernard | C22: G | D22: 1 | E22: 0 | F22: 100 | G22: 90 | H22: 2023-02-04 | I22: T3 5Q R1 - GRAVELINES - CONSOLANTE | J22: Qualifications | K22: 2022-2023 | P22: 0 | R22: 1
A23: CAVITTE Jean-Pierre | B23: DUC Stéphane | C23: P | D23: 0 | E23: 1 | F23: 53 | G23: 100 | H23: 2023-03-04 | I23: T4 5Q R1 - DOUAI | J23: Qualifications | K23: 2022-2023 | P23: 0 | R23: 0
A24: CAVITTE Jean-Pierre | B24: MACAREZ Guy | C24: P | D24: 0 | E24: 1 | F24: 95 | G24: 100 | H24: 2023-03-04 | I24: T4 5Q R1 - DOUAI | J24: Qualifications | K24: 2022-2023 | P24: 0 | R24: 0
A25: CAVITTE Jean-Pierre | B25: HOCHART James | C25: P | D25: 0 | E25: 1 | F25: 36 | G25: 100 | H25: 2023-03-04 | I25: T4 5Q R1 - CONSOLANTE - DOUAI | J25: Qualifications | K25: 2022-2023 | P25: 0 | R25: 0
A26: CAVITTE Jean-Pierre | B26: MACAREZ Guy | C26: P | D26: 0 | E26: 1 | F26: 68 | G26: 100 | H26: 2023-03-04 | I26: T4 5Q R1 - CONSOLANTE - DOUAI | J26: Qualifications | K26: 2022-2023 | P26: 0 | R26: 0
A27: Fin des données | P27: =IF($K27=P$1,COUNTIF($C27,"G"),0) -> 0 | R27: =IF($K27=R$1,COUNTIF($C27,"G"),0) -> 0

Sheet CHAIGNE Gilles
A1: CHAIGNE Gilles | P1: =SaisonDeb -> 2021-2022 | R1: =SaisonFin -> 2022-2023 | T1: Toutes saisons
P2: Nombre | Q2: %age | R2: Nombre | S2: %age | T2: Nombre | U2: %age
N3: Matchs | O3: Gagnés | P3: =SUM(P$15:P$132) -> 0 | Q3: =IF(P$3+P$4>0,P3/(P$3+P$4),"") ->  | R3: =SUM(R$15:R$132) -> 0 | S3: =IF(R$3+R$4>0,R3/(R$3+R$4),"") ->  | T3: =COUNTIF($C$15:$C$132,"G") -> 13 | U3: =IF(T$3+T$4>0,T3/(T$3+T$4),"") -> 0.65
O4: Perdus | P4: =COUNTIF($K$15:$M$132,SaisonDeb)-P3 -> 0 | Q4: =IF(P$3+P$4>0,P4/(P$3+P$4),"") ->  | R4: =COUNTIF($K$15:$K$132,SaisonFin)-R3 -> 0 | S4: =IF(R$3+R$4>0,R4/(R$3+R$4),"") ->  | T4: =COUNTIF($C$15:$C$132,"P") -> 7 | U4: =IF(T$3+T$4>0,T4/(T$3+T$4),"") -> 0.35
O5: Total / Moy. | P5: =SUM(P3:P4) -> 0 | Q5: =IF(SUMIF($K$15:$K$132,SaisonDeb,$G$15:$G$132)>0,SUMIF($K$15:$K$132,SaisonDeb,$F$15:$F$132)/SUMIF($K$15:$K$132,SaisonDeb,$G$15:$G$132),"") ->  | R5: =SUM(R3:R4) -> 0 | S5: =IF(SUMIF($K$15:$K$132,SaisonFin,$G$15:$G$132)>0,SUMIF($K$15:$K$132,SaisonFin,$F$15:$F$132)/SUMIF($K$15:$K$132,SaisonFin,$G$15:$G$132),"") ->  | T5: =SUM(T3:T4) -> 20 | U5: =IF(SUM($G$15:$G$132)>0,SUM($F$15:$F$132)/SUM($G$15:$G$132),"") -> 1.099139415 | V5: =IF(SUMIF($K$15:$K$36,SaisonDeb,$G$15:$G$36)+SUMIF($K$15:$K$36,SaisonFin,$G$15:$G$36)>0,(SUMIF($K$15:$K$36,SaisonDeb,$F$15:$F$36)+SUMIF($K$15:$K$36,SaisonFin,$F$15:$F$36))/(SUMIF($K$15:$K$36,SaisonDeb,$G$15:$G$36)+SUMIF($K$15:$K$36,SaisonFin,$G$15:$G$36)),"") -> 
N6: Sets | O6: Gagnés | P6: =SUMIF($K$15:$K$132,SaisonDeb,$D$15:$D$132) -> 0 | Q6: =IF(P$6+P$7>0,P6/(P$6+P$7),"") ->  | R6: =SUMIF($K$15:$K$132,SaisonFin,$D$15:$D$132) -> 0 | S6: =IF(R$6+R$7>0,R6/(R$6+R$7),"") ->  | T6: =SUM($D$15:$D$132) -> 35 | U6: =IF(T$6+T$7>0,T6/(T$6+T$7),"") -> 0.564516129
O7: Perdus | P7: =SUMIF($K$15:$K$132,SaisonDeb,$E$15:$E$132) -> 0 | Q7: =IF(P$6+P$7>0,P7/(P$6+P$7),"") ->  | R7: =SUMIF($K$15:$K$132,SaisonFin,$E$15:$E$132) -> 0 | S7: =IF(R$6+R$7>0,R7/(R$6+R$7),"") ->  | T7: =SUM($E$15:$E$132) -> 27 | U7: =IF(T$6+T$7>0,T7/(T$6+T$7),"") -> 0.435483871
A8: Récapitulatif joueurs | O8: Total | P8: =SUM(P6:P7) -> 0 | R8: =SUM(R6:R7) -> 0 | T8: =SUM(T6:T7) -> 62
A15: Joueur | B15: Adversaire | C15: G/P | D15: Sets gagnés | E15: Sets perdus | F15: pts marqués | G15: pts subis | H15: Date | I15: Compétition | J15: Phase | K15: Saison
A16: CHAIGNE Gilles | B16: DUFRESNOY Michel | C16: P | D16: 1 | E16: 2 | F16: 96 | G16: 170 | H16: 2018-10-20 | I16: T1 R1 CD80 - MOREUIL | J16: 1/4 Finale | K16: =IF(H16<>"",IF(MONTH(H16)>MoisRef,YEAR(H16)&"-"&YEAR(H16)+1,YEAR(H16)-1&"-"&YEAR(H16)),"") -> 2018-2019 | P16: =IF($K16=P$1,COUNTIF($C16,"G"),0) -> 0 | R16: =IF($K16=R$1,COUNTIF($C16,"G"),0) -> 0
A17: CHAIGNE Gilles | B17: DUMEIGE Similien | C17: P | D17: 0 | E17: 2 | F17: 88 | G17: 120 | H17: 2018-10-20 | I17: T1 R1 CD80 - MOREUIL | J17: Qualifications | K17: 2018-2019 | P17: 0 | R17: 0
A18: CHAIGNE Gilles | B18: DUMEIGE Stéphane | C18: G | D18: 2 | E18: 0 | F18: 120 | G18: 82 | H18: 2018-10-20 | I18: T1 R1 CD80 - MOREUIL | J18: Qualifications | K18: 2018-2019 | P18: 0 | R18: 0
A19: CHAIGNE Gilles | B19: BETTEFORT Mickaël | C19: G | D19: 2 | E19: 1 | F19: 145 | G19: 128 | H19: 2018-11-24 | I19: T2 R1 CD80 - | J19: Qualifications | K19: 2018-2019 | P19: 0 | R19: 0
A20: CHAIGNE Gilles | B20: BETTEFORT Mickaël | C20: G | D20: 2 | E20: 1 | F20: 173 | G20: 146 | H20: 2018-11-24 | I20: T2 R1 CD80 - | J20: Qualifications | K20: 2018-2019 | P20: 0 | R20: 0
A21: CHAIGNE Gilles | B21: BETTEFORT Mickaël | C21: G | D21: 2 | E21: 0 | F21: 120 | G21: 54 | H21: 2018-11-24 | I21: T2 R1 CD80 - | J21: 1/8 Finale | K21: 2018-2019 | P21: 0 | R21: 0
A22: CHAIGNE Gilles | B22: DUHAMEL Eddy | C22: P | D22: 1 | E22: 2 | F22: 153 | G22: 177 | H22: 2018-11-24 | I22: T2 R1 CD80 - | J22: Finale | K22: 2018-2019 | P22: 0 | R22: 0
A23: CHAIGNE Gilles | B23: DUMEIGE Stéphane | C23: G | D23: 2 | E23: 0 | F23: 120 | G23: 73 | H23: 2018-11-24 | I23: T2 R1 CD80 - | J23: 1/4 Finale | K23: 2018-2019 | P23: 0 | R23: 0
A24: CHAIGNE Gilles | B24: ROUTHIER David | C24: G | D24: 2 | E24: 0 | F24: 120 | G24: 54 | H24: 2018-11-24 | I24: T2 R1 CD80 - | J24: 1/2 Finale | K24: 2018-2019 | P24: 0 | R24: 0
A25: CHAIGNE Gilles | B25: BETTEFORT Mickaël | C25: G | D25: 2 | E25: 0 | F25: 120 | G25: 88 | H25: 2019-01-05 | I25: T3 R1 CD80 - MOREUIL | J25: Qualifications | K25: 2018-2019 | P25: 0 | R25: 0
A26: CHAIGNE Gilles | B26: CABUZEL Denis | C26: G | D26: 2 | E26: 1 | F26: 149 | G26: 116 | H26: 2019-01-05 | I26: T3 R1 CD80 - MOREUIL | J26: 1/4 Finale | K26: 2018-2019 | P26: 0 | R26: 0
A27: CHAIGNE Gilles | B27: DUMEIGE Stéphane | C27: P | D27: 1 | E27: 2 | F27: 140 | G27: 162 | H27: 2019-01-05 | I27: T3 R1 CD80 - MOREUIL | J27: 1/2 Finale | K27: 2018-2019 | P27: 0 | R27: 0
A28: CHAIGNE Gilles | B28: JOLY Kenan | C28: G | D28: 2 | E28: 1 | F28: 163 | G28: 136 | H28: 2019-01-05 | I28: T3 R1 CD80 - MOREUIL | J28: Qualifications | K28: 2018-2019 | P28: 0 | R28: 0
A29: CHAIGNE Gilles | B29: DUFRESNOY Michel | C29: G | D29: 3 | E29: 1 | F29: 238 | G29: 180 | H29: 2019-02-23 | I29: Finale 5Q R1 CD80 - PONT DE METZ | J29: Poule unique | K29: 2018-2019 | P29: 0 | R29: 0
A30: CHAIGNE Gilles | B30: DUHAMEL Eddy | C30: P | D30: 1 | E30: 3 | F30: 204 | G30: 197 | H30: 2019-02-23 | I30: Finale 5Q R1 CD80 - PONT DE METZ | J30: Poule unique | K30: 2018-2019 | P30: 0 | R30: 0
A31: CHAIGNE Gilles | B31: DUMEIGE Stéphane | C31: G | D31: 3 | E31: 1 | F31: 212 | G31: 135 | H31: 2019-02-23 | I31: Finale 5Q R1 CD80 - PONT DE METZ | J31: Poule unique | K31: 2018-2019 | P31: 0 | R31: 0
A32: CHAIGNE Gilles | B32: DELFOSSE Fabien | C32: G | D32: 3 | E32: 2 | F32: 279 | G32: 228 | H32: 2019-03-17 | I32: FINALE LIGUE R1 - WIMILLE | J32: Poule unique | K32: 2018-2019 | P32: 0 | R32: 0
A33: CHAIGNE Gilles | B33: MONTADOR Ludovic | C33: P | D33: 1 | E33: 3 | F33: 221 | G33: 224 | H33: 2019-03-17 | I33: FINALE LIGUE R1 - WIMILLE | J33: Poule unique | K33: 2018-2019 | P33: 0 | R33: 0
A34: CHAIGNE Gilles | B34: PAILLARD Bertrand | C34: G | D34: 3 | E34: 2 | F34: 255 | G34: 255 | H34: 2019-03-17 | I34: FINALE LIGUE R1 - WIMILLE | J34: Poule unique | K34: 2018-2019 | P34: 0 | R34: 0
A35: CHAIGNE Gilles | B35: STEINMANN Sebastien | C35: P | D35: 0 | E35: 3 | F35: 77 | G35: 180 | H35: 2019-03-17 | I35: FINALE LIGUE R1 - WIMILLE | J35: Poule unique | K35: 2018-2019 | P35: 0 | R35: 0
A36: Fin des données | P36: =IF($K36=P$1,COUNTIF($C36,"G"),0) -> 0 | R36: =IF($K36=R$1,COUNTIF($C36,"G"),0) -> 0

Sheet CHARLES Dominique
A1: CHARLES Dominique | P1: =SaisonDeb -> 2021-2022 | R1: =SaisonFin -> 2022-2023 | T1: Toutes saisons
P2: Nombre | Q2: %age | R2: Nombre | S2: %age | T2: Nombre | U2: %age
N3: Matchs | O3: Gagnés | P3: =SUM(P$15:P$116) -> 2 | Q3: =IF(P$3+P$4>0,P3/(P$3+P$4),"") -> 0.5 | R3: =SUM(R$15:R$116) -> 0 | S3: =IF(R$3+R$4>0,R3/(R$3+R$4),"") ->  | T3: =COUNTIF($C$15:$C$116,"G") -> 2 | U3: =IF(T$3+T$4>0,T3/(T$3+T$4),"") -> 0.5
O4: Perdus | P4: =COUNTIF($K$15:$M$116,SaisonDeb)-P3 -> 2 | Q4: =IF(P$3+P$4>0,P4/(P$3+P$4),"") -> 0.5 | R4: =COUNTIF($K$15:$K$116,SaisonFin)-R3 -> 0 | S4: =IF(R$3+R$4>0,R4/(R$3+R$4),"") ->  | T4: =COUNTIF($C$15:$C$116,"P") -> 2 | U4: =IF(T$3+T$4>0,T4/(T$3+T$4),"") -> 0.5
O5: Total / Moy. | P5: =SUM(P3:P4) -> 4 | Q5: =IF(SUMIF($K$15:$K$116,SaisonDeb,$G$15:$G$116)>0,SUMIF($K$15:$K$116,SaisonDeb,$F$15:$F$116)/SUMIF($K$15:$K$116,SaisonDeb,$G$15:$G$116),"") -> 1.082089552 | R5: =SUM(R3:R4) -> 0 | S5: =IF(SUMIF($K$15:$K$116,SaisonFin,$G$15:$G$116)>0,SUMIF($K$15:$K$116,SaisonFin,$F$15:$F$116)/SUMIF($K$15:$K$116,SaisonFin,$G$15:$G$116),"") ->  | T5: =SUM(T3:T4) -> 4 | U5: =IF(SUM($G$15:$G$116)>0,SUM($F$15:$F$116)/SUM($G$15:$G$116),"") -> 1.082089552 | V5: =IF(SUMIF($K$15:$K$20,SaisonDeb,$G$15:$G$20)+SUMIF($K$15:$K$20,SaisonFin,$G$15:$G$20)>0,(SUMIF($K$15:$K$20,SaisonDeb,$F$15:$F$20)+SUMIF($K$15:$K$20,SaisonFin,$F$15:$F$20))/(SUMIF($K$15:$K$20,SaisonDeb,$G$15:$G$20)+SUMIF($K$15:$K$20,SaisonFin,$G$15:$G$20)),"") -> 1.082089552
N6: Sets | O6: Gagnés | P6: =SUMIF($K$15:$K$116,SaisonDeb,$D$15:$D$116) -> 2 | Q6: =IF(P$6+P$7>0,P6/(P$6+P$7),"") -> 0.5 | R6: =SUMIF($K$15:$K$116,SaisonFin,$D$15:$D$116) -> 0 | S6: =IF(R$6+R$7>0,R6/(R$6+R$7),"") ->  | T6: =SUM($D$15:$D$116) -> 2 | U6: =IF(T$6+T$7>0,T6/(T$6+T$7),"") -> 0.5
O7: Perdus | P7: =SUMIF($K$15:$K$116,SaisonDeb,$E$15:$E$116) -> 2 | Q7: =IF(P$6+P$7>0,P7/(P$6+P$7),"") -> 0.5 | R7: =SUMIF($K$15:$K$116,SaisonFin,$E$15:$E$116) -> 0 | S7: =IF(R$6+R$7>0,R7/(R$6+R$7),"") ->  | T7: =SUM($E$15:$E$116) -> 2 | U7: =IF(T$6+T$7>0,T7/(T$6+T$7),"") -> 0.5
A8: Récapitulatif joueurs | O8: Total | P8: =SUM(P6:P7) -> 4 | R8: =SUM(R6:R7) -> 0 | T8: =SUM(T6:T7) -> 4
A15: Joueur | B15: Adversaire | C15: G/P | D15: Sets gagnés | E15: Sets perdus | F15: pts marqués | G15: pts subis | H15: Date | I15: Compétition | J15: Phase | K15: Saison
A16: CHARLES Dominique | B16: AZRIA Aaron | C16: G | D16: 1 | E16: 0 | F16: 120 | G16: 82 | H16: 2021-10-02 | I16: T 1 OISE - Qualifications R 1 - Tour principal - MERU | J16: Qualifications | K16: =IF(H16<>"",IF(MONTH(H16)>MoisRef,YEAR(H16)&"-"&YEAR(H16)+1,YEAR(H16)-1&"-"&YEAR(H16)),"") -> 2021-2022 | P16: =IF($K16=P$1,COUNTIF($C16,"G"),0) -> 1 | R16: =IF($K16=R$1,COUNTIF($C16,"G"),0) -> 0
A17: CHARLES Dominique | B17: BARBE Philippe | C17: P | D17: 0 | E17: 1 | F17: 88 | G17: 120 | H17: 2021-10-02 | I17: T 1 OISE - Qualifications R 1 - Tour principal - MERU | J17: 1/2 Finale | K17: =IF(H17<>"",IF(MONTH(H17)>MoisRef,YEAR(H17)&"-"&YEAR(H17)+1,YEAR(H17)-1&"-"&YEAR(H17)),"") -> 2021-2022 | P17: =IF($K17=P$1,COUNTIF($C17,"G"),0) -> 0 | R17: =IF($K17=R$1,COUNTIF($C17,"G"),0) -> 0
A18: CHARLES Dominique | B18: BOUTON Gérard | C18: G | D18: 1 | E18: 0 | F18: 120 | G18: 80 | H18: 2021-10-02 | I18: T 1 OISE - Qualifications R 1 - Tour principal - MERU | J18: 1/4 Finale | K18: =IF(H18<>"",IF(MONTH(H18)>MoisRef,YEAR(H18)&"-"&YEAR(H18)+1,YEAR(H18)-1&"-"&YEAR(H18)),"") -> 2021-2022 | P18: =IF($K18=P$1,COUNTIF($C18,"G"),0) -> 1 | R18: =IF($K18=R$1,COUNTIF($C18,"G"),0) -> 0
A19: CHARLES Dominique | B19: MAUGER Jean-Paul | C19: P | D19: 0 | E19: 1 | F19: 107 | G19: 120 | H19: 2021-10-02 | I19: T 1 OISE - Qualifications R 1 - Tour principal - MERU | J19: Qualifications | K19: =IF(H19<>"",IF(MONTH(H19)>MoisRef,YEAR(H19)&"-"&YEAR(H19)+1,YEAR(H19)-1&"-"&YEAR(H19)),"") -> 2021-2022 | P19: =IF($K19=P$1,COUNTIF($C19,"G"),0) -> 0 | R19: =IF($K19=R$1,COUNTIF($C19,"G"),0) -> 0
A20: Fin des données | K20: =IF(H20<>"",IF(MONTH(H20)>MoisRef,YEAR(H20)&"-"&YEAR(H20)+1,YEAR(H20)-1&"-"&YEAR(H20)),"") ->  | P20: =IF($K20=P$1,COUNTIF($C20,"G"),0) -> 0 | R20: =IF($K20=R$1,COUNTIF($C20,"G"),0) -> 0

Sheet CHENAL Gérard
A1: CHENAL Gérard | P1: =SaisonDeb -> 2021-2022 | R1: =SaisonFin -> 2022-2023 | T1: Toutes saisons
P2: Nombre | Q2: %age | R2: Nombre | S2: %age | T2: Nombre | U2: %age
N3: Matchs | O3: Gagnés | P3: =SUM(P$15:P$140) -> 0 | Q3: =IF(P$3+P$4>0,P3/(P$3+P$4),"") -> 0 | R3: =SUM(R$15:R$140) -> 3 | S3: =IF(R$3+R$4>0,R3/(R$3+R$4),"") -> 0.2727272727 | T3: =COUNTIF($C$15:$C$140,"G") -> 10 | U3: =IF(T$3+T$4>0,T3/(T$3+T$4),"") -> 0.3571428571
O4: Perdus | P4: =COUNTIF($K$15:$M$140,SaisonDeb)-P3 -> 2 | Q4: =IF(P$3+P$4>0,P4/(P$3+P$4),"") -> 1 | R4: =COUNTIF($K$15:$K$140,SaisonFin)-R3 -> 8 | S4: =IF(R$3+R$4>0,R4/(R$3+R$4),"") -> 0.7272727273 | T4: =COUNTIF($C$15:$C$140,"P") -> 18 | U4: =IF(T$3+T$4>0,T4/(T$3+T$4),"") -> 0.6428571429
O5: Total / Moy. | P5: =SUM(P3:P4) -> 2 | Q5: =IF(SUMIF($K$15:$K$140,SaisonDeb,$G$15:$G$140)>0,SUMIF($K$15:$K$140,SaisonDeb,$F$15:$F$140)/SUMIF($K$15:$K$140,SaisonDeb,$G$15:$G$140),"") -> 0.7041666667 | R5: =SUM(R3:R4) -> 11 | S5: =IF(SUMIF($K$15:$K$140,SaisonFin,$G$15:$G$140)>0,SUMIF($K$15:$K$140,SaisonFin,$F$15:$F$140)/SUMIF($K$15:$K$140,SaisonFin,$G$15:$G$140),"") -> 0.8971659919 | T5: =SUM(T3:T4) -> 28 | U5: =IF(SUM($G$15:$G$140)>0,SUM($F$15:$F$140)/SUM($G$15:$G$140),"") -> 0.9246298789 | V5: =IF(SUMIF($K$15:$K$44,SaisonDeb,$G$15:$G$44)+SUMIF($K$15:$K$44,SaisonFin,$G$15:$G$44)>0,(SUMIF($K$15:$K$44,SaisonDeb,$F$15:$F$44)+SUMIF($K$15:$K$44,SaisonFin,$F$15:$F$44))/(SUMIF($K$15:$K$44,SaisonDeb,$G$15:$G$44)+SUMIF($K$15:$K$44,SaisonFin,$G$15:$G$44)),"") -> 0.8657627119
N6: Sets | O6: Gagnés | P6: =SUMIF($K$15:$K$140,SaisonDeb,$D$15:$D$140) -> 0 | Q6: =IF(P$6+P$7>0,P6/(P$6+P$7),"") -> 0 | R6: =SUMIF($K$15:$K$140,SaisonFin,$D$15:$D$140) -> 3 | S6: =IF(R$6+R$7>0,R6/(R$6+R$7),"") -> 0.2727272727 | T6: =SUM($D$15:$D$140) -> 15 | U6: =IF(T$6+T$7>0,T6/(T$6+T$7),"") -> 0.4166666667
O7: Perdus | P7: =SUMIF($K$15:$K$140,SaisonDeb,$E$15:$E$140) -> 2 | Q7: =IF(P$6+P$7>0,P7/(P$6+P$7),"") -> 1 | R7: =SUMIF($K$15:$K$140,SaisonFin,$E$15:$E$140) -> 8 | S7: =IF(R$6+R$7>0,R7/(R$6+R$7),"") -> 0.7272727273 | T7: =SUM($E$15:$E$140) -> 21 | U7: =IF(T$6+T$7>0,T7/(T$6+T$7),"") -> 0.5833333333
A8: Récapitulatif joueurs | O8: Total | P8: =SUM(P6:P7) -> 2 | R8: =SUM(R6:R7) -> 11 | T8: =SUM(T6:T7) -> 36
A15: Joueur | B15: Adversaire | C15: G/P | D15: Sets gagnés | E15: Sets perdus | F15: pts marqués | G15: pts subis | H15: Date | I15: Compétition | J15: Phase | K15: Saison
A16: CHENAL Gérard | B16: MURIOT Jean-Pierre | C16: G | D16: 1 | E16: 0 | F16: 100 | G16: 97 | H16: 2016-10-22 | I16: 5Q CD60 R1 - T 1 -CREPY | J16: Tour 4 | K16: =IF(H16<>"",IF(MONTH(H16)>MoisRef,YEAR(H16)&"-"&YEAR(H16)+1,YEAR(H16)-1&"-"&YEAR(H16)),"") -> 2016-2017 | P16: =IF($K16=P$1,COUNTIF($C16,"G"),0) -> 0 | R16: =IF($K16=R$1,COUNTIF($C16,"G"),0) -> 0
A17: CHENAL Gérard | B17: VANDEPUTTE Laurent | C17: P | D17: 0 | E17: 1 | F17: 90 | G17: 100 | H17: 2017-01-21 | I17: 5Q CD60 R1 - T 3 - MERU | J17: Tour 3 | K17: 2016-2017 | P17: 0 | R17: 0
A18: CHENAL Gérard | B18: LEGER Emmanuel | C18: P | D18: 0 | E18: 1 | F18: 48 | G18: 100 | H18: 2017-01-21 | I18: 5Q CD60 R1 - T 3 - MERU | J18: Tour 4 | K18: 2016-2017 | P18: 0 | R18: 0
A19: CHENAL Gérard | B19: AZRIA Aaron | C19: G | D19: 2 | E19: 0 | F19: 120 | G19: 79 | H19: 2018-11-24 | I19: 5 Q - T 3 OISE 2018-19 - R 1 - TOURNOI PRINCIPAL - MERU | J19: Qualifications | K19: 2018-2019 | P19: 0 | R19: 0
A20: CHENAL Gérard | B20: LALOT Gérard | C20: P | D20: 1 | E20: 2 | F20: 144 | G20: 175 | H20: 2018-11-24 | I20: 5 Q - T 3 OISE 2018-19 - R 1 - TOURNOI PRINCIPAL - MERU | J20: Qualifications | K20: 2018-2019 | P20: 0 | R20: 0
A21: CHENAL Gérard | B21: LALOT Gérard | C21: P | D21: 1 | E21: 2 | F21: 140 | G21: 162 | H21: 2018-11-24 | I21: 5 Q - T 3 OISE 2018-19 - R 1 - TOURNOI PRINCIPAL - MERU | J21: 1/4 Finale | K21: 2018-2019 | P21: 0 | R21: 0
A22: CHENAL Gérard | B22: GEOFFROY Florent | C22: P | D22: 0 | E22: 1 | F22: 83 | G22: 100 | H22: 2020-01-11 | I22: CD60 R1 - T3 - Tour Principal - CREPY | J22: 1/4 Finale | K22: 2019-2020 | P22: 0 | R22: 0
A23: CHENAL Gérard | B23: LE FRIEC Daniel | C23: P | D23: 0 | E23: 1 | F23: 72 | G23: 100 | H23: 2020-01-11 | I23: CD60 R1 - T3 - Tour Principal - CREPY | J23: Qualifications | K23: 2019-2020 | P23: 0 | R23: 0
A24: CHENAL Gérard | B24: LE FRIEC Daniel | C24: G | D24: 1 | E24: 0 | F24: 100 | G24: 70 | H24: 2020-01-11 | I24: CD60 R1 - T3 - Tour Principal - CREPY | J24: Qualifications | K24: 2019-2020 | P24: 0 | R24: 0
A25: CHENAL Gérard | B25: ALAZARD Philippe | C25: G | D25: 1 | E25: 0 | F25: 100 | G25: 86 | H25: 2020-02-15 | I25: CD60 R1 - T 4 - Tour Principal - SENLIS | J25: Qualifications | K25: 2019-2020 | P25: 0 | R25: 0
A26: CHENAL Gérard | B26: ALAZARD Philippe | C26: P | D26: 0 | E26: 1 | F26: 63 | G26: 100 | H26: 2020-02-15 | I26: CD60 R1 - T 4 - Tour Principal - SENLIS | J26: 1/4 Finale | K26: 2019-2020 | P26: 0 | R26: 0
A27: CHENAL Gérard | B27: BOUIGES Armelle | C27: G | D27: 1 | E27: 0 | F27: 100 | G27: 43 | H27: 2020-02-15 | I27: CD60 R1 - T 4 - Tour Principal - SENLIS | J27: Qualifications | K27: 2019-2020 | P27: 0 | R27: 0
A28: CHENAL Gérard | B28: DESCLAIR Guy | C28: G | D28: 2 | E28: 0 | F28: 120 | G28: 94 | H28: 2019-11-23 | I28: CD60 R1 - T2 - Tour Principal - MERU | J28: Qualifications | K28: 2019-2020 | P28: 0 | R28: 0
A29: CHENAL Gérard | B29: LAMARQUE Yves | C29: P | D29: 0 | E29: 2 | F29: 71 | G29: 120 | H29: 2019-11-23 | I29: CD60 R1 - T2 - Tour Principal - MERU | J29: 1/4 Finale | K29: 2019-2020 | P29: 0 | R29: 0
A30: CHENAL Gérard | B30: MAUGER Jean-Paul | C30: G | D30: 2 | E30: 0 | F30: 120 | G30: 71 | H30: 2019-11-23 | I30: CD60 R1 - T2 - Tour Principal - MERU | J30: Qualifications | K30: 2019-2020 | P30: 0 | R30: 0
A31: CHENAL Gérard | B31: LAMARQUE Yves | C31: P | D31: 0 | E31: 1 | F31: 67 | G31: 120 | H31: 2021-12-18 | I31: T 2 OISE - Qualifications R 1 - Tour principal - CREPY | J31: Qualifications | K31: 2021-2022 | P31: 0 | R31: 0
A32: CHENAL Gérard | B32: MASSARD Patrick | C32: P | D32: 0 | E32: 1 | F32: 102 | G32: 120 | H32: 2021-12-18 | I32: T 2 OISE - Qualifications R 1 - Tour principal - CREPY | J32: Qualifications | K32: 2021-2022 | P32: 0 | R32: 0
A33: CHENAL Gérard | B33: BOUIGES Armelle | C33: G | D33: 1 | E33: 0 | F33: 120 | G33: 80 | H33: 2022-12-29 | I33: T 3 OISE - Qualifications R 1 - Tour principal - SENLIS | J33: Qualifications | K33: 2022-2023 | P33: 0 | R33: 1
A34: CHENAL Gérard | B34: BOZON Robert | C34: P | D34: 0 | E34: 1 | F34: 79 | G34: 120 | H34: 2022-12-29 | I34: T 3 OISE - Qualifications R 1 - Tour principal - SENLIS | J34: 1/4 Finale | K34: 2022-2023 | P34: 0 | R34: 0
A35: CHENAL Gérard | B35: DESCLAIR Guy | C35: P | D35: 0 | E35: 1 | F35: 107 | G35: 120 | H35: 2022-12-29 | I35: T 3 OISE - Qualifications R 1 - Tour principal - SENLIS | J35: Qualifications | K35: 2022-2023 | P35: 0 | R35: 0
A36: CHENAL Gérard | B36: BARTHON Aurélie | C36: G | D36: 1 | E36: 0 | F36: 120 | G36: 106 | H36: 2022-12-03 | I36: T 2 OISE - Qualifications R 1 - Tour Principal - SENLIS | J36: Qualifications | K36: 2022-2023 | P36: 0 | R36: 1
A37: CHENAL Gérard | B37: BOUTON Gérard | C37: P | D37: 0 | E37: 1 | F37: 80 | G37: 120 | H37: 2022-12-03 | I37: T 2 OISE - Qualifications R 1 - Tour Principal - SENLIS | J37: 1/4 Finale | K37: 2022-2023 | P37: 0 | R37: 0
A38: CHENAL Gérard | B38: GRANGER Pascal | C38: P | D38: 0 | E38: 1 | F38: 84 | G38: 120 | H38: 2022-12-03 | I38: T 2 OISE - Qualifications R 1 - Tour Principal - SENLIS | J38: Qualifications | K38: 2022-2023 | P38: 0 | R38: 0
A39: CHENAL Gérard | B39: BOUTON Gérard | C39: P | D39: 0 | E39: 1 | F39: 103 | G39: 120 | H39: 2023-03-18 | I39: T 4 OISE - Qualifications R 1 - Tour Principal - CREPY | J39: Qualifications | K39: 2022-2023 | P39: 0 | R39: 0
A40: CHENAL Gérard | B40: NAHIRNYJ Alexi | C40: P | D40: 0 | E40: 1 | F40: 63 | G40: 120 | H40: 2023-03-18 | I40: T 4 OISE - Qualifications R 1 - Tour Principal - CREPY | J40: Qualifications | K40: 2022-2023 | P40: 0 | R40: 0
A41: CHENAL Gérard | B41: DIOT Alain | C41: P | D41: 0 | E41: 1 | F41: 114 | G41: 120 | H41: 2022-10-29 | I41: T 1 OISE - Qualifications R 1 - Tour Principal - MERU | J41: 1/4 Finale | K41: 2022-2023 | P41: 0 | R41: 0
A42: CHENAL Gérard | B42: MASSARD Patrick | C42: P | D42: 0 | E42: 1 | F42: 118 | G42: 120 | H42: 2022-10-29 | I42: T 1 OISE - Qualifications R 1 - Tour Principal - MERU | J42: Qualifications | K42: 2022-2023 | P42: 0 | R42: 0
A43: CHENAL Gérard | B43: MASSARD Patrick | C43: G | D43: 1 | E43: 0 | F43: 120 | G43: 89 | H43: 2022-10-29 | I43: T 1 OISE - Qualifications R 1 - Tour Principal - MERU | J43: Qualifications | K43: 2022-2023 | P43: 0 | R43: 1
A44: Fin des données | P44: 0 | R44: 0

Sheet CHOUX André
A1: CHOUX André | P1: =SaisonDeb -> 2021-2022 | R1: =SaisonFin -> 2022-2023 | T1: Toutes saisons
P2: Nombre | Q2: %age | R2: Nombre | S2: %age | T2: Nombre | U2: %age
N3: Matchs | O3: Gagnés | P3: =SUM(P$15:P$121) -> 0 | Q3: =IF(P$3+P$4>0,P3/(P$3+P$4),"") ->  | R3: =SUM(R$15:R$121) -> 0 | S3: =IF(R$3+R$4>0,R3/(R$3+R$4),"") ->  | T3: =COUNTIF($C$15:$C$121,"G") -> 4 | U3: =IF(T$3+T$4>0,T3/(T$3+T$4),"") -> 0.4444444444
O4: Perdus | P4: =COUNTIF($K$15:$M$121,SaisonDeb)-P3 -> 0 | Q4: =IF(P$3+P$4>0,P4/(P$3+P$4),"") ->  | R4: =COUNTIF($K$15:$K$121,SaisonFin)-R3 -> 0 | S4: =IF(R$3+R$4>0,R4/(R$3+R$4),"") ->  | T4: =COUNTIF($C$15:$C$121,"P") -> 5 | U4: =IF(T$3+T$4>0,T4/(T$3+T$4),"") -> 0.5555555556
O5: Total / Moy. | P5: =SUM(P3:P4) -> 0 | Q5: =IF(SUMIF($K$15:$K$121,SaisonDeb,$G$15:$G$121)>0,SUMIF($K$15:$K$121,SaisonDeb,$F$15:$F$121)/SUMIF($K$15:$K$121,SaisonDeb,$G$15:$G$121),"") ->  | R5: =SUM(R3:R4) -> 0 | S5: =IF(SUMIF($K$15:$K$121,SaisonFin,$G$15:$G$121)>0,SUMIF($K$15:$K$121,SaisonFin,$F$15:$F$121)/SUMIF($K$15:$K$121,SaisonFin,$G$15:$G$121),"") ->  | T5: =SUM(T3:T4) -> 9 | U5: =IF(SUM($G$15:$G$121)>0,SUM($F$15:$F$121)/SUM($G$15:$G$121),"") -> 1.093922652 | V5: =IF(SUMIF($K$15:$K$25,SaisonDeb,$G$15:$G$25)+SUMIF($K$15:$K$25,SaisonFin,$G$15:$G$25)>0,(SUMIF($K$15:$K$25,SaisonDeb,$F$15:$F$25)+SUMIF($K$15:$K$25,SaisonFin,$F$15:$F$25))/(SUMIF($K$15:$K$25,SaisonDeb,$G$15:$G$25)+SUMIF($K$15:$K$25,SaisonFin,$G$15:$G$25)),"") -> 
N6: Sets | O6: Gagnés | P6: =SUMIF($K$15:$K$121,SaisonDeb,$D$15:$D$121) -> 0 | Q6: =IF(P$6+P$7>0,P6/(P$6+P$7),"") ->  | R6: =SUMIF($K$15:$K$121,SaisonFin,$D$15:$D$121) -> 0 | S6: =IF(R$6+R$7>0,R6/(R$6+R$7),"") ->  | T6: =SUM($D$15:$D$121) -> 13 | U6: =IF(T$6+T$7>0,T6/(T$6+T$7),"") -> 0.4814814815
O7: Perdus | P7: =SUMIF($K$15:$K$121,SaisonDeb,$E$15:$E$121) -> 0 | Q7: =IF(P$6+P$7>0,P7/(P$6+P$7),"") ->  | R7: =SUMIF($K$15:$K$121,SaisonFin,$E$15:$E$121) -> 0 | S7: =IF(R$6+R$7>0,R7/(R$6+R$7),"") ->  | T7: =SUM($E$15:$E$121) -> 14 | U7: =IF(T$6+T$7>0,T7/(T$6+T$7),"") -> 0.5185185185
A8: Récapitulatif joueurs | O8: Total | P8: =SUM(P6:P7) -> 0 | R8: =SUM(R6:R7) -> 0 | T8: =SUM(T6:T7) -> 27
A15: Joueur | B15: Adversaire | C15: G/P | D15: Sets gagnés | E15: Sets perdus | F15: pts marqués | G15: pts subis | H15: Date | I15: Compétition | J15: Phase | K15: Saison
A16: CHOUX André | B16: MIQUEE Florine | C16: G | D16: 2 | E16: 1 | F16: 167 | G16: 152 | H16: 2016-11-19 | I16: 5Q R1 CD02 - T1 - SOISSONS | J16: Qualifications | K16: =IF(H16<>"",IF(MONTH(H16)>MoisRef,YEAR(H16)&"-"&YEAR(H16)+1,YEAR(H16)-1&"-"&YEAR(H16)),"") -> 2016-2017 | P16: =IF($K16=P$1,COUNTIF($C16,"G"),0) -> 0 | R16: =IF($K16=R$1,COUNTIF($C16,"G"),0) -> 0
A17: CHOUX André | B17: MIQUEE Florine | C17: P | D17: 0 | E17: 2 | F17: 105 | G17: 120 | H17: 2016-11-19 | I17: 5Q R1 CD02 - T1 - SOISSONS | J17: Qualifications | K17: 2016-2017 | P17: 0 | R17: 0
A18: CHOUX André | B18: BOULINGUEZ Yves | C18: G | D18: 2 | E18: 1 | F18: 155 | G18: 127 | H18: 2017-01-21 | I18: 5Q R1 CD02 - T3 - st quentin | J18: Qualifications | K18: 2016-2017 | P18: 0 | R18: 0
A19: CHOUX André | B19: BUTTI EmIlie | C19: G | D19: 2 | E19: 0 | F19: 120 | G19: 89 | H19: 2017-01-21 | I19: 5Q R1 CD02 - T3 - st quentin | J19: Qualifications | K19: 2016-2017 | P19: 0 | R19: 0
A20: CHOUX André | B20: BUTTI Bertrand | C20: G | D20: 3 | E20: 0 | F20: 180 | G20: 92 | H20: 2017-03-04 | I20: 5Q R1 CD02 - FINALE CD - SOISSONS | J20: Qualifications | K20: 2016-2017 | P20: 0 | R20: 0
A21: CHOUX André | B21: DA SILVA José | C21: P | D21: 2 | E21: 3 | F21: 252 | G21: 216 | H21: 2017-03-04 | I21: 5Q R1 CD02 - FINALE CD - SOISSONS | J21: 1/2 Finale | K21: 2016-2017 | P21: 0 | R21: 0
A22: CHOUX André | B22: FRISON Michel | C22: P | D22: 0 | E22: 3 | F22: 126 | G22: 180 | H22: 2017-03-04 | I22: 5Q R1 CD02 - FINALE CD - SOISSONS | J22: Qualifications | K22: 2016-2017 | P22: 0 | R22: 0
A23: CHOUX André | B23: HECQ Anthony | C23: P | D23: 1 | E23: 2 | F23: 138 | G23: 139 | H23: 2017-12-16 | I23: Qualifications AISNE R1 - SOISSONS | J23: Qualifications | K23: 2017-2018 | P23: 0 | R23: 0
A24: CHOUX André | B24: HECQ Anthony | C24: P | D24: 1 | E24: 2 | F24: 143 | G24: 152 | H24: 2017-12-16 | I24: Qualifications AISNE R1 - SOISSONS | J24: Qualifications | K24: 2017-2018 | P24: 0 | R24: 0
A25: Fin des données | P25: =IF($K25=P$1,COUNTIF($C25,"G"),0) -> 0 | R25: =IF($K25=R$1,COUNTIF($C25,"G"),0) -> 0

Sheet COFFRE Frédéric
A1: COFFRE Frédéric | P1: =SaisonDeb -> 2021-2022 | R1: =SaisonFin -> 2022-2023 | T1: Toutes saisons
P2: Nombre | Q2: %age | R2: Nombre | S2: %age | T2: Nombre | U2: %age
N3: Matchs | O3: Gagnés | P3: =SUM(P$15:P$127) -> 0 | Q3: =IF(P$3+P$4>0,P3/(P$3+P$4),"") ->  | R3: =SUM(R$15:R$127) -> 0 | S3: =IF(R$3+R$4>0,R3/(R$3+R$4),"") ->  | T3: =COUNTIF($C$15:$C$127,"G") -> 4 | U3: =IF(T$3+T$4>0,T3/(T$3+T$4),"") -> 0.2666666667
O4: Perdus | P4: =COUNTIF($K$15:$M$127,SaisonDeb)-P3 -> 0 | Q4: =IF(P$3+P$4>0,P4/(P$3+P$4),"") ->  | R4: =COUNTIF($K$15:$K$127,SaisonFin)-R3 -> 0 | S4: =IF(R$3+R$4>0,R4/(R$3+R$4),"") ->  | T4: =COUNTIF($C$15:$C$127,"P") -> 11 | U4: =IF(T$3+T$4>0,T4/(T$3+T$4),"") -> 0.7333333333
O5: Total / Moy. | P5: =SUM(P3:P4) -> 0 | Q5: =IF(SUMIF($K$15:$K$127,SaisonDeb,$G$15:$G$127)>0,SUMIF($K$15:$K$127,SaisonDeb,$F$15:$F$127)/SUMIF($K$15:$K$127,SaisonDeb,$G$15:$G$127),"") ->  | R5: =SUM(R3:R4) -> 0 | S5: =IF(SUMIF($K$15:$K$127,SaisonFin,$G$15:$G$127)>0,SUMIF($K$15:$K$127,SaisonFin,$F$15:$F$127)/SUMIF($K$15:$K$127,SaisonFin,$G$15:$G$127),"") ->  | T5: =SUM(T3:T4) -> 15 | U5: =IF(SUM($G$15:$G$127)>0,SUM($F$15:$F$127)/SUM($G$15:$G$127),"") -> 0.7844143724 | V5: =IF(SUMIF($K$15:$K$31,SaisonDeb,$G$15:$G$31)+SUMIF($K$15:$K$31,SaisonFin,$G$15:$G$31)>0,(SUMIF($K$15:$K$31,SaisonDeb,$F$15:$F$31)+SUMIF($K$15:$K$31,SaisonFin,$F$15:$F$31))/(SUMIF($K$15:$K$31,SaisonDeb,$G$15:$G$31)+SUMIF($K$15:$K$31,SaisonFin,$G$15:$G$31)),"") -> 
N6: Sets | O6: Gagnés | P6: =SUMIF($K$15:$K$127,SaisonDeb,$D$15:$D$127) -> 0 | Q6: =IF(P$6+P$7>0,P6/(P$6+P$7),"") ->  | R6: =SUMIF($K$15:$K$127,SaisonFin,$D$15:$D$127) -> 0 | S6: =IF(R$6+R$7>0,R6/(R$6+R$7),"") ->  | T6: =SUM($D$15:$D$127) -> 15 | U6: =IF(T$6+T$7>0,T6/(T$6+T$7),"") -> 0.3333333333
O7: Perdus | P7: =SUMIF($K$15:$K$127,SaisonDeb,$E$15:$E$127) -> 0 | Q7: =IF(P$6+P$7>0,P7/(P$6+P$7),"") ->  | R7: =SUMIF($K$15:$K$127,SaisonFin,$E$15:$E$127) -> 0 | S7: =IF(R$6+R$7>0,R7/(R$6+R$7),"") ->  | T7: =SUM($E$15:$E$127) -> 30 | U7: =IF(T$6+T$7>0,T7/(T$6+T$7),"") -> 0.6666666667
A8: Récapitulatif joueurs | O8: Total | P8: =SUM(P6:P7) -> 0 | R8: =SUM(R6:R7) -> 0 | T8: =SUM(T6:T7) -> 45
A15: Joueur | B15: Adversaire | C15: G/P | D15: Sets gagnés | E15: Sets perdus | F15: pts marqués | G15: pts subis | H15: Date | I15: Compétition | J15: Phase | K15: Saison
A16: COFFRE Frédéric | B16: PIERRU Didier | C16: P | D16: 1 | E16: 3 | F16: 102 | G16: 196 | H16: 2016-01-17 | I16: T1 Qualifications CD62 R1 Maritime - CUCQ | J16: Qualifications | K16: =IF(H16<>"",IF(MONTH(H16)>MoisRef,YEAR(H16)&"-"&YEAR(H16)+1,YEAR(H16)-1&"-"&YEAR(H16)),"") -> 2015-2016 | P16: =IF($K16=P$1,COUNTIF($C16,"G"),0) -> 0 | R16: =IF($K16=R$1,COUNTIF($C16,"G"),0) -> 0
A17: COFFRE Frédéric | B17: PIERRU Didier | C17: P | D17: 0 | E17: 3 | F17: 92 | G17: 150 | H17: 2016-01-17 | I17: T1 Qualifications CD62 R1 Maritime - CUCQ | J17: 1/4 Finale | K17: 2015-2016 | P17: 0 | R17: 0
A18: COFFRE Frédéric | B18: RAMET Jacques | C18: G | D18: 3 | E18: 1 | F18: 194 | G18: 129 | H18: 2016-01-17 | I18: T1 Qualifications CD62 R1 Maritime - CUCQ | J18: Qualifications | K18: 2015-2016 | P18: 0 | R18: 0
A19: COFFRE Frédéric | B19: PIERRU Didier | C19: P | D19: 1 | E19: 3 | F19: 102 | G19: 196 | H19: 2016-01-17 | I19: T1 Qualifications CD62 R1 Maritime - CUCQ | J19: Qualifications | K19: 2015-2016 | P19: 0 | R19: 0
A20: COFFRE Frédéric | B20: PIERRU Didier | C20: P | D20: 0 | E20: 3 | F20: 92 | G20: 150 | H20: 2016-01-17 | I20: T1 Qualifications CD62 R1 Maritime - CUCQ | J20: 1/4 Finale | K20: 2015-2016 | P20: 0 | R20: 0
A21: COFFRE Frédéric | B21: RAMET Jacques | C21: G | D21: 3 | E21: 1 | F21: 194 | G21: 129 | H21: 2016-01-17 | I21: T1 Qualifications CD62 R1 Maritime - CUCQ | J21: Qualifications | K21: 2015-2016 | P21: 0 | R21: 0
A22: COFFRE Frédéric | B22: MARTEL Bruno | C22: P | D22: 0 | E22: 3 | F22: 58 | G22: 150 | H22: 2016-03-13 | I22: T3 Qualifications CD62 R1 Maritime - Cucq | J22: Qualifications | K22: 2015-2016 | P22: 0 | R22: 0
A23: COFFRE Frédéric | B23: TIZON Alain | C23: P | D23: 1 | E23: 3 | F23: 173 | G23: 186 | H23: 2016-03-13 | I23: T3 Qualifications CD62 R1 Maritime - Cucq | J23: Qualifications | K23: 2015-2016 | P23: 0 | R23: 0
A24: COFFRE Frédéric | B24: MONTADOR Christophe | C24: P | D24: 0 | E24: 2 | F24: 78 | G24: 120 | H24: 2017-12-10 | I24: T1 Qualification CD62 R1 - CUCQ | J24: Qualifications | K24: 2017-2018 | P24: 0 | R24: 0
A25: COFFRE Frédéric | B25: MONTADOR Ludovic | C25: P | D25: 1 | E25: 2 | F25: 104 | G25: 172 | H25: 2017-12-10 | I25: T1 Qualification CD62 R1 - CUCQ | J25: Qualifications | K25: 2017-2018 | P25: 0 | R25: 0
A26: COFFRE Frédéric | B26: MONTADOR Christophe | C26: P | D26: 0 | E26: 2 | F26: 78 | G26: 120 | H26: 2018-01-06 | I26: T2 Qualification CD62 R1 - xxxx | J26: Qualifications | K26: 2017-2018 | P26: 0 | R26: 0
A27: COFFRE Frédéric | B27: MONTADOR Ludovic | C27: P | D27: 1 | E27: 2 | F27: 104 | G27: 172 | H27: 2018-01-06 | I27: T2 Qualification CD62 R1 - xxxx | J27: Qualifications | K27: 2017-2018 | P27: 0 | R27: 0
A28: COFFRE Frédéric | B28: DEPLECHIN Roland | C28: P | D28: 0 | E28: 2 | F28: 70 | G28: 120 | H28: 2018-01-13 | I28: T2 Qualification CD62 R1 - WIMILLE | J28: 1/2 Finale | K28: 2017-2018 | P28: 0 | R28: 0
A29: COFFRE Frédéric | B29: MARTEL Bruno | C29: G | D29: 2 | E29: 0 | F29: 120 | G29: 64 | H29: 2018-01-13 | I29: T2 Qualification CD62 R1 - WIMILLE | J29: Qualifications | K29: 2017-2018 | P29: 0 | R29: 0
A30: COFFRE Frédéric | B30: MARTEL Michel | C30: G | D30: 2 | E30: 0 | F30: 120 | G30: 89 | H30: 2018-01-13 | I30: T2 Qualification CD62 R1 - WIMILLE | J30: Qualifications | K30: 2017-2018 | P30: 0 | R30: 0
A31: Fin des données | P31: =IF($K31=P$1,COUNTIF($C31,"G"),0) -> 0 | R31: =IF($K31=R$1,COUNTIF($C31,"G"),0) -> 0

Sheet COLAS Gerard
A1: COLAS Gerard | P1: =SaisonDeb -> 2021-2022 | R1: =SaisonFin -> 2022-2023 | T1: Toutes saisons
P2: Nombre | Q2: %age | R2: Nombre | S2: %age | T2: Nombre | U2: %age
N3: Matchs | O3: Gagnés | P3: =SUM(P$15:P$121) -> 0 | Q3: =IF(P$3+P$4>0,P3/(P$3+P$4),"") ->  | R3: =SUM(R$15:R$121) -> 0 | S3: =IF(R$3+R$4>0,R3/(R$3+R$4),"") ->  | T3: =COUNTIF($C$15:$C$121,"G") -> 6 | U3: =IF(T$3+T$4>0,T3/(T$3+T$4),"") -> 0.6666666667
O4: Perdus | P4: =COUNTIF($K$15:$M$121,SaisonDeb)-P3 -> 0 | Q4: =IF(P$3+P$4>0,P4/(P$3+P$4),"") ->  | R4: =COUNTIF($K$15:$K$121,SaisonFin)-R3 -> 0 | S4: =IF(R$3+R$4>0,R4/(R$3+R$4),"") ->  | T4: =COUNTIF($C$15:$C$121,"P") -> 3 | U4: =IF(T$3+T$4>0,T4/(T$3+T$4),"") -> 0.3333333333
O5: Total / Moy. | P5: =SUM(P3:P4) -> 0 | Q5: =IF(SUMIF($K$15:$K$121,SaisonDeb,$G$15:$G$121)>0,SUMIF($K$15:$K$121,SaisonDeb,$F$15:$F$121)/SUMIF($K$15:$K$121,SaisonDeb,$G$15:$G$121),"") ->  | R5: =SUM(R3:R4) -> 0 | S5: =IF(SUMIF($K$15:$K$121,SaisonFin,$G$15:$G$121)>0,SUMIF($K$15:$K$121,SaisonFin,$F$15:$F$121)/SUMIF($K$15:$K$121,SaisonFin,$G$15:$G$121),"") ->  | T5: =SUM(T3:T4) -> 9 | U5: =IF(SUM($G$15:$G$121)>0,SUM($F$15:$F$121)/SUM($G$15:$G$121),"") -> 1.115322581 | V5: =IF(SUMIF($K$15:$K$25,SaisonDeb,$G$15:$G$25)+SUMIF($K$15:$K$25,SaisonFin,$G$15:$G$25)>0,(SUMIF($K$15:$K$25,SaisonDeb,$F$15:$F$25)+SUMIF($K$15:$K$25,SaisonFin,$F$15:$F$25))/(SUMIF($K$15:$K$25,SaisonDeb,$G$15:$G$25)+SUMIF($K$15:$K$25,SaisonFin,$G$15:$G$25)),"") -> 
N6: Sets | O6: Gagnés | P6: =SUMIF($K$15:$K$121,SaisonDeb,$D$15:$D$121) -> 0 | Q6: =IF(P$6+P$7>0,P6/(P$6+P$7),"") ->  | R6: =SUMIF($K$15:$K$121,SaisonFin,$D$15:$D$121) -> 0 | S6: =IF(R$6+R$7>0,R6/(R$6+R$7),"") ->  | T6: =SUM($D$15:$D$121) -> 14 | U6: =IF(T$6+T$7>0,T6/(T$6+T$7),"") -> 0.5185185185
O7: Perdus | P7: =SUMIF($K$15:$K$121,SaisonDeb,$E$15:$E$121) -> 0 | Q7: =IF(P$6+P$7>0,P7/(P$6+P$7),"") ->  | R7: =SUMIF($K$15:$K$121,SaisonFin,$E$15:$E$121) -> 0 | S7: =IF(R$6+R$7>0,R7/(R$6+R$7),"") ->  | T7: =SUM($E$15:$E$121) -> 13 | U7: =IF(T$6+T$7>0,T7/(T$6+T$7),"") -> 0.4814814815
A8: Récapitulatif joueurs | O8: Total | P8: =SUM(P6:P7) -> 0 | R8: =SUM(R6:R7) -> 0 | T8: =SUM(T6:T7) -> 27
A15: Joueur | B15: Adversaire | C15: G/P | D15: Sets gagnés | E15: Sets perdus | F15: pts marqués | G15: pts subis | H15: Date | I15: Compétition | J15: Phase | K15: Saison
A16: COLAS Gerard | B16: BOLLINNE Simon | C16: G | D16: 2 | E16: 1 | F16: 172 | G16: 110 | H16: 2017-11-18 | I16: qualification AISNE R1 - St Q uentin | J16: Qualifications | K16: =IF(H16<>"",IF(MONTH(H16)>MoisRef,YEAR(H16)&"-"&YEAR(H16)+1,YEAR(H16)-1&"-"&YEAR(H16)),"") -> 2017-2018 | P16: =IF($K16=P$1,COUNTIF($C16,"G"),0) -> 0 | R16: =IF($K16=R$1,COUNTIF($C16,"G"),0) -> 0
A17: COLAS Gerard | B17: BUTTI Bertrand | C17: P | D17: 0 | E17: 2 | F17: 92 | G17: 120 | H17: 2017-11-18 | I17: qualification AISNE R1 - St Q uentin | J17: Qualifications | K17: 2017-2018 | P17: 0 | R17: 0
A18: COLAS Gerard | B18: BOULINGUEZ Yves | C18: G | D18: 2 | E18: 0 | F18: 120 | G18: 65 | H18: 2018-01-27 | I18: Qualifications AISNE R1 - guignicourt | J18: Qualifications | K18: 2017-2018 | P18: 0 | R18: 0
A19: COLAS Gerard | B19: BOULINGUEZ Yves | C19: G | D19: 2 | E19: 0 | F19: 120 | G19: 94 | H19: 2018-01-27 | I19: Qualifications AISNE R1 - guignicourt | J19: Qualifications | K19: 2017-2018 | P19: 0 | R19: 0
A20: COLAS Gerard | B20: BOLLINNE Simon | C20: G | D20: 3 | E20: 2 | F20: 261 | G20: 207 | H20: 2018-03-03 | I20: FINALE AISNE R1 - guignicourt | J20: Qualifications | K20: 2017-2018 | P20: 0 | R20: 0
A21: COLAS Gerard | B21: BUTTI Bertrand | C21: P | D21: 0 | E21: 3 | F21: 110 | G21: 180 | H21: 2018-03-03 | I21: FINALE AISNE R1 - guignicourt | J21: Qualifications | K21: 2017-2018 | P21: 0 | R21: 0
A22: COLAS Gerard | B22: BUTTI Bertrand | C22: P | D22: 1 | E22: 3 | F22: 205 | G22: 202 | H22: 2018-03-03 | I22: FINALE AISNE R1 - guignicourt | J22: 1/2 Finale | K22: 2017-2018 | P22: 0 | R22: 0
A23: COLAS Gerard | B23: CORRE Maxime | C23: G | D23: 2 | E23: 1 | F23: 155 | G23: 119 | H23: 2017-12-16 | I23: Qualifications AISNE R1 - SOISSONS | J23: Qualifications | K23: 2017-2018 | P23: 0 | R23: 0
A24: COLAS Gerard | B24: DURTETTE Daniel | C24: G | D24: 2 | E24: 1 | F24: 148 | G24: 143 | H24: 2017-12-16 | I24: Qualifications AISNE R1 - SOISSONS | J24: Qualifications | K24: 2017-2018 | P24: 0 | R24: 0
A25: Fin des données | P25: =IF($K25=P$1,COUNTIF($C25,"G"),0) -> 0 | R25: =IF($K25=R$1,COUNTIF($C25,"G"),0) -> 0

Sheet CORRE Maxime
A1: CORRE Maxime | P1: =SaisonDeb -> 2021-2022 | R1: =SaisonFin -> 2022-2023 | T1: Toutes saisons
P2: Nombre | Q2: %age | R2: Nombre | S2: %age | T2: Nombre | U2: %age
N3: Matchs | O3: Gagnés | P3: =SUM(P$15:P$120) -> 0 | Q3: =IF(P$3+P$4>0,P3/(P$3+P$4),"") ->  | R3: =SUM(R$15:R$120) -> 0 | S3: =IF(R$3+R$4>0,R3/(R$3+R$4),"") ->  | T3: =COUNTIF($C$15:$C$120,"G") -> 4 | U3: =IF(T$3+T$4>0,T3/(T$3+T$4),"") -> 0.5
O4: Perdus | P4: =COUNTIF($K$15:$M$120,SaisonDeb)-P3 -> 0 | Q4: =IF(P$3+P$4>0,P4/(P$3+P$4),"") ->  | R4: =COUNTIF($K$15:$K$120,SaisonFin)-R3 -> 0 | S4: =IF(R$3+R$4>0,R4/(R$3+R$4),"") ->  | T4: =COUNTIF($C$15:$C$120,"P") -> 4 | U4: =IF(T$3+T$4>0,T4/(T$3+T$4),"") -> 0.5
O5: Total / Moy. | P5: =SUM(P3:P4) -> 0 | Q5: =IF(SUMIF($K$15:$K$120,SaisonDeb,$G$15:$G$120)>0,SUMIF($K$15:$K$120,SaisonDeb,$F$15:$F$120)/SUMIF($K$15:$K$120,SaisonDeb,$G$15:$G$120),"") ->  | R5: =SUM(R3:R4) -> 0 | S5: =IF(SUMIF($K$15:$K$120,SaisonFin,$G$15:$G$120)>0,SUMIF($K$15:$K$120,SaisonFin,$F$15:$F$120)/SUMIF($K$15:$K$120,SaisonFin,$G$15:$G$120),"") ->  | T5: =SUM(T3:T4) -> 8 | U5: =IF(SUM($G$15:$G$120)>0,SUM($F$15:$F$120)/SUM($G$15:$G$120),"") -> 1.012704174 | V5: =IF(SUMIF($K$15:$K$24,SaisonDeb,$G$15:$G$24)+SUMIF($K$15:$K$24,SaisonFin,$G$15:$G$24)>0,(SUMIF($K$15:$K$24,SaisonDeb,$F$15:$F$24)+SUMIF($K$15:$K$24,SaisonFin,$F$15:$F$24))/(SUMIF($K$15:$K$24,SaisonDeb,$G$15:$G$24)+SUMIF($K$15:$K$24,SaisonFin,$G$15:$G$24)),"") -> 
N6: Sets | O6: Gagnés | P6: =SUMIF($K$15:$K$120,SaisonDeb,$D$15:$D$120) -> 0 | Q6: =IF(P$6+P$7>0,P6/(P$6+P$7),"") ->  | R6: =SUMIF($K$15:$K$120,SaisonFin,$D$15:$D$120) -> 0 | S6: =IF(R$6+R$7>0,R6/(R$6+R$7),"") ->  | T6: =SUM($D$15:$D$120) -> 11 | U6: =IF(T$6+T$7>0,T6/(T$6+T$7),"") -> 0.5
O7: Perdus | P7: =SUMIF($K$15:$K$120,SaisonDeb,$E$15:$E$120) -> 0 | Q7: =IF(P$6+P$7>0,P7/(P$6+P$7),"") ->  | R7: =SUMIF($K$15:$K$120,SaisonFin,$E$15:$E$120) -> 0 | S7: =IF(R$6+R$7>0,R7/(R$6+R$7),"") ->  | T7: =SUM($E$15:$E$120) -> 11 | U7: =IF(T$6+T$7>0,T7/(T$6+T$7),"") -> 0.5
A8: Récapitulatif joueurs | O8: Total | P8: =SUM(P6:P7) -> 0 | R8: =SUM(R6:R7) -> 0 | T8: =SUM(T6:T7) -> 22
A15: Joueur | B15: Adversaire | C15: G/P | D15: Sets gagnés | E15: Sets perdus | F15: pts marqués | G15: pts subis | H15: Date | I15: Compétition | J15: Phase | K15: Saison
A16: CORRE Maxime | B16: BOULINGUEZ Yves | C16: G | D16: 2 | E16: 1 | F16: 158 | G16: 162 | H16: 2017-11-18 | I16: qualification AISNE R1 - St Q uentin | J16: Qualifications | K16: =IF(H16<>"",IF(MONTH(H16)>MoisRef,YEAR(H16)&"-"&YEAR(H16)+1,YEAR(H16)-1&"-"&YEAR(H16)),"") -> 2017-2018 | P16: =IF($K16=P$1,COUNTIF($C16,"G"),0) -> 0 | R16: =IF($K16=R$1,COUNTIF($C16,"G"),0) -> 0
A17: CORRE Maxime | B17: DURTETTE Daniel | C17: G | D17: 2 | E17: 0 | F17: 120 | G17: 78 | H17: 2017-11-18 | I17: qualification AISNE R1 - St Q uentin | J17: Qualifications | K17: 2017-2018 | P17: 0 | R17: 0
A18: CORRE Maxime | B18: BOLLINNE Simon | C18: P | D18: 1 | E18: 2 | F18: 130 | G18: 161 | H18: 2018-01-27 | I18: Qualifications AISNE R1 - guignicourt | J18: Qualifications | K18: 2017-2018 | P18: 0 | R18: 0
A19: CORRE Maxime | B19: COUSIN Francis | C19: G | D19: 2 | E19: 0 | F19: 120 | G19: 67 | H19: 2018-01-27 | I19: Qualifications AISNE R1 - guignicourt | J19: Qualifications | K19: 2017-2018 | P19: 0 | R19: 0
A20: CORRE Maxime | B20: HECQ Anthony | C20: P | D20: 1 | E20: 3 | F20: 190 | G20: 224 | H20: 2018-03-03 | I20: FINALE AISNE R1 - guignicourt | J20: Qualifications | K20: 2017-2018 | P20: 0 | R20: 0
A21: CORRE Maxime | B21: MIQUEE Florine | C21: P | D21: 0 | E21: 3 | F21: 159 | G21: 180 | H21: 2018-03-03 | I21: FINALE AISNE R1 - guignicourt | J21: Qualifications | K21: 2017-2018 | P21: 0 | R21: 0
A22: CORRE Maxime | B22: COLAS Gerard | C22: P | D22: 1 | E22: 2 | F22: 119 | G22: 155 | H22: 2017-12-16 | I22: Qualifications AISNE R1 - SOISSONS | J22: Qualifications | K22: 2017-2018 | P22: 0 | R22: 0
A23: CORRE Maxime | B23: DURTETTE Daniel | C23: G | D23: 2 | E23: 0 | F23: 120 | G23: 75 | H23: 2017-12-16 | I23: Qualifications AISNE R1 - SOISSONS | J23: Qualifications | K23: 2017-2018 | P23: 0 | R23: 0
A24: Fin des données | P24: =IF($K24=P$1,COUNTIF($C24,"G"),0) -> 0 | R24: =IF($K24=R$1,COUNTIF($C24,"G"),0) -> 0

Sheet COUPLET Sébastien
A1: COUPLET Sébastien | P1: =SaisonDeb -> 2021-2022 | R1: =SaisonFin -> 2022-2023 | T1: Toutes saisons
P2: Nombre | Q2: %age | R2: Nombre | S2: %age | T2: Nombre | U2: %age
N3: Matchs | O3: Gagnés | P3: =SUM(P$15:P$116) -> 0 | Q3: =IF(P$3+P$4>0,P3/(P$3+P$4),"") ->  | R3: =SUM(R$15:R$116) -> 0 | S3: =IF(R$3+R$4>0,R3/(R$3+R$4),"") ->  | T3: =COUNTIF($C$15:$C$116,"G") -> 0 | U3: =IF(T$3+T$4>0,T3/(T$3+T$4),"") -> 0
O4: Perdus | P4: =COUNTIF($K$15:$M$116,SaisonDeb)-P3 -> 0 | Q4: =IF(P$3+P$4>0,P4/(P$3+P$4),"") ->  | R4: =COUNTIF($K$15:$K$116,SaisonFin)-R3 -> 0 | S4: =IF(R$3+R$4>0,R4/(R$3+R$4),"") ->  | T4: =COUNTIF($C$15:$C$116,"P") -> 4 | U4: =IF(T$3+T$4>0,T4/(T$3+T$4),"") -> 1
O5: Total / Moy. | P5: =SUM(P3:P4) -> 0 | Q5: =IF(SUMIF($K$15:$K$116,SaisonDeb,$G$15:$G$116)>0,SUMIF($K$15:$K$116,SaisonDeb,$F$15:$F$116)/SUMIF($K$15:$K$116,SaisonDeb,$G$15:$G$116),"") ->  | R5: =SUM(R3:R4) -> 0 | S5: =IF(SUMIF($K$15:$K$116,SaisonFin,$G$15:$G$116)>0,SUMIF($K$15:$K$116,SaisonFin,$F$15:$F$116)/SUMIF($K$15:$K$116,SaisonFin,$G$15:$G$116),"") ->  | T5: =SUM(T3:T4) -> 4 | U5: =IF(SUM($G$15:$G$116)>0,SUM($F$15:$F$116)/SUM($G$15:$G$116),"") -> 0.5975 | V5: =IF(SUMIF($K$15:$K$20,SaisonDeb,$G$15:$G$20)+SUMIF($K$15:$K$20,SaisonFin,$G$15:$G$20)>0,(SUMIF($K$15:$K$20,SaisonDeb,$F$15:$F$20)+SUMIF($K$15:$K$20,SaisonFin,$F$15:$F$20))/(SUMIF($K$15:$K$20,SaisonDeb,$G$15:$G$20)+SUMIF($K$15:$K$20,SaisonFin,$G$15:$G$20)),"") -> 
N6: Sets | O6: Gagnés | P6: =SUMIF($K$15:$K$116,SaisonDeb,$D$15:$D$116) -> 0 | Q6: =IF(P$6+P$7>0,P6/(P$6+P$7),"") ->  | R6: =SUMIF($K$15:$K$116,SaisonFin,$D$15:$D$116) -> 0 | S6: =IF(R$6+R$7>0,R6/(R$6+R$7),"") ->  | T6: =SUM($D$15:$D$116) -> 0 | U6: =IF(T$6+T$7>0,T6/(T$6+T$7),"") -> 0
